Workbook

Sheet Principal
J6: Cálculo de Esforços Mecânicos
G29: Formulários de cálculos | R29: Materiais | AA29: Outros
R43: Configurações

Sheet Hh_postes
B1: Transporte de postes
A2: Serviço | B2: Caracteristicas do poste | C2: USCM
A3: Reti. | B3: Ret. - Poste de madeira ou de polimerico novo ou em bom estado, por metro e por Km | C3: 0.01
A4: Reti. | B4: Ret. - Poste de madeira ou de polimerico sucata, por metro e por Km | C4: 0.003
A5: Inst. | B5: Inst. - Poste de concreto novo ou em bom estado, por metro e por Km | C5: 0.02
A6: Reti. | B6: Ret. - Poste de concreto novo ou em bom estado, por metro e por Km | C6: 0.02
A7: Reti. | B7: Ret. - Poste de concreto sucata, por metro e por Km | C7: 0.006

Sheet Estai_Resultante
C1: ângulo | D1: Resultante - kgf | G1: Ângulo estai | J1: ALTURA POSTE (m) | L1: =K1-(K1*0.1+0.6) -> -0.6 | V1: REDUZIR T PRI | AB1: 2 | AC1: 2 | AD1: 2 | AE1: 2 | AF1: 2 | AG1: 2 | AH1: 2 | AI1: dsd
C2: =ROUND(IF(D2>0.001,E23),0) -> 0 | D2: =ROUND(D11,0) -> 0 | G2: =ROUND(IF(D2>0.001,E24),0) -> 0 | J2: DISTANCIA DO TOPO (cm) | K2: 20 | N2: 1 | V2: RED TENSAO SEC | Y2: 1/0 CA VÃO 40m | Z2: 230 | AA2: 90 | AB2: =IF(ISERROR(VLOOKUP($AA2,Table444,AB$1,FALSE)),0,VLOOKUP($AA2,Table444,AB$1,FALSE)) -> 0 | AC2: =IF(ISERROR(VLOOKUP($AA2,Table555,AC$1,FALSE)),0,VLOOKUP($AA2,Table555,AC$1,FALSE)) -> 0 | AD2: =IF(ISERROR(VLOOKUP($AA2,Table666,AD$1,FALSE)),0,VLOOKUP($AA2,Table666,AD$1,FALSE)) -> 0 | AE2: =IF(ISERROR(VLOOKUP($AA2,Table888,AE$1,FALSE)),0,VLOOKUP($AA2,Table888,AE$1,FALSE)) -> 0 | AF2: =IF(ISERROR(VLOOKUP($AA2,Table999,AF$1,FALSE)),0,VLOOKUP($AA2,Table999,AF$1,FALSE)) -> 0 | AG2: =IF(ISERROR(VLOOKUP($AA2,Table222,AG$1,FALSE)),0,VLOOKUP($AA2,Table222,AG$1,FALSE)) -> 0 | AH2: =IF(ISERROR(VLOOKUP($AA2,Table333,AH$1,FALSE)),0,VLOOKUP($AA2,Table333,AH$1,FALSE)) -> 0 | AI2: 90 | AJ2: 1 | AM2: =ROUND(IF(Estai_Resultante!M15>0.001,Estai_Resultante!M15,3500),0) -> 3500 | AN2: 1
J3: AFASTAMENTO BT (cm) | K3: 20 | Y3: 4/0 CA VÃO 40m | Z3: 460 | AA3: =AA2-1 -> 89 | AB3: 0 | AC3: 0 | AD3: =IF(ISERROR(VLOOKUP($AA3,Table666,AC$1,FALSE)),0,VLOOKUP($AA3,Table666,AC$1,FALSE)) -> 0 | AE3: 0 | AF3: 0 | AG3: 0 | AH3: 0 | AI3: 45 | AJ3: 1 | AM3: =ROUND(IF(Estai_Resultante!M27>0.001,Estai_Resultante!M27,3500),0) -> 3500 | AN3: 1
D4: =M15+180 -> 180 | E4: =M27+180 -> 180 | F4: =M39+180 -> 180 | G4: =M51+180 -> 180 | H4: =M63+180 -> 180 | J4: VÃO REGULADOR (m) | K4: 40 | L4: =IF(AND(SUM(J83:J87)>=1,K4>60),J82,"") ->  | Y4: 336,4 CA VÃO 40m | Z4: 735 | AA4: 88 | AB4: 0 | AC4: 0 | AD4: 0 | AE4: 0 | AF4: 0 | AG4: 0 | AH4: 0 | AI4: 0 | AJ4: 1 | AM4: =ROUND(IF(Estai_Resultante!M39>0.001,Estai_Resultante!M39,3500),0) -> 3500 | AN4: 1
D5: =RADIANS(D4) -> 3.141592654 | E5: =RADIANS(E4) -> 3.141592654 | F5: =RADIANS(F4) -> 3.141592654 | G5: =RADIANS(G4) -> 3.141592654 | H5: =RADIANS(H4) -> 3.141592654 | J5: DISTÂNCIA SECUNDÁRIA SOLO (cm) | L5: =IF(K5>0,K5,720) -> 720 | Y5: 4/0 CAL VÃO 40m | Z5: 791,78 | AA5: 87 | AB5: 0 | AC5: 0 | AD5: 0 | AE5: 0 | AF5: 0 | AG5: 0 | AH5: 0 | AI5: 315 | AJ5: 1 | AM5: =ROUND(IF(Estai_Resultante!M51>0.001,Estai_Resultante!M51,3500),0) -> 3500 | AN5: 1
C6: COSENO | D6: =COS(D5)*X18 -> 0 | E6: =COS(E5)*X30 -> 0 | F6: =COS(F5)*X42 -> 0 | G6: =COS(G5)*X54 -> 0 | H6: =COS(H5)*X66 -> 0 | J6: DISTÂNCIA TELEFONE/CABO SOLO (cm) | L6: =IF(K6>0,K6,550) -> 550 | P6: =VLOOKUP(N12,$Y$1:$Z$106,2,FALSE) ->  | Y6: 4/0 CAL VÃO 60m | Z6: 778,13 | AA6: 86 | AB6: 0 | AC6: 0 | AD6: 0 | AE6: 0 | AF6: 0 | AG6: 0 | AH6: 0 | AI6: 270 | AJ6: 1 | AM6: =ROUND(IF(Estai_Resultante!M63>0.001,Estai_Resultante!M63,3500),0) -> 3500 | AN6: 1
C7: SENO | D7: =SIN(D5)*X18 -> 0 | E7: =SIN(E5)*X30 -> 0 | F7: =SIN(F5)*X42 -> 0 | G7: =SIN(G5)*X54 -> 0 | H7: =SIN(H5)*X66 -> 0 | Y7: 4/0 CAL VÃO 80m | Z7: 761.14 | AA7: 85 | AB7: 0 | AC7: 0 | AD7: 0 | AE7: 0 | AF7: 0 | AG7: 0 | AH7: 0 | AI7: 225 | AJ7: 1 | AN7: 1 | AO7: =IF(Estai_Resultante!G2>0.001,Estai_Resultante!G2,3500) -> 3500 | AP7: 1
J8: FORÇA 01 | L8: BITOLA | M8: FORMAÇÃO | X8: kgf | Y8: 35mm² Cabo Coberto VÃO 40m | Z8: 190 | AA8: 84 | AB8: 0 | AC8: 0 | AD8: 0 | AE8: 0 | AF8: 0 | AG8: 0 | AH8: 0 | AI8: 180 | AJ8: 1 | AN8: 1 | AO8: =IF(Estai_Resultante!C2>0.001,Estai_Resultante!C2,3500) -> 3500 | AP8: 1
J9: REDE COMPACTA | Y9: 50mm² Cabo Coberto VÃO 40m | Z9: 270 | AA9: =AA8-1 -> 83 | AB9: =IF(ISERROR(VLOOKUP($AA9,Table444,AB$1,FALSE)),0,VLOOKUP($AA9,Table444,AB$1,FALSE)) -> 0 | AC9: =IF(ISERROR(VLOOKUP($AA9,Table555,AC$1,FALSE)),0,VLOOKUP($AA9,Table555,AC$1,FALSE)) -> 0 | AD9: =IF(ISERROR(VLOOKUP($AA9,Table666,AC$1,FALSE)),0,VLOOKUP($AA9,Table666,AC$1,FALSE)) -> 0 | AE9: =IF(ISERROR(VLOOKUP($AA9,Table888,AE$1,FALSE)),0,VLOOKUP($AA9,Table888,AE$1,FALSE)) -> 0 | AF9: =IF(ISERROR(VLOOKUP($AA9,Table999,AF$1,FALSE)),0,VLOOKUP($AA9,Table999,AF$1,FALSE)) -> 0 | AG9: =IF(ISERROR(VLOOKUP($AA9,Table222,AG$1,FALSE)),0,VLOOKUP($AA9,Table222,AG$1,FALSE)) -> 0 | AH9: =IF(ISERROR(VLOOKUP($AA9,Table333,AH$1,FALSE)),0,VLOOKUP($AA9,Table333,AH$1,FALSE)) -> 0 | AI9: 135 | AJ9: 1
C10: COSENO | D10: =SUM(D6:H6) -> 0 | E10: =D10*D10 -> 0 | J10: Nº FASES MT | N10: =IF(L10="","0",CONCATENATE(L10," ",M10," VÃO ",$K$4,"m")) -> 0 | O10: =IF(ISERROR(VLOOKUP(N10,$Y$1:$Z$1006,2,FALSE)),"",VLOOKUP(N10,$Y$1:$Z$1006,2,FALSE)) ->  | P10: =IF(M10="multiplexado",(O10*1)) -> FALSE | Q10: =IF(AND(K9=$S$71,M10="Cabo Coberto"),(O10*1),IF(AND(K9=$S$72,M10="Cabo Coberto"),(O10*2),IF(AND(K9=$S$73,M10="Cabo Coberto"),(O10*3)))) -> FALSE | R10: =IF(M10="CAA",(O10*K10)) -> FALSE | S10: =IF($M10="CAL",($O10*$K10)) -> FALSE | T10: =IF(M10="CA",(O10*K10)) -> FALSE | U10: =IF(M10="CAZ",(O10*K10)) -> FALSE | V10: =IF(O10="","0",MAX(P10:U10)) -> 0 | W10: =IF(N10>0,V10-(V10*$W$1/100),0) -> 0 | X10: =W10*($L$1-($K$2/100))/$L$1 -> 0 | Y10: 95mm² Cabo Coberto VÃO 40m | Z10: 390 | AA10: 82 | AB10: 0 | AC10: 0 | AD10: 0 | AE10: 0 | AF10: 0 | AG10: 0 | AH10: 0 | AJ10: FORÇA 01 | AN10: 1
C11: RAIZ | D11: =SQRT(D10*D10+D12*D12) -> 0 | E11: =D11*D11 -> 0 | J11: NEUTRO MT | N11: =IF(L11="","0",CONCATENATE(L11," ",M11," VÃO ",$K$4,"m")) -> 0 | O11: =IF(ISERROR(VLOOKUP(N11,$Y$1:$Z$1006,2,FALSE)),"",VLOOKUP(N11,$Y$1:$Z$1006,2,FALSE)) ->  | P11: =IF(M11="multiplexado",(O11*1)) -> FALSE | Q11: =IF(M11="Cabo Coberto",(O11*1)) -> FALSE | R11: =IF(M11="CAA",(O11*K11)) -> FALSE | S11: =IF($M11="CAL",($O11*$K11)) -> FALSE | T11: =IF(M11="CA",(O11*K11)) -> FALSE | U11: =IF(M11="CAZ",(O11*K11)) -> FALSE | V11: =IF(O11="","0",MAX(P11:T11)) -> 0 | W11: =IF(N11>0,V11-(V11*$W$1/100),0) -> 0 | X11: =W11*($L$1-($K$2/100))/$L$1 -> 0 | Y11: 150mm² Cabo Coberto VÃO 40m | Z11: 450 | AA11: 81 | AB11: 0 | AC11: 0 | AD11: 0 | AE11: 0 | AF11: 0 | AG11: 0 | AH11: 0 | AJ11: FORÇA 02 | AN11: 1
C12: SENO | D12: =SUM(D7:H7) -> 0 | E12: =D12*D12 -> 0 | J12: Nº FASES BT | N12: =IF(L12="","0",CONCATENATE(L12," ",M12," VÃO ",$K$4,"m")) -> 0 | O12: =IF(ISERROR(VLOOKUP(N12,$Y$1:$Z$1006,2,FALSE)),"",VLOOKUP(N12,$Y$1:$Z$1006,2,FALSE)) ->  | P12: =IF(M12="multiplexado",(O12*1)) -> FALSE | Q12: =IF(M12="Cabo Coberto",(O12*1)) -> FALSE | R12: =IF(M12="CAA",(O12*K12)) -> FALSE | S12: FALSE | T12: =IF(M12="CA",(O12*K12)) -> FALSE | U12: =IF(M12="CAZ",(O12*K12)) -> FALSE | V12: =IF(O12="","0",MAX(P12:T12)) -> 0 | X12: =IF(N12>0,((V12)-(V12*$W$2/100))*($L$5/100)/$L$1,0) -> 0 | Y12: 3 (35 + 35)mm² multiplexado VÃO 40m | Z12: 165.8 | AA12: 80 | AB12: 0 | AC12: 0 | AD12: 0 | AE12: 0 | AF12: 0 | AG12: 0 | AH12: 0 | AJ12: FORÇA 03 | AN12: 1
J13: NEUTRO BT | N13: =IF(L13="","0",CONCATENATE(L13," ",M13," VÃO ",$K$4,"m")) -> 0 | O13: =IF(ISERROR(VLOOKUP(N13,$Y$1:$Z$1006,2,FALSE)),"",VLOOKUP(N13,$Y$1:$Z$1006,2,FALSE)) ->  | P13: =IF(M13="multiplexado",(O13*1)) -> FALSE | Q13: =IF(M13="Cabo Coberto",(O13*1)) -> FALSE | R13: =IF(M13="CAA",(O13*K13)) -> FALSE | S13: FALSE | T13: =IF(M13="CA",(O13*K13)) -> FALSE | U13: =IF(M13="CAZ",(O13*K13)) -> FALSE | V13: =IF(O13="","0",MAX(P13:T13)) -> 0 | X13: =IF(N13>0,((V13)-(V13*$W$2/100))*($L$5/100)/$L$1,0) -> 0 | Y13: 3 (50 + 50)mm² multiplexado VÃO 40m | Z13: 226.3 | AA13: 79 | AB13: 0 | AC13: 0 | AD13: 0 | AE13: 0 | AF13: 0 | AG13: 0 | AH13: 0 | AJ13: FORÇA 04 | AN13: 1
E14: =E10+E11-E12 -> 0 | J14: FIO PILOTO IP | N14: =IF(L14="","0",CONCATENATE(L14," ",M14," VÃO ",$K$4,"m")) -> 0 | O14: =IF(ISERROR(VLOOKUP(N14,$Y$1:$Z$1006,2,FALSE)),"",VLOOKUP(N14,$Y$1:$Z$1006,2,FALSE)) ->  | P14: =IF(M14="multiplexado",(O14*1)) -> FALSE | Q14: =IF(M14="Cabo Coberto",(O14*1)) -> FALSE | R14: =IF(M14="CAA",(O14*K14)) -> FALSE | S14: FALSE | T14: =IF(M14="CA",(O14*K14)) -> FALSE | U14: =IF(M14="CAZ",(O14*K14)) -> FALSE | V14: =IF(O14="","0",MAX(P14:T14)) -> 0 | X14: =IF(N14>0,((V14)-(V14*W2/100))*($L$5/100)/$L$1,0) -> 0 | Y14: 3 (70 + 70)mm² multiplexado VÃO 40m | Z14: 280 | AA14: 78 | AB14: 0 | AC14: 0 | AD14: 0 | AE14: 0 | AF14: 0 | AG14: 0 | AH14: 0 | AJ14: FORÇA 05 | AN14: 1
E15: =(2*D10*D11) -> 0 | J15: TELEFONE N° PARES | N15: =IF(ISERROR(VLOOKUP(K15,$M$71:$N$81,2,FALSE)),"0",VLOOKUP(K15,$M$71:$N$81,2,FALSE)) -> 0 | O15: =IF($N$2>0,N15,0) -> 0 | X15: =N15*($L$6/100)/($L$1-0.2) -> 0 | Y15: 3 (120 + 70)mm² multiplexado VÃO 40m | Z15: 400 | AA15: 77 | AB15: 0 | AC15: 0 | AD15: 0 | AE15: 0 | AF15: 0 | AG15: 0 | AH15: 0 | AJ15: ESFORÇO RESULTANTE | AN15: 1
E16: =E14/E15 ->  | J16: TV CABO - kgf | O16: =IF($N$2>0,K16,0) -> 0 | X16: =O16*($L$6/100)/($L$1-0.2) -> 0 | Y16: 4 CAA VÃO 40m | Z16: 207 | AA16: 76 | AB16: 0 | AC16: 0 | AD16: 0 | AE16: 0 | AF16: 0 | AG16: 0 | AH16: 0 | AJ16: ÂNGULO ESTAI | AN16: 1
E17: =-(E16) ->  | J17: FIBRA OPTICA - kgf | O17: =IF($N$2>0,K17,0) -> 0 | X17: =O17*($L$6/100)/($L$1-0.2) -> 0 | Y17: 2 CAA VÃO 40m | Z17: 317 | AA17: 75 | AB17: 0 | AC17: 0 | AD17: 0 | AE17: 0 | AF17: 0 | AG17: 0 | AH17: 0 | AN17: 1
E18: =COSH(E16)*360/PI() ->  | X18: =IF($N$2>0,SUM(X10:X17),0) -> 0 | Y18: 1/0 CAA VÃO 40m | Z18: 492 | AA18: 74 | AB18: 0 | AC18: 0 | AD18: 0 | AE18: 0 | AF18: 0 | AG18: 0 | AH18: 0 | AN18: 1
E19: =ACOS(E16)*180/PI() ->  | F19: =360+E20 ->  | Y19: 2/0 CAA VÃO 40m | Z19: 588 | AA19: 73 | AB19: 0 | AC19: 0 | AD19: 0 | AE19: 0 | AF19: 0 | AG19: 0 | AH19: 0 | AN19: 1
E20: =ACOS(E16)*-180/PI() ->  | F20: =180-E20 ->  | J20: FORÇA 02 | X20: kgf | Y20: 3/0 CAA VÃO 40m | Z20: 750 | AA20: 72 | AB20: 0 | AC20: 0 | AD20: 0 | AE20: 0 | AF20: 0 | AG20: 0 | AH20: 0 | AN20: 1
J21: REDE COMPACTA | Y21: 4/0 CAA VÃO 40m | Z21: 945 | AA21: 71 | AB21: 0 | AC21: 0 | AD21: 0 | AE21: 0 | AF21: 0 | AG21: 0 | AH21: 0
J22: Nº FASES MT | N22: =IF(L22="","0",CONCATENATE(L22," ",M22," VÃO ",$K$4,"m")) -> 0 | O22: =IF(ISERROR(VLOOKUP(N22,$Y$1:$Z$1006,2,FALSE)),"",VLOOKUP(N22,$Y$1:$Z$1006,2,FALSE)) ->  | P22: =IF(M22="multiplexado",(O22*1)) -> FALSE | Q22: =IF(AND(K21=$S$71,M22="Cabo Coberto"),(O22*1),IF(AND(K21=$S$72,M22="Cabo Coberto"),(O22*2),IF(AND(K21=$S$73,M22="Cabo Coberto"),(O22*3)))) -> FALSE | R22: =IF(M22="CAA",(O22*K22)) -> FALSE | S22: =IF($M22="CAL",($O22*$K22)) -> FALSE | T22: =IF(M22="CA",(O22*K22)) -> FALSE | U22: =IF(M22="CAZ",(O22*K22)) -> FALSE | V22: =IF(O22="","0",MAX(P22:U22)) -> 0 | W22: =IF(N22>0,V22-(V22*$W$1/100),0) -> 0 | X22: =W22*($L$1-($K$2/100))/$L$1 -> 0 | Y22: 4 CAA VÃO 60m | Z22: 207 | AA22: 70 | AB22: 0 | AC22: 0 | AD22: 0 | AE22: 0 | AF22: 0 | AG22: 0 | AH22: 0 | AN22: 1
A23: Esforço Resultante - kgf | E23: =IF(E24>180,E24-180,E24+180) ->  | J23: NEUTRO MT | N23: =IF(L23="","0",CONCATENATE(L23," ",M23," VÃO ",$K$4,"m")) -> 0 | O23: =IF(ISERROR(VLOOKUP(N23,$Y$1:$Z$1006,2,FALSE)),"",VLOOKUP(N23,$Y$1:$Z$1006,2,FALSE)) ->  | P23: =IF(M23="multiplexado",(O23*1)) -> FALSE | Q23: =IF(M23="Cabo Coberto",(O23*1)) -> FALSE | R23: =IF(M23="CAA",(O23*K23)) -> FALSE | S23: =IF($M23="CAL",($O23*$K23)) -> FALSE | T23: =IF(M23="CA",(O23*K23)) -> FALSE | U23: =IF(M23="CAZ",(O23*K23)) -> FALSE | V23: =IF(O23="","0",MAX(P23:T23)) -> 0 | W23: =IF(N23>0,V23-(V23*$W$1/100),0) -> 0 | X23: =W23*($L$1-($K$2/100))/$L$1 -> 0 | Y23: 2 CAA VÃO 60m | Z23: 317 | AA23: 69 | AB23: 0 | AC23: 0 | AD23: 0 | AE23: 0 | AF23: 0 | AG23: 0 | AH23: 0 | AN23: 1
A24: Posição do Estai - Ângulo | E24: =IF(D12>0,E19,F19) ->  | J24: Nº FASES BT | N24: =IF(L24="","0",CONCATENATE(L24," ",M24," VÃO ",$K$4,"m")) -> 0 | O24: =IF(ISERROR(VLOOKUP(N24,$Y$1:$Z$1006,2,FALSE)),"",VLOOKUP(N24,$Y$1:$Z$1006,2,FALSE)) ->  | P24: =IF(M24="multiplexado",(O24*1)) -> FALSE | Q24: =IF(M24="Cabo Coberto",(O24*1)) -> FALSE | R24: =IF(M24="CAA",(O24*K24)) -> FALSE | S24: FALSE | T24: =IF(M24="CA",(O24*K24)) -> FALSE | U24: =IF(M24="CAZ",(O24*K24)) -> FALSE | V24: =IF(O24="","0",MAX(P24:T24)) -> 0 | X24: =IF(N24>0,((V24)-(V24*$W$2/100))*($L$5/100)/$L$1,0) -> 0 | Y24: 1/0 CAA VÃO 60m | Z24: 488 | AA24: 68 | AB24: 0 | AC24: 0 | AD24: 0 | AE24: 0 | AF24: 0 | AG24: 0 | AH24: 0 | AN24: 1
J25: NEUTRO BT | N25: =IF(L25="","0",CONCATENATE(L25," ",M25," VÃO ",$K$4,"m")) -> 0 | O25: =IF(ISERROR(VLOOKUP(N25,$Y$1:$Z$1006,2,FALSE)),"",VLOOKUP(N25,$Y$1:$Z$1006,2,FALSE)) ->  | P25: =IF(M25="multiplexado",(O25*1)) -> FALSE | Q25: =IF(M25="Cabo Coberto",(O25*1)) -> FALSE | R25: =IF(M25="CAA",(O25*K25)) -> FALSE | S25: FALSE | T25: =IF(M25="CA",(O25*K25)) -> FALSE | U25: =IF(M25="CAZ",(O25*K25)) -> FALSE | V25: =IF(O25="","0",MAX(P25:T25)) -> 0 | X25: =IF(N25>0,((V25)-(V25*$W$2/100))*($L$5/100)/$L$1,0) -> 0 | Y25: 2/0 CAA VÃO 60m | Z25: 588 | AA25: 67 | AB25: 0 | AC25: 0 | AD25: 0 | AE25: 0 | AF25: 0 | AG25: 0 | AH25: 0 | AN25: 1
J26: FIO PILOTO IP | N26: =IF(L26="","0",CONCATENATE(L26," ",M26," VÃO ",$K$4,"m")) -> 0 | O26: =IF(ISERROR(VLOOKUP(N26,$Y$1:$Z$1006,2,FALSE)),"",VLOOKUP(N26,$Y$1:$Z$1006,2,FALSE)) ->  | P26: =IF(M26="multiplexado",(O26*1)) -> FALSE | Q26: =IF(M26="Cabo Coberto",(O26*1)) -> FALSE | R26: =IF(M26="CAA",(O26*K26)) -> FALSE | S26: FALSE | T26: =IF(M26="CA",(O26*K26)) -> FALSE | U26: =IF(M26="CAZ",(O26*K26)) -> FALSE | V26: =IF(O26="","0",MAX(P26:T26)) -> 0 | X26: =IF(N26>0,((V26)-(V26*W14/100))*($L$5/100)/$L$1,0) -> 0 | Y26: 3/0 CAA VÃO 60m | Z26: 741 | AA26: 66 | AB26: 0 | AC26: 0 | AD26: 0 | AE26: 0 | AF26: 0 | AG26: 0 | AH26: 0 | AN26: 1
J27: TELEFONE N° PARES | N27: =IF(ISERROR(VLOOKUP(K27,$M$71:$N$81,2,FALSE)),"0",VLOOKUP(K27,$M$71:$N$81,2,FALSE)) -> 0 | O27: =IF($N$2>0,N27,0) -> 0 | X27: =N27*($L$6/100)/($L$1-0.2) -> 0 | Y27: 4/0 CAA VÃO 60m | Z27: 933 | AA27: 65 | AB27: 0 | AC27: 0 | AD27: 0 | AE27: 0 | AF27: 0 | AG27: 0 | AH27: 0 | AN27: 1
J28: TV CABO - kgf | O28: =IF($N$2>0,K28,0) -> 0 | X28: =O28*($L$6/100)/($L$1-0.2) -> 0 | Y28: 4 CAA VÃO 80m | Z28: 209 | AA28: 64 | AB28: 0 | AC28: 0 | AD28: 0 | AE28: 0 | AF28: 0 | AG28: 0 | AH28: 0
J29: FIBRA OPTICA - kgf | O29: =IF($N$2>0,K29,0) -> 0 | X29: =O29*($L$6/100)/($L$1-0.2) -> 0 | Y29: 2 CAA VÃO 80m | Z29: 316 | AA29: 63 | AB29: 0 | AC29: 0 | AD29: 0 | AE29: 0 | AF29: 0 | AG29: 0 | AH29: 0
X30: =IF($N$2>0,SUM(X22:X29),0) -> 0 | Y30: 1/0 CAA VÃO 80m | Z30: 484 | AA30: 62 | AB30: 0 | AC30: 0 | AD30: 0 | AE30: 0 | AF30: 0 | AG30: 0 | AH30: 0
Y31: 2/0 CAA VÃO 80m | Z31: 580 | AA31: 61 | AB31: 0 | AC31: 0 | AD31: 0 | AE31: 0 | AF31: 0 | AG31: 0 | AH31: 0
J32: FORÇA 03 | X32: kgf | Y32: 3/0 CAA VÃO 80m | Z32: 730 | AA32: 60 | AB32: 0 | AC32: 0 | AD32: 0 | AE32: 0 | AF32: 0 | AG32: 0 | AH32: 0
J33: REDE COMPACTA | Y33: 4/0 CAA VÃO 80m | Z33: 918 | AA33: 59 | AB33: 0 | AC33: 0 | AD33: 0 | AE33: 0 | AF33: 0 | AG33: 0 | AH33: 0
J34: Nº FASES MT | N34: =IF(L34="","0",CONCATENATE(L34," ",M34," VÃO ",$K$4,"m")) -> 0 | O34: =IF(ISERROR(VLOOKUP(N34,$Y$1:$Z$1006,2,FALSE)),"",VLOOKUP(N34,$Y$1:$Z$1006,2,FALSE)) ->  | P34: =IF(M34="multiplexado",(O34*1)) -> FALSE | Q34: =IF(AND(K33=$S$71,M34="Cabo Coberto"),(O34*1),IF(AND(K33=$S$72,M34="Cabo Coberto"),(O34*2),IF(AND(K33=$S$73,M34="Cabo Coberto"),(O34*3)))) -> FALSE | R34: =IF(M34="CAA",(O34*K34)) -> FALSE | S34: =IF($M34="CAL",($O34*$K34)) -> FALSE | T34: =IF(M34="CA",(O34*K34)) -> FALSE | U34: =IF(M34="CAZ",(O34*K34)) -> FALSE | V34: =IF(O34="","0",MAX(P34:U34)) -> 0 | W34: =IF(N34>0,V34-(V34*$W$1/100),0) -> 0 | X34: =W34*($L$1-($K$2/100))/$L$1 -> 0 | Y34: 4 CAA VÃO 100m | Z34: 312 | AA34: 58 | AB34: 0 | AC34: 0 | AD34: 0 | AE34: 0 | AF34: 0 | AG34: 0 | AH34: 0
J35: NEUTRO MT | N35: =IF(L35="","0",CONCATENATE(L35," ",M35," VÃO ",$K$4,"m")) -> 0 | O35: =IF(ISERROR(VLOOKUP(N35,$Y$1:$Z$1006,2,FALSE)),"",VLOOKUP(N35,$Y$1:$Z$1006,2,FALSE)) ->  | P35: =IF(M35="multiplexado",(O35*1)) -> FALSE | Q35: =IF(M35="Cabo Coberto",(O35*1)) -> FALSE | R35: =IF(M35="CAA",(O35*K35)) -> FALSE | S35: =IF($M35="CAL",($O35*$K35)) -> FALSE | T35: =IF(M35="CA",(O35*K35)) -> FALSE | U35: =IF(M35="CAZ",(O35*K35)) -> FALSE | V35: =IF(O35="","0",MAX(P35:T35)) -> 0 | W35: =IF(N35>0,V35-(V35*$W$1/100),0) -> 0 | X35: =W35*($L$1-($K$2/100))/$L$1 -> 0 | Y35: 2 CAA VÃO 100m | Z35: 315 | AA35: 57 | AB35: 0 | AC35: 0 | AD35: 0 | AE35: 0 | AF35: 0 | AG35: 0 | AH35: 0
J36: Nº FASES BT | N36: =IF(L36="","0",CONCATENATE(L36," ",M36," VÃO ",$K$4,"m")) -> 0 | O36: =IF(ISERROR(VLOOKUP(N36,$Y$1:$Z$1006,2,FALSE)),"",VLOOKUP(N36,$Y$1:$Z$1006,2,FALSE)) ->  | P36: =IF(M36="multiplexado",(O36*1)) -> FALSE | Q36: =IF(M36="Cabo Coberto",(O36*1)) -> FALSE | R36: =IF(M36="CAA",(O36*K36)) -> FALSE | S36: FALSE | T36: =IF(M36="CA",(O36*K36)) -> FALSE | U36: =IF(M36="CAZ",(O36*K36)) -> FALSE | V36: =IF(O36="","0",MAX(P36:T36)) -> 0 | X36: =IF(N36>0,((V36)-(V36*$W$2/100))*($L$5/100)/$L$1,0) -> 0 | Y36: 1/0 CAA VÃO 100m | Z36: 479 | AA36: 56 | AB36: 0 | AC36: 0 | AD36: 0 | AE36: 0 | AF36: 0 | AG36: 0 | AH36: 0
J37: NEUTRO BT | N37: =IF(L37="","0",CONCATENATE(L37," ",M37," VÃO ",$K$4,"m")) -> 0 | O37: =IF(ISERROR(VLOOKUP(N37,$Y$1:$Z$1006,2,FALSE)),"",VLOOKUP(N37,$Y$1:$Z$1006,2,FALSE)) ->  | P37: =IF(M37="multiplexado",(O37*1)) -> FALSE | Q37: =IF(M37="Cabo Coberto",(O37*1)) -> FALSE | R37: =IF(M37="CAA",(O37*K37)) -> FALSE | S37: FALSE | T37: =IF(M37="CA",(O37*K37)) -> FALSE | U37: =IF(M37="CAZ",(O37*K37)) -> FALSE | V37: =IF(O37="","0",MAX(P37:T37)) -> 0 | X37: =IF(N37>0,((V37)-(V37*$W$2/100))*($L$5/100)/$L$1,0) -> 0 | Y37: 2/0 CAA VÃO 100m | Z37: 575 | AA37: 55 | AB37: 0 | AC37: 0 | AD37: 0 | AE37: 0 | AF37: 0 | AG37: 0 | AH37: 0
J38: FIO PILOTO IP | N38: =IF(L38="","0",CONCATENATE(L38," ",M38," VÃO ",$K$4,"m")) -> 0 | O38: =IF(ISERROR(VLOOKUP(N38,$Y$1:$Z$106,2,FALSE)),"",VLOOKUP(N38,$Y$1:$Z$106,2,FALSE)) ->  | P38: =IF(M38="multiplexado",(O38*1)) -> FALSE | Q38: =IF(M38="Cabo Coberto",(O38*1)) -> FALSE | R38: =IF(M38="CAA",(O38*K38)) -> FALSE | S38: FALSE | T38: =IF(M38="CA",(O38*K38)) -> FALSE | U38: =IF(M38="CAZ",(O38*K38)) -> FALSE | V38: =IF(O38="","0",MAX(P38:T38)) -> 0 | X38: =IF(N38>0,((V38)-(V38*W26/100))*($L$5/100)/$L$1,0) -> 0 | Y38: 3/0 CAA VÃO 100m | Z38: 718 | AA38: 54 | AB38: 0 | AC38: 0 | AD38: 0 | AE38: 0 | AF38: 0 | AG38: 0 | AH38: 0
J39: TELEFONE N° PARES | N39: =IF(ISERROR(VLOOKUP(K39,$M$71:$N$81,2,FALSE)),"0",VLOOKUP(K39,$M$71:$N$81,2,FALSE)) -> 0 | O39: =IF($N$2>0,N39,0) -> 0 | X39: =N39*($L$6/100)/($L$1-0.2) -> 0 | Y39: 4/0 CAA VÃO 100m | Z39: 902 | AA39: 53 | AB39: 0 | AC39: 0 | AD39: 0 | AE39: 0 | AF39: 0 | AG39: 0 | AH39: 0
J40: TV CABO - kgf | O40: =IF($N$2>0,K40,0) -> 0 | X40: =O40*($L$6/100)/($L$1-0.2) -> 0 | Y40: 4 CAA VÃO 120m | Z40: 330 | AA40: 52 | AB40: 0 | AC40: 0 | AD40: 0 | AE40: 0 | AF40: 0 | AG40: 0 | AH40: 0
J41: FIBRA OPTICA - kgf | O41: =IF($N$2>0,K41,0) -> 0 | X41: =O41*($L$6/100)/($L$1-0.2) -> 0 | Y41: 2 CAA VÃO 120m | Z41: 470 | AA41: =AA40-1 -> 51 | AB41: =IF(ISERROR(VLOOKUP($AA41,Table444,AB$1,FALSE)),0,VLOOKUP($AA41,Table444,AB$1,FALSE)) -> 0 | AC41: =IF(ISERROR(VLOOKUP($AA41,Table555,AC$1,FALSE)),0,VLOOKUP($AA41,Table555,AC$1,FALSE)) -> 0 | AD41: =IF(ISERROR(VLOOKUP($AA41,Table666,AC$1,FALSE)),0,VLOOKUP($AA41,Table666,AC$1,FALSE)) -> 0 | AE41: =IF(ISERROR(VLOOKUP($AA41,Table888,AE$1,FALSE)),0,VLOOKUP($AA41,Table888,AE$1,FALSE)) -> 0 | AF41: =IF(ISERROR(VLOOKUP($AA41,Table999,AF$1,FALSE)),0,VLOOKUP($AA41,Table999,AF$1,FALSE)) -> 0 | AG41: =IF(ISERROR(VLOOKUP($AA41,Table222,AG$1,FALSE)),0,VLOOKUP($AA41,Table222,AG$1,FALSE)) -> 0 | AH41: =IF(ISERROR(VLOOKUP($AA41,Table333,AH$1,FALSE)),0,VLOOKUP($AA41,Table333,AH$1,FALSE)) -> 0
X42: =IF($N$2>0,SUM(X34:X41),0) -> 0 | Y42: 1/0 CAA VÃO 120m | Z42: 474 | AA42: 50 | AB42: 0 | AC42: 0 | AD42: 0 | AE42: 0 | AF42: 0 | AG42: 0 | AH42: 0
Y43: 2/0 CAA VÃO 120m | Z43: 569 | AA43: 49 | AB43: 0 | AC43: 0 | AD43: 0 | AE43: 0 | AF43: 0 | AG43: 0 | AH43: 0
J44: FORÇA 04 | X44: kgf | Y44: 3/0 CAA VÃO 120m | Z44: 706 | AA44: 48 | AB44: 0 | AC44: 0 | AD44: 0 | AE44: 0 | AF44: 0 | AG44: 0 | AH44: 0
J45: REDE COMPACTA | Y45: 4/0 CAA VÃO 120m | Z45: 885 | AA45: 47 | AB45: 0 | AC45: 0 | AD45: 0 | AE45: 0 | AF45: 0 | AG45: 0 | AH45: 0
J46: Nº FASES MT | N46: =IF(L46="","0",CONCATENATE(L46," ",M46," VÃO ",$K$4,"m")) -> 0 | O46: =IF(ISERROR(VLOOKUP(N46,$Y$1:$Z$1006,2,FALSE)),"",VLOOKUP(N46,$Y$1:$Z$1006,2,FALSE)) ->  | P46: =IF(M46="multiplexado",(O46*1)) -> FALSE | Q46: =IF(AND(K45=$S$71,M46="Cabo Coberto"),(O46*1),IF(AND(K45=$S$72,M46="Cabo Coberto"),(O46*2),IF(AND(K45=$S$73,M46="Cabo Coberto"),(O46*3)))) -> FALSE | R46: =IF(M46="CAA",(O46*K46)) -> FALSE | S46: =IF($M46="CAL",($O46*$K46)) -> FALSE | T46: =IF(M46="CA",(O46*K46)) -> FALSE | U46: =IF(M46="CAZ",(O46*K46)) -> FALSE | V46: =IF(O46="","0",MAX(P46:U46)) -> 0 | W46: =IF(N46>0,V46-(V46*$W$1/100),0) -> 0 | X46: =W46*($L$1-($K$2/100))/$L$1 -> 0 | Y46: 3,09 CAZ VÃO 40m | Z46: 443.22 | AA46: 46 | AB46: 0 | AC46: 0 | AD46: 0 | AE46: 0 | AF46: 0 | AG46: 0 | AH46: 0
J47: NEUTRO MT | N47: =IF(L47="","0",CONCATENATE(L47," ",M47," VÃO ",$K$4,"m")) -> 0 | O47: =IF(ISERROR(VLOOKUP(N47,$Y$1:$Z$1006,2,FALSE)),"",VLOOKUP(N47,$Y$1:$Z$1006,2,FALSE)) ->  | P47: =IF(M47="multiplexado",(O47*1)) -> FALSE | Q47: =IF(M47="Cabo Coberto",(O47*1)) -> FALSE | R47: =IF(M47="CAA",(O47*K47)) -> FALSE | S47: =IF($M47="CAL",($O47*$K47)) -> FALSE | T47: =IF(M47="CA",(O47*K47)) -> FALSE | U47: =IF(M47="CAZ",(O47*K47)) -> FALSE | V47: =IF(O47="","0",MAX(P47:T47)) -> 0 | W47: =IF(N47>0,V47-(V47*$W$1/100),0) -> 0 | X47: =W47*($L$1-($K$2/100))/$L$1 -> 0 | Y47: 4,17 CAZ VÃO 40m | Z47: 443.22 | AA47: 45 | AB47: 0 | AC47: 0 | AD47: 0 | AE47: 0 | AF47: 0 | AG47: 0 | AH47: 0
J48: Nº FASES BT | N48: =IF(L48="","0",CONCATENATE(L48," ",M48," VÃO ",$K$4,"m")) -> 0 | O48: =IF(ISERROR(VLOOKUP(N48,$Y$1:$Z$1006,2,FALSE)),"",VLOOKUP(N48,$Y$1:$Z$1006,2,FALSE)) ->  | P48: =IF(M48="multiplexado",(O48*1)) -> FALSE | Q48: =IF(M48="Cabo Coberto",(O48*1)) -> FALSE | R48: =IF(M48="CAA",(O48*K48)) -> FALSE | S48: FALSE | T48: =IF(M48="CA",(O48*K48)) -> FALSE | U48: =IF(M48="CAZ",(O48*K48)) -> FALSE | V48: =IF(O48="","0",MAX(P48:T48)) -> 0 | X48: =IF(N48>0,((V48)-(V48*$W$2/100))*($L$5/100)/$L$1,0) -> 0 | Y48: 4 CA VÃO 40m | Z48: 116.22 | AA48: 44 | AB48: 0 | AC48: 0 | AD48: 0 | AE48: 0 | AF48: 0 | AG48: 0 | AH48: 0
J49: NEUTRO BT | N49: =IF(L49="","0",CONCATENATE(L49," ",M49," VÃO ",$K$4,"m")) -> 0 | O49: =IF(ISERROR(VLOOKUP(N49,$Y$1:$Z$1006,2,FALSE)),"",VLOOKUP(N49,$Y$1:$Z$1006,2,FALSE)) ->  | P49: =IF(M49="multiplexado",(O49*1)) -> FALSE | Q49: =IF(M49="Cabo Coberto",(O49*1)) -> FALSE | R49: =IF(M49="CAA",(O49*K49)) -> FALSE | S49: FALSE | T49: =IF(M49="CA",(O49*K49)) -> FALSE | U49: =IF(M49="CAZ",(O49*K49)) -> FALSE | V49: =IF(O49="","0",MAX(P49:T49)) -> 0 | X49: =IF(N49>0,((V49)-(V49*$W$2/100))*($L$5/100)/$L$1,0) -> 0 | Y49: 2 CA VÃO 40m | Z49: 178.08 | AA49: 43 | AB49: 0 | AC49: 0 | AD49: 0 | AE49: 0 | AF49: 0 | AG49: 0 | AH49: 0
J50: FIO PILOTO IP | N50: =IF(L50="","0",CONCATENATE(L50," ",M50," VÃO ",$K$4,"m")) -> 0 | O50: =IF(ISERROR(VLOOKUP(N50,$Y$1:$Z$1006,2,FALSE)),"",VLOOKUP(N50,$Y$1:$Z$1006,2,FALSE)) ->  | P50: =IF(M50="multiplexado",(O50*1)) -> FALSE | Q50: =IF(M50="Cabo Coberto",(O50*1)) -> FALSE | R50: =IF(M50="CAA",(O50*K50)) -> FALSE | S50: FALSE | T50: =IF(M50="CA",(O50*K50)) -> FALSE | U50: =IF(M50="CAZ",(O50*K50)) -> FALSE | V50: =IF(O50="","0",MAX(P50:T50)) -> 0 | X50: =IF(N50>0,((V50)-(V50*W38/100))*($L$5/100)/$L$1,0) -> 0 | Y50: 1/0 CA VÃO 40m | Z50: 265.89 | AA50: 42 | AB50: 0 | AC50: 0 | AD50: 0 | AE50: 0 | AF50: 0 | AG50: 0 | AH50: 0
J51: TELEFONE N° PARES | N51: =IF(ISERROR(VLOOKUP(K51,$M$71:$N$81,2,FALSE)),"0",VLOOKUP(K51,$M$71:$N$81,2,FALSE)) -> 0 | O51: =IF($N$2>0,N51,0) -> 0 | X51: =N51*($L$6/100)/($L$1-0.2) -> 0 | Y51: 2/0 CA VÃO 40m | Z51: 579.33 | AA51: 41 | AB51: 0 | AC51: 0 | AD51: 0 | AE51: 0 | AF51: 0 | AG51: 0 | AH51: 0
J52: TV CABO - kgf | O52: =IF($N$2>0,K52,0) -> 0 | X52: =O52*($L$6/100)/($L$1-0.2) -> 0 | Y52: 3/0 CA VÃO 40m | Z52: 407.23 | AA52: 40 | AB52: 0 | AC52: 0 | AD52: 0 | AE52: 0 | AF52: 0 | AG52: 0 | AH52: 0
J53: FIBRA OPTICA - kgf | O53: =IF($N$2>0,K53,0) -> 0 | X53: =O53*($L$6/100)/($L$1-0.2) -> 0 | Y53: 4/0 CA VÃO 40m | Z53: 512.53 | AA53: 39 | AB53: 0 | AC53: 0 | AD53: 0 | AE53: 0 | AF53: 0 | AG53: 0 | AH53: 0
X54: =IF($N$2>0,SUM(X46:X53),0) -> 0 | Y54: 336,4 CA VÃO 40m | Z54: 801.36 | AA54: 38 | AB54: 0 | AC54: 0 | AD54: 0 | AE54: 0 | AF54: 0 | AG54: 0 | AH54: 0
Y55: 3,09 CAZ VÃO 60m | Z55: 286.49 | AA55: 37 | AB55: 0 | AC55: 0 | AD55: 0 | AE55: 0 | AF55: 0 | AG55: 0 | AH55: 0
J56: FORÇA 05 | X56: kgf | Y56: 4,17 CAZ VÃO 60m | Z56: 443.55 | AA56: 36 | AB56: 0 | AC56: 0 | AD56: 0 | AE56: 0 | AF56: 0 | AG56: 0 | AH56: 0
J57: REDE COMPACTA | Y57: 4 CA VÃO 60m | Z57: 145.86 | AA57: 35 | AB57: 0 | AC57: 0 | AD57: 0 | AE57: 0 | AF57: 0 | AG57: 0 | AH57: 0
J58: Nº FASES MT | N58: =IF(L58="","0",CONCATENATE(L58," ",M58," VÃO ",$K$4,"m")) -> 0 | O58: =IF(ISERROR(VLOOKUP(N58,$Y$1:$Z$1006,2,FALSE)),"",VLOOKUP(N58,$Y$1:$Z$1006,2,FALSE)) ->  | P58: =IF(M58="multiplexado",(O58*1)) -> FALSE | Q58: =IF(AND(K57=$S$71,M58="Cabo Coberto"),(O58*1),IF(AND(K57=$S$72,M58="Cabo Coberto"),(O58*2),IF(AND(K57=$S$73,M58="Cabo Coberto"),(O58*3)))) -> FALSE | R58: =IF(M58="CAA",(O58*K58)) -> FALSE | S58: =IF($M58="CAL",($O58*$K58)) -> FALSE | T58: =IF(M58="CA",(O58*K58)) -> FALSE | U58: =IF(M58="CAZ",(O58*K58)) -> FALSE | V58: =IF(O58="","0",MAX(P58:U58)) -> 0 | W58: =IF(N58>0,V58-(V58*$W$1/100),0) -> 0 | X58: =W58*($L$1-($K$2/100))/$L$1 -> 0 | Y58: 2 CA VÃO 60m | Z58: 223.43 | AA58: 34 | AB58: 0 | AC58: 0 | AD58: 0 | AE58: 0 | AF58: 0 | AG58: 0 | AH58: 0
J59: NEUTRO MT | N59: =IF(L59="","0",CONCATENATE(L59," ",M59," VÃO ",$K$4,"m")) -> 0 | O59: =IF(ISERROR(VLOOKUP(N59,$Y$1:$Z$1006,2,FALSE)),"",VLOOKUP(N59,$Y$1:$Z$1006,2,FALSE)) ->  | P59: =IF(M59="multiplexado",(O59*1)) -> FALSE | Q59: =IF(M59="Cabo Coberto",(O59*1)) -> FALSE | R59: =IF(M59="CAA",(O59*K59)) -> FALSE | S59: =IF($M59="CAL",($O59*$K59)) -> FALSE | T59: =IF(M59="CA",(O59*K59)) -> FALSE | U59: =IF(M59="CAZ",(O59*K59)) -> FALSE | V59: =IF(O59="","0",MAX(P59:T59)) -> 0 | W59: =IF(N59>0,V59-(V59*$W$1/100),0) -> 0 | X59: =W59*($L$1-($K$2/100))/$L$1 -> 0 | Y59: 1/0 CA VÃO 60m | Z59: 259.98 | AA59: 33 | AB59: 0 | AC59: 0 | AD59: 0 | AE59: 0 | AF59: 0 | AG59: 0 | AH59: 0
J60: Nº FASES BT | N60: =IF(L60="","0",CONCATENATE(L60," ",M60," VÃO ",$K$4,"m")) -> 0 | O60: =IF(ISERROR(VLOOKUP(N60,$Y$1:$Z$1006,2,FALSE)),"",VLOOKUP(N60,$Y$1:$Z$1006,2,FALSE)) ->  | P60: =IF(M60="multiplexado",(O60*1)) -> FALSE | Q60: =IF(M60="Cabo Coberto",(O60*1)) -> FALSE | R60: =IF(M60="CAA",(O60*K60)) -> FALSE | S60: FALSE | T60: =IF(M60="CA",(O60*K60)) -> FALSE | U60: =IF(M60="CAZ",(O60*K60)) -> FALSE | V60: =IF(O60="","0",MAX(P60:T60)) -> 0 | X60: =IF(N60>0,((V60)-(V60*$W$2/100))*($L$5/100)/$L$1,0) -> 0 | Y60: 2/0 CA VÃO 60m | Z60: 579.82 | AA60: 32 | AB60: 0 | AC60: 0 | AD60: 0 | AE60: 0 | AF60: 0 | AG60: 0 | AH60: 0
J61: NEUTRO BT | N61: =IF(L61="","0",CONCATENATE(L61," ",M61," VÃO ",$K$4,"m")) -> 0 | O61: =IF(ISERROR(VLOOKUP(N61,$Y$1:$Z$1006,2,FALSE)),"",VLOOKUP(N61,$Y$1:$Z$1006,2,FALSE)) ->  | P61: =IF(M61="multiplexado",(O61*1)) -> FALSE | Q61: =IF(M61="Cabo Coberto",(O61*1)) -> FALSE | R61: =IF(M61="CAA",(O61*K61)) -> FALSE | S61: FALSE | T61: =IF(M61="CA",(O61*K61)) -> FALSE | U61: =IF(M61="CAZ",(O61*K61)) -> FALSE | V61: =IF(O61="","0",MAX(P61:T61)) -> 0 | X61: =IF(N61>0,((V61)-(V61*$W$2/100))*($L$5/100)/$L$1,0) -> 0 | Y61: 3/0 CA VÃO 60m | Z61: 392.58 | AA61: 31 | AB61: 0 | AC61: 0 | AD61: 0 | AE61: 0 | AF61: 0 | AG61: 0 | AH61: 0
J62: FIO PILOTO IP | N62: =IF(L62="","0",CONCATENATE(L62," ",M62," VÃO ",$K$4,"m")) -> 0 | O62: =IF(ISERROR(VLOOKUP(N62,$Y$1:$Z$1006,2,FALSE)),"",VLOOKUP(N62,$Y$1:$Z$1006,2,FALSE)) ->  | P62: =IF(M62="multiplexado",(O62*1)) -> FALSE | Q62: =IF(M62="Cabo Coberto",(O62*1)) -> FALSE | R62: =IF(M62="CAA",(O62*K62)) -> FALSE | S62: FALSE | T62: =IF(M62="CA",(O62*K62)) -> FALSE | U62: =IF(M62="CAZ",(O62*K62)) -> FALSE | V62: =IF(O62="","0",MAX(P62:T62)) -> 0 | X62: =IF(N62>0,((V62)-(V62*W50/100))*($L$5/100)/$L$1,0) -> 0 | Y62: 4/0 CA VÃO 60m | Z62: 492.18 | AA62: 30 | AB62: 0 | AC62: 0 | AD62: 0 | AE62: 0 | AF62: 0 | AG62: 0 | AH62: 0
J63: TELEFONE N° PARES | N63: =IF(ISERROR(VLOOKUP(K63,$M$71:$N$81,2,FALSE)),"0",VLOOKUP(K63,$M$71:$N$81,2,FALSE)) -> 0 | O63: =IF($N$2>0,N63,0) -> 0 | X63: =N63*($L$6/100)/($L$1-0.2) -> 0 | Y63: 336,4 CA VÃO 60m | Z63: 767.88 | AA63: 29 | AB63: 0 | AC63: 0 | AD63: 0 | AE63: 0 | AF63: 0 | AG63: 0 | AH63: 0
J64: TV CABO - kgf | O64: =IF($N$2>0,K64,0) -> 0 | X64: =O64*($L$6/100)/($L$1-0.2) -> 0 | Y64: 3,09 CAZ VÃO 80m | Z64: 286.81 | AA64: 28 | AB64: 0 | AC64: 0 | AD64: 0 | AE64: 0 | AF64: 0 | AG64: 0 | AH64: 0
J65: FIBRA OPTICA - kgf | O65: =IF($N$2>0,K65,0) -> 0 | X65: =O65*($L$6/100)/($L$1-0.2) -> 0 | Y65: 4,17 CAZ VÃO 80m | Z65: 444.22 | AA65: 27 | AB65: 0 | AC65: 0 | AD65: 0 | AE65: 0 | AF65: 0 | AG65: 0 | AH65: 0
X66: =IF($N$2>0,SUM(X58:X65),0) -> 0 | Y66: 4 CA VÃO 80m | Z66: 141.26 | AA66: 26 | AB66: 0 | AC66: 0 | AD66: 0 | AE66: 0 | AF66: 0 | AG66: 0 | AH66: 0
Y67: 2 CA VÃO 80m | Z67: 226.96 | AA67: =AA66-1 -> 25 | AB67: 0 | AC67: 0 | AD67: 0 | AE67: 0 | AF67: 0 | AG67: 0 | AH67: 0
K68: CONFIGURAÇÃO | Y68: 1/0 CA VÃO 80m | Z68: 329.23 | AA68: 24 | AB68: 0 | AC68: 0 | AD68: 0 | AE68: 0 | AF68: 0 | AG68: 0 | AH68: 0
J69: ALTURA POSTE (m) | K69: DISTANCIA DO TOPO | L69: AFASTAMENTO BT | M69: N° Pares | N69: Brasil Telecom | O69: VÃO REGULADOR | P69: Nº FASES | Q69: BITOLA | R69: FORMAÇÃO | S69: COMPACTA | Y69: 2/0 CA VÃO 80m | Z69: 580.3 | AA69: 23 | AB69: 0 | AC69: 0 | AD69: 0 | AE69: 0 | AF69: 0 | AG69: 0 | AH69: 0
J70: 9 | K70: 20 | L70: 20 | O70: 0 | Y70: 3/0 CA VÃO 80m | Z70: 376.59 | AA70: 22 | AB70: 0 | AC70: 0 | AD70: 0 | AE70: 0 | AF70: 0 | AG70: 0 | AH70: 0
J71: 10 | K71: 40 | L71: 40 | M71: 10 | O71: 40 | P71: 1 | Q71: 4 | R71: CAA | S71: SIMPLES | Y71: 4/0 CA VÃO 80m | Z71: 470.13 | AA71: 21 | AB71: 0 | AC71: 0 | AD71: 0 | AE71: 0 | AF71: 0 | AG71: 0 | AH71: 0
J72: 11 | L72: 60 | M72: 20 | N72: 385 | O72: 60 | P72: 2 | Q72: 2 | R72: CA | S72: DUPLO | Y72: 336,4 CA VÃO 80m | Z72: 731.13 | AA72: 20 | AB72: 0 | AC72: 0 | AD72: 0 | AE72: 0 | AF72: 0 | AG72: 0 | AH72: 0
J73: 12 | L73: 80 | M73: 30 | N73: 385 | O73: 80 | P73: 3 | Q73: 1/0 | R73: CAZ | S73: TRIPLO | Y73: 3,09 CAZ VÃO 100m | Z73: 287.35 | AA73: 19 | AB73: =IF(ISERROR(VLOOKUP($AA73,Table444,AB$1,FALSE)),0,VLOOKUP($AA73,Table444,AB$1,FALSE)) -> 0 | AC73: =IF(ISERROR(VLOOKUP($AA73,Table555,AC$1,FALSE)),0,VLOOKUP($AA73,Table555,AC$1,FALSE)) -> 0 | AD73: =IF(ISERROR(VLOOKUP($AA73,Table666,AC$1,FALSE)),0,VLOOKUP($AA73,Table666,AC$1,FALSE)) -> 0 | AE73: =IF(ISERROR(VLOOKUP($AA73,Table888,AE$1,FALSE)),0,VLOOKUP($AA73,Table888,AE$1,FALSE)) -> 0 | AF73: =IF(ISERROR(VLOOKUP($AA73,Table999,AF$1,FALSE)),0,VLOOKUP($AA73,Table999,AF$1,FALSE)) -> 0 | AG73: =IF(ISERROR(VLOOKUP($AA73,Table222,AG$1,FALSE)),0,VLOOKUP($AA73,Table222,AG$1,FALSE)) -> 0 | AH73: =IF(ISERROR(VLOOKUP($AA73,Table333,AH$1,FALSE)),0,VLOOKUP($AA73,Table333,AH$1,FALSE)) -> 0
J74: 13 | M74: 50 | N74: 379 | O74: 100 | Q74: 2/0 | R74: Cabo Coberto | Y74: 4,17 CAZ VÃO 100m | Z74: 444.89 | AA74: 18 | AB74: 0 | AC74: 0 | AD74: 0 | AE74: 0 | AF74: 0 | AG74: 0 | AH74: 0
M75: 75 | N75: 379 | O75: 120 | Q75: 3/0 | R75: multiplexado | Y75: 4 CA VÃO 100m | Z75: 148.12 | AA75: 17 | AB75: 0 | AC75: 0 | AD75: 0 | AE75: 0 | AF75: 0 | AG75: 0 | AH75: 0
M76: 100 | N76: 397 | Q76: 4/0 | R76: CAL | Y76: 2 CA VÃO 100m | Z76: 227.02 | AA76: 16 | AB76: 0 | AC76: 0 | AD76: 0 | AE76: 0 | AF76: 0 | AG76: 0 | AH76: 0
M77: 150 | N77: 397 | Q77: 336.4 | Y77: 1/0 CA VÃO 100m | Z77: 330.11 | AA77: 15 | AB77: 0 | AC77: 0 | AD77: 0 | AE77: 0 | AF77: 0 | AG77: 0 | AH77: 0
M78: 200 | N78: 417 | Q78: 336,4 (LINNET) | Y78: 2/0 CA VÃO 100m | Z78: 580.79 | AA78: 14 | AB78: 0 | AC78: 0 | AD78: 0 | AE78: 0 | AF78: 0 | AG78: 0 | AH78: 0
M79: 300 | N79: 460 | Q79: 336,4 (MERLIN) | Y79: 3/0 CA VÃO 100m | Z79: 508.84 | AA79: 13 | AB79: 0 | AC79: 0 | AD79: 0 | AE79: 0 | AF79: 0 | AG79: 0 | AH79: 0
M80: 400 | N80: 482 | Q80: 336,4 (ORIOLE) | Y80: 4/0 CA VÃO 100m | Z80: 627.18 | AA80: 12 | AB80: 0 | AC80: 0 | AD80: 0 | AE80: 0 | AF80: 0 | AG80: 0 | AH80: 0
M81: 600 | N81: 546 | Q81: 3.09 | Y81: 336,4 CA VÃO 100m | Z81: 696.56 | AA81: 11 | AB81: 0 | AC81: 0 | AD81: 0 | AE81: 0 | AF81: 0 | AG81: 0 | AH81: 0
J82: VÃO<=60m p/multiplex | Q82: 4.17 | Y82: 3,09 CAZ VÃO 120m | Z82: 287.89 | AA82: 10 | AB82: 0 | AC82: 0 | AD82: 0 | AE82: 0 | AF82: 0 | AG82: 0 | AH82: 0
J83: =IF(M60=R75,1,"") ->  | Q83: 35mm²
J84: =IF(M48=R75,1,"") ->  | Q84: 50mm² | Y84: 4,17 CAZ VÃO 120m | Z84: 445.72 | AA84: =AA82-1 -> 9 | AB84: =IF(ISERROR(VLOOKUP($AA84,Table444,AB$1,FALSE)),0,VLOOKUP($AA84,Table444,AB$1,FALSE)) -> 0 | AC84: =IF(ISERROR(VLOOKUP($AA84,Table555,AC$1,FALSE)),0,VLOOKUP($AA84,Table555,AC$1,FALSE)) -> 0 | AD84: =IF(ISERROR(VLOOKUP($AA84,Table666,AC$1,FALSE)),0,VLOOKUP($AA84,Table666,AC$1,FALSE)) -> 0 | AE84: =IF(ISERROR(VLOOKUP($AA84,Table888,AE$1,FALSE)),0,VLOOKUP($AA84,Table888,AE$1,FALSE)) -> 0 | AF84: =IF(ISERROR(VLOOKUP($AA84,Table999,AF$1,FALSE)),0,VLOOKUP($AA84,Table999,AF$1,FALSE)) -> 0 | AG84: =IF(ISERROR(VLOOKUP($AA84,Table222,AG$1,FALSE)),0,VLOOKUP($AA84,Table222,AG$1,FALSE)) -> 0 | AH84: =IF(ISERROR(VLOOKUP($AA84,Table333,AH$1,FALSE)),0,VLOOKUP($AA84,Table333,AH$1,FALSE)) -> 0
J85: =IF(M36=R75,1,"") ->  | Q85: 95mm² | Y85: 4 CA VÃO 120m | Z85: 152.92 | AA85: 8 | AB85: 0 | AC85: 0 | AD85: 0 | AE85: 0 | AF85: 0 | AG85: 0 | AH85: 0
J86: =IF(M24=R75,1,"") ->  | Q86: 120mm² | Y86: 2 CA VÃO 120m | Z86: 152.92 | AA86: 7 | AB86: 0 | AC86: 0 | AD86: 0 | AE86: 0 | AF86: 0 | AG86: 0 | AH86: 0
J87: =IF(M12=R75,1,"") ->  | Q87: 150mm² | Y87: 1/0 CA VÃO 120m | Z87: 341.65 | AA87: 6 | AB87: 0 | AC87: 0 | AD87: 0 | AE87: 0 | AF87: 0 | AG87: 0 | AH87: 0
Q88: 185mm² | Y88: 2/0 CA VÃO 120m | Z88: 581.52 | AA88: 5 | AB88: 0 | AC88: 0 | AD88: 0 | AE88: 0 | AF88: 0 | AG88: 0 | AH88: 0
Q89: 240mm² | Y89: 3/0 CA VÃO 120m | Z89: 501.18 | AA89: 4 | AB89: 0 | AC89: 0 | AD89: 0 | AE89: 0 | AF89: 0 | AG89: 0 | AH89: 0
Q90: 3 (35 + 35)mm² | Y90: 4/0 CA VÃO 120m | Z90: 647.02 | AA90: 3 | AB90: 0 | AC90: 0 | AD90: 0 | AE90: 0 | AF90: 0 | AG90: 0 | AH90: 0
Q91: 3 (50 + 50)mm² | Y91: 336,4 CA VÃO 120m | Z91: 1018.03 | AA91: 2 | AB91: 0 | AC91: 0 | AD91: 0 | AE91: 0 | AF91: 0 | AG91: 0 | AH91: 0
Q92: 3 (70 + 70)mm² | Y92: 336,4 (LINNET) CAA VÃO 40m | Z92: 1570 | AA92: 1 | AB92: 0 | AC92: 0 | AD92: 0 | AE92: 0 | AF92: 0 | AG92: 0 | AH92: 0
Q93: 3 (120 + 70)mm² | Y93: 336,4 CAA (MERLIN) VÃO 40m | Z93: 1058.05 | AA93: 0 | AB93: 0 | AC93: 0 | AD93: 0 | AE93: 0 | AF93: 0 | AG93: 0 | AH93: 0
Q94: 2 (35 + 35)mm² | Y94: 336,4 CAA (ORIOLE) VÃO 40m | Z94: 1838.11 | AA94: 360 | AB94: 0 | AC94: 0 | AD94: 0 | AE94: 0 | AF94: 0 | AG94: 0 | AH94: 0
Q95: 1 (50 + 50)mm² | Y95: 336,4 CAA (LINNET) VÃO 60m | Z95: 1552.26 | AA95: 359 | AB95: 0 | AC95: 0 | AD95: 0 | AE95: 0 | AF95: 0 | AG95: 0 | AH95: 0
Q96: 2 (50 + 50)mm² | Y96: 336,4 CAA (MERLIN) VÃO 60m | Z96: 1029.2 | AA96: =AA95-1 -> 358 | AB96: 0 | AC96: 0 | AD96: 0 | AE96: 0 | AF96: 0 | AG96: 0 | AH96: 0
Y97: 336,4 CAA (ORIOLE) VÃO 60m | Z97: 1824.1 | AA97: 357 | AB97: 0 | AC97: 0 | AD97: 0 | AE97: 0 | AF97: 0 | AG97: 0 | AH97: 0
Y98: 336,4 CAA (LINNET) VÃO 80m | Z98: 1530 | AA98: 356 | AB98: 0 | AC98: 0 | AD98: 0 | AE98: 0 | AF98: 0 | AG98: 0 | AH98: 0
Y99: 336,4 CAA (MERLIN) VÃO 80m | Z99: 995.05 | AA99: 355 | AB99: 0 | AC99: 0 | AD99: 0 | AE99: 0 | AF99: 0 | AG99: 0 | AH99: 0
Y100: 336,4 CAA (ORIOLE) VÃO 80m | Z100: 1942.39 | AA100: 354 | AB100: 0 | AC100: 0 | AD100: 0 | AE100: 0 | AF100: 0 | AG100: 0 | AH100: 0
Y101: 336,4 CAA (LINNET) VÃO 100m | Z101: 1504 | AA101: 353 | AB101: 0 | AC101: 0 | AD101: 0 | AE101: 0 | AF101: 0 | AG101: 0 | AH101: 0
Y102: 336,4 CAA (MERLIN) VÃO 100m | Z102: 959.76 | AA102: 352 | AB102: 0 | AC102: 0 | AD102: 0 | AE102: 0 | AF102: 0 | AG102: 0 | AH102: 0
Y103: 336,4 CAA (ORIOLE) VÃO 100m | Z103: 1784.41 | AA103: 351 | AB103: 0 | AC103: 0 | AD103: 0 | AE103: 0 | AF103: 0 | AG103: 0 | AH103: 0
Y104: 336,4 CAA (LINNET) VÃO 120m | Z104: 1477 | AA104: 350 | AB104: 0 | AC104: 0 | AD104: 0 | AE104: 0 | AF104: 0 | AG104: 0 | AH104: 0
Y105: 336,4 CAA (MERLIN) VÃO 120m | Z105: 927.12 | AA105: 349 | AB105: 0 | AC105: 0 | AD105: 0 | AE105: 0 | AF105: 0 | AG105: 0 | AH105: 0
Y106: 336,4 CAA (ORIOLE) VÃO 120m | Z106: 1761.07 | AA106: 348 | AB106: 0 | AC106: 0 | AD106: 0 | AE106: 0 | AF106: 0 | AG106: 0 | AH106: 0
Y107: 1 (35 + 35)mm² multiplexado VÃO 60m | Z107: 150.79 | AA107: 347 | AB107: 0 | AC107: 0 | AD107: 0 | AE107: 0 | AF107: 0 | AG107: 0 | AH107: 0
Y108: 2 (35 + 35)mm² multiplexado VÃO 60m | Z108: 180.37 | AA108: 346 | AB108: 0 | AC108: 0 | AD108: 0 | AE108: 0 | AF108: 0 | AG108: 0 | AH108: 0
Y109: 3 (35 + 35)mm² multiplexado VÃO 60m | Z109: 162.4 | AA109: 345 | AB109: 0 | AC109: 0 | AD109: 0 | AE109: 0 | AF109: 0 | AG109: 0 | AH109: 0
Y110: 1 (50 + 50)mm² multiplexado VÃO 60m | Z110: 203.52 | AA110: 344 | AB110: 0 | AC110: 0 | AD110: 0 | AE110: 0 | AF110: 0 | AG110: 0 | AH110: 0
Y111: 2 (50 + 50)mm² multiplexado VÃO 60m | Z111: 244 | AA111: 343 | AB111: 0 | AC111: 0 | AD111: 0 | AE111: 0 | AF111: 0 | AG111: 0 | AH111: 0
Y112: 3 (50 + 50)mm² multiplexado VÃO 60m | Z112: 219.43 | AA112: 342 | AB112: 0 | AC112: 0 | AD112: 0 | AE112: 0 | AF112: 0 | AG112: 0 | AH112: 0
Y113: 3 (70 + 70)mm² multiplexado VÃO 60m | Z113: 286.96 | AA113: 341 | AB113: 0 | AC113: 0 | AD113: 0 | AE113: 0 | AF113: 0 | AG113: 0 | AH113: 0
Y114: 1 (35 + 35)mm² multiplexado VÃO 40m | Z114: 101 | AA114: 340 | AB114: 0 | AC114: 0 | AD114: 0 | AE114: 0 | AF114: 0 | AG114: 0 | AH114: 0
Y115: 2 (35 + 35)mm² multiplexado VÃO 40m | Z115: 145.42 | AA115: 339 | AB115: 0 | AC115: 0 | AD115: 0 | AE115: 0 | AF115: 0 | AG115: 0 | AH115: 0
Y116: 1 (50 + 50)mm² multiplexado VÃO 40m | Z116: 137 | AA116: 338 | AB116: 0 | AC116: 0 | AD116: 0 | AE116: 0 | AF116: 0 | AG116: 0 | AH116: 0
Y117: 2 (50 + 50)mm² multiplexado VÃO 40m | Z117: 198.44 | AA117: 337 | AB117: 0 | AC117: 0 | AD117: 0 | AE117: 0 | AF117: 0 | AG117: 0 | AH117: 0
Y118: 120mm² Cabo Coberto VÃO 40m | Z118: 345 | AA118: 336 | AB118: 0 | AC118: 0 | AD118: 0 | AE118: 0 | AF118: 0 | AG118: 0 | AH118: 0
Y119: 120mm² Cabo Coberto VÃO 60m | Z119: 344 | AA119: 335 | AB119: 0 | AC119: 0 | AD119: 0 | AE119: 0 | AF119: 0 | AG119: 0 | AH119: 0
Y120: 240mm² Cabo Coberto VÃO 40m | Z120: 458 | AA120: 334 | AB120: 0 | AC120: 0 | AD120: 0 | AE120: 0 | AF120: 0 | AG120: 0 | AH120: 0
Y121: 240mm² Cabo Coberto VÃO 60m | Z121: 454 | AA121: 333 | AB121: 0 | AC121: 0 | AD121: 0 | AE121: 0 | AF121: 0 | AG121: 0 | AH121: 0
Y122: 2/0 CAL VÃO 60m | Z122: 499.4 | AA122: 332 | AB122: 0 | AC122: 0 | AD122: 0 | AE122: 0 | AF122: 0 | AG122: 0 | AH122: 0
Y123: 2/0 CAL VÃO 80m | Z123: 492.5 | AA123: 331 | AB123: 0 | AC123: 0 | AD123: 0 | AE123: 0 | AF123: 0 | AG123: 0 | AH123: 0
Y124: 185mm² Cabo Coberto VÃO 40m | Z124: 413.86 | AA124: 330 | AB124: 0 | AC124: 0 | AD124: =IF(ISERROR(VLOOKUP($AA124,Table666,AC$1,FALSE)),0,VLOOKUP($AA124,Table666,AC$1,FALSE)) -> 0 | AE124: 0 | AF124: 0 | AG124: 0 | AH124: 0
Y125: 185mm² Cabo Coberto VÃO 60m | Z125: 412.39 | AA125: 329 | AB125: 0 | AC125: 0 | AD125: 0 | AE125: 0 | AF125: 0 | AG125: 0 | AH125: 0
AA126: 328 | AB126: 0 | AC126: 0 | AD126: 0 | AE126: 0 | AF126: 0 | AG126: 0 | AH126: 0
AA127: 327 | AB127: 0 | AC127: 0 | AD127: 0 | AE127: 0 | AF127: 0 | AG127: 0 | AH127: 0
AA128: 326 | AB128: 0 | AC128: 0 | AD128: 0 | AE128: 0 | AF128: 0 | AG128: 0 | AH128: 0
AA129: 325 | AB129: 0 | AC129: 0 | AD129: 0 | AE129: 0 | AF129: 0 | AG129: 0 | AH129: 0
AA130: 324 | AB130: 0 | AC130: 0 | AD130: 0 | AE130: 0 | AF130: 0 | AG130: 0 | AH130: 0
AA131: 323 | AB131: 0 | AC131: 0 | AD131: 0 | AE131: 0 | AF131: 0 | AG131: 0 | AH131: 0
AA132: 322 | AB132: 0 | AC132: 0 | AD132: 0 | AE132: 0 | AF132: 0 | AG132: 0 | AH132: 0
AA133: 321 | AB133: 0 | AC133: 0 | AD133: 0 | AE133: 0 | AF133: 0 | AG133: 0 | AH133: 0
AA134: 320 | AB134: 0 | AC134: 0 | AD134: 0 | AE134: 0 | AF134: 0 | AG134: 0 | AH134: 0
AA135: 319 | AB135: 0 | AC135: 0 | AD135: 0 | AE135: 0 | AF135: 0 | AG135: 0 | AH135: 0
AA136: 318 | AB136: 0 | AC136: 0 | AD136: 0 | AE136: 0 | AF136: 0 | AG136: 0 | AH136: 0
AA137: 317 | AB137: 0 | AC137: 0 | AD137: 0 | AE137: 0 | AF137: 0 | AG137: 0 | AH137: 0
AA138: 316 | AB138: 0 | AC138: 0 | AD138: 0 | AE138: 0 | AF138: 0 | AG138: 0 | AH138: 0
AA139: 315 | AB139: 0 | AC139: 0 | AD139: 0 | AE139: 0 | AF139: 0 | AG139: 0 | AH139: 0
AA140: 314 | AB140: 0 | AC140: 0 | AD140: 0 | AE140: 0 | AF140: 0 | AG140: 0 | AH140: 0
AA141: 313 | AB141: 0 | AC141: 0 | AD141: 0 | AE141: 0 | AF141: 0 | AG141: 0 | AH141: 0
AA142: 312 | AB142: 0 | AC142: 0 | AD142: 0 | AE142: 0 | AF142: 0 | AG142: 0 | AH142: 0
AA143: 311 | AB143: 0 | AC143: 0 | AD143: 0 | AE143: 0 | AF143: 0 | AG143: 0 | AH143: 0
AA144: 310 | AB144: 0 | AC144: 0 | AD144: 0 | AE144: 0 | AF144: 0 | AG144: 0 | AH144: 0
AA145: 309 | AB145: 0 | AC145: 0 | AD145: 0 | AE145: 0 | AF145: 0 | AG145: 0 | AH145: 0
AA146: 308 | AB146: 0 | AC146: 0 | AD146: 0 | AE146: 0 | AF146: 0 | AG146: 0 | AH146: 0
AA147: 307 | AB147: 0 | AC147: 0 | AD147: 0 | AE147: 0 | AF147: 0 | AG147: 0 | AH147: 0
AA148: 306 | AB148: =IF(ISERROR(VLOOKUP($AA148,Table444,AB$1,FALSE)),0,VLOOKUP($AA148,Table444,AB$1,FALSE)) -> 0 | AC148: =IF(ISERROR(VLOOKUP($AA148,Table555,AC$1,FALSE)),0,VLOOKUP($AA148,Table555,AC$1,FALSE)) -> 0 | AD148: =IF(ISERROR(VLOOKUP($AA148,Table666,AC$1,FALSE)),0,VLOOKUP($AA148,Table666,AC$1,FALSE)) -> 0 | AE148: =IF(ISERROR(VLOOKUP($AA148,Table888,AE$1,FALSE)),0,VLOOKUP($AA148,Table888,AE$1,FALSE)) -> 0 | AF148: =IF(ISERROR(VLOOKUP($AA148,Table999,AF$1,FALSE)),0,VLOOKUP($AA148,Table999,AF$1,FALSE)) -> 0 | AG148: =IF(ISERROR(VLOOKUP($AA148,Table222,AG$1,FALSE)),0,VLOOKUP($AA148,Table222,AG$1,FALSE)) -> 0 | AH148: =IF(ISERROR(VLOOKUP($AA148,Table333,AH$1,FALSE)),0,VLOOKUP($AA148,Table333,AH$1,FALSE)) -> 0
AA149: 305 | AB149: 0 | AC149: 0 | AD149: 0 | AE149: 0 | AF149: 0 | AG149: 0 | AH149: 0
AA150: 304 | AB150: 0 | AC150: 0 | AD150: 0 | AE150: 0 | AF150: 0 | AG150: 0 | AH150: 0
AA151: 303 | AB151: 0 | AC151: 0 | AD151: 0 | AE151: 0 | AF151: 0 | AG151: 0 | AH151: 0
AA152: 302 | AB152: 0 | AC152: 0 | AD152: 0 | AE152: 0 | AF152: 0 | AG152: 0 | AH152: 0
AA153: 301 | AB153: 0 | AC153: 0 | AD153: 0 | AE153: 0 | AF153: 0 | AG153: 0 | AH153: 0
AA154: 300 | AB154: 0 | AC154: 0 | AD154: 0 | AE154: 0 | AF154: 0 | AG154: 0 | AH154: 0
AA155: 299 | AB155: 0 | AC155: 0 | AD155: 0 | AE155: 0 | AF155: 0 | AG155: 0 | AH155: 0
AA156: 298 | AB156: 0 | AC156: 0 | AD156: 0 | AE156: 0 | AF156: 0 | AG156: 0 | AH156: 0
AA157: 297 | AB157: 0 | AC157: 0 | AD157: 0 | AE157: 0 | AF157: 0 | AG157: 0 | AH157: 0
AA158: 296 | AB158: 0 | AC158: 0 | AD158: 0 | AE158: 0 | AF158: 0 | AG158: 0 | AH158: 0
AA159: 295 | AB159: 0 | AC159: 0 | AD159: 0 | AE159: 0 | AF159: 0 | AG159: 0 | AH159: 0
AA160: =AA159-1 -> 294 | AB160: 0 | AC160: 0 | AD160: 0 | AE160: 0 | AF160: 0 | AG160: 0 | AH160: 0
AA161: 293 | AB161: 0 | AC161: 0 | AD161: 0 | AE161: 0 | AF161: 0 | AG161: 0 | AH161: 0
AA162: 292 | AB162: 0 | AC162: 0 | AD162: 0 | AE162: 0 | AF162: 0 | AG162: 0 | AH162: 0
AA163: 291 | AB163: 0 | AC163: 0 | AD163: 0 | AE163: 0 | AF163: 0 | AG163: 0 | AH163: 0
AA164: 290 | AB164: 0 | AC164: 0 | AD164: 0 | AE164: 0 | AF164: 0 | AG164: 0 | AH164: 0
AA165: 289 | AB165: 0 | AC165: 0 | AD165: 0 | AE165: 0 | AF165: 0 | AG165: 0 | AH165: 0
AA166: 288 | AB166: 0 | AC166: 0 | AD166: 0 | AE166: 0 | AF166: 0 | AG166: 0 | AH166: 0
AA167: 287 | AB167: 0 | AC167: 0 | AD167: 0 | AE167: 0 | AF167: 0 | AG167: 0 | AH167: 0
AA168: 286 | AB168: 0 | AC168: 0 | AD168: 0 | AE168: 0 | AF168: 0 | AG168: 0 | AH168: 0
AA169: 285 | AB169: 0 | AC169: 0 | AD169: 0 | AE169: 0 | AF169: 0 | AG169: 0 | AH169: 0
AA170: 284 | AB170: 0 | AC170: 0 | AD170: 0 | AE170: 0 | AF170: 0 | AG170: 0 | AH170: 0
AA171: 283 | AB171: 0 | AC171: 0 | AD171: 0 | AE171: 0 | AF171: 0 | AG171: 0 | AH171: 0
AA172: 282 | AB172: 0 | AC172: 0 | AD172: 0 | AE172: 0 | AF172: 0 | AG172: 0 | AH172: 0
AA173: 281 | AB173: 0 | AC173: 0 | AD173: 0 | AE173: 0 | AF173: 0 | AG173: 0 | AH173: 0
AA174: 280 | AB174: 0 | AC174: 0 | AD174: 0 | AE174: 0 | AF174: 0 | AG174: 0 | AH174: 0
AA175: 279 | AB175: 0 | AC175: 0 | AD175: 0 | AE175: 0 | AF175: 0 | AG175: 0 | AH175: 0
AA176: 278 | AB176: 0 | AC176: 0 | AD176: 0 | AE176: 0 | AF176: 0 | AG176: 0 | AH176: 0
AA177: 277 | AB177: 0 | AC177: 0 | AD177: 0 | AE177: 0 | AF177: 0 | AG177: 0 | AH177: 0
AA178: 276 | AB178: 0 | AC178: 0 | AD178: 0 | AE178: 0 | AF178: 0 | AG178: 0 | AH178: 0
AA179: 275 | AB179: 0 | AC179: 0 | AD179: 0 | AE179: 0 | AF179: 0 | AG179: 0 | AH179: 0
AA180: 274 | AB180: 0 | AC180: 0 | AD180: 0 | AE180: 0 | AF180: 0 | AG180: 0 | AH180: 0
AA181: 273 | AB181: 0 | AC181: 0 | AD181: 0 | AE181: 0 | AF181: 0 | AG181: 0 | AH181: 0
AA182: 272 | AB182: 0 | AC182: 0 | AD182: 0 | AE182: 0 | AF182: 0 | AG182: 0 | AH182: 0
AA183: 271 | AB183: 0 | AC183: 0 | AD183: 0 | AE183: 0 | AF183: 0 | AG183: 0 | AH183: 0
AA184: 270 | AB184: 0 | AC184: 0 | AD184: 0 | AE184: 0 | AF184: 0 | AG184: 0 | AH184: 0
AA185: 269 | AB185: 0 | AC185: 0 | AD185: 0 | AE185: 0 | AF185: 0 | AG185: 0 | AH185: 0
AA186: 268 | AB186: 0 | AC186: 0 | AD186: 0 | AE186: 0 | AF186: 0 | AG186: 0 | AH186: 0
AA187: 267 | AB187: 0 | AC187: 0 | AD187: 0 | AE187: 0 | AF187: 0 | AG187: 0 | AH187: 0
AA188: 266 | AB188: 0 | AC188: 0 | AD188: 0 | AE188: 0 | AF188: 0 | AG188: 0 | AH188: 0
AA189: 265 | AB189: 0 | AC189: 0 | AD189: 0 | AE189: 0 | AF189: 0 | AG189: 0 | AH189: 0
AA190: 264 | AB190: 0 | AC190: 0 | AD190: 0 | AE190: 0 | AF190: 0 | AG190: 0 | AH190: 0
AA191: 263 | AB191: 0 | AC191: 0 | AD191: 0 | AE191: 0 | AF191: 0 | AG191: 0 | AH191: 0
AA192: 262 | AB192: 0 | AC192: 0 | AD192: 0 | AE192: 0 | AF192: 0 | AG192: 0 | AH192: 0
AA193: 261 | AB193: 0 | AC193: 0 | AD193: 0 | AE193: 0 | AF193: 0 | AG193: 0 | AH193: 0
AA194: 260 | AB194: 0 | AC194: 0 | AD194: 0 | AE194: 0 | AF194: 0 | AG194: 0 | AH194: 0
AA195: 259 | AB195: 0 | AC195: 0 | AD195: 0 | AE195: 0 | AF195: 0 | AG195: 0 | AH195: 0
AA196: 258 | AB196: 0 | AC196: 0 | AD196: 0 | AE196: 0 | AF196: 0 | AG196: 0 | AH196: 0
AA197: 257 | AB197: 0 | AC197: 0 | AD197: 0 | AE197: 0 | AF197: 0 | AG197: 0 | AH197: 0
AA198: 256 | AB198: 0 | AC198: 0 | AD198: 0 | AE198: 0 | AF198: 0 | AG198: 0 | AH198: 0
AA199: 255 | AB199: 0 | AC199: 0 | AD199: 0 | AE199: 0 | AF199: 0 | AG199: 0 | AH199: 0
AA200: 254 | AB200: 0 | AC200: 0 | AD200: 0 | AE200: 0 | AF200: 0 | AG200: 0 | AH200: 0
... 163 more rows

Sheet Relat_Flechas
C1: CÁLCULO DE TRAÇÕES E FLECHAS DE MONTAGEM
C3: Elaborado por: | E3: Eleandro Luis Marques da Silva | H3: CREA: | I3: 127488
C4: Função: | D4: Eletrotécnico | H4: Data | I4: 2023-11-01
A9: Dados do condutor
A10: Cabo | B10: Diâmetro | C10: Secção | D10: Peso (kg / m) | E10: Mod. Elasti. (kg / m) | F10: Coef. Dilatação ( / º C) | G10: T. de Ruptura (kgf)
A12: 336,4 CA | B12: 0,0169 | C12: 0,00017057 | D12: 0,4703 | E12: 5812000000 | F12: 0,00002304 | G12: 2722
A15: Vão de cálculo | C15: 120 | E15: Vão Crítico (m) | G15: 95,83
A16: Projeto nº | E16: Estrutura | G16: EM NIVEL
A17: Tipo de rede | C17: RURAL | E17: Desnível de:(m) | G17: 0
A20: Condição de Maior duração | E20: Pior condição | G20: Verão
A21: Temperatura (º C) | C21: Tração máxima (%) | E21: Vão ficticio (a") em (m) | G21: 0
A22: 20 | C22: 14 | E22: Trecho | H22: Distância parábola (a") entre (A e B): | K22: =L39/L40+C15 -> 120
A23: obs:.
A25: Hipótese | B25: Descrição | C25: Temperatura | D25: Pressão | E25: Tração de projeto | G25: Tração de montagem | I25: Flecha | J25: % T. RUP | K25: T. RUP (kgf) | L25: iterações
D26: do vento | E26: % Máx. T rup. | F26: kgf | G26: % T. RUP | H26: (kgf) | I26: (m) | J26: c / vento | K26: c / vento | L26: neces.
A27: 44 | B27: Temper. mínima | C27: -5 | D27: 15,21 | E27: 33,33 | F27: 907,24 | G27: 19,27 | H27: 524,46 | I27: 1,61 | J27: 20,97 | K27: 570,80 | L27: 4
A28: 45 | B28: - | C28: 0 | D28: 60,84 | E28: 33,33 | F28: 907,24 | G28: 17,89 | H28: 486,90 | I28: 1,74 | J28: 32,72 | K28: 890,64 | L28: 3
A29: 46 | B29: - | C29: 5 | D29: 60,84 | E29: 33,33 | F29: 907,24 | G29: 16,70 | H29: 454,54 | I29: 1,86 | J29: 31,44 | K29: 855,80 | L29: 4
A30: 47 | B30: - | C30: 10 | D30: 60,84 | E30: 33,33 | F30: 907,24 | G30: 15,67 | H30: 426,57 | I30: 1,98 | J30: 30,27 | K30: 823,95 | L30: 4
A31: 48 | B31: Vento máximo | C31: 15 | D31: 60,84 | E31: 33,33 | F31: 907,24 | G31: 14,78 | H31: 402,29 | I31: 2,10 | J31: 29,18 | K31: 794,28 | L31: 4
A32: 49 | B32: Maior duração | C32: 20 | D32: 60,84 | E32: 33,33 | F32: 907,24 | G32: 14,00 | H32: 381,08 | I32: 2,22 | J32: 28,18 | K32: 767,06 | L32: 4
A33: 50 | B33: - | C33: 25 | D33: 60,84 | E33: 33,33 | F33: 907,24 | G33: 13,32 | H33: 362,44 | I33: 2,34 | J33: 27,26 | K33: 742,02 | L33: 5
A34: 51 | B34: - | C34: 30 | D34: 60,84 | E34: 33,33 | F34: 907,24 | G34: 12,71 | H34: 345,96 | I34: 2,45 | J34: 26,40 | K34: 718,61 | L34: 5
A35: 52 | B35: - | C35: 35 | D35: 60,84 | E35: 33,33 | F35: 907,24 | G35: 12,17 | H35: 331,28 | I35: 2,56 | J35: 25,61 | K35: 697,10 | L35: 5
A36: 53 | B36: - | C36: 40 | D36: 60,84 | E36: 33,33 | F36: 907,24 | G36: 11,69 | H36: 318,14 | I36: 2,66 | J36: 24,87 | K36: 676,96 | L36: 5
A37: 54 | B37: - | C37: 45 | D37: 60,84 | E37: 33,33 | F37: 907,24 | G37: 11,25 | H37: 306,31 | I37: 2,76 | J37: 24,19 | K37: 658,45 | L37: 5
A38: 55 | B38: Flecha Máxima | C38: 50 | D38: 60,84 | E38: 33,33 | F38: 907,24 | G38: 10,86 | H38: 295,60 | I38: 2,86 | J38: 23,55 | K38: 641,03 | L38: 5
L39: =2*H37*G17 -> 0
L40: =D12*C15 -> 56.436

Sheet Tabelas_de_Flexas
B1: TABELA DE TRAÇÕES E FLECHAS DE MONTAGEM
B3: CONDUTOR: cobertos
B4: Condições:
B5: Temperatura mínima de – 5 °C com 33,33 % da tração de ruptura
B6: Vento máximo de 130 km/h a 15 °C | G6: 0
B7: Vento reduzido a 15 °C com 40,00 % da tração de ruptura
B8: ="Maior duração com temperatura de "&Relat_Flechas!A22&" °C com "&Relat_Flechas!C22&" % da tração de ruptura" -> Maior duração com temperatura de 20 °C com 14 % da tração de ruptura
B9: Flecha máxima com 50 °C | N9: =((Relat_Flechas!$D$12)*(Tabelas_de_Flexas!F$14^2))/(8*C16)
B10: Flechas em metros
B13: =VLOOKUP(Relat_Flechas!A12,Caracteristica_CABO!A:AH,31,FALSE)&" - Vão básico "&Relat_Flechas!C15&" m" -> Cabo de Alumínio - CA 336,4 AWG - Vão básico 120 m
B14: Temp º | C14: Tração daN | D14: 30 | E14: 35 | F14: 40 | G14: 45 | H14: 50 | I14: 55 | J14: 60 | K14: 65 | L14: 70 | M14: 75 | N14: 80 | O14: 85 | P14: 90 | Q14: 95 | R14: 100 | S14: 105 | T14: 110 | U14: 115 | V14: 120 | W14: 125 | X14: 130 | Y14: 135 | Z14: 140 | AA14: 145 | AB14: 150 | AC14: 155
B15: -5 | C15: =Relat_Flechas!H27 -> 524,46 | D15: =((Relat_Flechas!$D$12)*(Tabelas_de_Flexas!D$14^2))/(8*C15) -> 0.1008823361 | E15: =((Relat_Flechas!$D$12)*(Tabelas_de_Flexas!E$14^2))/(8*C15) -> 0.1373120686 | F15: =((Relat_Flechas!$D$12)*(Tabelas_de_Flexas!F$14^2))/(8*C15) -> 0.1793463753 | G15: =((Relat_Flechas!$D$12)*(Tabelas_de_Flexas!G$14^2))/(8*C15) -> 0.2269852563 | H15: =((Relat_Flechas!$D$12)*(Tabelas_de_Flexas!H$14^2))/(8*C15) -> 0.2802287114 | I15: =((Relat_Flechas!$D$12)*(Tabelas_de_Flexas!I$14^2))/(8*C15) -> 0.3390767408 | J15: =((Relat_Flechas!$D$12)*(Tabelas_de_Flexas!J$14^2))/(8*C15) -> 0.4035293445 | K15: =((Relat_Flechas!$D$12)*(Tabelas_de_Flexas!K$14^2))/(8*C15) -> 0.4735865223 | L15: =((Relat_Flechas!$D$12)*(Tabelas_de_Flexas!L$14^2))/(8*C15) -> 0.5492482744 | M15: =((Relat_Flechas!$D$12)*(Tabelas_de_Flexas!M$14^2))/(8*C15) -> 0.6305146007 | N15: =((Relat_Flechas!$D$12)*(Tabelas_de_Flexas!N$14^2))/(8*C15) -> 0.7173855013 | O15: =((Relat_Flechas!$D$12)*(Tabelas_de_Flexas!O$14^2))/(8*C15) -> 0.8098609761 | P15: =((Relat_Flechas!$D$12)*(Tabelas_de_Flexas!P$14^2))/(8*C15) -> 0.9079410251 | Q15: =((Relat_Flechas!$D$12)*(Tabelas_de_Flexas!Q$14^2))/(8*C15) -> 1.011625648 | R15: =((Relat_Flechas!$D$12)*(Tabelas_de_Flexas!R$14^2))/(8*C15) -> 1.120914846 | S15: =((Relat_Flechas!$D$12)*(Tabelas_de_Flexas!S$14^2))/(8*C15) -> 1.235808617 | T15: =((Relat_Flechas!$D$12)*(Tabelas_de_Flexas!T$14^2))/(8*C15) -> 1.356306963 | U15: =((Relat_Flechas!$D$12)*(Tabelas_de_Flexas!U$14^2))/(8*C15) -> 1.482409883 | V15: =((Relat_Flechas!$D$12)*(Tabelas_de_Flexas!V$14^2))/(8*C15) -> 1.614117378 | W15: =((Relat_Flechas!$D$12)*(Tabelas_de_Flexas!W$14^2))/(8*C15) -> 1.751429446 | X15: =((Relat_Flechas!$D$12)*(Tabelas_de_Flexas!X$14^2))/(8*C15) -> 1.894346089 | Y15: =((Relat_Flechas!$D$12)*(Tabelas_de_Flexas!Y$14^2))/(8*C15) -> 2.042867306 | Z15: =((Relat_Flechas!$D$12)*(Tabelas_de_Flexas!Z$14^2))/(8*C15) -> 2.196993098 | AA15: =((Relat_Flechas!$D$12)*(Tabelas_de_Flexas!AA$14^2))/(8*C15) -> 2.356723463 | AB15: =((Relat_Flechas!$D$12)*(Tabelas_de_Flexas!AB$14^2))/(8*C15) -> 2.522058403 | AC15: =((Relat_Flechas!$D$12)*(Tabelas_de_Flexas!AC$14^2))/(8*C15) -> 2.692997917
B16: 0 | C16: =Relat_Flechas!H28 -> 486,90 | D16: =((Relat_Flechas!$D$12)*(Tabelas_de_Flexas!D$14^2))/(8*C16) -> 0.1086645102 | E16: =((Relat_Flechas!$D$12)*(Tabelas_de_Flexas!E$14^2))/(8*C16) -> 0.1479044722 | F16: =((Relat_Flechas!$D$12)*(Tabelas_de_Flexas!F$14^2))/(8*C16) -> 0.1931813514 | G16: =((Relat_Flechas!$D$12)*(Tabelas_de_Flexas!G$14^2))/(8*C16) -> 0.2444951479 | H16: =((Relat_Flechas!$D$12)*(Tabelas_de_Flexas!H$14^2))/(8*C16) -> 0.3018458616 | I16: =((Relat_Flechas!$D$12)*(Tabelas_de_Flexas!I$14^2))/(8*C16) -> 0.3652334925 | J16: =((Relat_Flechas!$D$12)*(Tabelas_de_Flexas!J$14^2))/(8*C16) -> 0.4346580407 | K16: =((Relat_Flechas!$D$12)*(Tabelas_de_Flexas!K$14^2))/(8*C16) -> 0.5101195061 | L16: =((Relat_Flechas!$D$12)*(Tabelas_de_Flexas!L$14^2))/(8*C16) -> 0.5916178887 | M16: =((Relat_Flechas!$D$12)*(Tabelas_de_Flexas!M$14^2))/(8*C16) -> 0.6791531885 | N16: =((Relat_Flechas!$D$12)*(Tabelas_de_Flexas!N$14^2))/(8*C16) -> 0.7727254056 | O16: =((Relat_Flechas!$D$12)*(Tabelas_de_Flexas!O$14^2))/(8*C16) -> 0.8723345399 | P16: =((Relat_Flechas!$D$12)*(Tabelas_de_Flexas!P$14^2))/(8*C16) -> 0.9779805915 | Q16: =((Relat_Flechas!$D$12)*(Tabelas_de_Flexas!Q$14^2))/(8*C16) -> 1.08966356 | R16: =((Relat_Flechas!$D$12)*(Tabelas_de_Flexas!R$14^2))/(8*C16) -> 1.207383446 | S16: =((Relat_Flechas!$D$12)*(Tabelas_de_Flexas!S$14^2))/(8*C16) -> 1.33114025 | T16: =((Relat_Flechas!$D$12)*(Tabelas_de_Flexas!T$14^2))/(8*C16) -> 1.46093397 | U16: =((Relat_Flechas!$D$12)*(Tabelas_de_Flexas!U$14^2))/(8*C16) -> 1.596764608 | V16: =((Relat_Flechas!$D$12)*(Tabelas_de_Flexas!V$14^2))/(8*C16) -> 1.738632163 | W16: =((Relat_Flechas!$D$12)*(Tabelas_de_Flexas!W$14^2))/(8*C16) -> 1.886536635 | X16: =((Relat_Flechas!$D$12)*(Tabelas_de_Flexas!X$14^2))/(8*C16) -> 2.040478024 | Y16: =((Relat_Flechas!$D$12)*(Tabelas_de_Flexas!Y$14^2))/(8*C16) -> 2.200456331 | Z16: =((Relat_Flechas!$D$12)*(Tabelas_de_Flexas!Z$14^2))/(8*C16) -> 2.366471555 | AA16: =((Relat_Flechas!$D$12)*(Tabelas_de_Flexas!AA$14^2))/(8*C16) -> 2.538523696 | AB16: =((Relat_Flechas!$D$12)*(Tabelas_de_Flexas!AB$14^2))/(8*C16) -> 2.716612754 | AC16: =((Relat_Flechas!$D$12)*(Tabelas_de_Flexas!AC$14^2))/(8*C16) -> 2.90073873
B17: 5 | C17: =Relat_Flechas!H29 -> 454,54 | D17: =((Relat_Flechas!$D$12)*(Tabelas_de_Flexas!D$14^2))/(8*C17) -> 0.1164006468 | E17: =((Relat_Flechas!$D$12)*(Tabelas_de_Flexas!E$14^2))/(8*C17) -> 0.1584342137 | F17: =((Relat_Flechas!$D$12)*(Tabelas_de_Flexas!F$14^2))/(8*C17) -> 0.2069344832 | G17: =((Relat_Flechas!$D$12)*(Tabelas_de_Flexas!G$14^2))/(8*C17) -> 0.2619014553 | H17: =((Relat_Flechas!$D$12)*(Tabelas_de_Flexas!H$14^2))/(8*C17) -> 0.32333513 | I17: =((Relat_Flechas!$D$12)*(Tabelas_de_Flexas!I$14^2))/(8*C17) -> 0.3912355073 | J17: =((Relat_Flechas!$D$12)*(Tabelas_de_Flexas!J$14^2))/(8*C17) -> 0.4656025872 | K17: =((Relat_Flechas!$D$12)*(Tabelas_de_Flexas!K$14^2))/(8*C17) -> 0.5464363697 | L17: =((Relat_Flechas!$D$12)*(Tabelas_de_Flexas!L$14^2))/(8*C17) -> 0.6337368548 | M17: =((Relat_Flechas!$D$12)*(Tabelas_de_Flexas!M$14^2))/(8*C17) -> 0.7275040425 | N17: =((Relat_Flechas!$D$12)*(Tabelas_de_Flexas!N$14^2))/(8*C17) -> 0.8277379329 | O17: =((Relat_Flechas!$D$12)*(Tabelas_de_Flexas!O$14^2))/(8*C17) -> 0.9344385258 | P17: =((Relat_Flechas!$D$12)*(Tabelas_de_Flexas!P$14^2))/(8*C17) -> 1.047605821 | Q17: =((Relat_Flechas!$D$12)*(Tabelas_de_Flexas!Q$14^2))/(8*C17) -> 1.167239819 | R17: =((Relat_Flechas!$D$12)*(Tabelas_de_Flexas!R$14^2))/(8*C17) -> 1.29334052 | S17: =((Relat_Flechas!$D$12)*(Tabelas_de_Flexas!S$14^2))/(8*C17) -> 1.425907923 | T17: =((Relat_Flechas!$D$12)*(Tabelas_de_Flexas!T$14^2))/(8*C17) -> 1.564942029 | U17: =((Relat_Flechas!$D$12)*(Tabelas_de_Flexas!U$14^2))/(8*C17) -> 1.710442838 | V17: =((Relat_Flechas!$D$12)*(Tabelas_de_Flexas!V$14^2))/(8*C17) -> 1.862410349 | W17: =((Relat_Flechas!$D$12)*(Tabelas_de_Flexas!W$14^2))/(8*C17) -> 2.020844563 | X17: =((Relat_Flechas!$D$12)*(Tabelas_de_Flexas!X$14^2))/(8*C17) -> 2.185745479 | Y17: =((Relat_Flechas!$D$12)*(Tabelas_de_Flexas!Y$14^2))/(8*C17) -> 2.357113098 | Z17: =((Relat_Flechas!$D$12)*(Tabelas_de_Flexas!Z$14^2))/(8*C17) -> 2.534947419 | AA17: =((Relat_Flechas!$D$12)*(Tabelas_de_Flexas!AA$14^2))/(8*C17) -> 2.719248443 | AB17: =((Relat_Flechas!$D$12)*(Tabelas_de_Flexas!AB$14^2))/(8*C17) -> 2.91001617 | AC17: =((Relat_Flechas!$D$12)*(Tabelas_de_Flexas!AC$14^2))/(8*C17) -> 3.1072506
B18: 10 | C18: =Relat_Flechas!H30 -> 426,57 | D18: =((Relat_Flechas!$D$12)*(Tabelas_de_Flexas!D$14^2))/(8*C18) -> 0.124032984 | E18: =((Relat_Flechas!$D$12)*(Tabelas_de_Flexas!E$14^2))/(8*C18) -> 0.1688226727 | F18: =((Relat_Flechas!$D$12)*(Tabelas_de_Flexas!F$14^2))/(8*C18) -> 0.2205030827 | G18: =((Relat_Flechas!$D$12)*(Tabelas_de_Flexas!G$14^2))/(8*C18) -> 0.2790742141 | H18: =((Relat_Flechas!$D$12)*(Tabelas_de_Flexas!H$14^2))/(8*C18) -> 0.3445360668 | I18: =((Relat_Flechas!$D$12)*(Tabelas_de_Flexas!I$14^2))/(8*C18) -> 0.4168886408 | J18: =((Relat_Flechas!$D$12)*(Tabelas_de_Flexas!J$14^2))/(8*C18) -> 0.4961319361 | K18: =((Relat_Flechas!$D$12)*(Tabelas_de_Flexas!K$14^2))/(8*C18) -> 0.5822659528 | L18: =((Relat_Flechas!$D$12)*(Tabelas_de_Flexas!L$14^2))/(8*C18) -> 0.6752906909 | M18: =((Relat_Flechas!$D$12)*(Tabelas_de_Flexas!M$14^2))/(8*C18) -> 0.7752061502 | N18: =((Relat_Flechas!$D$12)*(Tabelas_de_Flexas!N$14^2))/(8*C18) -> 0.8820123309 | O18: =((Relat_Flechas!$D$12)*(Tabelas_de_Flexas!O$14^2))/(8*C18) -> 0.995709233 | P18: =((Relat_Flechas!$D$12)*(Tabelas_de_Flexas!P$14^2))/(8*C18) -> 1.116296856 | Q18: =((Relat_Flechas!$D$12)*(Tabelas_de_Flexas!Q$14^2))/(8*C18) -> 1.243775201 | R18: =((Relat_Flechas!$D$12)*(Tabelas_de_Flexas!R$14^2))/(8*C18) -> 1.378144267 | S18: =((Relat_Flechas!$D$12)*(Tabelas_de_Flexas!S$14^2))/(8*C18) -> 1.519404054 | T18: =((Relat_Flechas!$D$12)*(Tabelas_de_Flexas!T$14^2))/(8*C18) -> 1.667554563 | U18: =((Relat_Flechas!$D$12)*(Tabelas_de_Flexas!U$14^2))/(8*C18) -> 1.822595793 | V18: =((Relat_Flechas!$D$12)*(Tabelas_de_Flexas!V$14^2))/(8*C18) -> 1.984527745 | W18: =((Relat_Flechas!$D$12)*(Tabelas_de_Flexas!W$14^2))/(8*C18) -> 2.153350417 | X18: =((Relat_Flechas!$D$12)*(Tabelas_de_Flexas!X$14^2))/(8*C18) -> 2.329063811 | Y18: =((Relat_Flechas!$D$12)*(Tabelas_de_Flexas!Y$14^2))/(8*C18) -> 2.511667927 | Z18: =((Relat_Flechas!$D$12)*(Tabelas_de_Flexas!Z$14^2))/(8*C18) -> 2.701162763 | AA18: =((Relat_Flechas!$D$12)*(Tabelas_de_Flexas!AA$14^2))/(8*C18) -> 2.897548321 | AB18: =((Relat_Flechas!$D$12)*(Tabelas_de_Flexas!AB$14^2))/(8*C18) -> 3.100824601 | AC18: =((Relat_Flechas!$D$12)*(Tabelas_de_Flexas!AC$14^2))/(8*C18) -> 3.310991602
B19: 15 | C19: =Relat_Flechas!H31 -> 402,29 | D19: =((Relat_Flechas!$D$12)*(Tabelas_de_Flexas!D$14^2))/(8*C19) -> 0.1315189291 | E19: =((Relat_Flechas!$D$12)*(Tabelas_de_Flexas!E$14^2))/(8*C19) -> 0.1790118758 | F19: =((Relat_Flechas!$D$12)*(Tabelas_de_Flexas!F$14^2))/(8*C19) -> 0.2338114296 | G19: =((Relat_Flechas!$D$12)*(Tabelas_de_Flexas!G$14^2))/(8*C19) -> 0.2959175905 | H19: =((Relat_Flechas!$D$12)*(Tabelas_de_Flexas!H$14^2))/(8*C19) -> 0.3653303587 | I19: =((Relat_Flechas!$D$12)*(Tabelas_de_Flexas!I$14^2))/(8*C19) -> 0.442049734 | J19: =((Relat_Flechas!$D$12)*(Tabelas_de_Flexas!J$14^2))/(8*C19) -> 0.5260757165 | K19: =((Relat_Flechas!$D$12)*(Tabelas_de_Flexas!K$14^2))/(8*C19) -> 0.6174083062 | L19: =((Relat_Flechas!$D$12)*(Tabelas_de_Flexas!L$14^2))/(8*C19) -> 0.716047503 | M19: =((Relat_Flechas!$D$12)*(Tabelas_de_Flexas!M$14^2))/(8*C19) -> 0.8219933071 | N19: =((Relat_Flechas!$D$12)*(Tabelas_de_Flexas!N$14^2))/(8*C19) -> 0.9352457183 | O19: =((Relat_Flechas!$D$12)*(Tabelas_de_Flexas!O$14^2))/(8*C19) -> 1.055804737 | P19: =((Relat_Flechas!$D$12)*(Tabelas_de_Flexas!P$14^2))/(8*C19) -> 1.183670362 | Q19: =((Relat_Flechas!$D$12)*(Tabelas_de_Flexas!Q$14^2))/(8*C19) -> 1.318842595 | R19: =((Relat_Flechas!$D$12)*(Tabelas_de_Flexas!R$14^2))/(8*C19) -> 1.461321435 | S19: =((Relat_Flechas!$D$12)*(Tabelas_de_Flexas!S$14^2))/(8*C19) -> 1.611106882 | T19: =((Relat_Flechas!$D$12)*(Tabelas_de_Flexas!T$14^2))/(8*C19) -> 1.768198936 | U19: =((Relat_Flechas!$D$12)*(Tabelas_de_Flexas!U$14^2))/(8*C19) -> 1.932597598 | V19: =((Relat_Flechas!$D$12)*(Tabelas_de_Flexas!V$14^2))/(8*C19) -> 2.104302866 | W19: =((Relat_Flechas!$D$12)*(Tabelas_de_Flexas!W$14^2))/(8*C19) -> 2.283314742 | X19: =((Relat_Flechas!$D$12)*(Tabelas_de_Flexas!X$14^2))/(8*C19) -> 2.469633225 | Y19: =((Relat_Flechas!$D$12)*(Tabelas_de_Flexas!Y$14^2))/(8*C19) -> 2.663258315 | Z19: =((Relat_Flechas!$D$12)*(Tabelas_de_Flexas!Z$14^2))/(8*C19) -> 2.864190012 | AA19: =((Relat_Flechas!$D$12)*(Tabelas_de_Flexas!AA$14^2))/(8*C19) -> 3.072428317 | AB19: =((Relat_Flechas!$D$12)*(Tabelas_de_Flexas!AB$14^2))/(8*C19) -> 3.287973228 | AC19: =((Relat_Flechas!$D$12)*(Tabelas_de_Flexas!AC$14^2))/(8*C19) -> 3.510824747
B20: 20 | C20: =Relat_Flechas!H32 -> 381,08 | D20: =((Relat_Flechas!$D$12)*(Tabelas_de_Flexas!D$14^2))/(8*C20) -> 0.1388389577 | E20: =((Relat_Flechas!$D$12)*(Tabelas_de_Flexas!E$14^2))/(8*C20) -> 0.188975248 | F20: =((Relat_Flechas!$D$12)*(Tabelas_de_Flexas!F$14^2))/(8*C20) -> 0.2468248137 | G20: =((Relat_Flechas!$D$12)*(Tabelas_de_Flexas!G$14^2))/(8*C20) -> 0.3123876548 | H20: =((Relat_Flechas!$D$12)*(Tabelas_de_Flexas!H$14^2))/(8*C20) -> 0.3856637714 | I20: =((Relat_Flechas!$D$12)*(Tabelas_de_Flexas!I$14^2))/(8*C20) -> 0.4666531634 | J20: =((Relat_Flechas!$D$12)*(Tabelas_de_Flexas!J$14^2))/(8*C20) -> 0.5553558308 | K20: =((Relat_Flechas!$D$12)*(Tabelas_de_Flexas!K$14^2))/(8*C20) -> 0.6517717736 | L20: =((Relat_Flechas!$D$12)*(Tabelas_de_Flexas!L$14^2))/(8*C20) -> 0.7559009919 | M20: =((Relat_Flechas!$D$12)*(Tabelas_de_Flexas!M$14^2))/(8*C20) -> 0.8677434856 | N20: =((Relat_Flechas!$D$12)*(Tabelas_de_Flexas!N$14^2))/(8*C20) -> 0.9872992547 | O20: =((Relat_Flechas!$D$12)*(Tabelas_de_Flexas!O$14^2))/(8*C20) -> 1.114568299 | P20: =((Relat_Flechas!$D$12)*(Tabelas_de_Flexas!P$14^2))/(8*C20) -> 1.249550619 | Q20: =((Relat_Flechas!$D$12)*(Tabelas_de_Flexas!Q$14^2))/(8*C20) -> 1.392246215 | R20: =((Relat_Flechas!$D$12)*(Tabelas_de_Flexas!R$14^2))/(8*C20) -> 1.542655086 | S20: =((Relat_Flechas!$D$12)*(Tabelas_de_Flexas!S$14^2))/(8*C20) -> 1.700777232 | T20: =((Relat_Flechas!$D$12)*(Tabelas_de_Flexas!T$14^2))/(8*C20) -> 1.866612654 | U20: =((Relat_Flechas!$D$12)*(Tabelas_de_Flexas!U$14^2))/(8*C20) -> 2.040161351 | V20: =((Relat_Flechas!$D$12)*(Tabelas_de_Flexas!V$14^2))/(8*C20) -> 2.221423323 | W20: =((Relat_Flechas!$D$12)*(Tabelas_de_Flexas!W$14^2))/(8*C20) -> 2.410398571 | X20: =((Relat_Flechas!$D$12)*(Tabelas_de_Flexas!X$14^2))/(8*C20) -> 2.607087095 | Y20: =((Relat_Flechas!$D$12)*(Tabelas_de_Flexas!Y$14^2))/(8*C20) -> 2.811488893 | Z20: =((Relat_Flechas!$D$12)*(Tabelas_de_Flexas!Z$14^2))/(8*C20) -> 3.023603968 | AA20: =((Relat_Flechas!$D$12)*(Tabelas_de_Flexas!AA$14^2))/(8*C20) -> 3.243432317 | AB20: =((Relat_Flechas!$D$12)*(Tabelas_de_Flexas!AB$14^2))/(8*C20) -> 3.470973942 | AC20: =((Relat_Flechas!$D$12)*(Tabelas_de_Flexas!AC$14^2))/(8*C20) -> 3.706228843
B21: 25 | C21: =Relat_Flechas!H33 -> 362,44 | D21: =((Relat_Flechas!$D$12)*(Tabelas_de_Flexas!D$14^2))/(8*C21) -> 0.1459793345 | E21: =((Relat_Flechas!$D$12)*(Tabelas_de_Flexas!E$14^2))/(8*C21) -> 0.1986940942 | F21: =((Relat_Flechas!$D$12)*(Tabelas_de_Flexas!F$14^2))/(8*C21) -> 0.2595188169 | G21: =((Relat_Flechas!$D$12)*(Tabelas_de_Flexas!G$14^2))/(8*C21) -> 0.3284535026 | H21: =((Relat_Flechas!$D$12)*(Tabelas_de_Flexas!H$14^2))/(8*C21) -> 0.4054981514 | I21: =((Relat_Flechas!$D$12)*(Tabelas_de_Flexas!I$14^2))/(8*C21) -> 0.4906527632 | J21: =((Relat_Flechas!$D$12)*(Tabelas_de_Flexas!J$14^2))/(8*C21) -> 0.583917338 | K21: =((Relat_Flechas!$D$12)*(Tabelas_de_Flexas!K$14^2))/(8*C21) -> 0.6852918759 | L21: =((Relat_Flechas!$D$12)*(Tabelas_de_Flexas!L$14^2))/(8*C21) -> 0.7947763768 | M21: =((Relat_Flechas!$D$12)*(Tabelas_de_Flexas!M$14^2))/(8*C21) -> 0.9123708407 | N21: =((Relat_Flechas!$D$12)*(Tabelas_de_Flexas!N$14^2))/(8*C21) -> 1.038075268 | O21: =((Relat_Flechas!$D$12)*(Tabelas_de_Flexas!O$14^2))/(8*C21) -> 1.171889658 | P21: =((Relat_Flechas!$D$12)*(Tabelas_de_Flexas!P$14^2))/(8*C21) -> 1.313814011 | Q21: =((Relat_Flechas!$D$12)*(Tabelas_de_Flexas!Q$14^2))/(8*C21) -> 1.463848327 | R21: =((Relat_Flechas!$D$12)*(Tabelas_de_Flexas!R$14^2))/(8*C21) -> 1.621992606 | S21: =((Relat_Flechas!$D$12)*(Tabelas_de_Flexas!S$14^2))/(8*C21) -> 1.788246848 | T21: =((Relat_Flechas!$D$12)*(Tabelas_de_Flexas!T$14^2))/(8*C21) -> 1.962611053 | U21: =((Relat_Flechas!$D$12)*(Tabelas_de_Flexas!U$14^2))/(8*C21) -> 2.145085221 | V21: =((Relat_Flechas!$D$12)*(Tabelas_de_Flexas!V$14^2))/(8*C21) -> 2.335669352 | W21: =((Relat_Flechas!$D$12)*(Tabelas_de_Flexas!W$14^2))/(8*C21) -> 2.534363446 | X21: =((Relat_Flechas!$D$12)*(Tabelas_de_Flexas!X$14^2))/(8*C21) -> 2.741167504 | Y21: =((Relat_Flechas!$D$12)*(Tabelas_de_Flexas!Y$14^2))/(8*C21) -> 2.956081524 | Z21: =((Relat_Flechas!$D$12)*(Tabelas_de_Flexas!Z$14^2))/(8*C21) -> 3.179105507 | AA21: =((Relat_Flechas!$D$12)*(Tabelas_de_Flexas!AA$14^2))/(8*C21) -> 3.410239453 | AB21: =((Relat_Flechas!$D$12)*(Tabelas_de_Flexas!AB$14^2))/(8*C21) -> 3.649483363 | AC21: =((Relat_Flechas!$D$12)*(Tabelas_de_Flexas!AC$14^2))/(8*C21) -> 3.896837235
B22: 30 | C22: =Relat_Flechas!H34 -> 345,96 | D22: =((Relat_Flechas!$D$12)*(Tabelas_de_Flexas!D$14^2))/(8*C22) -> 0.1529331426 | E22: =((Relat_Flechas!$D$12)*(Tabelas_de_Flexas!E$14^2))/(8*C22) -> 0.2081589996 | F22: =((Relat_Flechas!$D$12)*(Tabelas_de_Flexas!F$14^2))/(8*C22) -> 0.2718811423 | G22: =((Relat_Flechas!$D$12)*(Tabelas_de_Flexas!G$14^2))/(8*C22) -> 0.3440995708 | H22: =((Relat_Flechas!$D$12)*(Tabelas_de_Flexas!H$14^2))/(8*C22) -> 0.4248142849 | I22: =((Relat_Flechas!$D$12)*(Tabelas_de_Flexas!I$14^2))/(8*C22) -> 0.5140252847 | J22: =((Relat_Flechas!$D$12)*(Tabelas_de_Flexas!J$14^2))/(8*C22) -> 0.6117325702 | K22: =((Relat_Flechas!$D$12)*(Tabelas_de_Flexas!K$14^2))/(8*C22) -> 0.7179361415 | L22: =((Relat_Flechas!$D$12)*(Tabelas_de_Flexas!L$14^2))/(8*C22) -> 0.8326359984 | M22: =((Relat_Flechas!$D$12)*(Tabelas_de_Flexas!M$14^2))/(8*C22) -> 0.955832141 | N22: =((Relat_Flechas!$D$12)*(Tabelas_de_Flexas!N$14^2))/(8*C22) -> 1.087524569 | O22: =((Relat_Flechas!$D$12)*(Tabelas_de_Flexas!O$14^2))/(8*C22) -> 1.227713283 | P22: =((Relat_Flechas!$D$12)*(Tabelas_de_Flexas!P$14^2))/(8*C22) -> 1.376398283 | Q22: =((Relat_Flechas!$D$12)*(Tabelas_de_Flexas!Q$14^2))/(8*C22) -> 1.533579568 | R22: =((Relat_Flechas!$D$12)*(Tabelas_de_Flexas!R$14^2))/(8*C22) -> 1.69925714 | S22: =((Relat_Flechas!$D$12)*(Tabelas_de_Flexas!S$14^2))/(8*C22) -> 1.873430996 | T22: =((Relat_Flechas!$D$12)*(Tabelas_de_Flexas!T$14^2))/(8*C22) -> 2.056101139 | U22: =((Relat_Flechas!$D$12)*(Tabelas_de_Flexas!U$14^2))/(8*C22) -> 2.247267567 | V22: =((Relat_Flechas!$D$12)*(Tabelas_de_Flexas!V$14^2))/(8*C22) -> 2.446930281 | W22: =((Relat_Flechas!$D$12)*(Tabelas_de_Flexas!W$14^2))/(8*C22) -> 2.655089281 | X22: =((Relat_Flechas!$D$12)*(Tabelas_de_Flexas!X$14^2))/(8*C22) -> 2.871744566 | Y22: =((Relat_Flechas!$D$12)*(Tabelas_de_Flexas!Y$14^2))/(8*C22) -> 3.096896137 | Z22: =((Relat_Flechas!$D$12)*(Tabelas_de_Flexas!Z$14^2))/(8*C22) -> 3.330543994 | AA22: =((Relat_Flechas!$D$12)*(Tabelas_de_Flexas!AA$14^2))/(8*C22) -> 3.572688136 | AB22: =((Relat_Flechas!$D$12)*(Tabelas_de_Flexas!AB$14^2))/(8*C22) -> 3.823328564 | AC22: =((Relat_Flechas!$D$12)*(Tabelas_de_Flexas!AC$14^2))/(8*C22) -> 4.082465278
B23: 35 | C23: =Relat_Flechas!H35 -> 331,28 | D23: =((Relat_Flechas!$D$12)*(Tabelas_de_Flexas!D$14^2))/(8*C23) -> 0.159710064 | E23: =((Relat_Flechas!$D$12)*(Tabelas_de_Flexas!E$14^2))/(8*C23) -> 0.2173831427 | F23: =((Relat_Flechas!$D$12)*(Tabelas_de_Flexas!F$14^2))/(8*C23) -> 0.2839290027 | G23: =((Relat_Flechas!$D$12)*(Tabelas_de_Flexas!G$14^2))/(8*C23) -> 0.359347644 | H23: =((Relat_Flechas!$D$12)*(Tabelas_de_Flexas!H$14^2))/(8*C23) -> 0.4436390667 | I23: =((Relat_Flechas!$D$12)*(Tabelas_de_Flexas!I$14^2))/(8*C23) -> 0.5368032706 | J23: =((Relat_Flechas!$D$12)*(Tabelas_de_Flexas!J$14^2))/(8*C23) -> 0.638840256 | K23: =((Relat_Flechas!$D$12)*(Tabelas_de_Flexas!K$14^2))/(8*C23) -> 0.7497500226 | L23: =((Relat_Flechas!$D$12)*(Tabelas_de_Flexas!L$14^2))/(8*C23) -> 0.8695325706 | M23: =((Relat_Flechas!$D$12)*(Tabelas_de_Flexas!M$14^2))/(8*C23) -> 0.9981879 | N23: =((Relat_Flechas!$D$12)*(Tabelas_de_Flexas!N$14^2))/(8*C23) -> 1.135716011 | O23: =((Relat_Flechas!$D$12)*(Tabelas_de_Flexas!O$14^2))/(8*C23) -> 1.282116903 | P23: =((Relat_Flechas!$D$12)*(Tabelas_de_Flexas!P$14^2))/(8*C23) -> 1.437390576 | Q23: =((Relat_Flechas!$D$12)*(Tabelas_de_Flexas!Q$14^2))/(8*C23) -> 1.601537031 | R23: =((Relat_Flechas!$D$12)*(Tabelas_de_Flexas!R$14^2))/(8*C23) -> 1.774556267 | S23: =((Relat_Flechas!$D$12)*(Tabelas_de_Flexas!S$14^2))/(8*C23) -> 1.956448284 | T23: =((Relat_Flechas!$D$12)*(Tabelas_de_Flexas!T$14^2))/(8*C23) -> 2.147213083 | U23: =((Relat_Flechas!$D$12)*(Tabelas_de_Flexas!U$14^2))/(8*C23) -> 2.346850663 | V23: =((Relat_Flechas!$D$12)*(Tabelas_de_Flexas!V$14^2))/(8*C23) -> 2.555361024 | W23: =((Relat_Flechas!$D$12)*(Tabelas_de_Flexas!W$14^2))/(8*C23) -> 2.772744167 | X23: =((Relat_Flechas!$D$12)*(Tabelas_de_Flexas!X$14^2))/(8*C23) -> 2.999000091 | Y23: =((Relat_Flechas!$D$12)*(Tabelas_de_Flexas!Y$14^2))/(8*C23) -> 3.234128796 | Z23: =((Relat_Flechas!$D$12)*(Tabelas_de_Flexas!Z$14^2))/(8*C23) -> 3.478130283 | AA23: =((Relat_Flechas!$D$12)*(Tabelas_de_Flexas!AA$14^2))/(8*C23) -> 3.731004551 | AB23: =((Relat_Flechas!$D$12)*(Tabelas_de_Flexas!AB$14^2))/(8*C23) -> 3.9927516 | AC23: =((Relat_Flechas!$D$12)*(Tabelas_de_Flexas!AC$14^2))/(8*C23) -> 4.263371431
B24: 40 | C24: =Relat_Flechas!H36 -> 318,14 | D24: =((Relat_Flechas!$D$12)*(Tabelas_de_Flexas!D$14^2))/(8*C24) -> 0.1663065003 | E24: =((Relat_Flechas!$D$12)*(Tabelas_de_Flexas!E$14^2))/(8*C24) -> 0.2263616254 | F24: =((Relat_Flechas!$D$12)*(Tabelas_de_Flexas!F$14^2))/(8*C24) -> 0.2956560005 | G24: =((Relat_Flechas!$D$12)*(Tabelas_de_Flexas!G$14^2))/(8*C24) -> 0.3741896256 | H24: =((Relat_Flechas!$D$12)*(Tabelas_de_Flexas!H$14^2))/(8*C24) -> 0.4619625008 | I24: =((Relat_Flechas!$D$12)*(Tabelas_de_Flexas!I$14^2))/(8*C24) -> 0.558974626 | J24: =((Relat_Flechas!$D$12)*(Tabelas_de_Flexas!J$14^2))/(8*C24) -> 0.6652260011 | K24: =((Relat_Flechas!$D$12)*(Tabelas_de_Flexas!K$14^2))/(8*C24) -> 0.7807166263 | L24: =((Relat_Flechas!$D$12)*(Tabelas_de_Flexas!L$14^2))/(8*C24) -> 0.9054465015 | M24: =((Relat_Flechas!$D$12)*(Tabelas_de_Flexas!M$14^2))/(8*C24) -> 1.039415627 | N24: =((Relat_Flechas!$D$12)*(Tabelas_de_Flexas!N$14^2))/(8*C24) -> 1.182624002 | O24: =((Relat_Flechas!$D$12)*(Tabelas_de_Flexas!O$14^2))/(8*C24) -> 1.335071627 | P24: =((Relat_Flechas!$D$12)*(Tabelas_de_Flexas!P$14^2))/(8*C24) -> 1.496758503 | Q24: =((Relat_Flechas!$D$12)*(Tabelas_de_Flexas!Q$14^2))/(8*C24) -> 1.667684628 | R24: =((Relat_Flechas!$D$12)*(Tabelas_de_Flexas!R$14^2))/(8*C24) -> 1.847850003 | S24: =((Relat_Flechas!$D$12)*(Tabelas_de_Flexas!S$14^2))/(8*C24) -> 2.037254628 | T24: =((Relat_Flechas!$D$12)*(Tabelas_de_Flexas!T$14^2))/(8*C24) -> 2.235898504 | U24: =((Relat_Flechas!$D$12)*(Tabelas_de_Flexas!U$14^2))/(8*C24) -> 2.443781629 | V24: =((Relat_Flechas!$D$12)*(Tabelas_de_Flexas!V$14^2))/(8*C24) -> 2.660904005 | W24: =((Relat_Flechas!$D$12)*(Tabelas_de_Flexas!W$14^2))/(8*C24) -> 2.88726563 | X24: =((Relat_Flechas!$D$12)*(Tabelas_de_Flexas!X$14^2))/(8*C24) -> 3.122866505 | Y24: =((Relat_Flechas!$D$12)*(Tabelas_de_Flexas!Y$14^2))/(8*C24) -> 3.367706631 | Z24: =((Relat_Flechas!$D$12)*(Tabelas_de_Flexas!Z$14^2))/(8*C24) -> 3.621786006 | AA24: =((Relat_Flechas!$D$12)*(Tabelas_de_Flexas!AA$14^2))/(8*C24) -> 3.885104632 | AB24: =((Relat_Flechas!$D$12)*(Tabelas_de_Flexas!AB$14^2))/(8*C24) -> 4.157662507 | AC24: =((Relat_Flechas!$D$12)*(Tabelas_de_Flexas!AC$14^2))/(8*C24) -> 4.439459633
B25: 45 | C25: =Relat_Flechas!H37 -> 306,31 | D25: =((Relat_Flechas!$D$12)*(Tabelas_de_Flexas!D$14^2))/(8*C25) -> 0.1727294244 | E25: =((Relat_Flechas!$D$12)*(Tabelas_de_Flexas!E$14^2))/(8*C25) -> 0.2351039388 | F25: =((Relat_Flechas!$D$12)*(Tabelas_de_Flexas!F$14^2))/(8*C25) -> 0.3070745323 | G25: =((Relat_Flechas!$D$12)*(Tabelas_de_Flexas!G$14^2))/(8*C25) -> 0.388641205 | H25: =((Relat_Flechas!$D$12)*(Tabelas_de_Flexas!H$14^2))/(8*C25) -> 0.4798039568 | I25: =((Relat_Flechas!$D$12)*(Tabelas_de_Flexas!I$14^2))/(8*C25) -> 0.5805627877 | J25: =((Relat_Flechas!$D$12)*(Tabelas_de_Flexas!J$14^2))/(8*C25) -> 0.6909176978 | K25: =((Relat_Flechas!$D$12)*(Tabelas_de_Flexas!K$14^2))/(8*C25) -> 0.810868687 | L25: =((Relat_Flechas!$D$12)*(Tabelas_de_Flexas!L$14^2))/(8*C25) -> 0.9404157553 | M25: =((Relat_Flechas!$D$12)*(Tabelas_de_Flexas!M$14^2))/(8*C25) -> 1.079558903 | N25: =((Relat_Flechas!$D$12)*(Tabelas_de_Flexas!N$14^2))/(8*C25) -> 1.228298129 | O25: =((Relat_Flechas!$D$12)*(Tabelas_de_Flexas!O$14^2))/(8*C25) -> 1.386633435 | P25: =((Relat_Flechas!$D$12)*(Tabelas_de_Flexas!P$14^2))/(8*C25) -> 1.55456482 | Q25: =((Relat_Flechas!$D$12)*(Tabelas_de_Flexas!Q$14^2))/(8*C25) -> 1.732092284 | R25: =((Relat_Flechas!$D$12)*(Tabelas_de_Flexas!R$14^2))/(8*C25) -> 1.919215827 | S25: =((Relat_Flechas!$D$12)*(Tabelas_de_Flexas!S$14^2))/(8*C25) -> 2.115935449 | T25: =((Relat_Flechas!$D$12)*(Tabelas_de_Flexas!T$14^2))/(8*C25) -> 2.322251151 | U25: =((Relat_Flechas!$D$12)*(Tabelas_de_Flexas!U$14^2))/(8*C25) -> 2.538162931 | V25: =((Relat_Flechas!$D$12)*(Tabelas_de_Flexas!V$14^2))/(8*C25) -> 2.763670791 | W25: =((Relat_Flechas!$D$12)*(Tabelas_de_Flexas!W$14^2))/(8*C25) -> 2.99877473 | X25: =((Relat_Flechas!$D$12)*(Tabelas_de_Flexas!X$14^2))/(8*C25) -> 3.243474748 | Y25: =((Relat_Flechas!$D$12)*(Tabelas_de_Flexas!Y$14^2))/(8*C25) -> 3.497770845 | Z25: =((Relat_Flechas!$D$12)*(Tabelas_de_Flexas!Z$14^2))/(8*C25) -> 3.761663021 | AA25: =((Relat_Flechas!$D$12)*(Tabelas_de_Flexas!AA$14^2))/(8*C25) -> 4.035151276 | AB25: =((Relat_Flechas!$D$12)*(Tabelas_de_Flexas!AB$14^2))/(8*C25) -> 4.318235611 | AC25: =((Relat_Flechas!$D$12)*(Tabelas_de_Flexas!AC$14^2))/(8*C25) -> 4.610916025
B26: 50 | C26: =Relat_Flechas!H38 -> 295,60 | D26: =((Relat_Flechas!$D$12)*(Tabelas_de_Flexas!D$14^2))/(8*C26) -> 0.1789876522 | E26: =((Relat_Flechas!$D$12)*(Tabelas_de_Flexas!E$14^2))/(8*C26) -> 0.2436220822 | F26: =((Relat_Flechas!$D$12)*(Tabelas_de_Flexas!F$14^2))/(8*C26) -> 0.3182002706 | G26: =((Relat_Flechas!$D$12)*(Tabelas_de_Flexas!G$14^2))/(8*C26) -> 0.4027222175 | H26: =((Relat_Flechas!$D$12)*(Tabelas_de_Flexas!H$14^2))/(8*C26) -> 0.4971879229 | I26: =((Relat_Flechas!$D$12)*(Tabelas_de_Flexas!I$14^2))/(8*C26) -> 0.6015973867 | J26: =((Relat_Flechas!$D$12)*(Tabelas_de_Flexas!J$14^2))/(8*C26) -> 0.7159506089 | K26: =((Relat_Flechas!$D$12)*(Tabelas_de_Flexas!K$14^2))/(8*C26) -> 0.8402475896 | L26: =((Relat_Flechas!$D$12)*(Tabelas_de_Flexas!L$14^2))/(8*C26) -> 0.9744883288 | M26: =((Relat_Flechas!$D$12)*(Tabelas_de_Flexas!M$14^2))/(8*C26) -> 1.118672826 | N26: =((Relat_Flechas!$D$12)*(Tabelas_de_Flexas!N$14^2))/(8*C26) -> 1.272801083 | O26: =((Relat_Flechas!$D$12)*(Tabelas_de_Flexas!O$14^2))/(8*C26) -> 1.436873097 | P26: =((Relat_Flechas!$D$12)*(Tabelas_de_Flexas!P$14^2))/(8*C26) -> 1.61088887 | Q26: =((Relat_Flechas!$D$12)*(Tabelas_de_Flexas!Q$14^2))/(8*C26) -> 1.794848402 | R26: =((Relat_Flechas!$D$12)*(Tabelas_de_Flexas!R$14^2))/(8*C26) -> 1.988751691 | S26: =((Relat_Flechas!$D$12)*(Tabelas_de_Flexas!S$14^2))/(8*C26) -> 2.19259874 | T26: =((Relat_Flechas!$D$12)*(Tabelas_de_Flexas!T$14^2))/(8*C26) -> 2.406389547 | U26: =((Relat_Flechas!$D$12)*(Tabelas_de_Flexas!U$14^2))/(8*C26) -> 2.630124112 | V26: =((Relat_Flechas!$D$12)*(Tabelas_de_Flexas!V$14^2))/(8*C26) -> 2.863802436 | W26: =((Relat_Flechas!$D$12)*(Tabelas_de_Flexas!W$14^2))/(8*C26) -> 3.107424518 | X26: =((Relat_Flechas!$D$12)*(Tabelas_de_Flexas!X$14^2))/(8*C26) -> 3.360990359 | Y26: =((Relat_Flechas!$D$12)*(Tabelas_de_Flexas!Y$14^2))/(8*C26) -> 3.624499958 | Z26: =((Relat_Flechas!$D$12)*(Tabelas_de_Flexas!Z$14^2))/(8*C26) -> 3.897953315 | AA26: =((Relat_Flechas!$D$12)*(Tabelas_de_Flexas!AA$14^2))/(8*C26) -> 4.181350431 | AB26: =((Relat_Flechas!$D$12)*(Tabelas_de_Flexas!AB$14^2))/(8*C26) -> 4.474691306 | AC26: =((Relat_Flechas!$D$12)*(Tabelas_de_Flexas!AC$14^2))/(8*C26) -> 4.777975939
B30: =VLOOKUP(Relat_Flechas!A12,Caracteristica_CABO!A:AH,31,FALSE)&" - Vão básico "&Relat_Flechas!C15&" m" -> Cabo de Alumínio - CA 336,4 AWG - Vão básico 120 m
B31: Temp º | C31: Tração daN | D31: 160 | E31: 165 | F31: 170 | G31: 175 | H31: 180 | I31: 185 | J31: 190 | K31: 195 | L31: 200 | M31: 205 | N31: 210 | O31: 215 | P31: 220 | Q31: 225 | R31: 230 | S31: 235 | T31: 240 | U31: 245 | V31: 250 | W31: 255 | X31: 260 | Y31: 265 | Z31: 270
B32: -5 | C32: =C15 -> 524,46 | D32: =((Relat_Flechas!$D$12)*(Tabelas_de_Flexas!D$31^2))/(8*C32) -> 2.869542005 | E32: =((Relat_Flechas!$D$12)*(Tabelas_de_Flexas!E$31^2))/(8*C32) -> 3.051690668 | F32: =((Relat_Flechas!$D$12)*(Tabelas_de_Flexas!F$31^2))/(8*C32) -> 3.239443904 | G32: =((Relat_Flechas!$D$12)*(Tabelas_de_Flexas!G$31^2))/(8*C32) -> 3.432801715 | H32: =((Relat_Flechas!$D$12)*(Tabelas_de_Flexas!H$31^2))/(8*C32) -> 3.6317641 | I32: =((Relat_Flechas!$D$12)*(Tabelas_de_Flexas!I$31^2))/(8*C32) -> 3.83633106 | J32: =((Relat_Flechas!$D$12)*(Tabelas_de_Flexas!J$31^2))/(8*C32) -> 4.046502593 | K32: =((Relat_Flechas!$D$12)*(Tabelas_de_Flexas!K$31^2))/(8*C32) -> 4.262278701 | L32: =((Relat_Flechas!$D$12)*(Tabelas_de_Flexas!L$31^2))/(8*C32) -> 4.483659383 | M32: =((Relat_Flechas!$D$12)*(Tabelas_de_Flexas!M$31^2))/(8*C32) -> 4.710644639 | N32: =((Relat_Flechas!$D$12)*(Tabelas_de_Flexas!N$31^2))/(8*C32) -> 4.94323447 | O32: =((Relat_Flechas!$D$12)*(Tabelas_de_Flexas!O$31^2))/(8*C32) -> 5.181428874 | P32: =((Relat_Flechas!$D$12)*(Tabelas_de_Flexas!P$31^2))/(8*C32) -> 5.425227853 | Q32: =((Relat_Flechas!$D$12)*(Tabelas_de_Flexas!Q$31^2))/(8*C32) -> 5.674631407 | R32: =((Relat_Flechas!$D$12)*(Tabelas_de_Flexas!R$31^2))/(8*C32) -> 5.929639534 | S32: =((Relat_Flechas!$D$12)*(Tabelas_de_Flexas!S$31^2))/(8*C32) -> 6.190252236 | T32: =((Relat_Flechas!$D$12)*(Tabelas_de_Flexas!T$31^2))/(8*C32) -> 6.456469511 | U32: =((Relat_Flechas!$D$12)*(Tabelas_de_Flexas!U$31^2))/(8*C32) -> 6.728291362 | V32: =((Relat_Flechas!$D$12)*(Tabelas_de_Flexas!V$31^2))/(8*C32) -> 7.005717786 | W32: =((Relat_Flechas!$D$12)*(Tabelas_de_Flexas!W$31^2))/(8*C32) -> 7.288748784 | X32: =((Relat_Flechas!$D$12)*(Tabelas_de_Flexas!X$31^2))/(8*C32) -> 7.577384357 | Y32: =((Relat_Flechas!$D$12)*(Tabelas_de_Flexas!Y$31^2))/(8*C32) -> 7.871624504 | Z32: =((Relat_Flechas!$D$12)*(Tabelas_de_Flexas!Z$31^2))/(8*C32) -> 8.171469225
B33: 0 | C33: =C16 -> 486,90 | D33: =((Relat_Flechas!$D$12)*(Tabelas_de_Flexas!D$31^2))/(8*C33) -> 3.090901623 | E33: =((Relat_Flechas!$D$12)*(Tabelas_de_Flexas!E$31^2))/(8*C33) -> 3.287101433 | F33: =((Relat_Flechas!$D$12)*(Tabelas_de_Flexas!F$31^2))/(8*C33) -> 3.48933816 | G33: =((Relat_Flechas!$D$12)*(Tabelas_de_Flexas!G$31^2))/(8*C33) -> 3.697611804 | H33: =((Relat_Flechas!$D$12)*(Tabelas_de_Flexas!H$31^2))/(8*C33) -> 3.911922366 | I33: =((Relat_Flechas!$D$12)*(Tabelas_de_Flexas!I$31^2))/(8*C33) -> 4.132269845 | J33: =((Relat_Flechas!$D$12)*(Tabelas_de_Flexas!J$31^2))/(8*C33) -> 4.358654241 | K33: =((Relat_Flechas!$D$12)*(Tabelas_de_Flexas!K$31^2))/(8*C33) -> 4.591075555 | L33: =((Relat_Flechas!$D$12)*(Tabelas_de_Flexas!L$31^2))/(8*C33) -> 4.829533785 | M33: =((Relat_Flechas!$D$12)*(Tabelas_de_Flexas!M$31^2))/(8*C33) -> 5.074028933 | N33: =((Relat_Flechas!$D$12)*(Tabelas_de_Flexas!N$31^2))/(8*C33) -> 5.324560998 | O33: =((Relat_Flechas!$D$12)*(Tabelas_de_Flexas!O$31^2))/(8*C33) -> 5.58112998 | P33: =((Relat_Flechas!$D$12)*(Tabelas_de_Flexas!P$31^2))/(8*C33) -> 5.84373588 | Q33: =((Relat_Flechas!$D$12)*(Tabelas_de_Flexas!Q$31^2))/(8*C33) -> 6.112378697 | R33: =((Relat_Flechas!$D$12)*(Tabelas_de_Flexas!R$31^2))/(8*C33) -> 6.387058431 | S33: =((Relat_Flechas!$D$12)*(Tabelas_de_Flexas!S$31^2))/(8*C33) -> 6.667775082 | T33: =((Relat_Flechas!$D$12)*(Tabelas_de_Flexas!T$31^2))/(8*C33) -> 6.954528651 | U33: =((Relat_Flechas!$D$12)*(Tabelas_de_Flexas!U$31^2))/(8*C33) -> 7.247319136 | V33: =((Relat_Flechas!$D$12)*(Tabelas_de_Flexas!V$31^2))/(8*C33) -> 7.546146539 | W33: =((Relat_Flechas!$D$12)*(Tabelas_de_Flexas!W$31^2))/(8*C33) -> 7.85101086 | X33: =((Relat_Flechas!$D$12)*(Tabelas_de_Flexas!X$31^2))/(8*C33) -> 8.161912097 | Y33: =((Relat_Flechas!$D$12)*(Tabelas_de_Flexas!Y$31^2))/(8*C33) -> 8.478850252 | Z33: =((Relat_Flechas!$D$12)*(Tabelas_de_Flexas!Z$31^2))/(8*C33) -> 8.801825323
B34: 5 | C34: 454,54 | D34: =((Relat_Flechas!$D$12)*(Tabelas_de_Flexas!D$31^2))/(8*C34) -> 3.310951731 | E34: =((Relat_Flechas!$D$12)*(Tabelas_de_Flexas!E$31^2))/(8*C34) -> 3.521119566 | F34: =((Relat_Flechas!$D$12)*(Tabelas_de_Flexas!F$31^2))/(8*C34) -> 3.737754103 | G34: =((Relat_Flechas!$D$12)*(Tabelas_de_Flexas!G$31^2))/(8*C34) -> 3.960855343 | H34: =((Relat_Flechas!$D$12)*(Tabelas_de_Flexas!H$31^2))/(8*C34) -> 4.190423285 | I34: =((Relat_Flechas!$D$12)*(Tabelas_de_Flexas!I$31^2))/(8*C34) -> 4.42645793 | J34: =((Relat_Flechas!$D$12)*(Tabelas_de_Flexas!J$31^2))/(8*C34) -> 4.668959278 | K34: =((Relat_Flechas!$D$12)*(Tabelas_de_Flexas!K$31^2))/(8*C34) -> 4.917927328 | L34: =((Relat_Flechas!$D$12)*(Tabelas_de_Flexas!L$31^2))/(8*C34) -> 5.17336208 | M34: =((Relat_Flechas!$D$12)*(Tabelas_de_Flexas!M$31^2))/(8*C34) -> 5.435263536 | N34: =((Relat_Flechas!$D$12)*(Tabelas_de_Flexas!N$31^2))/(8*C34) -> 5.703631694 | O34: =((Relat_Flechas!$D$12)*(Tabelas_de_Flexas!O$31^2))/(8*C34) -> 5.978466554 | P34: =((Relat_Flechas!$D$12)*(Tabelas_de_Flexas!P$31^2))/(8*C34) -> 6.259768117 | Q34: =((Relat_Flechas!$D$12)*(Tabelas_de_Flexas!Q$31^2))/(8*C34) -> 6.547536383 | R34: =((Relat_Flechas!$D$12)*(Tabelas_de_Flexas!R$31^2))/(8*C34) -> 6.841771351 | S34: =((Relat_Flechas!$D$12)*(Tabelas_de_Flexas!S$31^2))/(8*C34) -> 7.142473022 | T34: =((Relat_Flechas!$D$12)*(Tabelas_de_Flexas!T$31^2))/(8*C34) -> 7.449641396 | U34: =((Relat_Flechas!$D$12)*(Tabelas_de_Flexas!U$31^2))/(8*C34) -> 7.763276472 | V34: =((Relat_Flechas!$D$12)*(Tabelas_de_Flexas!V$31^2))/(8*C34) -> 8.083378251 | W34: =((Relat_Flechas!$D$12)*(Tabelas_de_Flexas!W$31^2))/(8*C34) -> 8.409946732 | X34: =((Relat_Flechas!$D$12)*(Tabelas_de_Flexas!X$31^2))/(8*C34) -> 8.742981916 | Y34: =((Relat_Flechas!$D$12)*(Tabelas_de_Flexas!Y$31^2))/(8*C34) -> 9.082483802 | Z34: =((Relat_Flechas!$D$12)*(Tabelas_de_Flexas!Z$31^2))/(8*C34) -> 9.428452391
B35: 10 | C35: 426,57 | D35: =((Relat_Flechas!$D$12)*(Tabelas_de_Flexas!D$31^2))/(8*C35) -> 3.528049324 | E35: =((Relat_Flechas!$D$12)*(Tabelas_de_Flexas!E$31^2))/(8*C35) -> 3.751997767 | F35: =((Relat_Flechas!$D$12)*(Tabelas_de_Flexas!F$31^2))/(8*C35) -> 3.982836932 | G35: =((Relat_Flechas!$D$12)*(Tabelas_de_Flexas!G$31^2))/(8*C35) -> 4.220566818 | H35: =((Relat_Flechas!$D$12)*(Tabelas_de_Flexas!H$31^2))/(8*C35) -> 4.465187425 | I35: =((Relat_Flechas!$D$12)*(Tabelas_de_Flexas!I$31^2))/(8*C35) -> 4.716698754 | J35: =((Relat_Flechas!$D$12)*(Tabelas_de_Flexas!J$31^2))/(8*C35) -> 4.975100804 | K35: =((Relat_Flechas!$D$12)*(Tabelas_de_Flexas!K$31^2))/(8*C35) -> 5.240393575 | L35: =((Relat_Flechas!$D$12)*(Tabelas_de_Flexas!L$31^2))/(8*C35) -> 5.512577068 | M35: =((Relat_Flechas!$D$12)*(Tabelas_de_Flexas!M$31^2))/(8*C35) -> 5.791651282 | N35: =((Relat_Flechas!$D$12)*(Tabelas_de_Flexas!N$31^2))/(8*C35) -> 6.077616218 | O35: =((Relat_Flechas!$D$12)*(Tabelas_de_Flexas!O$31^2))/(8*C35) -> 6.370471874 | P35: =((Relat_Flechas!$D$12)*(Tabelas_de_Flexas!P$31^2))/(8*C35) -> 6.670218253 | Q35: =((Relat_Flechas!$D$12)*(Tabelas_de_Flexas!Q$31^2))/(8*C35) -> 6.976855352 | R35: =((Relat_Flechas!$D$12)*(Tabelas_de_Flexas!R$31^2))/(8*C35) -> 7.290383173 | S35: =((Relat_Flechas!$D$12)*(Tabelas_de_Flexas!S$31^2))/(8*C35) -> 7.610801715 | T35: =((Relat_Flechas!$D$12)*(Tabelas_de_Flexas!T$31^2))/(8*C35) -> 7.938110978 | U35: =((Relat_Flechas!$D$12)*(Tabelas_de_Flexas!U$31^2))/(8*C35) -> 8.272310963 | V35: =((Relat_Flechas!$D$12)*(Tabelas_de_Flexas!V$31^2))/(8*C35) -> 8.613401669 | W35: =((Relat_Flechas!$D$12)*(Tabelas_de_Flexas!W$31^2))/(8*C35) -> 8.961383097 | X35: =((Relat_Flechas!$D$12)*(Tabelas_de_Flexas!X$31^2))/(8*C35) -> 9.316255245 | Y35: =((Relat_Flechas!$D$12)*(Tabelas_de_Flexas!Y$31^2))/(8*C35) -> 9.678018115 | Z35: =((Relat_Flechas!$D$12)*(Tabelas_de_Flexas!Z$31^2))/(8*C35) -> 10.04667171
B36: 15 | C36: 402,29 | D36: =((Relat_Flechas!$D$12)*(Tabelas_de_Flexas!D$31^2))/(8*C36) -> 3.740982873 | E36: =((Relat_Flechas!$D$12)*(Tabelas_de_Flexas!E$31^2))/(8*C36) -> 3.978447606 | F36: =((Relat_Flechas!$D$12)*(Tabelas_de_Flexas!F$31^2))/(8*C36) -> 4.223218947 | G36: =((Relat_Flechas!$D$12)*(Tabelas_de_Flexas!G$31^2))/(8*C36) -> 4.475296894 | H36: =((Relat_Flechas!$D$12)*(Tabelas_de_Flexas!H$31^2))/(8*C36) -> 4.734681449 | I36: =((Relat_Flechas!$D$12)*(Tabelas_de_Flexas!I$31^2))/(8*C36) -> 5.001372611 | J36: =((Relat_Flechas!$D$12)*(Tabelas_de_Flexas!J$31^2))/(8*C36) -> 5.27537038 | K36: =((Relat_Flechas!$D$12)*(Tabelas_de_Flexas!K$31^2))/(8*C36) -> 5.556674756 | L36: =((Relat_Flechas!$D$12)*(Tabelas_de_Flexas!L$31^2))/(8*C36) -> 5.845285739 | M36: =((Relat_Flechas!$D$12)*(Tabelas_de_Flexas!M$31^2))/(8*C36) -> 6.14120333 | N36: =((Relat_Flechas!$D$12)*(Tabelas_de_Flexas!N$31^2))/(8*C36) -> 6.444427527 | O36: =((Relat_Flechas!$D$12)*(Tabelas_de_Flexas!O$31^2))/(8*C36) -> 6.754958332 | P36: =((Relat_Flechas!$D$12)*(Tabelas_de_Flexas!P$31^2))/(8*C36) -> 7.072795744 | Q36: =((Relat_Flechas!$D$12)*(Tabelas_de_Flexas!Q$31^2))/(8*C36) -> 7.397939764 | R36: =((Relat_Flechas!$D$12)*(Tabelas_de_Flexas!R$31^2))/(8*C36) -> 7.73039039 | S36: =((Relat_Flechas!$D$12)*(Tabelas_de_Flexas!S$31^2))/(8*C36) -> 8.070147624 | T36: =((Relat_Flechas!$D$12)*(Tabelas_de_Flexas!T$31^2))/(8*C36) -> 8.417211464 | U36: =((Relat_Flechas!$D$12)*(Tabelas_de_Flexas!U$31^2))/(8*C36) -> 8.771581912 | V36: =((Relat_Flechas!$D$12)*(Tabelas_de_Flexas!V$31^2))/(8*C36) -> 9.133258967 | W36: =((Relat_Flechas!$D$12)*(Tabelas_de_Flexas!W$31^2))/(8*C36) -> 9.50224263 | X36: =((Relat_Flechas!$D$12)*(Tabelas_de_Flexas!X$31^2))/(8*C36) -> 9.878532899 | Y36: =((Relat_Flechas!$D$12)*(Tabelas_de_Flexas!Y$31^2))/(8*C36) -> 10.26212978 | Z36: =((Relat_Flechas!$D$12)*(Tabelas_de_Flexas!Z$31^2))/(8*C36) -> 10.65303326
B37: 20 | C37: 381,08 | D37: =((Relat_Flechas!$D$12)*(Tabelas_de_Flexas!D$31^2))/(8*C37) -> 3.949197019 | E37: =((Relat_Flechas!$D$12)*(Tabelas_de_Flexas!E$31^2))/(8*C37) -> 4.19987847 | F37: =((Relat_Flechas!$D$12)*(Tabelas_de_Flexas!F$31^2))/(8*C37) -> 4.458273197 | G37: =((Relat_Flechas!$D$12)*(Tabelas_de_Flexas!G$31^2))/(8*C37) -> 4.724381199 | H37: =((Relat_Flechas!$D$12)*(Tabelas_de_Flexas!H$31^2))/(8*C37) -> 4.998202477 | I37: =((Relat_Flechas!$D$12)*(Tabelas_de_Flexas!I$31^2))/(8*C37) -> 5.27973703 | J37: =((Relat_Flechas!$D$12)*(Tabelas_de_Flexas!J$31^2))/(8*C37) -> 5.568984859 | K37: =((Relat_Flechas!$D$12)*(Tabelas_de_Flexas!K$31^2))/(8*C37) -> 5.865945963 | L37: =((Relat_Flechas!$D$12)*(Tabelas_de_Flexas!L$31^2))/(8*C37) -> 6.170620342 | M37: =((Relat_Flechas!$D$12)*(Tabelas_de_Flexas!M$31^2))/(8*C37) -> 6.483007997 | N37: =((Relat_Flechas!$D$12)*(Tabelas_de_Flexas!N$31^2))/(8*C37) -> 6.803108927 | O37: =((Relat_Flechas!$D$12)*(Tabelas_de_Flexas!O$31^2))/(8*C37) -> 7.130923133 | P37: =((Relat_Flechas!$D$12)*(Tabelas_de_Flexas!P$31^2))/(8*C37) -> 7.466450614 | Q37: =((Relat_Flechas!$D$12)*(Tabelas_de_Flexas!Q$31^2))/(8*C37) -> 7.809691371 | R37: =((Relat_Flechas!$D$12)*(Tabelas_de_Flexas!R$31^2))/(8*C37) -> 8.160645403 | S37: =((Relat_Flechas!$D$12)*(Tabelas_de_Flexas!S$31^2))/(8*C37) -> 8.51931271 | T37: =((Relat_Flechas!$D$12)*(Tabelas_de_Flexas!T$31^2))/(8*C37) -> 8.885693293 | U37: =((Relat_Flechas!$D$12)*(Tabelas_de_Flexas!U$31^2))/(8*C37) -> 9.259787151 | V37: =((Relat_Flechas!$D$12)*(Tabelas_de_Flexas!V$31^2))/(8*C37) -> 9.641594285 | W37: =((Relat_Flechas!$D$12)*(Tabelas_de_Flexas!W$31^2))/(8*C37) -> 10.03111469 | X37: =((Relat_Flechas!$D$12)*(Tabelas_de_Flexas!X$31^2))/(8*C37) -> 10.42834838 | Y37: =((Relat_Flechas!$D$12)*(Tabelas_de_Flexas!Y$31^2))/(8*C37) -> 10.83329534 | Z37: =((Relat_Flechas!$D$12)*(Tabelas_de_Flexas!Z$31^2))/(8*C37) -> 11.24595557
B38: 25 | C38: 362,44 | D38: =((Relat_Flechas!$D$12)*(Tabelas_de_Flexas!D$31^2))/(8*C38) -> 4.152301071 | E38: =((Relat_Flechas!$D$12)*(Tabelas_de_Flexas!E$31^2))/(8*C38) -> 4.415874869 | F38: =((Relat_Flechas!$D$12)*(Tabelas_de_Flexas!F$31^2))/(8*C38) -> 4.68755863 | G38: =((Relat_Flechas!$D$12)*(Tabelas_de_Flexas!G$31^2))/(8*C38) -> 4.967352355 | H38: =((Relat_Flechas!$D$12)*(Tabelas_de_Flexas!H$31^2))/(8*C38) -> 5.255256042 | I38: =((Relat_Flechas!$D$12)*(Tabelas_de_Flexas!I$31^2))/(8*C38) -> 5.551269693 | J38: =((Relat_Flechas!$D$12)*(Tabelas_de_Flexas!J$31^2))/(8*C38) -> 5.855393306 | K38: =((Relat_Flechas!$D$12)*(Tabelas_de_Flexas!K$31^2))/(8*C38) -> 6.167626883 | L38: =((Relat_Flechas!$D$12)*(Tabelas_de_Flexas!L$31^2))/(8*C38) -> 6.487970423 | M38: =((Relat_Flechas!$D$12)*(Tabelas_de_Flexas!M$31^2))/(8*C38) -> 6.816423925 | N38: =((Relat_Flechas!$D$12)*(Tabelas_de_Flexas!N$31^2))/(8*C38) -> 7.152987391 | O38: =((Relat_Flechas!$D$12)*(Tabelas_de_Flexas!O$31^2))/(8*C38) -> 7.49766082 | P38: =((Relat_Flechas!$D$12)*(Tabelas_de_Flexas!P$31^2))/(8*C38) -> 7.850444211 | Q38: =((Relat_Flechas!$D$12)*(Tabelas_de_Flexas!Q$31^2))/(8*C38) -> 8.211337566 | R38: =((Relat_Flechas!$D$12)*(Tabelas_de_Flexas!R$31^2))/(8*C38) -> 8.580340884 | S38: =((Relat_Flechas!$D$12)*(Tabelas_de_Flexas!S$31^2))/(8*C38) -> 8.957454165 | T38: =((Relat_Flechas!$D$12)*(Tabelas_de_Flexas!T$31^2))/(8*C38) -> 9.342677409 | U38: =((Relat_Flechas!$D$12)*(Tabelas_de_Flexas!U$31^2))/(8*C38) -> 9.736010616 | V38: =((Relat_Flechas!$D$12)*(Tabelas_de_Flexas!V$31^2))/(8*C38) -> 10.13745379 | W38: =((Relat_Flechas!$D$12)*(Tabelas_de_Flexas!W$31^2))/(8*C38) -> 10.54700692 | X38: =((Relat_Flechas!$D$12)*(Tabelas_de_Flexas!X$31^2))/(8*C38) -> 10.96467001 | Y38: =((Relat_Flechas!$D$12)*(Tabelas_de_Flexas!Y$31^2))/(8*C38) -> 11.39044307 | Z38: =((Relat_Flechas!$D$12)*(Tabelas_de_Flexas!Z$31^2))/(8*C38) -> 11.8243261
B39: 30 | C39: 345,96 | D39: =((Relat_Flechas!$D$12)*(Tabelas_de_Flexas!D$31^2))/(8*C39) -> 4.350098277 | E39: =((Relat_Flechas!$D$12)*(Tabelas_de_Flexas!E$31^2))/(8*C39) -> 4.626227562 | F39: =((Relat_Flechas!$D$12)*(Tabelas_de_Flexas!F$31^2))/(8*C39) -> 4.910853133 | G39: =((Relat_Flechas!$D$12)*(Tabelas_de_Flexas!G$31^2))/(8*C39) -> 5.20397499 | H39: =((Relat_Flechas!$D$12)*(Tabelas_de_Flexas!H$31^2))/(8*C39) -> 5.505593132 | I39: =((Relat_Flechas!$D$12)*(Tabelas_de_Flexas!I$31^2))/(8*C39) -> 5.81570756 | J39: =((Relat_Flechas!$D$12)*(Tabelas_de_Flexas!J$31^2))/(8*C39) -> 6.134318274 | K39: =((Relat_Flechas!$D$12)*(Tabelas_de_Flexas!K$31^2))/(8*C39) -> 6.461425273 | L39: =((Relat_Flechas!$D$12)*(Tabelas_de_Flexas!L$31^2))/(8*C39) -> 6.797028558 | M39: =((Relat_Flechas!$D$12)*(Tabelas_de_Flexas!M$31^2))/(8*C39) -> 7.141128129 | N39: =((Relat_Flechas!$D$12)*(Tabelas_de_Flexas!N$31^2))/(8*C39) -> 7.493723985 | O39: =((Relat_Flechas!$D$12)*(Tabelas_de_Flexas!O$31^2))/(8*C39) -> 7.854816128 | P39: =((Relat_Flechas!$D$12)*(Tabelas_de_Flexas!P$31^2))/(8*C39) -> 8.224404555 | Q39: =((Relat_Flechas!$D$12)*(Tabelas_de_Flexas!Q$31^2))/(8*C39) -> 8.602489269 | R39: =((Relat_Flechas!$D$12)*(Tabelas_de_Flexas!R$31^2))/(8*C39) -> 8.989070268 | S39: =((Relat_Flechas!$D$12)*(Tabelas_de_Flexas!S$31^2))/(8*C39) -> 9.384147553 | T39: =((Relat_Flechas!$D$12)*(Tabelas_de_Flexas!T$31^2))/(8*C39) -> 9.787721124 | U39: =((Relat_Flechas!$D$12)*(Tabelas_de_Flexas!U$31^2))/(8*C39) -> 10.19979098 | V39: =((Relat_Flechas!$D$12)*(Tabelas_de_Flexas!V$31^2))/(8*C39) -> 10.62035712 | W39: =((Relat_Flechas!$D$12)*(Tabelas_de_Flexas!W$31^2))/(8*C39) -> 11.04941955 | X39: =((Relat_Flechas!$D$12)*(Tabelas_de_Flexas!X$31^2))/(8*C39) -> 11.48697826 | Y39: =((Relat_Flechas!$D$12)*(Tabelas_de_Flexas!Y$31^2))/(8*C39) -> 11.93303326 | Z39: =((Relat_Flechas!$D$12)*(Tabelas_de_Flexas!Z$31^2))/(8*C39) -> 12.38758455
B40: 35 | C40: 331,28 | D40: =((Relat_Flechas!$D$12)*(Tabelas_de_Flexas!D$31^2))/(8*C40) -> 4.542864043 | E40: =((Relat_Flechas!$D$12)*(Tabelas_de_Flexas!E$31^2))/(8*C40) -> 4.831229436 | F40: =((Relat_Flechas!$D$12)*(Tabelas_de_Flexas!F$31^2))/(8*C40) -> 5.12846761 | G40: =((Relat_Flechas!$D$12)*(Tabelas_de_Flexas!G$31^2))/(8*C40) -> 5.434578566 | H40: =((Relat_Flechas!$D$12)*(Tabelas_de_Flexas!H$31^2))/(8*C40) -> 5.749562304 | I40: =((Relat_Flechas!$D$12)*(Tabelas_de_Flexas!I$31^2))/(8*C40) -> 6.073418822 | J40: =((Relat_Flechas!$D$12)*(Tabelas_de_Flexas!J$31^2))/(8*C40) -> 6.406148122 | K40: =((Relat_Flechas!$D$12)*(Tabelas_de_Flexas!K$31^2))/(8*C40) -> 6.747750204 | L40: =((Relat_Flechas!$D$12)*(Tabelas_de_Flexas!L$31^2))/(8*C40) -> 7.098225066 | M40: =((Relat_Flechas!$D$12)*(Tabelas_de_Flexas!M$31^2))/(8*C40) -> 7.45757271 | N40: =((Relat_Flechas!$D$12)*(Tabelas_de_Flexas!N$31^2))/(8*C40) -> 7.825793136 | O40: =((Relat_Flechas!$D$12)*(Tabelas_de_Flexas!O$31^2))/(8*C40) -> 8.202886342 | P40: =((Relat_Flechas!$D$12)*(Tabelas_de_Flexas!P$31^2))/(8*C40) -> 8.58885233 | Q40: =((Relat_Flechas!$D$12)*(Tabelas_de_Flexas!Q$31^2))/(8*C40) -> 8.9836911 | R40: =((Relat_Flechas!$D$12)*(Tabelas_de_Flexas!R$31^2))/(8*C40) -> 9.38740265 | S40: =((Relat_Flechas!$D$12)*(Tabelas_de_Flexas!S$31^2))/(8*C40) -> 9.799986982 | T40: =((Relat_Flechas!$D$12)*(Tabelas_de_Flexas!T$31^2))/(8*C40) -> 10.2214441 | U40: =((Relat_Flechas!$D$12)*(Tabelas_de_Flexas!U$31^2))/(8*C40) -> 10.65177399 | V40: =((Relat_Flechas!$D$12)*(Tabelas_de_Flexas!V$31^2))/(8*C40) -> 11.09097667 | W40: =((Relat_Flechas!$D$12)*(Tabelas_de_Flexas!W$31^2))/(8*C40) -> 11.53905212 | X40: =((Relat_Flechas!$D$12)*(Tabelas_de_Flexas!X$31^2))/(8*C40) -> 11.99600036 | Y40: =((Relat_Flechas!$D$12)*(Tabelas_de_Flexas!Y$31^2))/(8*C40) -> 12.46182138 | Z40: =((Relat_Flechas!$D$12)*(Tabelas_de_Flexas!Z$31^2))/(8*C40) -> 12.93651518
B41: 40 | C41: 318,14 | D41: =((Relat_Flechas!$D$12)*(Tabelas_de_Flexas!D$31^2))/(8*C41) -> 4.730496008 | E41: =((Relat_Flechas!$D$12)*(Tabelas_de_Flexas!E$31^2))/(8*C41) -> 5.030771634 | F41: =((Relat_Flechas!$D$12)*(Tabelas_de_Flexas!F$31^2))/(8*C41) -> 5.340286509 | G41: =((Relat_Flechas!$D$12)*(Tabelas_de_Flexas!G$31^2))/(8*C41) -> 5.659040635 | H41: =((Relat_Flechas!$D$12)*(Tabelas_de_Flexas!H$31^2))/(8*C41) -> 5.98703401 | I41: =((Relat_Flechas!$D$12)*(Tabelas_de_Flexas!I$31^2))/(8*C41) -> 6.324266636 | J41: =((Relat_Flechas!$D$12)*(Tabelas_de_Flexas!J$31^2))/(8*C41) -> 6.670738511 | K41: =((Relat_Flechas!$D$12)*(Tabelas_de_Flexas!K$31^2))/(8*C41) -> 7.026449637 | L41: =((Relat_Flechas!$D$12)*(Tabelas_de_Flexas!L$31^2))/(8*C41) -> 7.391400013 | M41: =((Relat_Flechas!$D$12)*(Tabelas_de_Flexas!M$31^2))/(8*C41) -> 7.765589638 | N41: =((Relat_Flechas!$D$12)*(Tabelas_de_Flexas!N$31^2))/(8*C41) -> 8.149018514 | O41: =((Relat_Flechas!$D$12)*(Tabelas_de_Flexas!O$31^2))/(8*C41) -> 8.54168664 | P41: =((Relat_Flechas!$D$12)*(Tabelas_de_Flexas!P$31^2))/(8*C41) -> 8.943594015 | Q41: =((Relat_Flechas!$D$12)*(Tabelas_de_Flexas!Q$31^2))/(8*C41) -> 9.354740641 | R41: =((Relat_Flechas!$D$12)*(Tabelas_de_Flexas!R$31^2))/(8*C41) -> 9.775126517 | S41: =((Relat_Flechas!$D$12)*(Tabelas_de_Flexas!S$31^2))/(8*C41) -> 10.20475164 | T41: =((Relat_Flechas!$D$12)*(Tabelas_de_Flexas!T$31^2))/(8*C41) -> 10.64361602 | U41: =((Relat_Flechas!$D$12)*(Tabelas_de_Flexas!U$31^2))/(8*C41) -> 11.09171964 | V41: =((Relat_Flechas!$D$12)*(Tabelas_de_Flexas!V$31^2))/(8*C41) -> 11.54906252 | W41: =((Relat_Flechas!$D$12)*(Tabelas_de_Flexas!W$31^2))/(8*C41) -> 12.01564465 | X41: =((Relat_Flechas!$D$12)*(Tabelas_de_Flexas!X$31^2))/(8*C41) -> 12.49146602 | Y41: =((Relat_Flechas!$D$12)*(Tabelas_de_Flexas!Y$31^2))/(8*C41) -> 12.97652665 | Z41: =((Relat_Flechas!$D$12)*(Tabelas_de_Flexas!Z$31^2))/(8*C41) -> 13.47082652
B42: 45 | C42: 306,31 | D42: =((Relat_Flechas!$D$12)*(Tabelas_de_Flexas!D$31^2))/(8*C42) -> 4.913192517 | E42: =((Relat_Flechas!$D$12)*(Tabelas_de_Flexas!E$31^2))/(8*C42) -> 5.225065089 | F42: =((Relat_Flechas!$D$12)*(Tabelas_de_Flexas!F$31^2))/(8*C42) -> 5.54653374 | G42: =((Relat_Flechas!$D$12)*(Tabelas_de_Flexas!G$31^2))/(8*C42) -> 5.877598471 | H42: =((Relat_Flechas!$D$12)*(Tabelas_de_Flexas!H$31^2))/(8*C42) -> 6.21825928 | I42: =((Relat_Flechas!$D$12)*(Tabelas_de_Flexas!I$31^2))/(8*C42) -> 6.568516168 | J42: =((Relat_Flechas!$D$12)*(Tabelas_de_Flexas!J$31^2))/(8*C42) -> 6.928369136 | K42: =((Relat_Flechas!$D$12)*(Tabelas_de_Flexas!K$31^2))/(8*C42) -> 7.297818183 | L42: =((Relat_Flechas!$D$12)*(Tabelas_de_Flexas!L$31^2))/(8*C42) -> 7.676863308 | M42: =((Relat_Flechas!$D$12)*(Tabelas_de_Flexas!M$31^2))/(8*C42) -> 8.065504513 | N42: =((Relat_Flechas!$D$12)*(Tabelas_de_Flexas!N$31^2))/(8*C42) -> 8.463741798 | O42: =((Relat_Flechas!$D$12)*(Tabelas_de_Flexas!O$31^2))/(8*C42) -> 8.871575161 | P42: =((Relat_Flechas!$D$12)*(Tabelas_de_Flexas!P$31^2))/(8*C42) -> 9.289004603 | Q42: =((Relat_Flechas!$D$12)*(Tabelas_de_Flexas!Q$31^2))/(8*C42) -> 9.716030125 | R42: =((Relat_Flechas!$D$12)*(Tabelas_de_Flexas!R$31^2))/(8*C42) -> 10.15265173 | S42: =((Relat_Flechas!$D$12)*(Tabelas_de_Flexas!S$31^2))/(8*C42) -> 10.59886941 | T42: =((Relat_Flechas!$D$12)*(Tabelas_de_Flexas!T$31^2))/(8*C42) -> 11.05468316 | U42: =((Relat_Flechas!$D$12)*(Tabelas_de_Flexas!U$31^2))/(8*C42) -> 11.520093 | V42: =((Relat_Flechas!$D$12)*(Tabelas_de_Flexas!V$31^2))/(8*C42) -> 11.99509892 | W42: =((Relat_Flechas!$D$12)*(Tabelas_de_Flexas!W$31^2))/(8*C42) -> 12.47970092 | X42: =((Relat_Flechas!$D$12)*(Tabelas_de_Flexas!X$31^2))/(8*C42) -> 12.97389899 | Y42: =((Relat_Flechas!$D$12)*(Tabelas_de_Flexas!Y$31^2))/(8*C42) -> 13.47769315 | Z42: =((Relat_Flechas!$D$12)*(Tabelas_de_Flexas!Z$31^2))/(8*C42) -> 13.99108338
B43: 50 | C43: 295,60 | D43: =((Relat_Flechas!$D$12)*(Tabelas_de_Flexas!D$31^2))/(8*C43) -> 5.09120433 | E43: =((Relat_Flechas!$D$12)*(Tabelas_de_Flexas!E$31^2))/(8*C43) -> 5.41437648 | F43: =((Relat_Flechas!$D$12)*(Tabelas_de_Flexas!F$31^2))/(8*C43) -> 5.747492388 | G43: =((Relat_Flechas!$D$12)*(Tabelas_de_Flexas!G$31^2))/(8*C43) -> 6.090552055 | H43: =((Relat_Flechas!$D$12)*(Tabelas_de_Flexas!H$31^2))/(8*C43) -> 6.44355548 | I43: =((Relat_Flechas!$D$12)*(Tabelas_de_Flexas!I$31^2))/(8*C43) -> 6.806502664 | J43: =((Relat_Flechas!$D$12)*(Tabelas_de_Flexas!J$31^2))/(8*C43) -> 7.179393606 | K43: =((Relat_Flechas!$D$12)*(Tabelas_de_Flexas!K$31^2))/(8*C43) -> 7.562228307 | L43: =((Relat_Flechas!$D$12)*(Tabelas_de_Flexas!L$31^2))/(8*C43) -> 7.955006766 | M43: =((Relat_Flechas!$D$12)*(Tabelas_de_Flexas!M$31^2))/(8*C43) -> 8.357728983 | N43: =((Relat_Flechas!$D$12)*(Tabelas_de_Flexas!N$31^2))/(8*C43) -> 8.770394959 | O43: =((Relat_Flechas!$D$12)*(Tabelas_de_Flexas!O$31^2))/(8*C43) -> 9.193004694 | P43: =((Relat_Flechas!$D$12)*(Tabelas_de_Flexas!P$31^2))/(8*C43) -> 9.625558187 | Q43: =((Relat_Flechas!$D$12)*(Tabelas_de_Flexas!Q$31^2))/(8*C43) -> 10.06805544 | R43: =((Relat_Flechas!$D$12)*(Tabelas_de_Flexas!R$31^2))/(8*C43) -> 10.52049645 | S43: =((Relat_Flechas!$D$12)*(Tabelas_de_Flexas!S$31^2))/(8*C43) -> 10.98288122 | T43: =((Relat_Flechas!$D$12)*(Tabelas_de_Flexas!T$31^2))/(8*C43) -> 11.45520974 | U43: =((Relat_Flechas!$D$12)*(Tabelas_de_Flexas!U$31^2))/(8*C43) -> 11.93748203 | V43: =((Relat_Flechas!$D$12)*(Tabelas_de_Flexas!V$31^2))/(8*C43) -> 12.42969807 | W43: =((Relat_Flechas!$D$12)*(Tabelas_de_Flexas!W$31^2))/(8*C43) -> 12.93185787 | X43: =((Relat_Flechas!$D$12)*(Tabelas_de_Flexas!X$31^2))/(8*C43) -> 13.44396143 | Y43: =((Relat_Flechas!$D$12)*(Tabelas_de_Flexas!Y$31^2))/(8*C43) -> 13.96600875 | Z43: =((Relat_Flechas!$D$12)*(Tabelas_de_Flexas!Z$31^2))/(8*C43) -> 14.49799983

Sheet Tabela_Esforco
A2: Vão básico para redes nuas CA | B2: 40
A3: Vão básico para redes nuas CAA | B3: 40 | C3: 60 | D3: 80 | E3: 100 | F3: 120
A4: Vão básico para redes Protegidas | B4: 35 | C4: 50
M7: Telefonia | V7: estai de âncora
A8: Condutor | B8: Distância do Vão | M8: pares | N8: peso | O8: peso-tabela | P8: flecha-40º | Q8: posição no poste | S8: tração | V8: mm2 | W8: a : | X8: =Padroes!$S$20 -> 1.5 | Y8: ângulo : | Z8: 45
B9: 35 | C9: 40 | D9: 50 | E9: 60 | F9: 70 | G9: 80 | H9: 100 | I9: 120 | M9: 0 | N9: 0 | O9: 0 | P9: 0 | Q9: calçada | R9: travessia | S9: VIVO/OI | T9: GVT | W9: Carga Nominal | Y9: Carga de Trabalho | Z9: Carga Admiss´vel no Topo
A10: 4 CAA | C10: 207 | E10: 207 | G10: 209 | H10: 312 | I10: 330 | M10: 10 | N10: 0.087 | O10: 0.2 | P10: 0.2 | Q10: 4.7 | R10: 5.2 | S10: 385 | T10: 393 | V10: =Padroes!R17 -> 6.35 | W10: =Padroes!S17 -> 2150 | X10: ea1 | Y10: =W10/$X$8 -> 1433.333333 | Z10: =SIN(Z$8*3.1416/ 180)*Y10 -> 1013.521581
A11: 2 CAA | C11: 317 | E11: 317 | G11: 316 | H11: 315 | I11: 470 | M11: 20 | N11: 0.125 | O11: 0.2 | P11: 0.2 | Q11: 4.7 | R11: 5.2 | S11: 385 | T11: 393 | V11: =Padroes!R18 -> 7.94 | W11: =Padroes!S18 -> 3620 | X11: ea2 | Y11: =W11/$X$8 -> 2413.333333 | Z11: =SIN(Z$8*3.1416/ 180)*Y11 -> 1706.487499 | AA11: ea2+ea2 | AB11: =(SIN(Z$8*3.1416/ 180)*Y11) + SIN((Z$8-15)*3.1416/ 180)*Y11 -> 2913.156725 | AC11: <--------'=2*Z11*COS(30*3,1416/180)
A12: 1/0 CAA | C12: 492 | E12: 488 | G12: 484 | H12: 479 | I12: 474 | M12: 30 | N12: 0.163 | O12: 0.2 | P12: 0.2 | Q12: 4.7 | R12: 5.2 | S12: 385 | T12: 405 | V12: =Padroes!R19 -> 9.53 | W12: =Padroes!S19 -> 4900 | X12: ea3 | Y12: =W12/$X$8 -> 3266.666667 | Z12: =SIN(Z$8*3.1416/ 180)*Y12 -> 2309.886394 | AA12: ea3+ea3 | AB12: =(SIN(Z$8*3.1416/ 180)*Y12) + SIN((Z$8-15)*3.1416/ 180)*Y12 -> 3943.223191 | AC12: =2*Z12*COS(30*3,1416/180)
A13: 2/0 CAA | C13: 588 | E13: 588 | G13: 580 | H13: 575 | I13: 569 | M13: 50 | N13: 0.235 | O13: 0.4 | P13: 0.3 | Q13: 4.8 | R13: 5.3 | S13: 379 | T13: 405 | V13: a : coeficiente de segurança
A14: 3/0 CAA | C14: 750 | E14: 741 | G14: 730 | H14: 718 | I14: 706 | M14: 75 | N14: 0.333 | O14: 0.4 | P14: 0.3 | Q14: 4.8 | R14: 5.3 | S14: 379 | T14: 421
A15: 4/0 CAA | C15: 945 | E15: 933 | G15: 918 | H15: 902 | I15: 885 | M15: 100 | N15: 0.422 | O15: 0.6 | P15: 0.35 | Q15: 4.85 | R15: 5.35 | S15: 397 | T15: 440
A16: 2/0 CAL -1120 HELIUM | C16: 505.14 | E16: 499.39 | G16: 492.38 | H16: 557.43 | I16: 554.37 | M16: 150 | N16: 0.605 | O16: 0.6 | P16: 0.35 | Q16: 4.85 | R16: 5.35 | S16: 397 | T16: 440
A17: 4/0 CAL-1120 (Diam. 247 MCM) | B17: 794,56 | C17: 791,78 | D17: 785,37 | E17: 778,13 | F17: 770,05 | G17: 761.14 | H17: 742,48 | I17: 723,82 | M17: 200 | N17: 0.789 | O17: 0.8 | P17: 0.4 | Q17: 4.9 | R17: 5.4 | S17: 417 | T17: 501 | V17: estai de poste a poste (EPP)
A18: 4/0 CAL-1120 (Cor. 220MCM) | B18: 707,83 | C18: 705,60 | D18: 700,39 | E18: 694,18 | F18: 687,24 | G18: 679.9 | H18: 664,16 | I18: 648,29 | M18: 300 | N18: 1.121 | O18: 1.2 | P18: 0.5 | Q18: 5 | R18: 5.5 | S18: 460 | T18: 545 | V18: mm2 | W18: a : | X18: =Padroes!$S$20 -> 1.5 | Y18: ângulo : | Z18: 10
A19: 336,4 CAA (LINNET) | C19: 1570 | E19: 1552.26 | G19: 1530 | H19: 1504 | I19: 1477 | M19: 400 | N19: 1.462 | O19: 1.4 | P19: 0.55 | Q19: 5.05 | R19: 5.55 | S19: 482 | T19: 787 | W19: Carga Nominal | Y19: Carga de Trabalho | Z19: Carga admissível no topo
A20: 336,4 CAL | C20: 865.45 | D20: 865.45 | E20: 865.91 | F20: 866.36 | G20: 866.82 | H20: 867.73 | I20: 869.09 | M20: 600 | N20: 2.133 | O20: 2 | P20: 0.7 | Q20: 5.2 | R20: 5.7 | S20: 546 | T20: 850 | V20: =Padroes!R17 -> 6.35 | W20: =Padroes!S17 -> 2150 | X20: epp1 | Y20: =W20/X$18 -> 1433.333333 | Z20: =COS(Z$18*3.1416/ 180)*Y20 -> 1411.557678
A21: 336,4 CAA (MERLIN) | C21: 1058,05 | E21: 1029,20 | G21: 995.05 | H21: 959.76 | I21: 927.12 | M21: 24 | N21: 119 | S21: 120 | T21: 120 | V21: =Padroes!R18 -> 7.94 | W21: =Padroes!S18 -> 3620 | X21: epp2 | Y21: =W21/X$18 -> 2413.333333 | Z21: =COS(Z$18*3.1416/ 180)*Y21 -> 2376.669206
A22: 336,4 CAA (ORIOLE) | C22: 1838,11 | E22: 1824,10 | G22: 1942.39 | H22: 1784.41 | I22: 1761,07 | M22: 18-36FO (80m) | N22: 95 | S22: 15 | T22: 15 | V22: =Padroes!R19 -> 9.53 | W22: =Padroes!S19 -> 4900 | X22: epp3 | Y22: =W22/X$18 -> 3266.666667 | Z22: 3217.038428
A23: CAZ 3,09 | C23: 443,22 | E23: 286,49 | G23: 286,81 | H23: 287.35 | I23: 287.89 | M23: 18-36FO (120m) | N23: 111 | S23: 25 | T23: 25 | V23: a : coeficiente de segurança
A24: CAZ 4,17 | C24: 443,22 | E24: 443,55 | G24: 444.22 | H24: 444.89 | I24: 445.72 | M24: 18-36FO (200m) | N24: 113 | S24: 35 | T24: 35
A25: 4 CA | C25: 116,22 | D25: 145,86 | E25: 145,86 | F25: 146.06 | G25: 141.26 | H25: 148,12 | I25: 152,92 | M25: 2-12FO(80m) | N25: 80 | S25: 9.6 | T25: 9.6 | V25: estai de cruzeta a poste (ECP)em Y e V
A26: 2 CA | C26: 178,08 | D26: 177,66 | E26: 223,43 | F26: 227.32 | G26: 226.96 | H26: 227,02 | I26: 152,92 | M26: 2-12FO(120m) | N26: 110 | S26: 19.8 | T26: 19.8 | V26: mm2 | W26: a : | X26: =Padroes!$S$20 -> 1.5 | Y26: ângulo : | Z26: 10
A27: 1/0 CA | C27: 265,89 | D27: 263,07 | E27: 259,98 | F27: 330,02 | G27: 329,23 | H27: 330,11 | I27: 341,65 | M27: 2-12FO(200m) | N27: 112 | S27: 33.6 | T27: 33.6 | W27: Carga Nominal | Y27: Carga de Trabalho | Z27: Carga admissível no topo
A28: 2/0 CA | C28: 340,45 | E28: 333,04 | G28: 427,35 | H28: 433,28 | I28: 426,33 | M28: 2-12FO(DROP80) | N28: 43 | S28: 5.16 | T28: 5.16 | V28: =Padroes!R17 -> 6.35 | W28: =Padroes!S17 -> 2150 | X28: ecpy1 | Y28: =W28/X$26 -> 1433.333333 | Z28: 1411.557678
A29: 3/0 CA | C29: 407,23 | D29: 400,24 | E29: 392,58 | F29: 384,52 | G29: 376,59 | H29: 508,84 | I29: 501,18 | M29: 4-12FO(DROP80) | N29: 43 | S29: 6 | T29: 6 | V29: =Padroes!R18 -> 7.94 | W29: =Padroes!S18 -> 3620 | X29: ecpy2 | Y29: 2413.333333 | Z29: 2376.669206
A30: 4/0 CA | C30: 512,53 | D30: 502,86 | E30: 492,18 | F30: 481,16 | G30: 470,13 | H30: 627,18 | I30: 647,02 | M30: 1-2FO(DROP80) | N30: 20 | S30: 6 | T30: =(N30/1000)*80*1.5 -> 2.4 | V30: =Padroes!R19 -> 9.53 | W30: =Padroes!S19 -> 4900 | X30: ecpy3 | Y30: 3266.666667 | Z30: 3217.038428
A31: 336,4 CA | C31: 876.21 | E31: 887.37 | G31: 862,60 | H31: 625,79 | I31: 570,80 | V31: =Padroes!R17 -> 6.35 | W31: =Padroes!S17 -> 2150 | X31: ecpv1 | Y31: 1433.333333 | Z31: 2860
A32: 1#35 - 15 kV | B32: 14,71 | C32: 14,71 | D32: 14.62 | E32: 14.62 | F32: 0 | G32: 0 | H32: 0 | I32: 0 | V32: =Padroes!R18 -> 7.94 | W32: =Padroes!S18 -> 3620 | X32: ecpv2 | Y32: 2413.333333 | Z32: 4820
A33: 1#50 - 15 kV | B33: 15.45 | C33: 15.45 | D33: 19.76 | E33: 19.76 | F33: 0 | G33: 0 | H33: 0 | I33: 0 | V33: =Padroes!R19 -> 9.53 | W33: =Padroes!S19 -> 4900 | X33: ecpv3 | Y33: 3266.666667 | Z33: 6320
A34: 1#70 - 15 kV | B34: 21,62 | C34: 21,62 | D34: 25,71 | E34: 25,71 | F34: 0 | G34: 0 | H34: 0 | I34: 0 | V34: a : coeficiente de segurança
A35: 1#95 - 15 kV | B35: 29,33 | C35: 29,33 | D35: 29,21 | E35: 29,21 | F35: 0 | G35: 0 | H35: 0 | I35: 0
A36: 1#120 - 15 kV | B36: 37,23 | C36: 37,23 | D36: 36,91 | E36: 36,91 | F36: 0 | G36: 0 | H36: 0 | I36: 0
A37: 1#150 - 15 kV | B37: 46.52 | C37: 46.52 | D37: 46.12 | E37: 46.12 | F37: 0 | G37: 0 | H37: 0 | I37: 0
A38: 1#185 - 15 kV | B38: 57,62 | C38: 57,62 | D38: 57,13 | E38: 57,13 | F38: 0 | G38: 0 | H38: 0 | I38: 0
A39: 1#35 - 25 kV | B39: 14,20 | C39: 14,20 | D39: 14.15 | E39: 14.15 | F39: 0 | G39: 0 | H39: 0 | I39: 0
A40: 1#50 - 25 kV | B40: 19.36 | C40: 19.36 | D40: 19,76 | E40: 19,76 | F40: 0 | G40: 0 | H40: 0 | I40: 0
A41: 1#70 - 25 kV | B41: 21,53 | C41: 21,53 | D41: 25,43 | E41: 25,43 | F41: 0 | G41: 0 | H41: 0 | I41: 0
A42: 1#95 - 25 kV | B42: 29.33 | C42: 29.33 | D42: 29,21 | E42: 29,21 | F42: 0 | G42: 0 | H42: 0 | I42: 0
A43: 1#120 - 25 kV | B43: 37,23 | C43: 37,23 | D43: 36,91 | E43: 36,91 | F43: 0 | G43: 0 | H43: 0 | I43: 0
A44: 1#150 - 25 kV | B44: 46.12 | C44: 46.12 | D44: 45.92 | E44: 45.92 | F44: 0 | G44: 0 | H44: 0 | I44: 0
A45: 1#185 - 25 kV | B45: 57,62 | C45: 57,62 | D45: 57,13 | E45: 57,13 | F45: 0 | G45: 0 | H45: 0 | I45: 0
A46: 1#35 - 15 kV-conv | B46: 68.86 | C46: 62.36 | D46: 48.3 | E46: 52.43 | F46: 0 | G46: 49.6 | H46: 0 | I46: 0
I53: '
A69: 1#35(35CAL)CA-XLPE | B69: 117,07 | C69: 101 | D69: 142,36 | E69: 150.79
A70: 1#50(50CAL)CA-XLPE | B70: 158,59 | C70: 137 | D70: 192,37 | E70: 203.52
A71: 2#35(35CAL)CA-XLPE | B71: 131,00 | C71: 145.42 | D71: 174,62 | E71: 180.37
A72: 2#50(50CAL)CA-XLPE | B72: 178,92 | C72: 198.44 | D72: 237,80 | E72: 244
A73: 3#35(35CAL)CA-XLPE | B73: 153,97 | C73: 165.83 | D73: 170,84 | E73: 162.4
A74: 3#50(50CAL)CA-XLPE | B74: 210,58 | C74: 226.32 | D74: 231,90 | E74: 219.43
A75: 3#70(70CAL)CA-XLPE | B75: 315.16 | C75: 333.16 | D75: 301.27 | E75: 286.96
A76: 3#95(70CAL)CA-XLPE | B76: 306,91 | C76: 293.9 | D76: 280,45 | E76: 273.94
A77: 3#120(70CAL)CA-XLPE | B77: 293.9 | C77: 285.01 | D77: 275.46 | E77: 270.47
A99: 3#35mm² (9,53) 15kV | B99: =241+(14.71*3) -> 285.13 | D99: =241+(14.62*3) -> 284.86
A100: 3#50mm² (9,53) 15kV | B100: =241+(15.45*3) -> 287.35 | D100: =241+(19.76*3) -> 300.28
A101: 3#95mm² (9,53) 15kV | B101: =241+(29.33*3) -> 328.99 | D101: =241+(29.21*3) -> 328.63
A102: 3#120mm² (9,53) 15kV | B102: =241+(37.23*3) -> 352.69 | D102: =241+(36.91*3) -> 351.73
A103: 3#150mm² (9,53) 15kV | B103: =241+(46.52*3) -> 380.56 | D103: =241+(46.12*3) -> 379.36
A104: 3#185mm² (9,53) 15kV | B104: =241+(57.62*3) -> 413.86 | D104: =241+(57.13*3) -> 412.39
A105: 3#240mm² (9,53) 15kV | B105: =241+(75.73*3) -> 468.19 | C105: =241+(75.1*3) -> 466.3 | D105: =241+(74.46*3) -> 464.38
A106: 3#35mm² (9,53) 25kV | B106: =241+(14.2*3) -> 283.6 | D106: =241+(14.15*3) -> 283.45
A107: 3#50mm² (9,53) 25kV | B107: =241+(19.36*3) -> 299.08 | D107: =241+(19.76*3) -> 300.28
A108: 3#70mm² (9,53) 25kV | B108: =241+(21.62*3) -> 305.86 | D108: =241+(25.71*3) -> 318.13
A109: 3#95mm² (9,53) 25kV | B109: =241+(29.33*3) -> 328.99 | D109: =241+(29.21*3) -> 328.63
A110: 3#120mm² (9,53) 25kV | B110: =241+(37.33*3) -> 352.99 | D110: =241+(39.91*3) -> 360.73
A111: 3#150mm² (9,53) 25kV | B111: =241+(46.12*3) -> 379.36 | D111: =241+(45.92*3) -> 378.76
A112: 3#185mm² (9,53) 25kV | B112: =241+(57.62*3) -> 413.86 | D112: =241+(57.13*3) -> 412.39
A113: 1#35 - 15 kV | B113: 14,71 | D113: 14.62
A114: 1#50 - 15 kV | B114: 15.45 | D114: 19.76
A115: 1#70 - 15 kV | B115: 21,62 | D115: 25,71
A116: 1#95 - 15 kV | B116: 29,33 | D116: 29,21
A117: 1#120 - 15 kV | B117: 37,23 | D117: 36,91
A118: 1#150 - 15 kV | B118: 46.52 | D118: 46.12
A119: 1#185 - 15 kV | B119: 57,62 | D119: 57,13
A120: 1#35 - 25 kV | B120: 14,20 | D120: 14.15
A121: 1#50 - 25 kV | B121: 19.36 | D121: 19,76
A122: 1#70 - 25 kV | B122: 21,53 | D122: 25,43
A123: 1#95 - 25 kV | B123: 29.33 | D123: 29,21
A124: 1#120 - 25 kV | B124: 37,23 | D124: 36,91
A125: 1#150 - 25 kV | B125: 46.12 | D125: 45.92
A126: 1#185 - 25 kV | B126: 57,62 | D126: 57,13

Sheet Padroes
A1: 1 | B1: 2 | C1: 3 | D1: 4 | E1: 5 | F1: 6 | G1: 7 | H1: 8 | I1: 9 | J1: 10 | K1: 11 | L1: 12 | M1: 13 | N1: 14 | O1: 15 | P1: 16 | Q1: 17 | R1: 18 | S1: 19 | T1: 20 | U1: 21 | V1: 22 | W1: 23 | X1: 24 | Y1: 25 | Z1: 26 | AA1: 27 | AB1: 28 | AC1: 29 | AD1: 30 | AE1: 31 | AF1: 32 | AG1: 33 | AH1: 34 | AI1: 35 | AJ1: 36 | AK1: 37 | AL1: 38 | AM1: 39 | AN1: 40 | AO1: 41 | AP1: 42 | AQ1: 43 | AR1: 44 | AS1: 45 | AT1: 46 | AU1: 47
B7: CARACTERÍSTICA DOS POSTES | G7: CARACTERÍSTICA DOS POSTES | R7: ESCORA DE SUBSOLO | AE7: Compres. do terreno | AH7: BASE CONCRETADA DT | AK7: BASE CONCRETADA CC
B8: Comprimento | C8: Carga Nominal | D8: Peso | E8: base | F8: tipo | G8: Comprimento | H8: Carga Nominal | I8: Peso | J8: base (dimensão) | L8: diagonal (para o cálculo da Base concretada | R8: comprimento - c | S8: 1 | V8: MADEIRA | AE8: Banhado | AF8: 1000 | AH8: altura do 9 m | AI8: 0.6 | AK8: altura do 9 m | AL8: 0.6 | AN8: TRANSFORMADORES | AT8: Cruzetas | AX8: Resist. A flexão no Centro (daN
B9: CONCRETO TRONCO CÕNICO | G9: CONCRETO DUPLO T | J9: Face A | K9: Face B | L9: (face A) | M9: (face B) | N9: tipo | R9: diâmetro (altura)- a | S9: 0.2 | V9: Comprimento | W9: Carga | X9: peso | Y9: base | Z9: Topo | AE9: Arenoso | AF9: 2000 | AH9: concreto-g 10 m | AI9: 0.65 | AK9: concreto-g 10 m | AL9: 0.65 | AN9: Potencia | AO9: X (m) | AP9: Y (m) | AQ9: Peso TR | AR9: Dist. TR | AT9: Tipo | AU9: Met. do próprio peso | AV9: Trabalho | AW9: máx. excep. | AX9: Rpup. Mín.
B10: 9 | C10: 150 | D10: 670 | E10: 0.32 | F10: C-14 | G10: 9 | H10: 150 | I10: 470 | J10: 0.264 | K10: 0.19 | L10: 0.625 | M10: 0.3252629705 | N10: D | P10: =SQRT(K10^2+J10^2) -> 0.3252629705 | Q10: =J10/K10 -> 1.389473684 | R10: profundidade - b | S10: 0.5 | V10: 9 | W10: 295 | X10: 210 | Y10: 0.22 | Z10: 0.15 | AE10: Rochoso | AF10: 3000 | AH10: 11 m | AI10: 0.7 | AK10: 11 m | AL10: 0.7 | AN10: 1-1-05 15kV | AO10: 0.8 | AP10: 1.2 | AQ10: 130 | AR10: 0.6 | AT10: Madeira | AU10: 9.5 | AV10: 200 | AW10: 280 | AX10: 600
C11: 200 | D11: 670 | E11: 0.32 | F11: C-14 | H11: 200 | I11: 470 | J11: 0.264 | K11: 0.19 | L11: 0.625 | M11: 0.3252629705 | N11: D | P11: =SQRT(K11^2+J11^2) -> 0.3252629705 | V11: 10 | W11: 255 | X11: 230 | Y11: 0.23 | Z11: 0.15 | AE11: Solo A | AF11: 1600 | AH11: 12 m | AI11: 0.75 | AK11: 12 m | AL11: 0.75 | AN11: 1-1-10 15kV | AO11: 0.8 | AP11: 1.2 | AQ11: 150 | AR11: 0.6 | AT11: Concreto Tipo T | AU11: 25 | AV11: 400 | AW11: 560 | AX11: 800
C12: 300 | D12: 820 | E12: 0.35 | F12: C-17 | H12: 300 | I12: 750 | J12: 0.392 | K12: 0.29 | L12: 0.787 | M12: 0.4876105003 | N12: B | P12: 0.4876105003 | V12: 11 | W12: 300 | X12: 300 | Y12: 0.24 | Z12: 0.15 | AE12: Solo B | AF12: 1400 | AH12: 13 m | AI12: 0.8 | AK12: 13 m | AL12: 0.8 | AN12: 1-1-15 15kV | AO12: 0.8 | AP12: 1.2 | AQ12: 200 | AR12: 0.6 | AT12: Concreto retangular | AU12: 28 | AV12: 400 | AW12: 560 | AX12: 800
C13: 400 | D13: 820 | E13: 0.35 | F13: C-17 | H13: 400 | I13: 750 | J13: 0.392 | K13: 0.29 | L13: 0.787 | M13: 0.4876105003 | N13: B | P13: 0.4876105003 | R13: CORDOALHA DO ESTAI | V13: 12 | W13: 265 | X13: 325 | Y13: 0.24 | Z13: 0.15 | AH13: diâmetro da 200 | AI13: 0.66 | AK13: diâmetro da 200 | AL13: 0.6 | AN13: 1-1-25 15kV | AO13: 0.8 | AP13: 1.2 | AQ13: 260 | AR13: 0.6 | AT13: Aço Tubular | AU13: 26.7 | AV13: 400 | AW13: 560 | AX13: 800
C14: 600 | D14: 1000 | E14: 0.37 | F14: C-19 | H14: 600 | I14: 750 | J14: 0.392 | K14: 0.29 | L14: 0.787 | M14: 0.4876105003 | N14: B | P14: 0.4876105003 | V14: 13 | W14: 230 | X14: 370 | Y14: 0.25 | Z14: 0.15 | AH14: vala - f 300 | AI14: 0.9 | AK14: 300 | AL14: 0.7 | AN14: 1-2-05 15kV | AO14: 0.8 | AP14: 1.2 | AQ14: 130 | AR14: 0.6
C15: 1000 | D15: 1160 | E15: 0.41 | F15: C-23 | H15: 1000 | I15: 1026 | J15: 0.434 | K15: 0.32 | L15: 0.868 | M15: 0.5392179522 | N15: B-1,5 | O15: =L15/J15 -> 2 | P15: 0.5392179522 | AH15: 400 | AI15: 0.9 | AK15: vala - f 400 | AL15: 0.7 | AN15: 1-2-10 15kV | AO15: 0.8 | AP15: 1.2 | AQ15: 150 | AR15: 0.6
P16: 0 | R16: f (mm2) | S16: Carga Ruptura | AH16: 600 | AI16: 0.9 | AK16: 600 | AL16: 0.9 | AN16: 1-2-15 15kV | AO16: 0.8 | AP16: 1.2 | AQ16: 200 | AR16: 0.6
P17: 0 | R17: 6.35 | S17: 2150 | AH17: 1000 | AI17: 1.1 | AK17: 1000 | AL17: 1.3 | AN17: 1-3-15 15kV | AO17: 1.3 | AP17: 1.3 | AQ17: 280 | AR17: 0.6
B18: 10 | C18: 150 | D18: 750 | E18: 0.34 | F18: C-14 | P18: 0 | R18: 7.94 | S18: 3620 | AE18: Ângulo Montagem | AF18: 45 | AH18: 1500 | AI18: 1.95 | AK18: 1500 | AL18: 1.6 | AN18: 1-3-30 15kV | AO18: 1.3 | AP18: 1.3 | AQ18: 402 | AR18: 0.6
C19: 300 | D19: 910 | E19: 0.37 | F19: C-17 | G19: 10 | H19: 150 | I19: 550 | J19: 0.28 | K19: 0.2 | L19: 0.663 | M19: 0.3440930107 | N19: D | P19: 0.3440930107 | Q19: =L19/M19 -> 1.926804612 | R19: 9.53 | S19: 4900 | AE19: TERRENO | AH19: 2000 | AI19: 1.95 | AK19: 2000 | AL19: 1.6 | AN19: 1-3-45 15kV | AO19: 1.3 | AP19: 1.3 | AQ19: 500 | AR19: 0.6
C20: 400 | D20: 910 | E20: 0.37 | F20: C-17 | H20: 200 | I20: 550 | J20: 0.28 | K20: 0.2 | L20: 0.663 | M20: 0.3440930107 | N20: B | P20: 0.3440930107 | Q20: =L20/M20 -> 1.926804612 | R20: Coef. segurança | S20: 1.5 | AE20: Coeficiente | AF20: 2000 | AH20: 2500 | AI20: 1.95 | AK20: 2500 | AL20: 1.8 | AN20: 1-3-75 15kV | AO20: 1.3 | AP20: 1.3 | AQ20: 550 | AR20: 0.6
C21: 600 | D21: 1090 | E21: 0.39 | F21: C-19 | H21: 300 | I21: 900 | J21: 0.42 | K21: 0.31 | L21: 0.856 | M21: 0.5220153254 | N21: B | P21: 0.5220153254 | Q21: 1.6397986 | AH21: 3000 | AI21: 1.95 | AK21: 3000 | AL21: 1.8 | AN21: 1-3-112,5 15kV | AO21: 1.3 | AP21: 1.3 | AQ21: 670 | AR21: 0.6
C22: 1000 | D22: 1350 | E22: 0.43 | F22: C-23 | H22: 400 | I22: 900 | J22: 0.42 | K22: 0.31 | L22: 0.856 | M22: 0.5220153254 | N22: B | P22: 0.5220153254 | Q22: 1.6397986 | AN22: 1-3-150 15kV | AO22: 1.3 | AP22: 1.3 | AQ22: 890 | AR22: 0.6
C23: 1500 | D23: 1900 | E23: 0.49 | F23: C-29 | H23: 600 | I23: 900 | J23: 0.42 | K23: 0.31 | L23: 0.856 | M23: 0.5220153254 | N23: B | P23: 0.5220153254 | Q23: =L23/M23 -> 1.6397986 | AK23: Constante | AL23: 1 | AN23: 1-3-225 15kV | AO23: 1.3 | AP23: 1.3 | AQ23: 920 | AR23: 0.65
H24: 1000 | I24: 1150 | J24: 0.462 | K24: 0.34 | L24: 0.856 | M24: 0.5736235699 | N24: B-1,5 | O24: =L24/J24 -> 1.852813853 | P24: 0.5736235699 | Q24: 1.49226783 | AN24: 1-3-300 15kV | AO24: 1.3 | AP24: 1.3 | AQ24: 1000 | AR24: 0.65
P25: 0 | Q25: =L25/M25 ->  | AN25: 1-1-05 25kV | AO25: 0.8 | AP25: 1.2 | AQ25: 130 | AR25: 0.6
B26: 11 | C26: 200 | D26: 870 | E26: 0.36 | F26: C-14 | P26: 0 | AN26: 1-1-10 25kV | AO26: 0.8 | AP26: 1.2 | AQ26: 150 | AR26: 0.6
C27: 300 | D27: 1030 | E27: 0.39 | F27: C-17 | P27: 0 | AN27: 1-1-15 25kV | AO27: 0.8 | AP27: 1.2 | AQ27: 200 | AR27: 0.6
C28: 400 | D28: 1030 | E28: 0.39 | F28: C-17 | G28: 11 | H28: 200 | I28: 680 | J28: 0.296 | K28: 0.21 | L28: 0.663 | M28: 0.363 | N28: D | P28: 0.3629269899 | Q28: 1.826446281 | AN28: 1-1-25 25kV | AO28: 0.8 | AP28: 1.2 | AQ28: 260 | AR28: 0.6
C29: 600 | D29: 1260 | E29: 0.41 | F29: C-19 | H29: 300 | I29: 1050 | J29: 0.448 | K29: 0.33 | L29: 0.856 | M29: 0.556 | N29: B | P29: 0.5564207041 | Q29: =L29/M29 -> 1.539568345 | AN29: 1-2-05 25kV | AO29: 0.8 | AP29: 1.2 | AQ29: 130 | AR29: 0.6
C30: 1000 | D30: 1600 | E30: 0.45 | F30: C-23 | H30: 400 | I30: 1050 | J30: 0.448 | K30: 0.33 | L30: 0.856 | M30: 0.556 | N30: B | P30: 0.5564207041 | Q30: 1.539568345 | AN30: 1-2-10 25kV | AO30: 0.8 | AP30: 1.2 | AQ30: 150 | AR30: 0.6
C31: 1500 | D31: 2100 | E31: 0.51 | F31: C-29 | H31: 600 | I31: 1050 | J31: 0.448 | K31: 0.33 | L31: 0.856 | M31: 0.556 | N31: B | P31: 0.5564207041 | Q31: 1.539568345 | AN31: 1-2-15 25kV | AO31: 0.8 | AP31: 1.2 | AQ31: 200 | AR31: 0.6
H32: 1000 | I32: 1330 | J32: 0.49 | K32: 0.36 | L32: 0.908 | M32: 0.608 | N32: B-1,5 | P32: 0.6080296045 | Q32: 1.493421053 | AN32: 1-3-15 25kV | AO32: 1.3 | AP32: 1.3 | AQ32: 280 | AR32: 0.6
P33: 0 | AN33: 1-3-30 25kV | AO33: 1.3 | AP33: 1.3 | AQ33: 402 | AR33: 0.6
B34: 12 | C34: 300 | D34: 1130 | E34: 0.41 | F34: C-17 | P34: 0 | AN34: 1-3-45 25kV | AO34: 1.3 | AP34: 1.3 | AQ34: 500 | AR34: 0.6
C35: 400 | D35: 1130 | E35: 0.41 | F35: C-17 | P35: 0 | AN35: 1-3-75 25kV | AO35: 1.3 | AP35: 1.3 | AQ35: 550 | AR35: 0.6
C36: 600 | D36: 1440 | E36: 0.43 | F36: C-19 | P36: 0 | AN36: 1-3-112,5 25kV | AO36: 1.3 | AP36: 1.3 | AQ36: 670 | AR36: 0.6
C37: 1000 | D37: 1770 | E37: 0.47 | F37: C-23 | G37: 12 | H37: 200 | I37: 780 | J37: 0.31 | K37: 0.23 | L37: 0.663 | M37: 0.386 | N37: D | P37: 0.3860051813 | Q37: 1.71761658 | AN37: 1-3-150 25kV | AO37: 1.3 | AP37: 1.3 | AQ37: 890 | AR37: 0.6
C38: 1500 | D38: 2450 | E38: 0.53 | F38: C-29 | H38: 300 | I38: 1210 | J38: 0.476 | K38: 0.35 | L38: 0.89 | M38: 0.591 | N38: B | P38: 0.5908265397 | Q38: 1.505922166 | AN38: 1-3-225 25kV | AO38: 1.3 | AP38: 1.3 | AQ38: 920 | AR38: 0.65
C39: 2000 | D39: 3000 | E39: 0.57 | F39: C-33 | H39: 400 | I39: 1210 | J39: 0.476 | K39: 0.35 | L39: 0.89 | M39: 0.591 | N39: B | P39: 0.5908265397 | Q39: 1.505922166 | AN39: 1-3-300 25kV | AO39: 1.3 | AP39: 1.3 | AQ39: 1000 | AR39: 0.65
C40: 3000 | D40: 4150 | E40: 0.67 | F40: C-43 | H40: 600 | I40: 1210 | J40: 0.476 | K40: 0.35 | L40: 0.89 | M40: 0.591 | N40: B | P40: 0.5908265397 | Q40: 1.505922166
H41: 1000 | I41: 1520 | J41: 0.518 | K41: 0.38 | L41: 0.942 | M41: 0.642 | N41: B-1,5 | O41: =L41/J41 -> 1.818532819 | P41: 0.642435989 | Q41: 1.46728972
B42: 13 | C42: 300 | D42: 1280 | E42: 0.43 | F42: C-17 | H42: 2000 | I42: 2000 | J42: 0.602 | K42: 0.44 | L42: 1.045 | M42: 0.746 | N42: B-4,5 | O42: =L42/J42 -> 1.735880399 | P42: 0.7456567575 | Q42: 1.40080429
C43: 400 | D43: 1280 | E43: 0.43 | F43: C-17 | H43: 3000 | I43: 2500 | J43: 0.644 | K43: 0.47 | L43: 1.117906977 | M43: 0.7968636364 | N43: B-6 | P43: 0.7972678345 | Q43: 1.402883663
C44: 600 | D44: 1680 | E44: 0.45 | F44: C-19 | P44: 0
C45: 1000 | D45: 1920 | E45: 0.49 | F45: C-23 | P45: 0
C46: 1500 | D46: 2700 | E46: 0.55 | F46: C-29 | G46: 13 | H46: 300 | I46: 1400 | J46: 0.504 | K46: 0.37 | L46: 0.925 | M46: 0.625 | N46: B | P46: 0.6252327567
C47: 2000 | D47: 3500 | E47: 0.59 | F47: C-33 | H47: 400 | I47: 1400 | J47: 0.504 | K47: 0.37 | L47: 0.925 | M47: 0.625 | N47: B | P47: 0.6252327567
H48: 600 | I48: 1400 | J48: 0.504 | K48: 0.37 | L48: 0.925 | M48: 0.625 | N48: B | P48: 0.6252327567
P49: 0
P50: 0

Sheet Caracteristica_CABO
C3: 4/0 ca | D3: =0.00010725*1000 -> 0.10725
B4: =125.1/1000 -> 0.1251 | E4: =14.31/1000 -> 0.01431
O5: equação dos dois estados
A6: BITOLAS | B6: DIÂMETRO | C6: SEÇÃO | D6: PESO | E6: Mod. DA | G6: COEF. | H6: TRAÇÃO DE | I6: TRAÇÃO MÁXIMA DE | J6: TRAÇÃO MÁXIMA DE | K6: TRUP. EDS | L6: TRUP.EDS | M6: TRAÇÃO MÁXIMA DE RUP. | N6: TRAÇÃO MÁXIMA DE rup. | O6: Temperatura / velocidade deo vento | S6: temperatura / velocidade deo vento | W6: TEMP EDS | X6: TEMP .EDS | Y6: VENTO EDS | Z6: VENTO EDS | AA6: Encordoamento
E7: ELAST. | G7: DE DILAT. | H7: RUPTURA | I7: RUPT. Urbano | J7: RUPT. Rural | K7: Urbano | L7: Rural | M7: ancorado | N7: ancorado | O7: temp. urbano | P7: temp .urbano | Q7: vento urbana | R7: vento urbana | S7: temp. rural | T7: temp . Rural | U7: vento rural | V7: vento rural | W7: Urbano | X7: Rural | Y7: Urbano | Z7: Rural
B8: D (m) | C8: S (m²) | D8: P (kg/m) | E8: E (kg/mm²) | G8: F (°C-¹ x 10-6 | H8: T (kgf) | I8: continuo (%) | J8: continuo (%) | M8: Urbano | N8: Rural | O8: verão | P8: inverno | Q8: verão | R8: inverno | S8: verão | T8: inverno | U8: verão | V8: inverno
A9: Cabo | E9: inicial | F9: final
A10: 6 CAA | B10: 0.00504 | C10: 1.549e-05 | D10: 0.0536 | E10: 8000000000 | F10: 8000 | G10: 1.91e-05 | AB10: =RIGHT(A10,3) -> CAA | AC10: AWG | AD10: 6 | AE10: =VLOOKUP(AB10,Parametros!$E$44:$F$56,2,FALSE)&" "&AD10& " "&AC10 -> Cabo de Alumínio com Alma de Aço - CAA 6 AWG
A11: 4 CAA | B11: 0.00635 | C11: 2.466e-05 | D11: 0.0854 | E11: 8000000000 | F11: 8000 | G11: 1.91e-05 | H11: 829 | I11: 40 | J11: 40 | K11: 18 | L11: 18 | M11: 33.33 | N11: 33.33 | O11: 15 | P11: 0 | Q11: 60 | R11: 0 | S11: 15 | T11: -5 | U11: 130 | V11: 65 | W11: 20 | X11: 20 | AB11: =RIGHT(A11,3) -> CAA | AC11: AWG | AD11: 4 | AE11: =VLOOKUP(AB11,Parametros!$E$44:$F$56,2,FALSE)&" "&AD11& " "&AC11 -> Cabo de Alumínio com Alma de Aço - CAA 4 AWG
A12: 2 CAA | B12: 0.00802 | C12: 3.925e-05 | D12: 0.1359 | E12: 8000000000 | F12: 8000 | G12: 1.91e-05 | H12: 1263 | I12: 40 | J12: 40 | K12: 18 | L12: 18 | M12: 33.33 | N12: 33.33 | O12: 15 | P12: 0 | Q12: 60 | R12: 0 | S12: 15 | T12: -5 | U12: 130 | V12: 65 | W12: 20 | X12: 20 | AB12: CAA | AC12: AWG | AD12: 2 | AE12: =VLOOKUP(AB12,Parametros!$E$44:$F$56,2,FALSE)&" "&AD12& " "&AC12 -> Cabo de Alumínio com Alma de Aço - CAA 2 AWG
A13: 1/0 CAA | B13: 0.01011 | C13: 6.247e-05 | D13: 0.2163 | E13: 8000000000 | F13: 8000 | G13: 1.91e-05 | H13: 1949 | I13: 40 | J13: 40 | K13: 18 | L13: 18 | M13: 33.33 | N13: 33.33 | O13: 15 | P13: 0 | Q13: 60 | R13: 0 | S13: 15 | T13: -5 | U13: 130 | V13: 65 | W13: 20 | X13: 20 | AB13: CAA | AC13: AWG | AD13: 1/0 | AE13: =VLOOKUP(AB13,Parametros!$E$44:$F$56,2,FALSE)&" "&AD13& " "&AC13 -> Cabo de Alumínio com Alma de Aço - CAA 1/0 AWG
A14: 2/0 CAA | B14: 0.01134 | C14: 6.743e-05 | D14: 0.2721 | E14: 8000000000 | F14: 8000 | G14: 1.91e-05 | H14: 2425 | I14: 40 | J14: 40 | K14: 18 | L14: 18 | M14: 33.33 | N14: 33.33 | O14: 15 | P14: 0 | Q14: 60 | R14: 0 | S14: 15 | T14: -5 | U14: 130 | V14: 65 | W14: 20 | X14: 20 | AB14: CAA | AC14: AWG | AD14: 2/0 | AE14: =VLOOKUP(AB14,Parametros!$E$44:$F$56,2,FALSE)&" "&AD14& " "&AC14 -> Cabo de Alumínio com Alma de Aço - CAA 2/0 AWG
A15: 3/0 CAA | B15: 0.01274 | C15: 9.916e-05 | D15: 0.3434 | E15: 8000000000 | F15: 8000 | G15: 1.91e-05 | H15: 2945 | I15: 40 | J15: 40 | K15: 18 | L15: 18 | M15: 33.33 | N15: 33.33 | O15: 15 | P15: 0 | Q15: 60 | R15: 0 | S15: 15 | T15: -5 | U15: 130 | V15: 65 | W15: 20 | X15: 20 | AB15: CAA | AC15: AWG | AD15: 3/0 | AE15: =VLOOKUP(AB15,Parametros!$E$44:$F$56,2,FALSE)&" "&AD15& " "&AC15 -> Cabo de Alumínio com Alma de Aço - CAA 3/0 AWG | AG15: Dados das NBRs 7270 e 7271.
A16: 4/0 CAA | B16: 0.01431 | C16: 0.0001251 | D16: 0.4322 | E16: 8000000000 | F16: 8000 | G16: 1.91e-05 | H16: 3714 | I16: 40 | J16: 40 | K16: 18 | L16: 18 | M16: 33.33 | N16: 33.33 | O16: 15 | P16: 0 | Q16: 60 | R16: 0 | S16: 15 | T16: -5 | U16: 130 | V16: 65 | W16: 20 | X16: 20 | AB16: CAA | AC16: AWG | AD16: 4/0 | AE16: =VLOOKUP(AB16,Parametros!$E$44:$F$56,2,FALSE)&" "&AD16& " "&AC16 -> Cabo de Alumínio com Alma de Aço - CAA 4/0 AWG
A17: 336,4 CAA (LINNET) | B17: 0.01829 | C17: 0.00019803 | D17: 0.689 | E17: 8000000000 | F17: 8000 | G17: 1.89e-05 | H17: 6310 | I17: 40 | J17: 40 | K17: 18 | L17: 18 | M17: 33.33 | N17: 33.33 | O17: 15 | P17: 0 | Q17: 60 | R17: 0 | S17: 15 | T17: -5 | U17: 130 | V17: 65 | W17: 20 | X17: 20 | AB17: CAA | AC17: MCM | AD17: 336,4 (LINNET) | AE17: =VLOOKUP(AB17,Parametros!$E$44:$F$56,2,FALSE)&" "&AD17& " "&AC17 -> Cabo de Alumínio com Alma de Aço - CAA 336,4 (LINNET) MCM
A18: 336,4 CAL | B18: 0.01829 | C18: 0.0001999 | D18: 0.5494 | E18: 4800000000 | F18: 6628 | G18: 2.3e-05 | H18: 4555 | I18: 40 | J18: 40 | K18: 18 | L18: 18 | M18: 33.33 | N18: 33.33 | O18: 15 | P18: 0 | Q18: 60 | R18: 0 | S18: 15 | T18: -5 | U18: 130 | V18: 65 | W18: 20 | X18: 20 | AB18: CAL | AC18: MCM | AD18: 336,4 (CAL) | AE18: =VLOOKUP(AB18,Parametros!$E$44:$F$56,2,FALSE)&" "&AD18& " "&AC18 -> Cabo de Liga de Alumínio - CAL 336,4 (CAL) MCM
A19: 336,4 CAA (MERLIM) | B19: 0.0172 | C19: 0.0001786 | D19: 0.4853 | E19: 7000000000 | F19: 8000 | G19: 2.12e-05 | H19: 3795 | I19: 40 | J19: 40 | K19: 18 | L19: 18 | M19: 33.33 | N19: 33.33 | O19: 15 | P19: 0 | Q19: 60 | R19: 0 | S19: 15 | T19: -5 | U19: 130 | V19: 65 | W19: 20 | X19: 20 | AB19: CAA | AC19: MCM | AD19: 336,4 (CAL) | AE19: =VLOOKUP(AB19,Parametros!$E$44:$F$56,2,FALSE)&" "&AD19& " "&AC19 -> Cabo de Alumínio com Alma de Aço - CAA 336,4 (CAL) MCM
A20: 336,4 CAA (ORIOLE) | B20: 0.01883 | C20: 0.00021028 | D20: 0.7821 | E20: 8000000000 | F20: 8000 | G20: 1.78e-05 | H20: 7782 | I20: 40 | J20: 40 | K20: 18 | L20: 18 | M20: 33.33 | N20: 33.33 | O20: 15 | P20: 0 | Q20: 60 | R20: 0 | S20: 15 | T20: -5 | U20: 130 | V20: 65 | W20: 20 | X20: 20 | AB20: CAA | AC20: MCM | AD20: 336,4 (ORIOLE) | AE20: =VLOOKUP(AB20,Parametros!$E$44:$F$56,2,FALSE)&" "&AD20& " "&AC20 -> Cabo de Alumínio com Alma de Aço - CAA 336,4 (ORIOLE) MCM
A21: 4 CA | B21: 0.00588 | C21: 2.114e-05 | D21: 0.0584 | E21: 6118000000 | F21: 6180 | G21: 2.304e-05 | H21: 390 | I21: 40 | J21: 40 | K21: 18 | L21: 18 | M21: 33.33 | N21: 33.33 | O21: 15 | P21: 0 | Q21: 60 | R21: 0 | S21: 15 | T21: -5 | U21: 130 | V21: 65 | W21: 20 | X21: 20 | AB21: =RIGHT(A21,2) -> CA | AC21: AWG | AD21: 4 | AE21: =VLOOKUP(AB21,Parametros!$E$44:$F$56,2,FALSE)&" "&AD21& " "&AC21 -> Cabo de Alumínio - CA 4 AWG
A22: 2 CA | B22: 0.00742 | C22: 3.365e-05 | D22: 0.0923 | E22: 6118000000 | F22: 6180 | G22: 2.304e-05 | H22: 599 | I22: 40 | J22: 40 | K22: 18 | L22: 18 | M22: 33.33 | N22: 33.33 | O22: 15 | P22: 0 | Q22: 60 | R22: 0 | S22: 15 | T22: -5 | U22: 130 | V22: 65 | W22: 20 | X22: 20 | AB22: =RIGHT(A22,2) -> CA | AC22: AWG | AD22: 2 | AE22: =VLOOKUP(AB22,Parametros!$E$44:$F$56,2,FALSE)&" "&AD22& " "&AC22 -> Cabo de Alumínio - CA 2 AWG
A23: 1/0 CA | B23: 0.00936 | C23: 5.348e-05 | D23: 0.1467 | E23: 6118000000 | F23: 6180 | G23: 2.304e-05 | H23: 881 | I23: 40 | J23: 40 | K23: 18 | L23: 18 | M23: 33.33 | N23: 33.33 | O23: 15 | P23: 0 | Q23: 60 | R23: 0 | S23: 15 | T23: -5 | U23: 130 | V23: 65 | W23: 20 | X23: 20 | AB23: CA | AC23: AWG | AD23: 1/0 | AE23: =VLOOKUP(AB23,Parametros!$E$44:$F$56,2,FALSE)&" "&AD23& " "&AC23 -> Cabo de Alumínio - CA 1/0 AWG
A24: 2/0 CA | B24: 0.01134 | C24: 6.743e-05 | D24: 0.1844 | E24: 6118000000 | F24: 8000 | G24: 2.304e-05 | H24: 1139 | I24: 40 | J24: 40 | K24: 18 | L24: 18 | M24: 33.33 | N24: 33.33 | O24: 15 | P24: 0 | Q24: 60 | R24: 0 | S24: 15 | T24: -5 | U24: 130 | V24: 65 | W24: 20 | X24: 20 | AB24: CA | AC24: AWG | AD24: 2/0 | AE24: =VLOOKUP(AB24,Parametros!$E$44:$F$56,2,FALSE)&" "&AD24& " "&AC24 -> Cabo de Alumínio - CA 2/0 AWG | AG24: Dados das NBRs 7270 e 7271.
A25: 3/0 CA | B25: 0.0118 | C25: 8.499e-05 | D25: 0.2344 | E25: 6118000000 | F25: 6180 | G25: 2.304e-05 | H25: 1344 | I25: 40 | J25: 40 | K25: 18 | L25: 18 | M25: 33.33 | N25: 33.33 | O25: 15 | P25: 0 | Q25: 60 | R25: 0 | S25: 15 | T25: -5 | U25: 130 | V25: 65 | W25: 20 | X25: 20 | AB25: CA | AC25: AWG | AD25: 3/0 | AE25: =VLOOKUP(AB25,Parametros!$E$44:$F$56,2,FALSE)&" "&AD25& " "&AC25 -> Cabo de Alumínio - CA 3/0 AWG
A26: 4/0 CA | B26: 0.01325 | C26: 0.00010725 | D26: 0.2943 | E26: 6118000000 | F26: 6180 | G26: 2.304e-05 | H26: 1696 | I26: 40 | J26: 40 | K26: 18 | L26: 18 | M26: 33.33 | N26: 33.33 | O26: 15 | P26: 0 | Q26: 60 | R26: 0 | S26: 15 | T26: -5 | U26: 130 | V26: 65 | W26: 20 | X26: 20 | AB26: CA | AC26: AWG | AD26: 4/0 | AE26: =VLOOKUP(AB26,Parametros!$E$44:$F$56,2,FALSE)&" "&AD26& " "&AC26 -> Cabo de Alumínio - CA 4/0 AWG
A27: 336,4 CA | B27: 0.0169 | C27: 0.00017057 | D27: 0.4703 | E27: 5812000000 | F27: 6180 | G27: 2.304e-05 | H27: 2722 | I27: 40 | J27: 40 | K27: 18 | L27: 18 | M27: 33.33 | N27: 33.33 | O27: 15 | P27: 0 | Q27: 60 | R27: 0 | S27: 15 | T27: -5 | U27: 130 | V27: 65 | W27: 20 | X27: 20 | AB27: CA | AC27: AWG | AD27: 336.4 | AE27: =VLOOKUP(AB27,Parametros!$E$44:$F$56,2,FALSE)&" "&AD27& " "&AC27 -> Cabo de Alumínio - CA 336,4 AWG
A28: 6 CC | B28: 0.00411 | C28: 1.33e-05 | D28: 0.118 | E28: 9800000000 | F28: 12000 | G28: 1.6e-05 | H28: 459 | I28: 50 | J28: 50 | K28: 20 | L28: 20 | M28: 33.33 | N28: 33.33 | O28: 15 | P28: 0 | Q28: 60 | R28: 0 | S28: 15 | T28: -5 | U28: 130 | V28: 65 | W28: 20 | X28: 20 | AB28: CC | AC28: AWG | AD28: 6 | AE28: =VLOOKUP(AB28,Parametros!$E$44:$F$56,2,FALSE)&" "&AD28& " "&AC28 -> Cabo de cobre - CC 6 AWG
A29: 4 CC | B29: 0.00519 | C29: 2.115e-05 | D29: 0.188 | E29: 9800000000 | F29: 12000 | G29: 1.6e-05 | H29: 715 | I29: 50 | J29: 50 | K29: 20 | L29: 20 | M29: 33.33 | N29: 33.33 | O29: 15 | P29: 0 | Q29: 60 | R29: 0 | S29: 15 | T29: -5 | U29: 130 | V29: 65 | W29: 20 | X29: 20 | AB29: CC | AC29: AWG | AD29: 4 | AE29: =VLOOKUP(AB29,Parametros!$E$44:$F$56,2,FALSE)&" "&AD29& " "&AC29 -> Cabo de cobre - CC 4 AWG
A30: 2 CC | B30: 0.00742 | C30: 3.363e-05 | D30: 0.305 | E30: 9800000000 | F30: 12000 | G30: 1.6e-05 | H30: 1074 | I30: 50 | J30: 50 | K30: 20 | L30: 20 | M30: 33.33 | N30: 33.33 | O30: 15 | P30: 0 | Q30: 60 | R30: 0 | S30: 15 | T30: -5 | U30: 130 | V30: 65 | W30: 20 | X30: 20 | AB30: CC | AC30: AWG | AD30: 2 | AE30: =VLOOKUP(AB30,Parametros!$E$44:$F$56,2,FALSE)&" "&AD30& " "&AC30 -> Cabo de cobre - CC 2 AWG
A31: 1/0 CC | B31: 0.00936 | C31: 5.346e-05 | D31: 0.485 | E31: 9800000000 | F31: 12000 | G31: 1.6e-05 | H31: 1684 | I31: 50 | J31: 50 | K31: 20 | L31: 20 | M31: 33.33 | N31: 33.33 | O31: 15 | P31: 0 | Q31: 60 | R31: 0 | S31: 15 | T31: -5 | U31: 130 | V31: 65 | W31: 20 | X31: 20 | AB31: CC | AC31: AWG | AD31: 1/0 | AE31: =VLOOKUP(AB31,Parametros!$E$44:$F$56,2,FALSE)&" "&AD31& " "&AC31 -> Cabo de cobre - CC 1/0 AWG
A32: 2/0 CC | B32: 0.01051 | C32: 6.744e-05 | D32: 0.611 | E32: 9800000000 | F32: 12000 | G32: 1.6e-05 | H32: 2094 | I32: 50 | J32: 50 | K32: 20 | L32: 20 | M32: 33.33 | N32: 33.33 | O32: 15 | P32: 0 | Q32: 60 | R32: 0 | S32: 15 | T32: -5 | U32: 130 | V32: 65 | W32: 20 | X32: 20 | AB32: CC | AC32: AWG | AD32: 2/0 | AE32: =VLOOKUP(AB32,Parametros!$E$44:$F$56,2,FALSE)&" "&AD32& " "&AC32 -> Cabo de cobre - CC 2/0 AWG
A33: 3/0 CC | B33: 0.0118 | C33: 8.502e-05 | D33: 0.771 | E33: 9800000000 | F33: 12000 | G33: 1.6e-05 | H33: 2640 | I33: 50 | J33: 50 | K33: 20 | L33: 20 | M33: 33.33 | N33: 33.33 | O33: 15 | P33: 0 | Q33: 60 | R33: 0 | S33: 15 | T33: -5 | U33: 130 | V33: 65 | W33: 20 | X33: 20 | AB33: CC | AC33: AWG | AD33: 3/0 | AE33: =VLOOKUP(AB33,Parametros!$E$44:$F$56,2,FALSE)&" "&AD33& " "&AC33 -> Cabo de cobre - CC 3/0 AWG | AG33: Dados das NT - Tabelas Praticas, CEE/1975
A34: 4/0 CC | B34: 0.01325 | C34: 0.0001072 | D34: 0.972 | E34: 9800000000 | F34: 12000 | G34: 1.6e-05 | H34: 3280 | I34: 50 | J34: 50 | K34: 20 | L34: 20 | M34: 33.33 | N34: 33.33 | O34: 15 | P34: 0 | Q34: 60 | R34: 0 | S34: 15 | T34: -5 | U34: 130 | V34: 65 | W34: 20 | X34: 20 | AB34: CC | AC34: AWG | AD34: 4/0 | AE34: =VLOOKUP(AB34,Parametros!$E$44:$F$56,2,FALSE)&" "&AD34& " "&AC34 -> Cabo de cobre - CC 4/0 AWG
A35: CAZ 3,09 | B35: 0.00309 | C35: 7.5e-06 | D35: 0.059 | E35: 20000000000 | F35: 20000 | G35: 1.15e-05 | H35: 1075 | I35: 40 | J35: 40 | K35: 25 | L35: 25 | M35: 33.33 | N35: 33.33 | O35: 15 | P35: 0 | Q35: 60 | R35: 0 | S35: 15 | T35: 5 | U35: 130 | V35: 65 | W35: 15 | X35: 15 | AB35: CAZ | AC35: mm² | AD35: 3.09 | AE35: =VLOOKUP(AB35,Parametros!$E$44:$F$56,2,FALSE)&" "&AD35& " "&AC35 -> Cabo de Aço Zincado - CAZ 3,09 mm²
A36: CAZ 4,87 | B36: 0.00487 | C36: 1.193e-05 | D36: 0.095 | E36: 18500000000 | F36: 16000 | G36: 1.15e-05 | H36: 1767 | I36: 40 | J36: 40 | K36: 25 | L36: 25 | M36: 33.33 | N36: 33.33 | O36: 15 | P36: 0 | Q36: 60 | R36: 0 | S36: 15 | T36: 5 | U36: 130 | V36: 65 | W36: 15 | X36: 15 | AB36: CAZ | AC36: mm² | AD36: 4.17 | AE36: =VLOOKUP(AB36,Parametros!$E$44:$F$56,2,FALSE)&" "&AD36& " "&AC36 -> Cabo de Aço Zincado - CAZ 4,17 mm²
A37: 4/0 CAL-1120 (DIAM. 247 MCM) | B37: 0.01431 | C37: =((B37/2)^2)*PI() -> 0.0001608307728 | D37: 0.3423 | E37: 5440000000 | F37: 6520 | G37: 2.304e-05 | H37: 2785 | I37: 40 | J37: 40 | K37: 18 | L37: 18 | M37: 33.33 | N37: 33.33 | O37: 15 | P37: 0 | Q37: 60 | R37: 0 | S37: 15 | T37: -5 | U37: 130 | V37: 65 | W37: 20 | X37: 20 | AB37: CAL | AC37: AWG | AD37: 4/0 | AE37: =VLOOKUP(AB37,Parametros!$E$44:$F$56,2,FALSE)&" "&AD37& " "&AC37 -> Cabo de Liga de Alumínio - CAL 4/0 AWG
A38: 4/0 CAL-1120 (COR. 220MCM) | B38: 0.0135 | C38: 0.0001431388153 | D38: 0.3045 | E38: 5440000000 | F38: 6520 | G38: 2.304e-05 | H38: 2481 | I38: 40 | J38: 40 | K38: 18 | L38: 18 | M38: 33.33 | N38: 33.33 | O38: 15 | P38: 0 | Q38: 60 | R38: 0 | S38: 15 | T38: -5 | U38: 130 | V38: 65 | W38: 20 | X38: 20 | AB38: CAL | AC38: AWG | AD38: 4/1 | AE38: =VLOOKUP(AB38,Parametros!$E$44:$F$56,2,FALSE)&" "&AD38& " "&AC38 -> Cabo de Liga de Alumínio - CAL 4/1 AWG
A39: 4 CAL | B39: 0.00588 | C39: 2.114e-05 | D39: 0.05789 | E39: 7000000000 | F39: 7000 | G39: 2.304e-05 | H39: 671 | I39: 40 | J39: 40 | K39: 18 | L39: 18 | M39: 33.33 | N39: 33.33 | O39: 15 | P39: 0 | Q39: 60 | R39: 0 | S39: 15 | T39: -5 | U39: 130 | V39: 65 | W39: 20 | X39: 20 | AB39: =RIGHT(A39,3) -> CAL | AC39: AWG | AD39: 4 | AE39: =VLOOKUP(AB39,Parametros!$E$44:$F$55,2,FALSE)&" "&AD39& " "&AC39 -> Cabo de Liga de Alumínio - CAL 4 AWG | AG39: Nota: ELETROBRAS - DEER
A40: 2 CAL | B40: 0.00742 | C40: 3.365e-05 | D40: 0.09214 | E40: 7000000000 | F40: 7000 | G40: 2.304e-05 | H40: 1066 | I40: 40 | J40: 40 | K40: 18 | L40: 18 | M40: 33.33 | N40: 33.33 | O40: 15 | P40: 0 | Q40: 60 | R40: 0 | S40: 15 | T40: -5 | U40: 130 | V40: 65 | W40: 20 | X40: 20 | AB40: CAL | AC40: AWG | AD40: 2 | AE40: =VLOOKUP(AB40,Parametros!$E$44:$F$55,2,FALSE)&" "&AD40& " "&AC40 -> Cabo de Liga de Alumínio - CAL 2 AWG
A41: 1/0 CAL | B41: 0.00936 | C41: 5.348e-05 | D41: 0.1465 | E41: 7000000000 | F41: 7000 | G41: 2.304e-05 | H41: 1701 | I41: 40 | J41: 40 | K41: 18 | L41: 18 | M41: 33.33 | N41: 33.33 | O41: 15 | P41: 0 | Q41: 60 | R41: 0 | S41: 15 | T41: -5 | U41: 130 | V41: 65 | W41: 20 | X41: 20 | AB41: CAL | AC41: AWG | AD41: 1/0 | AE41: =VLOOKUP(AB41,Parametros!$E$44:$F$55,2,FALSE)&" "&AD41& " "&AC41 -> Cabo de Liga de Alumínio - CAL 1/0 AWG
A42: 2/0 CAL | B42: 0.0105 | C42: 6.743e-05 | D42: 0.1847 | E42: 7000000000 | F42: 7000 | G42: 2.304e-05 | H42: 2050 | I42: 40 | J42: 40 | K42: 18 | L42: 18 | M42: 33.33 | N42: 33.33 | O42: 15 | P42: 0 | Q42: 60 | R42: 0 | S42: 15 | T42: -5 | U42: 130 | V42: 65 | W42: 20 | X42: 20 | AB42: CAL | AC42: AWG | AD42: 2/0 | AE42: =VLOOKUP(AB42,Parametros!$E$44:$F$55,2,FALSE)&" "&AD42& " "&AC42 -> Cabo de Liga de Alumínio - CAL 2/0 AWG
A43: 3/0 CAL | B43: 0.0118 | C43: 8.499e-05 | D43: 0.2327 | E43: 7000000000 | F43: 7000 | G43: 2.304e-05 | H43: 2584 | I43: 40 | J43: 40 | K43: 18 | L43: 18 | M43: 33.33 | N43: 33.33 | O43: 15 | P43: 0 | Q43: 60 | R43: 0 | S43: 15 | T43: -5 | U43: 130 | V43: 65 | W43: 20 | X43: 20 | AB43: CAL | AC43: AWG | AD43: 3/0 | AE43: =VLOOKUP(AB43,Parametros!$E$44:$F$55,2,FALSE)&" "&AD43& " "&AC43 -> Cabo de Liga de Alumínio - CAL 3/0 AWG
A44: 4/0 CAL | B44: 0.01325 | C44: 0.00010725 | D44: 0.2937 | E44: 5600000000 | F44: 7000 | G44: 2.304e-05 | H44: 3269 | I44: 40 | J44: 40 | K44: 18 | L44: 18 | M44: 33.33 | N44: 33.33 | O44: 15 | P44: 0 | Q44: 60 | R44: 0 | S44: 15 | T44: -5 | U44: 130 | V44: 65 | W44: 20 | X44: 20 | AB44: CAL | AC44: AWG | AD44: 4/0 | AE44: =VLOOKUP(AB44,Parametros!$E$44:$F$55,2,FALSE)&" "&AD44& " "&AC44 -> Cabo de Liga de Alumínio - CAL 4/0 AWG
A45: 250 CAL | B45: 0.01455 | C45: 0.0001267 | D45: 0.3469 | E45: 5600000000 | F45: 7000 | G45: 2.304e-05 | H45: 3890 | I45: 40 | J45: 40 | K45: 18 | L45: 18 | M45: 33.33 | N45: 33.33 | O45: 15 | P45: 0 | Q45: 60 | R45: 0 | S45: 15 | T45: -5 | U45: 130 | V45: 65 | W45: 20 | X45: 20 | AB45: CAL | AC45: AWG | AD45: 250 | AE45: =VLOOKUP(AB45,Parametros!$E$44:$F$55,2,FALSE)&" "&AD45& " "&AC45 -> Cabo de Liga de Alumínio - CAL 250 AWG
A46: 300 CAL | B46: 0.01595 | C46: 0.000152 | D46: 0.4166 | E46: 6500000000 | F46: 7000 | G46: 2.304e-05 | H46: 4674 | I46: 40 | J46: 40 | K46: 18 | L46: 18 | M46: 33.33 | N46: 33.33 | O46: 15 | P46: 0 | Q46: 60 | R46: 0 | S46: 15 | T46: -5 | U46: 130 | V46: 65 | W46: 20 | X46: 20 | AB46: CAL | AC46: AWG | AD46: 300 | AE46: =VLOOKUP(AB46,Parametros!$E$44:$F$55,2,FALSE)&" "&AD46& " "&AC46 -> Cabo de Liga de Alumínio - CAL 300 AWG
A47: 350 CAL | B47: 0.01725 | C47: 0.0001773 | D47: 0.4855 | E47: 6500000000 | F47: 7000 | G47: 2.304e-05 | H47: 5236 | I47: 40 | J47: 40 | K47: 18 | L47: 18 | M47: 33.33 | N47: 33.33 | O47: 15 | P47: 0 | Q47: 60 | R47: 0 | S47: 15 | T47: -5 | U47: 130 | V47: 65 | W47: 20 | X47: 20 | AB47: CAL | AC47: AWG | AD47: 350 | AE47: =VLOOKUP(AB47,Parametros!$E$44:$F$55,2,FALSE)&" "&AD47& " "&AC47 -> Cabo de Liga de Alumínio - CAL 350 AWG
A48: 400 CAL | B48: 0.01845 | C48: 0.0002027 | D48: 0.5551 | E48: 6500000000 | F48: 7000 | G48: 2.304e-05 | H48: 5990 | I48: 40 | J48: 40 | K48: 18 | L48: 18 | M48: 33.33 | N48: 33.33 | O48: 15 | P48: 0 | Q48: 60 | R48: 0 | S48: 15 | T48: -5 | U48: 130 | V48: 65 | W48: 20 | X48: 20 | AB48: CAL | AC48: AWG | AD48: 400 | AE48: =VLOOKUP(AB48,Parametros!$E$44:$F$55,2,FALSE)&" "&AD48& " "&AC48 -> Cabo de Liga de Alumínio - CAL 400 AWG
A49: 450 CAL | B49: 0.01955 | C49: 0.000228 | D49: 0.6244 | E49: 6500000000 | F49: 7000 | G49: 2.304e-05 | H49: 6726 | I49: 40 | J49: 40 | K49: 18 | L49: 18 | M49: 33.33 | N49: 33.33 | O49: 15 | P49: 0 | Q49: 60 | R49: 0 | S49: 15 | T49: -5 | U49: 130 | V49: 65 | W49: 20 | X49: 20 | AB49: CAL | AC49: AWG | AD49: 450 | AE49: =VLOOKUP(AB49,Parametros!$E$44:$F$55,2,FALSE)&" "&AD49& " "&AC49 -> Cabo de Liga de Alumínio - CAL 450 AWG
A50: 6,35 AÇO | B50: 0.006365 | C50: 2.115e-05 | D50: 0.1804 | E50: 18500000000 | F50: 16000 | G50: 1.89e-05 | H50: 1430 | I50: 22 | J50: 22 | K50: 4.6 | L50: 4.6 | M50: 10 | N50: 10 | O50: 15 | P50: 0 | Q50: 60 | R50: 0 | S50: 15 | T50: -5 | U50: 130 | V50: 65 | W50: 20 | X50: 20 | AB50: AÇO | AC50: AWG | AD50: 6.35 | AE50: =VLOOKUP(AB50,Parametros!$E$44:$F$55,2,FALSE)&" "&AD50& " "&AC50 -> Cabo de Aço 6,35 AWG
A51: 7,94 AÇO | B51: 0.00794 | C51: 4.215e-05 | D51: 0.3051 | E51: 18500000000 | F51: 16000 | G51: 1.89e-05 | H51: 3620 | I51: 22 | J51: 22 | K51: 4.6 | L51: 4.6 | M51: 10 | N51: 10 | O51: 15 | P51: 0 | Q51: 60 | R51: 0 | S51: 15 | T51: -5 | U51: 130 | V51: 65 | W51: 20 | X51: 20 | AB51: AÇO | AC51: AWG | AD51: 7.94 | AE51: =VLOOKUP(AB51,Parametros!$E$44:$F$55,2,FALSE)&" "&AD51& " "&AC51 -> Cabo de Aço 7,94 AWG
A52: 9,53 AÇO | B52: 0.00953 | C52: 5.114e-05 | D52: =0.4068 -> 0.4068 | E52: 18500000000 | F52: 16000 | G52: 1.15e-05 | H52: 4900 | I52: 22 | J52: 22 | K52: 4.6 | L52: 4.6 | M52: 10 | N52: 10 | O52: 15 | P52: 0 | Q52: 60 | R52: 0 | S52: 15 | T52: -5 | U52: 60 | V52: 0 | W52: 20 | X52: 20 | AB52: AÇO | AC52: AWG | AD52: 9.53 | AE52: =VLOOKUP(AB52,Parametros!$E$44:$F$55,2,FALSE)&" "&AD52& " "&AC52 -> Cabo de Aço 9,53 AWG
A53: 35 mm² 15kV | B53: =13.6/1000 -> 0.0136 | C53: =33.65/10^6 -> 3.365e-05 | D53: 0.19 | E53: 6118000000 | F53: 6180 | G53: 2.304e-05 | H53: 464 | I53: 10 | J53: 10 | K53: 2.3 | L53: 2.3 | M53: 10 | N53: 10 | O53: 15 | P53: 0 | Q53: 60 | R53: 0 | S53: 15 | T53: -5 | U53: 60 | V53: 0 | W53: 20 | X53: 20 | AB53: XLPE | AC53: ="mm² "&RIGHT(A53,4) -> mm² 15kV | AD53: 35 | AE53: =VLOOKUP(AB53,Parametros!$E$44:$F$55,2,FALSE)&" "&AD53& " "&AC53 -> Cabo Protegido - XLPE 35 mm² 15kV
A54: 50 mm² 15kV | B54: =14.7/1000 -> 0.0147 | C54: =50/10^6 -> 5e-05 | D54: 0.235 | E54: 6118000000 | F54: 6180 | G54: 2.304e-05 | H54: 663 | I54: 10 | J54: 10 | K54: 2.3 | L54: 2.3 | M54: 10 | N54: 10 | O54: 15 | P54: 0 | Q54: 60 | R54: 0 | S54: 15 | T54: -5 | U54: 60 | V54: 0 | W54: 20 | X54: 20 | AB54: XLPE | AC54: ="mm² "&RIGHT(A54,4) -> mm² 15kV | AD54: 50 | AE54: =VLOOKUP(AB54,Parametros!$E$44:$F$55,2,FALSE)&" "&AD54& " "&AC54 -> Cabo Protegido - XLPE 50 mm² 15kV
A55: 70 mm² 15kV | B55: =16/1000 -> 0.016 | C55: =70/10^6 -> 7e-05 | D55: 0.315 | E55: 8000000000 | F55: 8000 | G55: 1.91e-05 | H55: 928 | I55: 10 | J55: 10 | K55: 2.3 | L55: 2.3 | M55: 10 | N55: 10 | O55: 15 | P55: 0 | Q55: 60 | R55: 0 | S55: 15 | T55: -5 | U55: 60 | V55: 0 | W55: 20 | X55: 20 | AB55: XLPE | AC55: mm² 15kV | AD55: 70 | AE55: =VLOOKUP(AB55,Parametros!$E$44:$F$55,2,FALSE)&" "&AD55& " "&AC55 -> Cabo Protegido - XLPE 70 mm² 15kV
A56: 95 mm² 15kV | B56: =18/1000 -> 0.018 | C56: =95/10^6 -> 9.5e-05 | D56: 0.4 | E56: 8000000000 | F56: 8000 | G56: 1.91e-05 | H56: 1259 | I56: 10 | J56: 10 | K56: 2.3 | L56: 2.3 | M56: 10 | N56: 10 | O56: 15 | P56: 0 | Q56: 60 | R56: 0 | S56: 15 | T56: -5 | U56: 60 | V56: 0 | W56: 20 | X56: 20 | AB56: XLPE | AC56: mm² 15kV | AD56: 95 | AE56: =VLOOKUP(AB56,Parametros!$E$44:$F$55,2,FALSE)&" "&AD56& " "&AC56 -> Cabo Protegido - XLPE 95 mm² 15kV
A57: 120 mm² 15kV | B57: =19.4/1000 -> 0.0194 | C57: =120/10^6 -> 0.00012 | D57: 0.5 | E57: 8000000000 | F57: 8000 | G57: 1.91e-05 | H57: 1591 | I57: 10 | J57: 10 | K57: 2.3 | L57: 2.3 | M57: 10 | N57: 10 | O57: 15 | P57: 0 | Q57: 60 | R57: 0 | S57: 15 | T57: -5 | U57: 60 | V57: 0 | W57: 20 | X57: 20 | AB57: XLPE | AC57: mm² 15kV | AD57: 120 | AE57: =VLOOKUP(AB57,Parametros!$E$44:$F$55,2,FALSE)&" "&AD57& " "&AC57 -> Cabo Protegido - XLPE 120 mm² 15kV
A58: 150 mm² 15kV | B58: =20.7/1000 -> 0.0207 | C58: =150/10^6 -> 0.00015 | D58: 0.58 | E58: 8000000000 | F58: 8000 | G58: 1.91e-05 | H58: 1988 | I58: 10 | J58: 10 | K58: 2.3 | L58: 2.3 | M58: 10 | N58: 10 | O58: 15 | P58: 0 | Q58: 60 | R58: 0 | S58: 15 | T58: -5 | U58: 60 | V58: 0 | W58: 20 | X58: 20 | AB58: XLPE | AC58: mm² 15kV | AD58: 150 | AE58: =VLOOKUP(AB58,Parametros!$E$44:$F$55,2,FALSE)&" "&AD58& " "&AC58 -> Cabo Protegido - XLPE 150 mm² 15kV
A59: 185 mm² 15kV | B59: =22.6/1000 -> 0.0226 | C59: =185/10^6 -> 0.000185 | D59: 0.695 | E59: 7000000000 | F59: 8000 | G59: 2.12e-05 | H59: 2452 | I59: 10 | J59: 10 | K59: 2.3 | L59: 2.3 | M59: 10 | N59: 10 | O59: 15 | P59: 0 | Q59: 60 | R59: 0 | S59: 15 | T59: -5 | U59: 60 | V59: 0 | W59: 20 | X59: 20 | AB59: XLPE | AC59: mm² 15kV | AD59: 185 | AE59: =VLOOKUP(AB59,Parametros!$E$44:$F$55,2,FALSE)&" "&AD59& " "&AC59 -> Cabo Protegido - XLPE 185 mm² 15kV
A60: 35 mm² 25kV | B60: =15.7/1000 -> 0.0157 | C60: =33.65/10^6 -> 3.365e-05 | D60: 0.235 | E60: 6118000000 | F60: 6180 | G60: 2.304e-05 | H60: 464 | I60: 10 | J60: 10 | K60: 2.3 | L60: 2.3 | M60: 10 | N60: 10 | O60: 15 | P60: 0 | Q60: 60 | R60: 0 | S60: 15 | T60: -5 | U60: 60 | V60: 0 | W60: 20 | X60: 20 | AB60: XLPE | AC60: mm² 25kV | AD60: 35 | AE60: =VLOOKUP(AB60,Parametros!$E$44:$F$55,2,FALSE)&" "&AD60& " "&AC60 -> Cabo Protegido - XLPE 35 mm² 25kV
A61: 50 mm² 25kV | B61: =16.8/1000 -> 0.0168 | C61: =50/10^6 -> 5e-05 | D61: 0.285 | E61: 6118000000 | F61: 6180 | G61: 2.304e-05 | H61: 663 | I61: 10 | J61: 10 | K61: 2.3 | L61: 2.3 | M61: 10 | N61: 10 | O61: 15 | P61: 0 | Q61: 60 | R61: 0 | S61: 15 | T61: -5 | U61: 60 | V61: 0 | W61: 20 | X61: 20 | AB61: XLPE | AC61: mm² 25kV | AD61: 50 | AE61: =VLOOKUP(AB61,Parametros!$E$44:$F$55,2,FALSE)&" "&AD61& " "&AC61 -> Cabo Protegido - XLPE 50 mm² 25kV
A62: 70 mm² 25kV | B62: =18.3/1000 -> 0.0183 | C62: =70/10^6 -> 7e-05 | D62: 0.37 | E62: 8000000000 | F62: 8000 | G62: 1.91e-05 | H62: 928 | I62: 10 | J62: 10 | K62: 2.3 | L62: 2.3 | M62: 10 | N62: 10 | O62: 15 | P62: 0 | Q62: 60 | R62: 0 | S62: 15 | T62: -5 | U62: 60 | V62: 0 | W62: 20 | X62: 20 | AB62: XLPE | AC62: mm² 25kV | AD62: 70 | AE62: =VLOOKUP(AB62,Parametros!$E$44:$F$55,2,FALSE)&" "&AD62& " "&AC62 -> Cabo Protegido - XLPE 70 mm² 25kV
A63: 95 mm² 25kV | B63: =20.1/1000 -> 0.0201 | C63: =95/10^6 -> 9.5e-05 | D63: 0.46 | E63: 8000000000 | F63: 8000 | G63: 1.91e-05 | H63: 1259 | I63: 10 | J63: 10 | K63: 2.3 | L63: 2.3 | M63: 10 | N63: 10 | O63: 15 | P63: 0 | Q63: 60 | R63: 0 | S63: 15 | T63: -5 | U63: 60 | V63: 0 | W63: 20 | X63: 20 | AB63: XLPE | AC63: mm² 25kV | AD63: 95 | AE63: =VLOOKUP(AB63,Parametros!$E$44:$F$55,2,FALSE)&" "&AD63& " "&AC63 -> Cabo Protegido - XLPE 95 mm² 25kV
A64: 120 mm² 25kV | B64: =21.5/1000 -> 0.0215 | C64: =120/10^6 -> 0.00012 | D64: 0.65 | E64: 8000000000 | F64: 8000 | G64: 1.91e-05 | H64: 1591 | I64: 10 | J64: 10 | K64: 2.3 | L64: 2.3 | M64: 10 | N64: 10 | O64: 15 | P64: 0 | Q64: 60 | R64: 0 | S64: 15 | T64: -5 | U64: 60 | V64: 0 | W64: 20 | X64: 20 | AB64: XLPE | AC64: mm² 25kV | AD64: 120 | AE64: =VLOOKUP(AB64,Parametros!$E$44:$F$55,2,FALSE)&" "&AD64& " "&AC64 -> Cabo Protegido - XLPE 120 mm² 25kV
A65: 150 mm² 25kV | B65: =22.8/1000 -> 0.0228 | C65: =150/10^6 -> 0.00015 | D65: 0.77 | E65: 8000000000 | F65: 8000 | G65: 1.91e-05 | H65: 1988 | I65: 10 | J65: 10 | K65: 2.3 | L65: 2.3 | M65: 10 | N65: 10 | O65: 15 | P65: 0 | Q65: 60 | R65: 0 | S65: 15 | T65: -5 | U65: 60 | V65: 0 | W65: 20 | X65: 20 | AB65: XLPE | AC65: mm² 25kV | AD65: 150 | AE65: =VLOOKUP(AB65,Parametros!$E$44:$F$55,2,FALSE)&" "&AD65& " "&AC65 -> Cabo Protegido - XLPE 150 mm² 25kV
A66: 185 mm² 25kV | B66: =24.8/1000 -> 0.0248 | C66: =185/10^6 -> 0.000185 | D66: 0.663 | E66: 8000000000 | F66: 8000 | G66: 2.12e-05 | H66: 2452 | I66: 10 | J66: 10 | K66: 2.3 | L66: 2.3 | M66: 10 | N66: 10 | O66: 15 | P66: 0 | Q66: 60 | R66: 0 | S66: 15 | T66: -5 | U66: 60 | V66: 0 | W66: 20 | X66: 20 | AB66: XLPE | AC66: mm² 25kV | AD66: 185 | AE66: =VLOOKUP(AB66,Parametros!$E$44:$F$55,2,FALSE)&" "&AD66& " "&AC66 -> Cabo Protegido - XLPE 185 mm² 25kV
A67: 240 mm² 15kV | B67: 0.0245 | C67: 0.00024 | D67: 0.841 | E67: 8000000000 | F67: 8000 | G67: 2.3e-05 | H67: 3182 | I67: 10 | J67: 10 | K67: 2.3 | L67: 2.3 | M67: 10 | N67: 10 | O67: 15 | P67: 0 | Q67: 60 | R67: 0 | S67: 15 | T67: -5 | U67: 60 | V67: 0 | W67: 20 | X67: 20 | AB67: XLPE | AC67: mm² 15kV | AD67: 240 | AE67: =VLOOKUP(AB67,Parametros!$E$44:$F$55,2,FALSE)&" "&AD67& " "&AC67 -> Cabo Protegido - XLPE 240 mm² 15kV
A68: 1#35(35CAL)CA-XLPE | B68: =17.7/1000 -> 0.0177 | C68: =((B68/2)^2)*PI() -> 0.0002460573906 | D68: 0.235 | E68: 6600000000 | F68: 66000 | G68: 2.304e-05 | H68: 1222 | I68: 20 | J68: 20 | K68: 12 | L68: 12 | M68: 20 | N68: 20 | O68: 15 | P68: 0 | Q68: 60 | R68: 0 | S68: 15 | T68: -5 | U68: 60 | V68: 0 | W68: 20 | X68: 20 | AB68: CA-XLPE | AC68: mm² | AD68: 35 | AE68: =VLOOKUP(AB68,Parametros!$E$44:$F$55,2,FALSE)& " "&A68 -> Cabo Multiplexado 1#35(35CAL)CA-XLPE
A69: 1#50(50CAL)CA-XLPE | B69: =20.4/1000 -> 0.0204 | C69: 0.0003268512997 | D69: 0.313 | E69: 6600000000 | F69: 66000 | G69: 2.304e-05 | H69: 1640 | I69: 20 | J69: 20 | K69: 12 | L69: 12 | M69: 20 | N69: 20 | O69: 15 | P69: 0 | Q69: 60 | R69: 0 | S69: 15 | T69: -5 | U69: 60 | V69: 0 | W69: 20 | X69: 20 | AB69: CA-XLPE | AC69: mm² | AD69: 50 | AE69: =VLOOKUP(AB69,Parametros!$E$44:$F$55,2,FALSE)& " "&A69 -> Cabo Multiplexado 1#50(50CAL)CA-XLPE
A70: 2#35(35CAL)CA-XLPE | B70: =22.4/1000 -> 0.0224 | C70: 0.0003940813825 | D70: 0.375 | E70: 6600000000 | F70: 66000 | G70: 2.304e-05 | H70: 1222 | I70: 20 | J70: 20 | K70: 12 | L70: 12 | M70: 20 | N70: 20 | O70: 15 | P70: 0 | Q70: 60 | R70: 0 | S70: 15 | T70: -5 | U70: 60 | V70: 0 | W70: 20 | X70: 20 | AB70: CA-XLPE | AC70: mm² | AD70: 35 | AE70: =VLOOKUP(AB70,Parametros!$E$44:$F$55,2,FALSE)& " "&A70 -> Cabo Multiplexado 2#35(35CAL)CA-XLPE
A71: 2#50(50CAL)CA-XLPE | B71: =24.9/1000 -> 0.0249 | C71: 0.0004869547153 | D71: 0.491 | E71: 6600000000 | F71: 66000 | G71: 2.304e-05 | H71: 1640 | I71: 20 | J71: 20 | K71: 12 | L71: 12 | M71: 20 | N71: 20 | O71: 15 | P71: 0 | Q71: 60 | R71: 0 | S71: 15 | T71: -5 | U71: 60 | V71: 0 | W71: 20 | X71: 20 | AB71: CA-XLPE | AC71: mm² | AD71: 50 | AE71: =VLOOKUP(AB71,Parametros!$E$44:$F$55,2,FALSE)& " "&A71 -> Cabo Multiplexado 2#50(50CAL)CA-XLPE
A72: 3#35(35CAL)CA-XLPE | B72: =25.1/1000 -> 0.0251 | C72: 0.0004948086969 | D72: 0.515 | E72: 6600000000 | F72: 66000 | G72: 2.304e-05 | H72: 1222 | I72: 20 | J72: 20 | K72: 12 | L72: 12 | M72: 20 | N72: 20 | O72: 15 | P72: 0 | Q72: 60 | R72: 0 | S72: 15 | T72: -5 | U72: 60 | V72: 0 | W72: 20 | X72: 20 | AB72: CA-XLPE | AC72: mm² | AD72: 35 | AE72: =VLOOKUP(AB72,Parametros!$E$44:$F$55,2,FALSE)& " "&A72 -> Cabo Multiplexado 3#35(35CAL)CA-XLPE
A73: 3#50(50CAL)CA-XLPE | B73: 0.0279 | C73: 0.0006113617844 | D73: 0.669 | E73: 6600000000 | F73: 66000 | G73: 2.304e-05 | H73: 1640 | I73: 20 | J73: 20 | K73: 12 | L73: 12 | M73: 20 | N73: 20 | O73: 15 | P73: 0 | Q73: 60 | R73: 0 | S73: 15 | T73: -5 | U73: 60 | V73: 0 | W73: 20 | X73: 20 | AB73: CA-XLPE | AC73: mm² | AD73: 50 | AE73: =VLOOKUP(AB73,Parametros!$E$44:$F$55,2,FALSE)& " "&A73 -> Cabo Multiplexado 3#50(50CAL)CA-XLPE
A74: 3#70(70CAL)CA-XLPE | B74: 0.0327 | C74: 0.0008398184021 | D74: 0.931 | E74: 6600000000 | F74: 66000 | G74: 2.304e-05 | H74: 2169 | I74: 20 | J74: 20 | K74: 12 | L74: 12 | M74: 20 | N74: 20 | O74: 15 | P74: 0 | Q74: 60 | R74: 0 | S74: 15 | T74: -5 | U74: 60 | V74: 0 | W74: 20 | X74: 20 | AB74: CA-XLPE | AC74: mm² | AD74: 70 | AE74: =VLOOKUP(AB74,Parametros!$E$44:$F$55,2,FALSE)& " "&A74 -> Cabo Multiplexado 3#70(70CAL)CA-XLPE
A75: 3#95(70CAL)CA-XLPE | B75: 0.03751 | C75: 0.001105055294 | D75: =1267/1000 -> 1.267 | E75: 6400000000 | F75: 64000 | G75: 2.304e-05 | H75: 2169 | I75: 20 | J75: 20 | K75: 12 | L75: 12 | M75: 20 | N75: 20 | O75: 15 | P75: 0 | Q75: 60 | R75: 0 | S75: 15 | T75: -5 | U75: 60 | V75: 0 | W75: 20 | X75: 20 | AB75: CA-XLPE | AC75: mm² | AD75: 95 | AE75: =VLOOKUP(AB75,Parametros!$E$44:$F$55,2,FALSE)& " "&A75 -> Cabo Multiplexado 3#95(70CAL)CA-XLPE
A76: 3#120(70CAL)CA-XLPE | B76: 0.0411 | C76: 0.001326702432 | D76: =(1449/1000) -> 1.449 | E76: 6400000000 | F76: 64000 | G76: 2.304e-05 | H76: 2169 | I76: 20 | J76: 20 | K76: 12 | L76: 12 | M76: 20 | N76: 20 | O76: 15 | P76: 0 | Q76: 60 | R76: 0 | S76: 15 | T76: -5 | U76: 60 | V76: 0 | W76: 20 | X76: 20 | AB76: CA-XLPE | AC76: mm² | AD76: 120 | AE76: =VLOOKUP(AB76,Parametros!$E$44:$F$55,2,FALSE)& " "&A76 -> Cabo Multiplexado 3#120(70CAL)CA-XLPE
A77: 2/0 CAL -1120 HELIUM | B77: 0.01125 | C77: =77.3*10^-6 -> 7.73e-05 | D77: 0.211 | E77: 5440000000 | F77: 6520 | G77: 2.3e-05 | H77: 1797 | I77: 40 | J77: 40 | K77: 18 | L77: 18 | M77: 33.33 | N77: 33.33 | O77: 15 | P77: 0 | Q77: 60 | R77: 0 | S77: 15 | T77: -5 | U77: 130 | V77: 65 | W77: 20 | X77: 20 | AB77: CAL | AC77: AWG | AD77: 2/0 | AE77: =VLOOKUP(AB77,Parametros!$E$44:$F$56,2,FALSE)&" "&AD77& " "&AC77 -> Cabo de Liga de Alumínio - CAL 2/0 AWG
A78: 35 mm² 15kV - CONV | B78: =13.6/1000 -> 0.0136 | C78: =33.65/10^6 -> 3.365e-05 | D78: 0.19 | E78: 6118000000 | F78: 6180 | G78: 2.304e-05 | H78: 464 | I78: 15 | J78: 15 | K78: 18 | L78: 18 | M78: 15 | N78: 15 | O78: 15 | P78: 0 | Q78: 60 | R78: 0 | S78: 15 | T78: -5 | U78: 60 | V78: 0 | W78: 20 | X78: 20 | AB78: XLPE | AC78: ="mm² "&RIGHT(A78,4) -> mm² CONV | AD78: 35 | AE78: =VLOOKUP(AB78,Parametros!$E$44:$F$55,2,FALSE)&" "&AD78& " "&AC78 -> Cabo Protegido - XLPE 35 mm² CONV
A79: 120 mm² 15kV - CONV | B79: =19.4/1000 -> 0.0194 | C79: =120/10^6 -> 0.00012 | D79: 0.5 | E79: 8000000000 | F79: 8000 | G79: 1.91e-05 | H79: 1591 | I79: 15 | J79: 15 | K79: 18 | L79: 18 | M79: 15 | N79: 15 | O79: 15 | P79: 0 | Q79: 60 | R79: 0 | S79: 15 | T79: -5 | U79: 60 | V79: 0 | W79: 20 | X79: 20 | AB79: XLPE | AC79: ="mm² "&RIGHT(A79,4) -> mm² CONV | AD79: 120 | AE79: =VLOOKUP(AB79,Parametros!$E$44:$F$55,2,FALSE)&" "&AD79& " "&AC79 -> Cabo Protegido - XLPE 120 mm² CONV
A91: Método para descobrir a Sção

Sheet Engastamento
AD2: 30
A3: CÁLCULO DO ENGASTAMENTO
A4: Poste de concreto Tronco Cônico | E4: DADOS DO POSTE | H4: dados escora | K4: dados da base concretada | O4: VALOR DA TRAÇÃO NO TOPO (daN) | S4: Poste | W4: Valores para Critários de Projetos
A5: Comprimento | C5: carga | D5: peso | E5: t | F5: h* | G5: b | H5: m | I5: n | J5: c | K5: d | L5: P | M5: q | N5: K | O5: SIMPLES | P5: ESCORA SIMPLES | Q5: ESCORA DUPLA | R5: CONCRETADO | T5: Tipo Poste | W5: SIMPLES | X5: ESCORA SIMPLES | Y5: ESCORA DUPLA | Z5: CONCRETADO
A6: =CONCATENATE(B6,C6) -> 9150 | B6: 9 | C6: =IF(Padroes!C10="","",Padroes!C10) -> 150 | D6: =IF(Padroes!D10="","",Padroes!D10) -> 670 | E6: =IF(D6="","",(0.6+0.1*B6)) -> 1.5 | F6: =IF(E6="","",(B6-E6-0.5)) -> 7 | G6: =IF(Padroes!E10="","",Padroes!E10) -> 0.32 | H6: =IF(E6="","",Padroes!S$8) -> 1 | I6: =IF(E6="","",Padroes!S$9) -> 0.2 | J6: =IF(E6="","",Padroes!S$10) -> 0.5 | K6: =IF(Padroes!AL13="","",Padroes!AL13) -> 0.6 | L6: =IF(D6="","",(D6+(3.1416*K6^2*M6/4*2400))) -> 1077.15136 | M6: =Padroes!$AL$8 -> 0.6 | N6: =IF(E6="","",Padroes!$AL$23) -> 1 | O6: =IF(E6="","",($B$63*G6*E6^3)/(F6+E6)) -> 254.1176471 | P6: =IF(E6="","",(3*$B$63*(2*J6*I6 - I6^2)*(H6-G6))*(E6-J6+I6/2)/(F6+E6/2) + O6) -> 346.7731309 | Q6: =IF(E6="","",(3*$B$63 * (2*E6*I6-I6^2)*(H6-G6) ) * (I6/2) / (F6+E6) + P6) -> 373.6531309 | R6: =IF(E6="","",(N6*$B$63*K6*E6^3)/(F6+E6) + (K6*L6/(F6+E6)) * (0.5 - (2*L6/(3*$C$63*K6^2)))) -> 508.421002 | S6: 9 | T6: =IF(Padroes!F10="","",Padroes!F10) -> C-14 | W6: =IF(O6="","",O6*Parametros!$I$26) -> 203.2941176 | X6: =IF(P6="","",P6*Parametros!$I$27) -> 277.4185047 | Y6: =IF(Q6="","",Q6*Parametros!$I$28) -> 298.9225047 | Z6: =IF(R6="","",R6*Parametros!$I$29) -> 508.421002
A7: =CONCATENATE(B7,C7) -> 9200 | B7: 9 | C7: =IF(Padroes!C11="","",Padroes!C11) -> 200 | D7: =IF(Padroes!D11="","",Padroes!D11) -> 670 | E7: =IF(D7="","",(0.6+0.1*B7)) -> 1.5 | F7: =IF(E7="","",(B7-E7-0.5)) -> 7 | G7: =IF(Padroes!E11="","",Padroes!E11) -> 0.32 | H7: =IF(E7="","",Padroes!S$8) -> 1 | I7: =IF(E7="","",Padroes!S$9) -> 0.2 | J7: =IF(E7="","",Padroes!S$10) -> 0.5 | K7: =IF(Padroes!AL15="","",Padroes!AL15) -> 0.7 | L7: =IF(D7="","",(D7+(3.1416*K7^2*M7/4*2400))) -> 1224.17824 | M7: =Padroes!$AL$8 -> 0.6 | N7: =IF(E7="","",Padroes!$AL$23) -> 1 | O7: 254.1176471 | P7: 346.7731309 | Q7: 373.6531309 | R7: 599.5732223 | T7: =IF(Padroes!F11="","",Padroes!F11) -> C-14 | W7: =IF(O7="","",O7*Parametros!$I$26) -> 203.2941176 | X7: =IF(P7="","",P7*Parametros!$I$27) -> 277.4185047 | Y7: =IF(Q7="","",Q7*Parametros!$I$28) -> 298.9225047 | Z7: =IF(R7="","",R7*Parametros!$I$29) -> 599.5732223
A8: 9300 | B8: 9 | C8: =IF(Padroes!C12="","",Padroes!C12) -> 300 | D8: =IF(Padroes!D12="","",Padroes!D12) -> 820 | E8: 1.5 | F8: 7 | G8: =IF(Padroes!E12="","",Padroes!E12) -> 0.35 | H8: =IF(E8="","",Padroes!S$8) -> 1 | I8: =IF(E8="","",Padroes!S$9) -> 0.2 | J8: =IF(E8="","",Padroes!S$10) -> 0.5 | K8: =IF(Padroes!AL16="","",Padroes!AL16) -> 0.9 | L8: 1736.09056 | M8: =Padroes!$AL$8 -> 0.6 | N8: =IF(E8="","",Padroes!$AL$23) -> 1 | O8: 277.9411765 | P8: 366.5089184 | Q8: 392.2030361 | R8: 796.1102046 | T8: =IF(Padroes!F12="","",Padroes!F12) -> C-17 | W8: =IF(O8="","",O8*Parametros!$I$26) -> 222.3529412 | X8: =IF(P8="","",P8*Parametros!$I$27) -> 293.2071347 | Y8: =IF(Q8="","",Q8*Parametros!$I$28) -> 313.7624288 | Z8: =IF(R8="","",R8*Parametros!$I$29) -> 796.1102046
A9: 9400 | B9: 9 | C9: =IF(Padroes!C13="","",Padroes!C13) -> 400 | D9: =IF(Padroes!D13="","",Padroes!D13) -> 820 | E9: 1.5 | F9: 7 | G9: =IF(Padroes!E13="","",Padroes!E13) -> 0.35 | H9: =IF(E9="","",Padroes!S$8) -> 1 | I9: =IF(E9="","",Padroes!S$9) -> 0.2 | J9: =IF(E9="","",Padroes!S$10) -> 0.5 | K9: =IF(Padroes!AL17="","",Padroes!AL17) -> 1.3 | L9: 2731.34944 | M9: =Padroes!$AL$8 -> 0.6 | N9: =IF(E9="","",Padroes!$AL$23) -> 1 | O9: 277.9411765 | P9: 366.5089184 | Q9: 392.2030361 | R9: 1223.217172 | T9: =IF(Padroes!F13="","",Padroes!F13) -> C-17 | W9: =IF(O9="","",O9*Parametros!$I$26) -> 222.3529412 | X9: =IF(P9="","",P9*Parametros!$I$27) -> 293.2071347 | Y9: =IF(Q9="","",Q9*Parametros!$I$28) -> 313.7624288 | Z9: =IF(R9="","",R9*Parametros!$I$29) -> 1223.217172
A10: 9600 | B10: 9 | C10: =IF(Padroes!C14="","",Padroes!C14) -> 600 | D10: =IF(Padroes!D14="","",Padroes!D14) -> 1000 | E10: 1.5 | F10: 7 | G10: =IF(Padroes!E14="","",Padroes!E14) -> 0.37 | H10: =IF(E10="","",Padroes!S$8) -> 1 | I10: =IF(E10="","",Padroes!S$9) -> 0.2 | J10: =IF(E10="","",Padroes!S$10) -> 0.5 | K10: =IF(Padroes!AL18="","",Padroes!AL18) -> 1.6 | L10: 3895.29856 | M10: =Padroes!$AL$8 -> 0.6 | N10: =IF(E10="","",Padroes!$AL$23) -> 1 | O10: 293.8235294 | P10: 379.6661101 | Q10: 404.5696395 | R10: 1607.452902 | T10: =IF(Padroes!F14="","",Padroes!F14) -> C-19 | W10: =IF(O10="","",O10*Parametros!$I$26) -> 235.0588235 | X10: =IF(P10="","",P10*Parametros!$I$27) -> 303.732888 | Y10: =IF(Q10="","",Q10*Parametros!$I$28) -> 323.6557116 | Z10: =IF(R10="","",R10*Parametros!$I$29) -> 1607.452902
A11: 91000 | B11: 9 | C11: =IF(Padroes!C15="","",Padroes!C15) -> 1000 | D11: =IF(Padroes!D15="","",Padroes!D15) -> 1160 | E11: 1.5 | F11: 7 | G11: =IF(Padroes!E15="","",Padroes!E15) -> 0.41 | H11: =IF(E11="","",Padroes!S$8) -> 1 | I11: =IF(E11="","",Padroes!S$9) -> 0.2 | J11: =IF(E11="","",Padroes!S$10) -> 0.5 | K11: =IF(Padroes!AL19="","",Padroes!AL19) -> 1.6 | L11: 4055.29856 | M11: =Padroes!$AL$8 -> 0.6 | N11: =IF(E11="","",Padroes!$AL$23) -> 1 | O11: 325.5882353 | P11: 405.9804934 | Q11: 429.3028463 | R11: 1620.017421 | T11: =IF(Padroes!F15="","",Padroes!F15) -> C-23 | W11: =IF(O11="","",O11*Parametros!$I$26) -> 260.4705882 | X11: =IF(P11="","",P11*Parametros!$I$27) -> 324.7843947 | Y11: =IF(Q11="","",Q11*Parametros!$I$28) -> 343.442277 | Z11: =IF(R11="","",R11*Parametros!$I$29) -> 1620.017421
C12: =IF(Padroes!C16="","",Padroes!C16) ->  | D12: =IF(Padroes!D16="","",Padroes!D16) ->  | G12: =IF(Padroes!E16="","",Padroes!E16) ->  | H12: =IF(E12="","",Padroes!S$8) ->  | I12: =IF(E12="","",Padroes!S$9) ->  | J12: =IF(E12="","",Padroes!S$10) ->  | K12: =IF(Padroes!AL20="","",Padroes!AL20) -> 1.8 | M12: =Padroes!$AL$8 -> 0.6 | N12: =IF(E12="","",Padroes!$AL$23) ->  | T12: =IF(Padroes!F16="","",Padroes!F16) ->  | W12: =IF(O12="","",O12*Parametros!$I$26) ->  | X12: =IF(P12="","",P12*Parametros!$I$27) ->  | Y12: =IF(Q12="","",Q12*Parametros!$I$28) ->  | Z12: =IF(R12="","",R12*Parametros!$I$29) -> 
C13: =IF(Padroes!C17="","",Padroes!C17) ->  | D13: =IF(Padroes!D17="","",Padroes!D17) ->  | G13: =IF(Padroes!E17="","",Padroes!E17) ->  | H13: =IF(E13="","",Padroes!S$8) ->  | I13: =IF(E13="","",Padroes!S$9) ->  | J13: =IF(E13="","",Padroes!S$10) ->  | K13: =IF(Padroes!AL21="","",Padroes!AL21) -> 1.8 | M13: =Padroes!$AL$8 -> 0.6 | N13: =IF(E13="","",Padroes!$AL$23) ->  | T13: =IF(Padroes!F17="","",Padroes!F17) ->  | W13: =IF(O13="","",O13*Parametros!$I$26) ->  | X13: =IF(P13="","",P13*Parametros!$I$27) ->  | Y13: =IF(Q13="","",Q13*Parametros!$I$28) ->  | Z13: =IF(R13="","",R13*Parametros!$I$29) -> 
A14: 9 | B14: 9 | C14: =IF(Engastamento_Profundo!F$4=9,Engastamento_Profundo!F$5, 0) -> 0 | D14: =IF(Engastamento_Profundo!F$6="",VLOOKUP(C14,Padroes!$C$10:$D$17,2,FALSE),Engastamento_Profundo!$F$6 ) ->  | E14: =IF(Engastamento_Profundo!$F$8="",1.5,Engastamento_Profundo!$F8) -> 2.617400365 | F14: =IF(Engastamento_Profundo!F$17="",7,Engastamento_Profundo!F$17) -> 7 | G14: =IF(Engastamento_Profundo!F$7="",VLOOKUP(C14,Padroes!$C$10:$E$17,3,FALSE),Engastamento_Profundo!F$7) ->  | H14: =IF(Engastamento_Profundo!F$10="",Padroes!$S$8,Engastamento_Profundo!F$10) -> 1 | I14: =IF(Engastamento_Profundo!F$11="",Padroes!$S$9,Engastamento_Profundo!F$11) -> 0.2 | J14: =IF(Engastamento_Profundo!F$12="",Padroes!$S$10,Engastamento_Profundo!F$12) -> 0.5 | K14: =IF(Engastamento_Profundo!F$14="",VLOOKUP(C14,$C$6:$K$13,9,FALSE),Engastamento_Profundo!F$14) ->  | L14: =D14+(3.1416*K14^2*M14/4*2400) ->  | M14: =Padroes!$AL$8 -> 0.6 | N14: 1 | T14: =IF(Padroes!F18="","",Padroes!F18) -> C-14 | W14: =IF(O14="","",O14*Parametros!$I$26) ->  | X14: =IF(P14="","",P14*Parametros!$I$27) ->  | Y14: =IF(Q14="","",Q14*Parametros!$I$28) ->  | Z14: =IF(R14="","",R14*Parametros!$I$29) -> 
A15: 10150 | B15: 10 | C15: =IF(Padroes!C18="","",Padroes!C18) -> 150 | D15: =IF(Padroes!D18="","",Padroes!D18) -> 750 | E15: 1.6 | F15: =IF(E15="","",(B15-E15-0.2)) -> 8.2 | G15: =IF(Padroes!E18="","",Padroes!E18) -> 0.34 | H15: =IF(E15="","",Padroes!S$8) -> 1 | I15: =IF(E15="","",Padroes!S$9) -> 0.2 | J15: =IF(E15="","",Padroes!S$10) -> 0.5 | K15: =IF(Padroes!AL13="","",Padroes!AL13) -> 0.6 | L15: 1191.08064 | M15: =Padroes!AL$9 -> 0.65 | N15: =IF(E15="","",Padroes!$AL$23) -> 1 | O15: 284.2122449 | P15: 368.6922449 | Q15: 392.9371429 | R15: 531.5787811 | S15: 10 | T15: =IF(Padroes!F19="","",Padroes!F19) -> C-17 | W15: =IF(O15="","",O15*Parametros!$I$26) -> 227.3697959 | X15: =IF(P15="","",P15*Parametros!$I$27) -> 294.9537959 | Y15: =IF(Q15="","",Q15*Parametros!$I$28) -> 314.3497143 | Z15: =IF(R15="","",R15*Parametros!$I$29) -> 531.5787811
A16: 10300 | B16: 10 | C16: =IF(Padroes!C19="","",Padroes!C19) -> 300 | D16: =IF(Padroes!D19="","",Padroes!D19) -> 910 | E16: 1.6 | F16: =IF(E16="","",(B16-E16-0.2)) -> 8.2 | G16: =IF(Padroes!E19="","",Padroes!E19) -> 0.37 | H16: =IF(E16="","",Padroes!S$8) -> 1 | I16: =IF(E16="","",Padroes!S$9) -> 0.2 | J16: =IF(E16="","",Padroes!S$10) -> 0.5 | K16: =IF(Padroes!AL15="","",Padroes!AL15) -> 0.7 | L16: 1510.35976 | M16: =Padroes!AL$9 -> 0.65 | N16: =IF(E16="","",Padroes!$AL$23) -> 1 | O16: 309.2897959 | P16: 389.9297959 | Q16: 413.0726531 | R16: 630.2166907 | T16: =IF(Padroes!F20="","",Padroes!F20) -> C-17 | W16: =IF(O16="","",O16*Parametros!$I$26) -> 247.4318367 | X16: =IF(P16="","",P16*Parametros!$I$27) -> 311.9438367 | Y16: =IF(Q16="","",Q16*Parametros!$I$28) -> 330.4581224 | Z16: =IF(R16="","",R16*Parametros!$I$29) -> 630.2166907
A17: 10400 | B17: 10 | C17: =IF(Padroes!C20="","",Padroes!C20) -> 400 | D17: =IF(Padroes!D20="","",Padroes!D20) -> 910 | E17: 1.6 | F17: 8.2 | G17: =IF(Padroes!E20="","",Padroes!E20) -> 0.37 | H17: =IF(E17="","",Padroes!S$8) -> 1 | I17: =IF(E17="","",Padroes!S$9) -> 0.2 | J17: =IF(E17="","",Padroes!S$10) -> 0.5 | K17: =IF(Padroes!AL16="","",Padroes!AL16) -> 0.9 | L17: 1902.43144 | M17: =Padroes!AL$9 -> 0.65 | N17: =IF(E17="","",Padroes!$AL$23) -> 1 | O17: 309.2897959 | P17: 389.9297959 | Q17: 413.0726531 | R17: 828.7405355 | T17: =IF(Padroes!F21="","",Padroes!F21) -> C-19 | W17: =IF(O17="","",O17*Parametros!$I$26) -> 247.4318367 | X17: =IF(P17="","",P17*Parametros!$I$27) -> 311.9438367 | Y17: =IF(Q17="","",Q17*Parametros!$I$28) -> 330.4581224 | Z17: =IF(R17="","",R17*Parametros!$I$29) -> 828.7405355
A18: 10600 | B18: 10 | C18: =IF(Padroes!C21="","",Padroes!C21) -> 600 | D18: =IF(Padroes!D21="","",Padroes!D21) -> 1090 | E18: 1.6 | F18: 8.2 | G18: =IF(Padroes!E21="","",Padroes!E21) -> 0.39 | H18: =IF(E18="","",Padroes!S$8) -> 1 | I18: =IF(E18="","",Padroes!S$9) -> 0.2 | J18: =IF(E18="","",Padroes!S$10) -> 0.5 | K18: =IF(Padroes!AL17="","",Padroes!AL17) -> 1.3 | L18: 3160.62856 | M18: =Padroes!AL$9 -> 0.65 | N18: =IF(E18="","",Padroes!$AL$23) -> 1 | O18: 326.0081633 | P18: 404.0881633 | Q18: 426.4963265 | R18: 1275.41778 | T18: =IF(Padroes!F22="","",Padroes!F22) -> C-23 | W18: =IF(O18="","",O18*Parametros!$I$26) -> 260.8065306 | X18: =IF(P18="","",P18*Parametros!$I$27) -> 323.2705306 | Y18: =IF(Q18="","",Q18*Parametros!$I$28) -> 341.1970612 | Z18: =IF(R18="","",R18*Parametros!$I$29) -> 1275.41778
A19: 101000 | B19: 10 | C19: =IF(Padroes!C22="","",Padroes!C22) -> 1000 | D19: =IF(Padroes!D22="","",Padroes!D22) -> 1350 | E19: 1.6 | F19: 8.2 | G19: =IF(Padroes!E22="","",Padroes!E22) -> 0.43 | H19: =IF(E19="","",Padroes!S$8) -> 1 | I19: =IF(E19="","",Padroes!S$9) -> 0.2 | J19: =IF(E19="","",Padroes!S$10) -> 0.5 | K19: =IF(Padroes!AL18="","",Padroes!AL18) -> 1.6 | L19: 4486.57344 | M19: =Padroes!AL$9 -> 0.65 | N19: =IF(E19="","",Padroes!$AL$23) -> 1 | O19: 359.444898 | P19: 432.404898 | Q19: 453.3436735 | R19: 1669.486707 | T19: =IF(Padroes!F23="","",Padroes!F23) -> C-29 | W19: =IF(O19="","",O19*Parametros!$I$26) -> 287.5559184 | X19: =IF(P19="","",P19*Parametros!$I$27) -> 345.9239184 | Y19: =IF(Q19="","",Q19*Parametros!$I$28) -> 362.6749388 | Z19: =IF(R19="","",R19*Parametros!$I$29) -> 1669.486707
A20: 101500 | B20: 10 | C20: =IF(Padroes!C23="","",Padroes!C23) -> 1500 | D20: =IF(Padroes!D23="","",Padroes!D23) -> 1900 | E20: 1.6 | F20: 8.2 | G20: =IF(Padroes!E23="","",Padroes!E23) -> 0.49 | H20: =IF(E20="","",Padroes!S$8) -> 1 | I20: =IF(E20="","",Padroes!S$9) -> 0.2 | J20: =IF(E20="","",Padroes!S$10) -> 0.5 | K20: =IF(Padroes!AL19="","",Padroes!AL19) -> 1.6 | L20: 5036.57344 | M20: =Padroes!AL$9 -> 0.65 | N20: =IF(E20="","",Padroes!$AL$23) -> 1 | O20: 409.6 | P20: 474.88 | Q20: 493.6146939 | R20: 1705.476961 | T20: =IF(Padroes!F24="","",Padroes!F24) ->  | W20: =IF(O20="","",O20*Parametros!$I$26) -> 327.68 | X20: =IF(P20="","",P20*Parametros!$I$27) -> 379.904 | Y20: =IF(Q20="","",Q20*Parametros!$I$28) -> 394.8917551 | Z20: =IF(R20="","",R20*Parametros!$I$29) -> 1705.476961
C21: =IF(Padroes!C24="","",Padroes!C24) ->  | D21: =IF(Padroes!D24="","",Padroes!D24) ->  | G21: =IF(Padroes!E24="","",Padroes!E24) ->  | H21: =IF(E21="","",Padroes!S$8) ->  | I21: =IF(E21="","",Padroes!S$9) ->  | J21: =IF(E21="","",Padroes!S$10) ->  | K21: =IF(Padroes!AL20="","",Padroes!AL20) -> 1.8 | M21: =Padroes!AL$9 -> 0.65 | N21: =IF(E21="","",Padroes!$AL$23) ->  | T21: =IF(Padroes!F25="","",Padroes!F25) ->  | W21: =IF(O21="","",O21*Parametros!$I$26) ->  | X21: =IF(P21="","",P21*Parametros!$I$27) ->  | Y21: =IF(Q21="","",Q21*Parametros!$I$28) ->  | Z21: =IF(R21="","",R21*Parametros!$I$29) -> 
C22: =IF(Padroes!C25="","",Padroes!C25) ->  | D22: =IF(Padroes!D25="","",Padroes!D25) ->  | G22: =IF(Padroes!E25="","",Padroes!E25) ->  | H22: =IF(E22="","",Padroes!S$8) ->  | I22: =IF(E22="","",Padroes!S$9) ->  | J22: =IF(E22="","",Padroes!S$10) ->  | K22: =IF(Padroes!AL21="","",Padroes!AL21) -> 1.8 | M22: =Padroes!AL$9 -> 0.65 | N22: =IF(E22="","",Padroes!$AL$23) ->  | T22: =IF(Padroes!F26="","",Padroes!F26) -> C-14 | W22: =IF(O22="","",O22*Parametros!$I$26) ->  | X22: =IF(P22="","",P22*Parametros!$I$27) ->  | Y22: =IF(Q22="","",Q22*Parametros!$I$28) ->  | Z22: =IF(R22="","",R22*Parametros!$I$29) -> 
A23: 10 | B23: 10 | C23: =IF(Engastamento_Profundo!F$4=10,Engastamento_Profundo!F$5, 0) -> 0 | D23: =IF(Engastamento_Profundo!F$6="",VLOOKUP(C23,Padroes!$C$18:$E$25,2,FALSE),Engastamento_Profundo!$F$6 ) ->  | E23: =IF(Engastamento_Profundo!$F$8="",1.6,Engastamento_Profundo!$F$8) -> 2.617400365 | F23: =IF(Engastamento_Profundo!F$17="",8.2,Engastamento_Profundo!F$17) -> 8.2 | G23: =IF(Engastamento_Profundo!F$7="",VLOOKUP(C23,Padroes!$C$18:$E$25,3,FALSE),Engastamento_Profundo!F$7) ->  | H23: =IF(Engastamento_Profundo!F$10="",Padroes!$S$8,Engastamento_Profundo!F$10) -> 1 | I23: =IF(Engastamento_Profundo!F$11="",Padroes!$S$9,Engastamento_Profundo!F$11) -> 0.2 | J23: =IF(Engastamento_Profundo!F$12="",Padroes!$S$10,Engastamento_Profundo!F$12) -> 0.5 | K23: =IF(Engastamento_Profundo!F$14="",VLOOKUP(C23,$C$15:$K$22,9,FALSE),Engastamento_Profundo!F$14) ->  | L23: =D23+(3.1416*K23^2*M23/4*2400) ->  | M23: =Padroes!$AL$9 -> 0.65 | N23: 1 | T23: =IF(Padroes!F27="","",Padroes!F27) -> C-17 | W23: =IF(O23="","",O23*Parametros!$I$26) ->  | X23: =IF(P23="","",P23*Parametros!$I$27) ->  | Y23: =IF(Q23="","",Q23*Parametros!$I$28) ->  | Z23: =IF(R23="","",R23*Parametros!$I$29) -> 
A24: 11200 | B24: 11 | C24: =IF(Padroes!C26="","",Padroes!C26) -> 200 | D24: =IF(Padroes!D26="","",Padroes!D26) -> 870 | E24: 1.7 | F24: 9.1 | G24: =IF(Padroes!E26="","",Padroes!E26) -> 0.36 | H24: =IF(E24="","",Padroes!S$8) -> 1 | I24: =IF(E24="","",Padroes!S$9) -> 0.2 | J24: =IF(E24="","",Padroes!S$10) -> 0.5 | K24: =IF(Padroes!AL13="","",Padroes!AL13) -> 0.6 | L24: 1345.00992 | M24: =Padroes!AL$10 -> 0.7 | N24: =IF(E24="","",Padroes!$AL$23) -> 1 | O24: 327.5333333 | P24: 407.8067002 | Q24: 430.5622557 | R24: 575.8056184 | S24: 11 | T24: =IF(Padroes!F28="","",Padroes!F28) -> C-17 | W24: =IF(O24="","",O24*Parametros!$I$26) -> 262.0266667 | X24: =IF(P24="","",P24*Parametros!$I$27) -> 326.2453601 | Y24: =IF(Q24="","",Q24*Parametros!$I$28) -> 344.4498046 | Z24: =IF(R24="","",R24*Parametros!$I$29) -> 575.8056184
A25: 11300 | B25: 11 | C25: =IF(Padroes!C27="","",Padroes!C27) -> 300 | D25: =IF(Padroes!D27="","",Padroes!D27) -> 1030 | E25: 1.7 | F25: 9.1 | G25: =IF(Padroes!E27="","",Padroes!E27) -> 0.39 | H25: =IF(E25="","",Padroes!S$8) -> 1 | I25: =IF(E25="","",Padroes!S$9) -> 0.2 | J25: =IF(E25="","",Padroes!S$10) -> 0.5 | K25: =IF(Padroes!AL15="","",Padroes!AL15) -> 0.7 | L25: 1676.54128 | M25: =Padroes!AL$10 -> 0.7 | N25: =IF(E25="","",Padroes!$AL$23) -> 1 | O25: 354.8277778 | P25: 431.3383305 | Q25: 453.0272194 | R25: 681.2881212 | T25: =IF(Padroes!F29="","",Padroes!F29) -> C-19 | W25: =IF(O25="","",O25*Parametros!$I$26) -> 283.8622222 | X25: =IF(P25="","",P25*Parametros!$I$27) -> 345.0706644 | Y25: =IF(Q25="","",Q25*Parametros!$I$28) -> 362.4217755 | Z25: =IF(R25="","",R25*Parametros!$I$29) -> 681.2881212
A26: 11400 | B26: 11 | C26: =IF(Padroes!C28="","",Padroes!C28) -> 400 | D26: =IF(Padroes!D28="","",Padroes!D28) -> 1030 | E26: 1.7 | F26: 9.1 | G26: =IF(Padroes!E28="","",Padroes!E28) -> 0.39 | H26: =IF(E26="","",Padroes!S$8) -> 1 | I26: =IF(E26="","",Padroes!S$9) -> 0.2 | J26: =IF(E26="","",Padroes!S$10) -> 0.5 | K26: =IF(Padroes!AL16="","",Padroes!AL16) -> 0.9 | L26: 2098.77232 | M26: =Padroes!AL$10 -> 0.7 | N26: =IF(E26="","",Padroes!$AL$23) -> 1 | O26: 354.8277778 | P26: 431.3383305 | Q26: 453.0272194 | R26: 894.1975565 | T26: =IF(Padroes!F30="","",Padroes!F30) -> C-23 | W26: =IF(O26="","",O26*Parametros!$I$26) -> 283.8622222 | X26: =IF(P26="","",P26*Parametros!$I$27) -> 345.0706644 | Y26: =IF(Q26="","",Q26*Parametros!$I$28) -> 362.4217755 | Z26: =IF(R26="","",R26*Parametros!$I$29) -> 894.1975565
A27: 11600 | B27: 11 | C27: =IF(Padroes!C29="","",Padroes!C29) -> 600 | D27: =IF(Padroes!D29="","",Padroes!D29) -> 1260 | E27: 1.7 | F27: 9.1 | G27: =IF(Padroes!E29="","",Padroes!E29) -> 0.41 | H27: =IF(E27="","",Padroes!S$8) -> 1 | I27: =IF(E27="","",Padroes!S$9) -> 0.2 | J27: =IF(E27="","",Padroes!S$10) -> 0.5 | K27: =IF(Padroes!AL17="","",Padroes!AL17) -> 1.3 | L27: 3489.90768 | M27: =Padroes!AL$10 -> 0.7 | N27: =IF(E27="","",Padroes!$AL$23) -> 1 | O27: 373.0240741 | P27: 447.0260841 | Q27: 468.0038619 | R27: 1369.66713 | T27: =IF(Padroes!F31="","",Padroes!F31) -> C-29 | W27: =IF(O27="","",O27*Parametros!$I$26) -> 298.4192593 | X27: =IF(P27="","",P27*Parametros!$I$27) -> 357.6208673 | Y27: =IF(Q27="","",Q27*Parametros!$I$28) -> 374.4030895 | Z27: =IF(R27="","",R27*Parametros!$I$29) -> 1369.66713
A28: 111000 | B28: 11 | C28: =IF(Padroes!C30="","",Padroes!C30) -> 1000 | D28: =IF(Padroes!D30="","",Padroes!D30) -> 1600 | E28: 1.7 | F28: 9.1 | G28: =IF(Padroes!E30="","",Padroes!E30) -> 0.45 | H28: =IF(E28="","",Padroes!S$8) -> 1 | I28: =IF(E28="","",Padroes!S$9) -> 0.2 | J28: =IF(E28="","",Padroes!S$10) -> 0.5 | K28: =IF(Padroes!AL18="","",Padroes!AL18) -> 1.6 | L28: 4977.84832 | M28: =Padroes!AL$10 -> 0.7 | N28: =IF(E28="","",Padroes!$AL$23) -> 1 | O28: 409.4166667 | P28: 478.4015913 | Q28: 497.9571468 | R28: 1786.194052 | T28: =IF(Padroes!F32="","",Padroes!F32) ->  | W28: =IF(O28="","",O28*Parametros!$I$26) -> 327.5333333 | X28: =IF(P28="","",P28*Parametros!$I$27) -> 382.721273 | Y28: =IF(Q28="","",Q28*Parametros!$I$28) -> 398.3657175 | Z28: =IF(R28="","",R28*Parametros!$I$29) -> 1786.194052
A29: 111500 | B29: 11 | C29: =IF(Padroes!C31="","",Padroes!C31) -> 1500 | D29: =IF(Padroes!D31="","",Padroes!D31) -> 2100 | E29: 1.7 | F29: 9.1 | G29: =IF(Padroes!E31="","",Padroes!E31) -> 0.51 | H29: =IF(E29="","",Padroes!S$8) -> 1 | I29: =IF(E29="","",Padroes!S$9) -> 0.2 | J29: =IF(E29="","",Padroes!S$10) -> 0.5 | K29: =IF(Padroes!AL19="","",Padroes!AL19) -> 1.6 | L29: 5477.84832 | M29: =Padroes!AL$10 -> 0.7 | N29: =IF(E29="","",Padroes!$AL$23) -> 1 | O29: 464.0055556 | P29: 525.464852 | Q29: 542.8870743 | R29: 1815.163422 | T29: =IF(Padroes!F33="","",Padroes!F33) ->  | W29: =IF(O29="","",O29*Parametros!$I$26) -> 371.2044444 | X29: =IF(P29="","",P29*Parametros!$I$27) -> 420.3718816 | Y29: =IF(Q29="","",Q29*Parametros!$I$28) -> 434.3096594 | Z29: =IF(R29="","",R29*Parametros!$I$29) -> 1815.163422
C30: =IF(Padroes!C32="","",Padroes!C32) ->  | D30: =IF(Padroes!D32="","",Padroes!D32) ->  | G30: =IF(Padroes!E32="","",Padroes!E32) ->  | H30: =IF(E30="","",Padroes!S$8) ->  | I30: =IF(E30="","",Padroes!S$9) ->  | J30: =IF(E30="","",Padroes!S$10) ->  | K30: =IF(Padroes!AL20="","",Padroes!AL20) -> 1.8 | M30: =Padroes!AL$10 -> 0.7 | N30: =IF(E30="","",Padroes!$AL$23) ->  | T30: =IF(Padroes!F34="","",Padroes!F34) -> C-17 | W30: =IF(O30="","",O30*Parametros!$I$26) ->  | X30: =IF(P30="","",P30*Parametros!$I$27) ->  | Y30: =IF(Q30="","",Q30*Parametros!$I$28) ->  | Z30: =IF(R30="","",R30*Parametros!$I$29) -> 
C31: =IF(Padroes!C33="","",Padroes!C33) ->  | D31: =IF(Padroes!D33="","",Padroes!D33) ->  | G31: =IF(Padroes!E33="","",Padroes!E33) ->  | H31: =IF(E31="","",Padroes!S$8) ->  | I31: =IF(E31="","",Padroes!S$9) ->  | J31: =IF(E31="","",Padroes!S$10) ->  | K31: =IF(Padroes!AL21="","",Padroes!AL21) -> 1.8 | M31: =Padroes!AL$10 -> 0.7 | N31: =IF(E31="","",Padroes!$AL$23) ->  | T31: =IF(Padroes!F35="","",Padroes!F35) -> C-17 | W31: =IF(O31="","",O31*Parametros!$I$26) ->  | X31: =IF(P31="","",P31*Parametros!$I$27) ->  | Y31: =IF(Q31="","",Q31*Parametros!$I$28) ->  | Z31: =IF(R31="","",R31*Parametros!$I$29) -> 
A32: 11 | B32: 11 | C32: =IF(Engastamento_Profundo!F$4=11,Engastamento_Profundo!F$5, 0) -> 0 | D32: =IF(Engastamento_Profundo!F$6="",VLOOKUP(C32,Padroes!$C$26:$D$33,2,FALSE),Engastamento_Profundo!$F$6 ) ->  | E32: =IF(Engastamento_Profundo!$F$8="",1.7,Engastamento_Profundo!$F$8) -> 2.617400365 | F32: =IF(Engastamento_Profundo!F$17="",9.1,Engastamento_Profundo!F$17) -> 9.1 | G32: =IF(Engastamento_Profundo!F$7="",VLOOKUP(C32,Padroes!$C$26:$E$33,3,FALSE),Engastamento_Profundo!F$7) ->  | H32: =IF(Engastamento_Profundo!F$10="",Padroes!$S$8,Engastamento_Profundo!F$10) -> 1 | I32: =IF(Engastamento_Profundo!F$11="",Padroes!$S$9,Engastamento_Profundo!F$11) -> 0.2 | J32: =IF(Engastamento_Profundo!F$12="",Padroes!$S$10,Engastamento_Profundo!F$12) -> 0.5 | K32: =IF(Engastamento_Profundo!F$14="",VLOOKUP(C32,$C$24:$K$31,9,FALSE),Engastamento_Profundo!F$14) ->  | L32: =D32+(3.1416*K32^2*M32/4*2400) ->  | M32: =Padroes!$AL$10 -> 0.7 | N32: 1 | T32: =IF(Padroes!F36="","",Padroes!F36) -> C-19 | W32: =IF(O32="","",O32*Parametros!$I$26) ->  | X32: =IF(P32="","",P32*Parametros!$I$27) ->  | Y32: =IF(Q32="","",Q32*Parametros!$I$28) ->  | Z32: =IF(R32="","",R32*Parametros!$I$29) -> 
A33: 12300 | B33: 12 | C33: =IF(Padroes!C34="","",Padroes!C34) -> 300 | D33: =IF(Padroes!D34="","",Padroes!D34) -> 1130 | E33: 1.8 | F33: 10 | G33: =IF(Padroes!E34="","",Padroes!E34) -> 0.41 | H33: =IF(E33="","",Padroes!S$8) -> 1 | I33: =IF(E33="","",Padroes!S$9) -> 0.2 | J33: =IF(E33="","",Padroes!S$10) -> 0.5 | K33: =IF(Padroes!AL13="","",Padroes!AL13) -> 0.6 | L33: 1638.9392 | M33: =Padroes!AL$11 -> 0.75 | N33: =IF(E33="","",Padroes!$AL$23) -> 1 | O33: 405.2745763 | P33: 478.0232001 | Q33: 498.4232001 | R33: 624.6354723 | S33: 12 | T33: =IF(Padroes!F37="","",Padroes!F37) -> C-23 | W33: =IF(O33="","",O33*Parametros!$I$26) -> 324.219661 | X33: =IF(P33="","",P33*Parametros!$I$27) -> 382.4185601 | Y33: =IF(Q33="","",Q33*Parametros!$I$28) -> 398.7385601 | Z33: =IF(R33="","",R33*Parametros!$I$29) -> 624.6354723
A34: 12400 | B34: 12 | C34: =IF(Padroes!C35="","",Padroes!C35) -> 400 | D34: =IF(Padroes!D35="","",Padroes!D35) -> 1130 | E34: 1.8 | F34: 10 | G34: =IF(Padroes!E35="","",Padroes!E35) -> 0.41 | H34: =IF(E34="","",Padroes!S$8) -> 1 | I34: =IF(E34="","",Padroes!S$9) -> 0.2 | J34: =IF(E34="","",Padroes!S$10) -> 0.5 | K34: =IF(Padroes!AL15="","",Padroes!AL15) -> 0.7 | L34: 1822.7228 | M34: =Padroes!AL$11 -> 0.75 | N34: =IF(E34="","",Padroes!$AL$23) -> 1 | O34: 405.2745763 | P34: 478.0232001 | Q34: 498.4232001 | R34: 735.2702093 | T34: =IF(Padroes!F38="","",Padroes!F38) -> C-29 | W34: =IF(O34="","",O34*Parametros!$I$26) -> 324.219661 | X34: =IF(P34="","",P34*Parametros!$I$27) -> 382.4185601 | Y34: =IF(Q34="","",Q34*Parametros!$I$28) -> 398.7385601 | Z34: =IF(R34="","",R34*Parametros!$I$29) -> 735.2702093
A35: 12600 | B35: 12 | C35: =IF(Padroes!C36="","",Padroes!C36) -> 600 | D35: =IF(Padroes!D36="","",Padroes!D36) -> 1440 | E35: 1.8 | F35: 10 | G35: =IF(Padroes!E36="","",Padroes!E36) -> 0.43 | H35: =IF(E35="","",Padroes!S$8) -> 1 | I35: =IF(E35="","",Padroes!S$9) -> 0.2 | J35: =IF(E35="","",Padroes!S$10) -> 0.5 | K35: =IF(Padroes!AL16="","",Padroes!AL16) -> 0.9 | L35: 2585.1132 | M35: =Padroes!AL$11 -> 0.75 | N35: =IF(E35="","",Padroes!$AL$23) -> 1 | O35: 425.0440678 | P35: 495.3266366 | Q35: 515.0351112 | R35: 971.431504 | T35: =IF(Padroes!F39="","",Padroes!F39) -> C-33 | W35: =IF(O35="","",O35*Parametros!$I$26) -> 340.0352542 | X35: =IF(P35="","",P35*Parametros!$I$27) -> 396.2613093 | Y35: =IF(Q35="","",Q35*Parametros!$I$28) -> 412.0280889 | Z35: =IF(R35="","",R35*Parametros!$I$29) -> 971.431504
A36: 121000 | B36: 12 | C36: =IF(Padroes!C37="","",Padroes!C37) -> 1000 | D36: =IF(Padroes!D37="","",Padroes!D37) -> 1770 | E36: 1.8 | F36: 10 | G36: =IF(Padroes!E37="","",Padroes!E37) -> 0.47 | H36: =IF(E36="","",Padroes!S$8) -> 1 | I36: =IF(E36="","",Padroes!S$9) -> 0.2 | J36: =IF(E36="","",Padroes!S$10) -> 0.5 | K36: =IF(Padroes!AL17="","",Padroes!AL17) -> 1.3 | L36: 4159.1868 | M36: =Padroes!AL$11 -> 0.75 | N36: =IF(E36="","",Padroes!$AL$23) -> 1 | O36: 464.5830508 | P36: 529.9335096 | Q36: 548.2589333 | R36: 1484.052841 | T36: =IF(Padroes!F40="","",Padroes!F40) -> C-43 | W36: =IF(O36="","",O36*Parametros!$I$26) -> 371.6664407 | X36: =IF(P36="","",P36*Parametros!$I$27) -> 423.9468077 | Y36: =IF(Q36="","",Q36*Parametros!$I$28) -> 438.6071466 | Z36: =IF(R36="","",R36*Parametros!$I$29) -> 1484.052841
A37: 121500 | B37: 12 | C37: =IF(Padroes!C38="","",Padroes!C38) -> 1500 | D37: =IF(Padroes!D38="","",Padroes!D38) -> 2450 | E37: 1.8 | F37: 10 | G37: =IF(Padroes!E38="","",Padroes!E38) -> 0.53 | H37: =IF(E37="","",Padroes!S$8) -> 1 | I37: =IF(E37="","",Padroes!S$9) -> 0.2 | J37: =IF(E37="","",Padroes!S$10) -> 0.5 | K37: =IF(Padroes!AL18="","",Padroes!AL18) -> 1.6 | L37: 6069.1232 | M37: =Padroes!AL$11 -> 0.75 | N37: =IF(E37="","",Padroes!$AL$23) -> 1 | O37: 523.8915254 | P37: 581.843819 | Q37: 598.0946665 | R37: 1940.999516 | T37: =IF(Padroes!F41="","",Padroes!F41) ->  | W37: =IF(O37="","",O37*Parametros!$I$26) -> 419.1132203 | X37: =IF(P37="","",P37*Parametros!$I$27) -> 465.4750552 | Y37: =IF(Q37="","",Q37*Parametros!$I$28) -> 478.4757332 | Z37: =IF(R37="","",R37*Parametros!$I$29) -> 1940.999516
A38: 122000 | B38: 12 | C38: =IF(Padroes!C39="","",Padroes!C39) -> 2000 | D38: =IF(Padroes!D39="","",Padroes!D39) -> 3000 | E38: 1.8 | F38: 10 | G38: =IF(Padroes!E39="","",Padroes!E39) -> 0.57 | H38: =IF(E38="","",Padroes!S$8) -> 1 | I38: =IF(E38="","",Padroes!S$9) -> 0.2 | J38: =IF(E38="","",Padroes!S$10) -> 0.5 | K38: =IF(Padroes!AL19="","",Padroes!AL19) -> 1.6 | L38: 6619.1232 | M38: =Padroes!AL$11 -> 0.75 | N38: =IF(E38="","",Padroes!$AL$23) -> 1 | O38: 563.4305085 | P38: 616.450692 | Q38: 631.3184886 | R38: 1968.430963 | T38: =IF(Padroes!F42="","",Padroes!F42) -> C-17 | W38: =IF(O38="","",O38*Parametros!$I$26) -> 450.7444068 | X38: =IF(P38="","",P38*Parametros!$I$27) -> 493.1605536 | Y38: =IF(Q38="","",Q38*Parametros!$I$28) -> 505.0547909 | Z38: =IF(R38="","",R38*Parametros!$I$29) -> 1968.430963
A39: 123000 | B39: 12 | C39: =IF(Padroes!C40="","",Padroes!C40) -> 3000 | D39: =IF(Padroes!D40="","",Padroes!D40) -> 4150 | E39: 1.8 | F39: 10 | G39: =IF(Padroes!E40="","",Padroes!E40) -> 0.67 | H39: =IF(E39="","",Padroes!S$8) -> 1 | I39: =IF(E39="","",Padroes!S$9) -> 0.2 | J39: =IF(E39="","",Padroes!S$10) -> 0.5 | K39: =IF(Padroes!AL20="","",Padroes!AL20) -> 1.8 | L39: 8730.4528 | M39: =Padroes!AL$11 -> 0.75 | N39: =IF(E39="","",Padroes!$AL$23) -> 1 | O39: 662.2779661 | P39: 702.9678744 | Q39: 714.3780439 | R39: 2349.441559 | T39: =IF(Padroes!F43="","",Padroes!F43) -> C-17 | W39: =IF(O39="","",O39*Parametros!$I$26) -> 529.8223729 | X39: =IF(P39="","",P39*Parametros!$I$27) -> 562.3742995 | Y39: =IF(Q39="","",Q39*Parametros!$I$28) -> 571.5024351 | Z39: =IF(R39="","",R39*Parametros!$I$29) -> 2349.441559
B40: =IF(Engastamento_Profundo!$F$4=12,Engastamento_Profundo!$F$4,"") ->  | C40: =IF(Padroes!C41="","",Padroes!C41) ->  | D40: =IF(Padroes!D41="","",Padroes!D41) ->  | G40: =IF(Padroes!E41="","",Padroes!E41) ->  | H40: =IF(E40="","",Padroes!S$8) ->  | I40: =IF(E40="","",Padroes!S$9) ->  | J40: =IF(E40="","",Padroes!S$10) ->  | K40: =IF(Padroes!AL21="","",Padroes!AL21) -> 1.8 | M40: =Padroes!AL$11 -> 0.75 | N40: =IF(E40="","",Padroes!$AL$23) ->  | T40: =IF(Padroes!F44="","",Padroes!F44) -> C-19 | W40: =IF(O40="","",O40*Parametros!$I$26) ->  | X40: =IF(P40="","",P40*Parametros!$I$27) ->  | Y40: =IF(Q40="","",Q40*Parametros!$I$28) ->  | Z40: =IF(R40="","",R40*Parametros!$I$29) -> 
A41: 12 | B41: 12 | C41: =IF(Engastamento_Profundo!F$4=12,Engastamento_Profundo!F$5, 0) -> 0 | D41: =IF(Engastamento_Profundo!F$6="",VLOOKUP(C41,Padroes!$C$34:$E$41,2,FALSE),Engastamento_Profundo!$F$6 ) ->  | E41: =IF(Engastamento_Profundo!$F$8="",1.8,Engastamento_Profundo!$F$8) -> 2.617400365 | F41: =IF(Engastamento_Profundo!F$17="",10,Engastamento_Profundo!F$17) -> 10 | G41: =IF(Engastamento_Profundo!F$7="",VLOOKUP(C41,Padroes!C34:E41,3,FALSE),Engastamento_Profundo!F$7) ->  | H41: =IF(Engastamento_Profundo!F$10="",Padroes!$S$8,Engastamento_Profundo!F$10) -> 1 | I41: =IF(Engastamento_Profundo!F$11="",Padroes!$S$9,Engastamento_Profundo!F$11) -> 0.2 | J41: =IF(Engastamento_Profundo!F$12="",Padroes!$S$10,Engastamento_Profundo!F$12) -> 0.5 | K41: =IF(Engastamento_Profundo!F$14="",VLOOKUP(C41,$C$33:$K$40,9,FALSE),Engastamento_Profundo!F$14) ->  | L41: =D41+(3.1416*K41^2*M41/4*2400) ->  | M41: =Padroes!$AL$11 -> 0.75 | N41: 1 | T41: =IF(Padroes!F45="","",Padroes!F45) -> C-23 | W41: =IF(O41="","",O41*Parametros!$I$26) ->  | X41: =IF(P41="","",P41*Parametros!$I$27) ->  | Y41: =IF(Q41="","",Q41*Parametros!$I$28) ->  | Z41: =IF(R41="","",R41*Parametros!$I$29) -> 
A42: 13300 | B42: 13 | C42: =IF(Padroes!C42="","",Padroes!C42) -> 300 | D42: =IF(Padroes!D42="","",Padroes!D42) -> 1280 | E42: 1.9 | F42: 10.9 | G42: =IF(Padroes!E42="","",Padroes!E42) -> 0.43 | H42: =IF(E42="","",Padroes!S$8) -> 1 | I42: =IF(E42="","",Padroes!S$9) -> 0.2 | J42: =IF(E42="","",Padroes!S$10) -> 0.5 | K42: =IF(Padroes!AL13="","",Padroes!AL13) -> 0.6 | L42: 1822.86848 | M42: =Padroes!AL$12 -> 0.8 | N42: =IF(E42="","",Padroes!$AL$23) -> 1 | O42: 460.8390625 | P42: 530.1048853 | Q42: 549.3423853 | R42: 674.2170581 | S42: 13 | T42: =IF(Padroes!F46="","",Padroes!F46) -> C-29 | W42: =IF(O42="","",O42*Parametros!$I$26) -> 368.67125 | X42: =IF(P42="","",P42*Parametros!$I$27) -> 424.0839082 | Y42: =IF(Q42="","",Q42*Parametros!$I$28) -> 439.4739082 | Z42: =IF(R42="","",R42*Parametros!$I$29) -> 674.2170581
A43: 13400 | B43: 13 | C43: =IF(Padroes!C43="","",Padroes!C43) -> 400 | D43: =IF(Padroes!D43="","",Padroes!D43) -> 1280 | E43: 1.9 | F43: 10.9 | G43: =IF(Padroes!E43="","",Padroes!E43) -> 0.43 | H43: =IF(E43="","",Padroes!S$8) -> 1 | I43: =IF(E43="","",Padroes!S$9) -> 0.2 | J43: =IF(E43="","",Padroes!S$10) -> 0.5 | K43: =IF(Padroes!AL15="","",Padroes!AL15) -> 0.7 | L43: 2018.90432 | M43: =Padroes!AL$12 -> 0.8 | N43: =IF(E43="","",Padroes!$AL$23) -> 1 | O43: 460.8390625 | P43: 530.1048853 | Q43: 549.3423853 | R43: 793.2766631 | T43: =IF(Padroes!F47="","",Padroes!F47) -> C-33 | W43: =IF(O43="","",O43*Parametros!$I$26) -> 368.67125 | X43: =IF(P43="","",P43*Parametros!$I$27) -> 424.0839082 | Y43: =IF(Q43="","",Q43*Parametros!$I$28) -> 439.4739082 | Z43: =IF(R43="","",R43*Parametros!$I$29) -> 793.2766631
A44: 13600 | B44: 13 | C44: =IF(Padroes!C44="","",Padroes!C44) -> 600 | D44: =IF(Padroes!D44="","",Padroes!D44) -> 1680 | E44: 1.9 | F44: 10.9 | G44: =IF(Padroes!E44="","",Padroes!E44) -> 0.45 | H44: =IF(E44="","",Padroes!S$8) -> 1 | I44: =IF(E44="","",Padroes!S$9) -> 0.2 | J44: =IF(E44="","",Padroes!S$10) -> 0.5 | K44: =IF(Padroes!AL16="","",Padroes!AL16) -> 0.9 | L44: 2901.45408 | M44: =Padroes!AL$12 -> 0.8 | N44: =IF(E44="","",Padroes!$AL$23) -> 1 | O44: 482.2734375 | P44: 549.1088805 | Q44: 567.6713805 | R44: 1047.064 | T44: =IF(Padroes!F48="","",Padroes!F48) ->  | W44: =IF(O44="","",O44*Parametros!$I$26) -> 385.81875 | X44: =IF(P44="","",P44*Parametros!$I$27) -> 439.2871044 | Y44: =IF(Q44="","",Q44*Parametros!$I$28) -> 454.1371044 | Z44: =IF(R44="","",R44*Parametros!$I$29) -> 1047.064
A45: 131000 | B45: 13 | C45: =IF(Padroes!C45="","",Padroes!C45) -> 1000 | D45: =IF(Padroes!D45="","",Padroes!D45) -> 1920 | E45: 1.9 | F45: 10.9 | G45: =IF(Padroes!E45="","",Padroes!E45) -> 0.49 | H45: =IF(E45="","",Padroes!S$8) -> 1 | I45: =IF(E45="","",Padroes!S$9) -> 0.2 | J45: =IF(E45="","",Padroes!S$10) -> 0.5 | K45: =IF(Padroes!AL17="","",Padroes!AL17) -> 1.3 | L45: 4468.46592 | M45: =Padroes!AL$12 -> 0.8 | N45: =IF(E45="","",Padroes!$AL$23) -> 1 | O45: 525.1421875 | P45: 587.116871 | Q45: 604.329371 | R45: 1588.149962 | T45: =IF(Padroes!F49="","",Padroes!F49) ->  | W45: =IF(O45="","",O45*Parametros!$I$26) -> 420.11375 | X45: =IF(P45="","",P45*Parametros!$I$27) -> 469.6934968 | Y45: =IF(Q45="","",Q45*Parametros!$I$28) -> 483.4634968 | Z45: =IF(R45="","",R45*Parametros!$I$29) -> 1588.149962
A46: 131500 | B46: 13 | C46: =IF(Padroes!C46="","",Padroes!C46) -> 1500 | D46: =IF(Padroes!D46="","",Padroes!D46) -> 2700 | E46: 1.9 | F46: 10.9 | G46: =IF(Padroes!E46="","",Padroes!E46) -> 0.55 | H46: =IF(E46="","",Padroes!S$8) -> 1 | I46: =IF(E46="","",Padroes!S$9) -> 0.2 | J46: =IF(E46="","",Padroes!S$10) -> 0.5 | K46: =IF(Padroes!AL18="","",Padroes!AL18) -> 1.6 | L46: 6560.39808 | M46: =Padroes!AL$12 -> 0.8 | N46: =IF(E46="","",Padroes!$AL$23) -> 1 | O46: 589.4453125 | P46: 644.1288568 | Q46: 659.3163568 | R46: 2068.734746 | T46: =IF(Padroes!F50="","",Padroes!F50) ->  | W46: =IF(O46="","",O46*Parametros!$I$26) -> 471.55625 | X46: =IF(P46="","",P46*Parametros!$I$27) -> 515.3030854 | Y46: =IF(Q46="","",Q46*Parametros!$I$28) -> 527.4530854 | Z46: =IF(R46="","",R46*Parametros!$I$29) -> 2068.734746
A47: 132000 | B47: 13 | C47: =IF(Padroes!C47="","",Padroes!C47) -> 2000 | D47: =IF(Padroes!D47="","",Padroes!D47) -> 3500 | E47: 1.9 | F47: 10.9 | G47: =IF(Padroes!E47="","",Padroes!E47) -> 0.59 | H47: =IF(E47="","",Padroes!S$8) -> 1 | I47: =IF(E47="","",Padroes!S$9) -> 0.2 | J47: =IF(E47="","",Padroes!S$10) -> 0.5 | K47: =IF(Padroes!AL19="","",Padroes!AL19) -> 1.6 | L47: 7360.39808 | M47: =Padroes!AL$12 -> 0.8 | N47: =IF(E47="","",Padroes!$AL$23) -> 1 | O47: 632.3140625 | P47: 682.1368473 | Q47: =IF(E47="","",(3*$B$63 * (2*E47*I47-I47^2)*(H47-G47) ) * (I47/2) / (F47+E47) + P47) -> 695.9743473 | R47: 2104.233917 | T47: =IF(Padroes!F51="","",Padroes!F51) ->  | W47: =IF(O47="","",O47*Parametros!$I$26) -> 505.85125 | X47: =IF(P47="","",P47*Parametros!$I$27) -> 545.7094778 | Y47: =IF(Q47="","",Q47*Parametros!$I$28) -> 556.7794778 | Z47: =IF(R47="","",R47*Parametros!$I$29) -> 2104.233917
C48: =IF(Padroes!C48="","",Padroes!C48) ->  | D48: =IF(Padroes!D48="","",Padroes!D48) ->  | G48: =IF(Padroes!E48="","",Padroes!E48) ->  | H48: =IF(E48="","",Padroes!S$8) ->  | I48: =IF(E48="","",Padroes!S$9) ->  | J48: =IF(E48="","",Padroes!S$10) ->  | K48: =IF(Padroes!AL20="","",Padroes!AL20) -> 1.8 | M48: =Padroes!AL$12 -> 0.8 | N48: =IF(E48="","",Padroes!$AL$23) ->  | T48: =IF(Padroes!F52="","",Padroes!F52) ->  | W48: =IF(O48="","",O48*Parametros!$I$26) ->  | X48: =IF(P48="","",P48*Parametros!$I$27) ->  | Y48: =IF(Q48="","",Q48*Parametros!$I$28) ->  | Z48: =IF(R48="","",R48*Parametros!$I$29) -> 
C49: =IF(Padroes!C49="","",Padroes!C49) ->  | D49: =IF(Padroes!D49="","",Padroes!D49) ->  | G49: =IF(Padroes!E49="","",Padroes!E49) ->  | H49: =IF(E49="","",Padroes!S$8) ->  | I49: =IF(E49="","",Padroes!S$9) ->  | J49: =IF(E49="","",Padroes!S$10) ->  | K49: =IF(Padroes!AL21="","",Padroes!AL21) -> 1.8 | M49: =Padroes!AL$12 -> 0.8 | N49: =IF(E49="","",Padroes!$AL$23) ->  | T49: =IF(Padroes!F53="","",Padroes!F53) ->  | W49: =IF(O49="","",O49*Parametros!$I$26) ->  | X49: =IF(P49="","",P49*Parametros!$I$27) ->  | Y49: =IF(Q49="","",Q49*Parametros!$I$28) ->  | Z49: =IF(R49="","",R49*Parametros!$I$29) -> 
A50: 13 | B50: 13 | C50: =IF(Engastamento_Profundo!F$4=13,Engastamento_Profundo!F$5, 0) -> 1000 | D50: =IF(Engastamento_Profundo!F$6="",VLOOKUP(C50,Padroes!$C$42:$E$49,2,FALSE),Engastamento_Profundo!$F$6 ) -> 1920 | E50: =IF(Engastamento_Profundo!$F$8="",1.9,Engastamento_Profundo!$F$8) -> 2.617400365 | F50: =IF(Engastamento_Profundo!F$17="",10.9,Engastamento_Profundo!F$17) -> 10.9 | G50: =IF(Engastamento_Profundo!F$7="",VLOOKUP(C50,Padroes!$C$42:$E$49,3,FALSE),Engastamento_Profundo!F$7) -> 0.49 | H50: =IF(Engastamento_Profundo!F$10="",Padroes!$S$8,Engastamento_Profundo!F$10) -> 1 | I50: =IF(Engastamento_Profundo!F$11="",Padroes!$S$9,Engastamento_Profundo!F$11) -> 0.2 | J50: =IF(Engastamento_Profundo!F$12="",Padroes!$S$10,Engastamento_Profundo!F$12) -> 0.5 | K50: =IF(Engastamento_Profundo!F$14="",VLOOKUP(C50,C42:K49,9,FALSE),Engastamento_Profundo!F$14) -> 1.3 | L50: =D50+(3.1416*K50^2*M50/4*2400) -> 4468.46592 | M50: =Padroes!$AL$12 -> 0.8 | N50: 1 | O50: 1300.000067 | P50: 1388.923474 | Q50: 1411.718523 | R50: 3633.550726 | T50: =IF(Padroes!F54="","",Padroes!F54) ->  | W50: =IF(O50="","",O50*Parametros!$I$26) -> 1040.000054 | X50: =IF(P50="","",P50*Parametros!$I$27) -> 1111.138779 | Y50: =IF(Q50="","",Q50*Parametros!$I$28) -> 1129.374819 | Z50: =IF(R50="","",R50*Parametros!$I$29) -> 3633.550726
A52: * calculado a 0,20 m do topo do poste - para poste de 9 metros a 0,50 (0,20+0,30)
B53: Poste de Madeira
B54: comprimento | C54: carga | D54: peso | E54: t | F54: h | G54: b | H54: m | I54: n | J54: p | O54: SIMPLES | P54: ESCORA SIMPLES | Q54: ESCORA DUPLA
B55: 9 | C55: =Padroes!W10 -> 295 | D55: =Padroes!X10 -> 210 | E55: =0.6+0.1*B55 -> 1.5 | F55: =B55-0.5-E55 -> 7 | G55: =Padroes!Y10 -> 0.22 | H55: =Padroes!S$8 -> 1 | I55: =Padroes!S$9 -> 0.2 | J55: =Padroes!S$10 -> 0.5 | O55: =($B$63*G55*E55^3)/(F55+E55) -> 174.7058824 | P55: =($B$63*G55*E55^3)/(F55+E55)+ (3*$B$63*(2*J55*I55 - I55^2)*(H55-G55))*(E55-J55+I55/2)/(F55+E55/2) -> 280.9871727 | Q55: =($B$63*G55*E55^3)/(F55+E55)+ (6*$B$63*I55*J55*(H55-G55)) * (E55+I55-J55-(I55^2/H55)) / (F55+E55) -> 302.4423529
B56: 10 | C56: =Padroes!W11 -> 255 | D56: =Padroes!X11 -> 230 | E56: =0.6+0.1*B56 -> 1.6 | F56: =B56-0.2-E56 -> 8.2 | G56: =Padroes!Y11 -> 0.23 | H56: =Padroes!S$8 -> 1 | I56: =Padroes!S$9 -> 0.2 | J56: =Padroes!S$10 -> 0.5 | O56: =($B$63*G56*E56^3)/(F56+E56) -> 192.2612245 | P56: =($B$63*G56*E56^3)/(F56+E56)+ (3*$B$63*(2*J56*I56 - I56^2)*(H56-G56))*(E56-J56+I56/2)/(F56+E56/2) -> 290.8212245 | Q56: =($B$63*G56*E56^3)/(F56+E56)+ (6*$B$63*I56*J56*(H56-G56)) * (E56+I56-J56-(I56^2/H56)) / (F56+E56) -> 311.0612245
B57: 11 | C57: =Padroes!W12 -> 300 | D57: =Padroes!X12 -> 300 | E57: =0.6+0.1*B57 -> 1.7 | F57: =B57-0.2-E57 -> 9.1 | G57: =Padroes!Y12 -> 0.24 | H57: =Padroes!S$8 -> 1 | I57: =Padroes!S$9 -> 0.2 | J57: =Padroes!S$10 -> 0.5 | O57: =($B$63*G57*E57^3)/(F57+E57) -> 218.3555556 | P57: =($B$63*G57*E57^3)/(F57+E57)+ (3*$B$63*(2*J57*I57 - I57^2)*(H57-G57))*(E57-J57+I57/2)/(F57+E57/2) -> 313.6801787 | Q57: =($B$63*G57*E57^3)/(F57+E57)+ (6*$B$63*I57*J57*(H57-G57)) * (E57+I57-J57-(I57^2/H57)) / (F57+E57) -> 333.2
B58: 12 | C58: =Padroes!W13 -> 265 | D58: =Padroes!X13 -> 325 | E58: =0.6+0.1*B58 -> 1.8 | F58: =B58-0.2-E58 -> 10 | G58: =Padroes!Y13 -> 0.24 | H58: =Padroes!S$8 -> 1 | I58: =Padroes!S$9 -> 0.2 | J58: =Padroes!S$10 -> 0.5 | O58: =($B$63*G58*E58^3)/(F58+E58) -> 237.2338983 | P58: =($B$63*G58*E58^3)/(F58+E58)+ (3*$B$63*(2*J58*I58 - I58^2)*(H58-G58))*(E58-J58+I58/2)/(F58+E58/2) -> 330.94399 | Q58: =($B$63*G58*E58^3)/(F58+E58)+ (6*$B$63*I58*J58*(H58-G58)) * (E58+I58-J58-(I58^2/H58)) / (F58+E58) -> 350.0745763
B59: 13 | C59: =Padroes!W14 -> 230 | D59: =Padroes!X14 -> 370 | E59: =0.6+0.1*B59 -> 1.9 | F59: =B59-0.2-E59 -> 10.9 | G59: =Padroes!Y14 -> 0.25 | H59: =Padroes!S$8 -> 1 | I59: =Padroes!S$9 -> 0.2 | J59: =Padroes!S$10 -> 0.5 | O59: =($B$63*G59*E59^3)/(F59+E59) -> 267.9296875 | P59: =($B$63*G59*E59^3)/(F59+E59)+ (3*$B$63*(2*J59*I59 - I59^2)*(H59-G59))*(E59-J59+I59/2)/(F59+E59/2) -> 359.068928 | Q59: =($B$63*G59*E59^3)/(F59+E59)+ (6*$B$63*I59*J59*(H59-G59)) * (E59+I59-J59-(I59^2/H59)) / (F59+E59) -> 377.6171875
B61: terreno: | D61: Concreto
B62: C (kg/m3) | C62: s | D62: Peso específico | AQ62: VALOR MÁXIMO DE F (o menor entre R. V. U)
B63: =Tipo_Estai!$AA$9 -> 2000 | C63: 25000 | D63: 2400 kg/m3 | AH63: ESFORÇO MÁXIMO FUNÇÃO DO CABO DO ESTAI | AN63: ESFORÇO MÁXIMO FUNÇÃO DO BRAÇO
B64: CÁLCULO DO ESTAI VERTICAL | S64: ESFORÇOS NO CABO DO ESTAI - V e R | AD64: ESFORÇO NO BRAÇO DO ESTAI - U | AH64: COEFICIENTE DE SEGURANÇA DO CABO : | AM64: 1.5 | AN64: =Tipo_Estai!AA8 -> 2
B65: Poste de Concreto | D65: Braço: | F65: =AN64 -> 2 | G65: m | H65: dados da escora | K65: dados da base concretada | O65: FORÇA MÁXIMA NO TOPO NO TOPO FUNÇÃO DO TERRENO | S65: dados | V65: ESFORÇOS NO CABO DO ESTAI - V e R | AH65: R | AK65: V | AN65: U
B66: comprimento | C66: carga | D66: dados peso | E66: do t | F66: poste h* | G66: b | H66: m | I66: n | J66: p | K66: d | L66: P | M66: q | N66: K | O66: SIMPLES | P66: ESCORA SIMPLES | Q66: ESCORA DUPLA | R66: CONCRETADO | S66: H | T66: h' | U66: k | V66: SIMPLES R V | X66: ESCORA SIMPLES R V | Z66: ESCORA DUPLA R V | AB66: CONCRETAD0 R V | AD66: SIMPLES | AE66: ESCORA SIMPLES | AF66: ESCORA DUPLA | AG66: CONCRETADO | AH66: =Tabela_Esforco!W10/AM64 -> 1433.333333 | AI66: =Tabela_Esforco!W11/AM64 -> 2413.333333 | AJ66: =Tabela_Esforco!W12/AM64 -> 3266.666667 | AK66: =Tabela_Esforco!W10/AM64 -> 1433.333333 | AL66: =Tabela_Esforco!W11/AM64 -> 2413.333333 | AM66: =Tabela_Esforco!W12/AM64 -> 3266.666667 | AN66: -1000 | AO66: -1000 | AP66: -1000 | AQ66: ev 1 | AR66: ev 2 | AS66: ev 3
B67: 9 | C67: 200 | D67: =D6 -> 670 | E67: =0.6+0.1*B$67 -> 1.5 | F67: =B$67-E67-0.5 -> 7 | G67: =G6 -> 0.32 | H67: =Padroes!S$8 -> 1 | I67: =Padroes!S$9 -> 0.2 | J67: =Padroes!S$10 -> 0.5 | K67: =K6 -> 0.6 | L67: =L6 -> 1077.15136 | M67: =M6 -> 0.6 | N67: =N6 -> 1 | O67: =($B$63*G67*E67^3) / ((2*$F$65+3*T67)/(2*$F$65+6*T67)*T67) -> 773.0526316 | P67: =(($B$63*G67*E67^3)+ (3*$B$63*(2*J67*I67 - I67^2)*(H67-G67))*( E67/2 - J67+I67/2)) / ((2*$F$65+3*T67)/(2*$F$65+6*T67)*T67) -> 854.8244211 | Q67: =(($B$63*G67*E67^3)+ (6*$B$63*I67*J67*(H67-G67)) * (E67+I67-J67-(I67^2/H67))) / ((2*$F$65+3*T67)/(2*$F$65+6*T67)*T67) -> 1111.821474 | R67: =((N67*$B$63*K67*E67^3) + (K67*L67) * (0.5 - (2*L67/(3*$C$63*K67^2)))) / ((2*$F$65+3*T67)/(2*$F$65+6*T67)*T67) -> 1546.670206 | S67: =F67 -> 7 | T67: =S67-$F$65 -> 5 | U67: =T67*(2*$F$65+3*T67)/(2*$F$65+6*T67) -> 2.794117647 | V67: =$O67* ($S67-$U67)/$F$65 -> 1625.684211 | W67: =(1.414)*$O67*($S67-$U67)/$F$65 -> 2298.717474 | X67: =$P67* ($S67-$U67)/$F$65 -> 1797.645474 | Y67: =1.414*$P67*($S67-$U67)/$F$65 -> 2541.8707 | Z67: =$Q67* ($S67-$U67)/$F$65 -> 2338.095158 | AA67: =1.414*$Q67*($S67-$U67)/$F$65 -> 3306.066553 | AB67: =$R67* ($S67-$U67)/$F$65 -> 3252.556463 | AC67: =1.414*$R67*($S67-$U67)/$F$65 -> 4599.114838 | AD67: =(U67-S67)*O67/F$65 -> -1625.684211 | AE67: =(U67-S67)*P67/F$65 -> -1797.645474 | AF67: =(U67-S67)*Q67/F$65 -> -2338.095158 | AG67: =(U67-S67)*R67/F$65 -> -3252.556463 | AH67: =AH$66*F$65/(S67-U67) -> 681.5850816 | AI67: =AI$66*F$65/(S67-U67) -> 1147.599068 | AJ67: =AJ$66*F$65/ (S67-U67) -> 1553.379953 | AK67: =AK$66*$F$65* 0.707 / ($S67-$U67) -> 481.8806527 | AL67: 811.3525408 | AM67: 1098.239627 | AN67: =AN$66*( U67-S67)/F$65 -> 2102.941176 | AO67: =AO$66*(U67-S67)/F$65 -> 2102.941176 | AP67: =AP$66*(U67-S67)/F$65 -> 2102.941176 | AQ67: =MIN(AH67,AK67,AN67) -> 481.8806527 | AR67: =MIN(AI67,AL67,AO67) -> 811.3525408 | AS67: =MIN(AJ67,AM67,AP67) -> 1098.239627
B68: 9 | C68: 600 | D68: =D8 -> 820 | E68: =0.6+0.1*B$67 -> 1.5 | F68: =B$67-E68-0.5 -> 7 | G68: =G8 -> 0.35 | H68: =Padroes!S$8 -> 1 | I68: =Padroes!S$9 -> 0.2 | J68: =Padroes!S$10 -> 0.5 | K68: =K8 -> 0.9 | L68: 1736.09056 | M68: 0.6 | N68: 1 | O68: 845.5263158 | P68: 923.6905263 | Q68: 1169.349474 | R68: 2421.851043 | S68: =F68 -> 7 | T68: =S68-$F$65 -> 5 | U68: =T68*(2*$F$65+3*T68)/(2*$F$65+6*T68) -> 2.794117647 | V68: =$O68* ($S68-$U68)/$F$65 -> 1778.092105 | W68: =1.414*$O68*($S68-$U68)/$F$65 -> 2514.222237 | X68: =$P68* ($S68-$U68)/$F$65 -> 1942.466842 | Y68: =1.414*$P68*($S68-$U68)/$F$65 -> 2746.648115 | Z68: =$Q68* ($S68-$U68)/$F$65 -> 2459.073158 | AA68: =1.414*$Q68*($S68-$U68)/$F$65 -> 3477.129445 | AB68: =$R68* ($S68-$U68)/$F$65 -> 5093.010283 | AC68: =1.414*$R68*($S68-$U68)/$F$65 -> 7201.51654 | AD68: =($U68-$S68)*$O68/F$65 -> -1778.092105 | AE68: =(U68-S68)*P68/F$65 -> -1942.466842 | AF68: =(U68-S68)*Q68/F$65 -> -2459.073158 | AG68: =(U68-S68)*R68/F$65 -> -5093.010283 | AH68: =AH$66*F$65/(S68-U68) -> 681.5850816 | AI68: =AI$66*F$65/(S68-U68) -> 1147.599068 | AJ68: =AJ$66*F$65/ (S68-U68) -> 1553.379953 | AK68: 481.8806527 | AL68: 811.3525408 | AM68: 1098.239627 | AN68: =AN$66*( U68-S68)/F$65 -> 2102.941176 | AO68: =AO$66*(U68-S68)/F$65 -> 2102.941176 | AP68: =AP$66*(U68-S68)/F$65 -> 2102.941176 | AQ68: =MIN(AH68,AK68,AN68) -> 481.8806527 | AR68: 811.3525408 | AS68: 1098.239627
B69: 9 | C69: 1000 | D69: =D9 -> 820 | E69: =0.6+0.1*B$67 -> 1.5 | F69: =B$67-E69-0.5 -> 7 | G69: =G9 -> 0.35 | H69: =Padroes!S$8 -> 1 | I69: =Padroes!S$9 -> 0.2 | J69: =Padroes!S$10 -> 0.5 | K69: 1.3 | L69: 2731.34944 | M69: 0.6 | N69: 1 | O69: =($B$63*G69*E69^3) / ((2*$F$65+3*T69)/(2*$F$65+6*T69)*T69) -> 845.5263158 | P69: =(($B$63*G69*E69^3)+ (3*$B$63*(2*J69*I69 - I69^2)*(H69-G69))*( E69/2 - J69+I69/2)) / ((2*$F$65+3*T69)/(2*$F$65+6*T69)*T69) -> 923.6905263 | Q69: =(($B$63*G69*E69^3)+ (6*$B$63*I69*J69*(H69-G69)) * (E69+I69-J69-(I69^2/H69))) / ((2*$F$65+3*T69)/(2*$F$65+6*T69)*T69) -> 1169.349474 | R69: =((N69*$B$63*K69*E69^3) + (K69*L69) * (0.5 - (2*L69/(3*$C$63*K69^2)))) / ((2*$F$65+3*T69)/(2*$F$65+6*T69)*T69) -> 3721.155397 | S69: =F69 -> 7 | T69: 5 | U69: 2.794117647 | V69: 1778.092105 | W69: 2514.222237 | X69: 1942.466842 | Y69: 2746.648115 | Z69: 2459.073158 | AA69: 3477.129445 | AB69: 7825.370908 | AC69: 11065.07446 | AD69: =($U69-$S69)*$O69/F$65 -> -1778.092105 | AE69: =(U69-S69)*P69/F$65 -> -1942.466842 | AF69: =(U69-S69)*Q69/F$65 -> -2459.073158 | AG69: =(U69-S69)*R69/F$65 -> -7825.370908 | AH69: =AH$66*F$65/(S69-U69) -> 681.5850816 | AI69: =AI$66*F$65/(S69-U69) -> 1147.599068 | AJ69: =AJ$66*F$65/ (S69-U69) -> 1553.379953 | AK69: 481.8806527 | AL69: 811.3525408 | AM69: 1098.239627 | AN69: =AN$66*( U69-S69)/F$65 -> 2102.941176 | AO69: =AO$66*(U69-S69)/F$65 -> 2102.941176 | AP69: =AP$66*(U69-S69)/F$65 -> 2102.941176 | AQ69: =MIN(AH69,AK69,AN69) -> 481.8806527 | AR69: =MIN(AI69,AL69,AO69) -> 811.3525408 | AS69: =MIN(AJ69,AM69,AP69) -> 1098.239627
B70: 10 | C70: 200 | D70: =D15 -> 750 | E70: =0.6+0.1*B$70 -> 1.6 | F70: =B$70-E70-0.2 -> 8.2 | G70: =G15 -> 0.34 | H70: =Padroes!S$8 -> 1 | I70: =Padroes!S$9 -> 0.2 | J70: =Padroes!S$10 -> 0.5 | K70: =K15 -> 0.6 | L70: 1191.08064 | M70: 0.65 | N70: 1 | O70: 850.5325924 | P70: 927.9248043 | Q70: 1155.264427 | R70: 1590.800843 | S70: =F70-0.25 -> 7.95 | T70: 5.95 | U70: 3.274748111 | V70: 1988.227055 | W70: 2811.353055 | X70: 2169.141097 | Y70: 3067.165512 | Z70: 2700.576098 | AA70: 3818.614602 | AB70: 3718.697323 | AC70: 5258.238014 | AD70: -1988.227055 | AE70: -2169.141097 | AF70: -2700.576098 | AG70: -3718.697323 | AH70: 613.1576939 | AI70: 1032.386443 | AJ70: 1397.429163 | AK70: 433.5024896 | AL70: 729.897215 | AM70: 987.9824181 | AN70: 2337.625945 | AO70: 2337.625945 | AP70: 2337.625945 | AQ70: 433.5024896 | AR70: 729.897215 | AS70: 987.9824181
B71: 10 | C71: 400 | D71: =D16 -> 910 | E71: =0.6+0.1*B$70 -> 1.6 | F71: =B$70-E71-0.2 -> 8.2 | G71: =G16 -> 0.37 | H71: =Padroes!S$8 -> 1 | I71: =Padroes!S$9 -> 0.2 | J71: =Padroes!S$10 -> 0.5 | K71: 0.7 | L71: 1510.35976 | M71: 0.65 | N71: 1 | O71: 925.5795858 | P71: 999.45397 | Q71: 1216.459973 | R71: 1885.984314 | S71: =F71-0.25 -> 7.95 | T71: 5.95 | U71: 3.274748111 | V71: 2163.658854 | W71: 3059.413619 | X71: 2336.349531 | Y71: 3303.598236 | Z71: 2843.628395 | AA71: 4020.89055 | AB71: 4408.725863 | AC71: 6233.938371 | AD71: -2163.658854 | AE71: -2336.349531 | AF71: -2843.628395 | AG71: -4408.725863 | AH71: 613.1576939 | AI71: 1032.386443 | AJ71: 1397.429163 | AK71: 433.5024896 | AL71: 729.897215 | AM71: 987.9824181 | AN71: 2337.625945 | AO71: 2337.625945 | AP71: 2337.625945 | AQ71: 433.5024896 | AR71: 729.897215 | AS71: 987.9824181
B72: 10 | C72: 600 | D72: =D17 -> 910 | E72: =0.6+0.1*B$70 -> 1.6 | F72: =B$70-E72-0.2 -> 8.2 | G72: =G17 -> 0.37 | H72: =Padroes!S$8 -> 1 | I72: =Padroes!S$9 -> 0.2 | J72: =Padroes!S$10 -> 0.5 | K72: 0.9 | L72: 1902.43144 | M72: 0.65 | N72: 1 | O72: 925.5795858 | P72: 999.45397 | Q72: 1216.459973 | R72: 2480.086093 | S72: 7.95 | T72: 5.95 | U72: 3.274748111 | V72: 2163.658854 | W72: 3059.413619 | X72: 2336.349531 | Y72: 3303.598236 | Z72: 2843.628395 | AA72: 4020.89055 | AB72: 5797.513596 | AC72: 8197.684224 | AD72: -2163.658854 | AE72: -2336.349531 | AF72: -2843.628395 | AG72: -5797.513596 | AH72: 613.1576939 | AI72: 1032.386443 | AJ72: 1397.429163 | AK72: 433.5024896 | AL72: 729.897215 | AM72: 987.9824181 | AN72: 2337.625945 | AO72: 2337.625945 | AP72: 2337.625945 | AQ72: 433.5024896 | AR72: 729.897215 | AS72: 987.9824181
B73: 10 | C73: 1000 | D73: =D18 -> 1090 | E73: =0.6+0.1*B$70 -> 1.6 | F73: =B$70-E73-0.2 -> 8.2 | G73: =G18 -> 0.39 | H73: =Padroes!S$8 -> 1 | I73: =Padroes!S$9 -> 0.2 | J73: =Padroes!S$10 -> 0.5 | K73: =K18 -> 1.3 | L73: =L18 -> 3160.62856 | M73: =M18 -> 0.65 | N73: =N18 -> 1 | O73: 975.6109148 | P73: 1047.14008 | Q73: 1257.257004 | R73: 3816.810889 | S73: 7.95 | T73: 5.95 | U73: 3.274748111 | V73: 2280.613386 | W73: 3224.787328 | X73: 2447.82182 | Y73: 3461.220053 | Z73: 2938.996593 | AA73: 4155.741182 | AB73: 8922.27616 | AC73: 12616.09849 | AD73: -2280.613386 | AE73: -2447.82182 | AF73: -2938.996593 | AG73: -8922.27616 | AH73: 613.1576939 | AI73: 1032.386443 | AJ73: 1397.429163 | AK73: 433.5024896 | AL73: 729.897215 | AM73: 987.9824181 | AN73: 2337.625945 | AO73: 2337.625945 | AP73: 2337.625945 | AQ73: 433.5024896 | AR73: 729.897215 | AS73: 987.9824181
B74: 11 | C74: 200 | D74: =D24 -> 870 | E74: =0.6+0.1*B$74 -> 1.7 | F74: =B$74-E74-0.2 -> 9.1 | G74: =G24 -> 0.36 | H74: =Padroes!S$8 -> 1 | I74: =Padroes!S$9 -> 0.2 | J74: =Padroes!S$10 -> 0.5 | K74: =K24 -> 0.6 | L74: =L24 -> 1345.00992 | M74: =M24 -> 0.7 | N74: =N24 -> 1 | O74: 948.6668708 | P74: 1022.814658 | Q74: 1228.780733 | R74: 1667.762205 | S74: 8.85 | T74: 6.85 | U74: 3.728769401 | V74: 2429.170903 | W74: 3434.847657 | X74: 2619.034862 | Y74: 3703.315294 | Z74: 3146.434746 | AA74: 4449.05873 | AB74: 4270.497418 | AC74: 6038.483349 | AD74: -2429.170903 | AE74: -2619.034862 | AF74: -3146.434746 | AG74: -4270.497418 | AH74: 559.761294 | AI74: 942.4818066 | AJ74: 1275.735042 | AK74: 395.7512348 | AL74: 666.3346373 | AM74: 901.9446748 | AN74: 2560.615299 | AO74: 2560.615299 | AP74: 2560.615299 | AQ74: 395.7512348 | AR74: 666.3346373 | AS74: 901.9446748
B75: 11 | C75: 400 | D75: =D25 -> 1030 | E75: =0.6+0.1*B$74 -> 1.7 | F75: =B$74-E75-0.2 -> 9.1 | G75: =G25 -> 0.39 | H75: =Padroes!S$8 -> 1 | I75: =Padroes!S$9 -> 0.2 | J75: =Padroes!S$10 -> 0.5 | K75: =K25 -> 0.7 | L75: =L25 -> 1676.54128 | M75: 0.7 | N75: 1 | O75: 1027.722443 | P75: 1098.394553 | Q75: 1294.705969 | R75: 1973.281508 | S75: 8.85 | T75: 6.85 | U75: 3.728769401 | V75: 2631.601812 | W75: 3721.084962 | X75: 2812.565897 | Y75: 3976.968179 | Z75: 3315.243912 | AA75: 4687.754891 | AB75: 5052.81482 | AC75: 7144.680156 | AD75: -2631.601812 | AE75: -2812.565897 | AF75: -3315.243912 | AG75: -5052.81482 | AH75: 559.761294 | AI75: 942.4818066 | AJ75: 1275.735042 | AK75: 395.7512348 | AL75: 666.3346373 | AM75: 901.9446748 | AN75: 2560.615299 | AO75: 2560.615299 | AP75: 2560.615299 | AQ75: 395.7512348 | AR75: 666.3346373 | AS75: 901.9446748
B76: 11 | C76: 600 | D76: =D26 -> 1030 | E76: =0.6+0.1*B$74 -> 1.7 | F76: =B$74-E76-0.2 -> 9.1 | G76: =G26 -> 0.39 | H76: =Padroes!S$8 -> 1 | I76: =Padroes!S$9 -> 0.2 | J76: =Padroes!S$10 -> 0.5 | K76: =K26 -> 0.9 | L76: 2098.77232 | M76: 0.7 | N76: 1 | O76: 1027.722443 | P76: 1098.394553 | Q76: 1294.705969 | R76: 2589.951958 | S76: 8.85 | T76: 6.85 | U76: 3.728769401 | V76: 2631.601812 | W76: 3721.084962 | X76: 2812.565897 | Y76: 3976.968179 | Z76: 3315.243912 | AA76: 4687.754891 | AB76: 6631.870607 | AC76: 9377.465039 | AD76: -2631.601812 | AE76: -2812.565897 | AF76: -3315.243912 | AG76: -6631.870607 | AH76: 559.761294 | AI76: 942.4818066 | AJ76: 1275.735042 | AK76: 395.7512348 | AL76: 666.3346373 | AM76: 901.9446748 | AN76: 2560.615299 | AO76: 2560.615299 | AP76: 2560.615299 | AQ76: 395.7512348 | AR76: 666.3346373 | AS76: 901.9446748
B77: 11 | C77: 1000 | D77: =D27 -> 1260 | E77: =0.6+0.1*B$74 -> 1.7 | F77: =B$74-E77-0.2 -> 9.1 | G77: =G27 -> 0.41 | H77: =Padroes!S$8 -> 1 | I77: =Padroes!S$9 -> 0.2 | J77: =Padroes!S$10 -> 0.5 | K77: =K27 -> 1.3 | L77: 3489.90768 | M77: 0.7 | N77: 1 | O77: 1080.426158 | P77: 1148.78115 | Q77: 1338.656126 | R77: 3967.101049 | S77: 8.85 | T77: 6.85 | U77: 3.728769401 | V77: 2766.555751 | W77: 3911.909832 | X77: 2941.586588 | Y77: 4159.403435 | Z77: 3427.783356 | AA77: 4846.885665 | AB77: 10158.21964 | AC77: 14363.72257 | AD77: -2766.555751 | AE77: -2941.586588 | AF77: -3427.783356 | AG77: -10158.21964 | AH77: 559.761294 | AI77: 942.4818066 | AJ77: 1275.735042 | AK77: 395.7512348 | AL77: 666.3346373 | AM77: 901.9446748 | AN77: 2560.615299 | AO77: 2560.615299 | AP77: 2560.615299 | AQ77: 395.7512348 | AR77: 666.3346373 | AS77: 901.9446748
B78: 12 | C78: 200 | D78: =D33 -> 1130 | E78: =0.6+0.1*B$78 -> 1.8 | F78: =B$78-E78-0.2 -> 10 | G78: =G33 -> 0.41 | H78: =Padroes!S$8 -> 1 | I78: =Padroes!S$9 -> 0.2 | J78: =Padroes!S$10 -> 0.5 | K78: =K33 -> 0.6 | L78: =L33 -> 1638.9392 | M78: =M33 -> 0.75 | N78: =N33 -> 1 | O78: 1143.548363 | P78: 1211.268281 | Q78: 1390.726061 | R78: 1762.510934 | S78: 9.75 | T78: 7.75 | U78: 4.181930693 | V78: 3183.678272 | W78: 4501.721076 | X78: 3372.212868 | Y78: 4768.308995 | Z78: 3871.829547 | AA78: 5474.76698 | AB78: 4906.891518 | AC78: 6938.344607 | AD78: -3183.678272 | AE78: -3372.212868 | AF78: -3871.829547 | AG78: -4906.891518 | AH78: 514.8403349 | AI78: 866.8474476 | AJ78: 1173.357042 | AK78: 363.9921168 | AL78: 612.8611454 | AM78: 829.5634289 | AN78: 2784.034653 | AO78: 2784.034653 | AP78: 2784.034653 | AQ78: 363.9921168 | AR78: 612.8611454 | AS78: 829.5634289
B79: 12 | C79: 400 | D79: =D34 -> 1130 | E79: =0.6+0.1*B$78 -> 1.8 | F79: =B$78-E79-0.2 -> 10 | G79: =G34 -> 0.41 | H79: =Padroes!S$8 -> 1 | I79: =Padroes!S$9 -> 0.2 | J79: =Padroes!S$10 -> 0.5 | K79: =K34 -> 0.7 | L79: =L34 -> 1822.7228 | M79: 0.75 | N79: 1 | O79: 1143.548363 | P79: 1211.268281 | Q79: 1390.726061 | R79: 2074.684902 | S79: 9.75 | T79: 7.75 | U79: 4.181930693 | V79: 3183.678272 | W79: 4501.721076 | X79: 3372.212868 | Y79: 4768.308995 | Z79: 3871.829547 | AA79: 5474.76698 | AB79: 5775.994662 | AC79: 8167.256452 | AD79: -3183.678272 | AE79: -3372.212868 | AF79: -3871.829547 | AG79: -5775.994662 | AH79: 514.8403349 | AI79: 866.8474476 | AJ79: 1173.357042 | AK79: 363.9921168 | AL79: 612.8611454 | AM79: 829.5634289 | AN79: 2784.034653 | AO79: 2784.034653 | AP79: 2784.034653 | AQ79: 363.9921168 | AR79: 612.8611454 | AS79: 829.5634289
B80: 12 | C80: 600 | D80: =D35 -> 1440 | E80: =0.6+0.1*B$78 -> 1.8 | F80: =B$78-E80-0.2 -> 10 | G80: =G35 -> 0.43 | H80: =Padroes!S$8 -> 1 | I80: =Padroes!S$9 -> 0.2 | J80: =Padroes!S$10 -> 0.5 | K80: =K35 -> 0.9 | L80: 2585.1132 | M80: 0.75 | N80: 1 | O80: 1199.33121 | P80: 1264.755537 | Q80: 1438.130003 | R80: 2741.05254 | S80: 9.75 | T80: 7.75 | U80: 4.181930693 | V80: 3338.979651 | W80: 4721.317226 | X80: 3521.123244 | Y80: 4978.868266 | Z80: 4003.803764 | AA80: 5661.378523 | AB80: 7631.185258 | AC80: 10790.49595 | AD80: -3338.979651 | AE80: -3521.123244 | AF80: -4003.803764 | AG80: -7631.185258 | AH80: 514.8403349 | AI80: 866.8474476 | AJ80: 1173.357042 | AK80: 363.9921168 | AL80: 612.8611454 | AM80: 829.5634289 | AN80: 2784.034653 | AO80: 2784.034653 | AP80: 2784.034653 | AQ80: 363.9921168 | AR80: 612.8611454 | AS80: 829.5634289
B81: 12 | C81: 1000 | D81: =D36 -> 1770 | E81: =0.6+0.1*B$78 -> 1.8 | F81: =B$78-E81-0.2 -> 10 | G81: =G36 -> 0.47 | H81: =Padroes!S$8 -> 1 | I81: =Padroes!S$9 -> 0.2 | J81: =Padroes!S$10 -> 0.5 | K81: =K36 -> 1.3 | L81: 4159.1868 | M81: 0.75 | N81: 1 | O81: 1310.896904 | P81: 1371.73005 | Q81: 1532.937887 | R81: 4187.49731 | S81: 9.75 | T81: 7.75 | U81: 4.181930693 | V81: 3649.582409 | W81: 5160.509526 | X81: 3818.943995 | Y81: 5399.986809 | Z81: 4267.752199 | AA81: 6034.601609 | AB81: 11658.13762 | AC81: 16484.6066 | AD81: -3649.582409 | AE81: -3818.943995 | AF81: -4267.752199 | AG81: -11658.13762 | AH81: 514.8403349 | AI81: 866.8474476 | AJ81: 1173.357042 | AK81: 363.9921168 | AL81: 612.8611454 | AM81: 829.5634289 | AN81: 2784.034653 | AO81: 2784.034653 | AP81: 2784.034653 | AQ81: 363.9921168 | AR81: 612.8611454 | AS81: 829.5634289
B82: 13 | C82: 200 | D82: =D42 -> 1280 | E82: =0.6+0.1*B$82 -> 1.9 | F82: =B$82-E82-0.2 -> 10.9 | G82: =G42 -> 0.43 | H82: =Padroes!S$8 -> 1 | I82: =Padroes!S$9 -> 0.2 | J82: =Padroes!S$10 -> 0.5 | K82: =K42 -> 0.6 | L82: =L42 -> 1822.86848 | M82: =M42 -> 0.8 | N82: =N42 -> 1 | O82: 1272.794025 | P82: 1337.733332 | Q82: 1503.033387 | R82: 1862.123923 | S82: =F82-0.25 -> 10.65 | T82: 8.65 | U82: 4.634481216 | V82: 3828.258182 | W82: 5413.157069 | X82: 4023.579993 | Y82: 5689.34211 | Z82: 4520.762786 | AA82: 6392.358579 | AB82: 5600.820718 | AC82: 7919.560496 | AD82: =($U82-$S82)*$O82/F$65 -> -3828.258182 | AE82: =(U82-S82)*P82/F$65 -> -4023.579993 | AF82: =(U82-S82)*Q82/F$65 -> -4520.762786 | AG82: =(U82-S82)*R82/F$65 -> -5600.820718 | AH82: 476.5452108 | AI82: 802.3691456 | AJ82: 1086.079783 | AK82: 336.917464 | AL82: 567.2749859 | AM82: 767.8584064 | AN82: 3007.759392 | AO82: 3007.759392 | AP82: 3007.759392 | AQ82: 336.917464 | AR82: 567.2749859 | AS82: 767.8584064
B83: 13 | C83: 400 | D83: =D43 -> 1280 | E83: =0.6+0.1*B$82 -> 1.9 | F83: =B$82-E83-0.2 -> 10.9 | G83: =G43 -> 0.43 | H83: =Padroes!S$8 -> 1 | I83: =Padroes!S$9 -> 0.2 | J83: =Padroes!S$10 -> 0.5 | K83: =K43 -> 0.7 | L83: =L43 -> 2018.90432 | M83: 0.8 | N83: 1 | O83: 1272.794025 | P83: 1337.733332 | Q83: 1503.033387 | R83: 2190.955322 | S83: =F83-0.25 -> 10.65 | T83: 8.65 | U83: 4.634481216 | V83: 3828.258182 | W83: 5413.157069 | X83: 4023.579993 | Y83: 5689.34211 | Z83: 4520.762786 | AA83: 6392.358579 | AB83: 6589.866447 | AC83: 9318.071157 | AD83: =($U83-$S83)*$O83/F$65 -> -3828.258182 | AE83: =(U83-S83)*P83/F$65 -> -4023.579993 | AF83: =(U83-S83)*Q83/F$65 -> -4520.762786 | AG83: =(U83-S83)*R83/F$65 -> -6589.866447 | AH83: 476.5452108 | AI83: 802.3691456 | AJ83: 1086.079783 | AK83: 336.917464 | AL83: 567.2749859 | AM83: 767.8584064 | AN83: 3007.759392 | AO83: 3007.759392 | AP83: 3007.759392 | AQ83: 336.917464 | AR83: 567.2749859 | AS83: 767.8584064
B84: 13 | C84: 600 | D84: =D44 -> 1680 | E84: =0.6+0.1*B$82 -> 1.9 | F84: =B$82-E84-0.2 -> 10.9 | G84: =G44 -> 0.45 | H84: =Padroes!S$8 -> 1 | I84: =Padroes!S$9 -> 0.2 | J84: =Padroes!S$10 -> 0.5 | K84: =K44 -> 0.9 | L84: 2901.45408 | M84: 0.8 | N84: 1 | O84: 1331.993747 | P84: 1394.654482 | Q84: 1554.154535 | R84: 2891.89201 | S84: =F84-0.25 -> 10.65 | T84: 8.65 | U84: 4.634481216 | V84: 4006.316702 | W84: 5664.931816 | X84: 4194.785116 | Y84: 5931.426154 | Z84: 4674.522899 | AA84: 6609.775379 | AB84: 8698.115354 | AC84: 12299.13511 | AD84: =($U84-$S84)*$O84/F$65 -> -4006.316702 | AE84: =(U84-S84)*P84/F$65 -> -4194.785116 | AF84: =(U84-S84)*Q84/F$65 -> -4674.522899 | AG84: =(U84-S84)*R84/F$65 -> -8698.115354 | AH84: 476.5452108 | AI84: 802.3691456 | AJ84: 1086.079783 | AK84: 336.917464 | AL84: 567.2749859 | AM84: 767.8584064 | AN84: 3007.759392 | AO84: 3007.759392 | AP84: 3007.759392 | AQ84: 336.917464 | AR84: 567.2749859 | AS84: 767.8584064
B85: 13 | C85: 1000 | D85: =D45 -> 1920 | E85: =0.6+0.1*B$82 -> 1.9 | F85: =B$82-E85-0.2 -> 10.9 | G85: =G45 -> 0.49 | H85: =Padroes!S$8 -> 1 | I85: =Padroes!S$9 -> 0.2 | J85: =Padroes!S$10 -> 0.5 | K85: =K45 -> 1.3 | L85: 4468.46592 | M85: 0.8 | N85: 1 | O85: 1450.393191 | P85: 1508.496782 | Q85: 1656.396831 | R85: 4386.320402 | S85: =F85-0.25 -> 10.65 | T85: 8.65 | U85: 4.634481216 | V85: 4362.433742 | W85: 6168.481311 | X85: 4537.195363 | Y85: 6415.594243 | Z85: 4982.043125 | AA85: 7044.608978 | AB85: 13192.99638 | AC85: 18654.89689 | AD85: =($U85-$S85)*$O85/F$65 -> -4362.433742 | AE85: =(U85-S85)*P85/F$65 -> -4537.195363 | AF85: =(U85-S85)*Q85/F$65 -> -4982.043125 | AG85: =(U85-S85)*R85/F$65 -> -13192.99638 | AH85: 476.5452108 | AI85: 802.3691456 | AJ85: 1086.079783 | AK85: 336.917464 | AL85: 567.2749859 | AM85: 767.8584064 | AN85: 3007.759392 | AO85: 3007.759392 | AP85: 3007.759392 | AQ85: 336.917464 | AR85: 567.2749859 | AS85: 767.8584064
B86: Poste de Madeira
B87: comprimento | C87: carga | D87: peso | E87: t | F87: h * | G87: b | H87: m | I87: n | J87: p | O87: SIMPLES | P87: ESCORA SIMPLES | Q87: ESCORA DUPLA
B88: 9 | C88: =Padroes!W10 -> 295 | D88: 209 | E88: =0.6+0.1*B88 -> 1.5 | F88: =B88-0.2-E88 -> 7.3 | G88: =Padroes!Y10 -> 0.22 | H88: =Padroes!S$8 -> 1 | I88: =Padroes!S$9 -> 0.2 | J88: =Padroes!S$10 -> 0.5 | O88: =($B$63*G88*E88^3) / ((2*$F$65+3*T88)/(2*$F$65+6*T88)*T88) -> 531.4736842 | P88: =(($B$63*G88*E88^3)+ (3*$B$63*(2*J88*I88 - I88^2)*(H88-G88))*( E88/2 - J88+I88/2)) / ((2*$F$65+3*T88)/(2*$F$65+6*T88)*T88) -> 625.2707368 | Q88: =(($B$63*G88*E88^3)+ (6*$B$63*I88*J88*(H88-G88)) * (E88+I88-J88-(I88^2/H88))) / ((2*$F$65+3*T88)/(2*$F$65+6*T88)*T88) -> 920.0614737 | S88: =F88-0.3 -> 7 | T88: =S88-$F$65 -> 5 | U88: =T88*(2*$F$65+3*T88)/(2*$F$65+6*T88) -> 2.794117647 | V88: =$O88* ($S88-$U88)/$F$65 -> 1117.657895 | W88: =1.414*$O88*($S88-$U88)/$F$65 -> 1580.368263 | X88: =$P88* ($S88-$U88)/$F$65 -> 1314.907579 | Y88: =1.414*$P88*($S88-$U88)/$F$65 -> 1859.279317 | Z88: =$Q88* ($S88-$U88)/$F$65 -> 1934.835158 | AA88: =1.414*$Q88*($S88-$U88)/$F$65 -> 2735.856913 | AD88: =(U88-S88)*O88/F$65 -> -1117.657895 | AE88: =(U88-S88)*P88/F$65 -> -1314.907579 | AF88: =(U88-S88)*Q88/F$65 -> -1934.835158 | AH88: =AH$66*F$65/(S88-U88) -> 681.5850816 | AI88: =AI$66*F$65/(S88-U88) -> 1147.599068 | AJ88: =AJ$66*F$65/ (S88-U88) -> 1553.379953 | AK88: =AK$66*$F$65* 0.707 / ($S88-$U88) -> 481.8806527 | AL88: 811.3525408 | AM88: 1098.239627 | AN88: =AN$66*( U88-S88)/F$65 -> 2102.941176 | AO88: =AO$66*(U88-S88)/F$65 -> 2102.941176 | AP88: =AP$66*(U88-S88)/F$65 -> 2102.941176 | AQ88: =MIN(AH88,AK88,AN88) -> 481.8806527 | AR88: 811.3525408 | AS88: 1098.239627
B89: 10 | C89: =Padroes!W11 -> 255 | D89: 232 | E89: =0.6+0.1*B89 -> 1.6 | F89: =B89-0.2-E89 -> 8.2 | G89: =Padroes!Y11 -> 0.23 | H89: =Padroes!S$8 -> 1 | I89: =Padroes!S$9 -> 0.2 | J89: =Padroes!S$10 -> 0.5 | O89: =($B$63*G89*E89^3) / ((2*$F$65+3*T89)/(2*$F$65+6*T89)*T89) -> 575.3602831 | P89: =(($B$63*G89*E89^3)+ (3*$B$63*(2*J89*I89 - I89^2)*(H89-G89))*( E89/2 - J89+I89/2)) / ((2*$F$65+3*T89)/(2*$F$65+6*T89)*T89) -> 665.651197 | Q89: =(($B$63*G89*E89^3)+ (6*$B$63*I89*J89*(H89-G89)) * (E89+I89-J89-(I89^2/H89))) / ((2*$F$65+3*T89)/(2*$F$65+6*T89)*T89) -> 930.8807569 | S89: =F89-0.25 -> 7.95 | T89: =S89-$F$65 -> 5.95 | U89: =T89*(2*$F$65+3*T89)/(2*$F$65+6*T89) -> 3.274748111 | V89: =$O89* ($S89-$U89)/$F$65 -> 1344.977125 | W89: =1.414*$O89*($S89-$U89)/$F$65 -> 1901.797655 | X89: =$P89/$F$65 * (($F89-0.25) - ((2*$F$65+3*($F89-0.25-$F$65))/(2*$F$65+6*($F89-0.25-$F$65))*($F89-0.25-$F$65))) -> 1556.043508 | Y89: =($P89*1.414/$F$65) * (($F89-0.25) - ((2*$F$65+3*($F89-0.25-$F$65))/(2*$F$65+6*($F89-0.25-$F$65))*($F89-0.25-$F$65))) -> 2200.245521 | Z89: =$Q89/$F$65 * (($F89-0.25) - ((2*$F$65+3*($F89-0.25-$F$65))/(2*$F$65+6*($F89-0.25-$F$65))*($F89-0.25-$F$65))) -> 2176.051009 | AA89: =1.414*$Q89*($S89-$U89)/$F$65 -> 3076.936126 | AD89: =(U89-S89)*O89/F$65 -> -1344.977125 | AE89: =(U89-S89)*P89/F$65 -> -1556.043508 | AF89: =(U89-S89)*Q89/F$65 -> -2176.051009 | AH89: =AH$66*F$65/(S89-U89) -> 613.1576939 | AI89: =AI$66*F$65/(S89-U89) -> 1032.386443 | AJ89: =AJ$66*F$65/ (S89-U89) -> 1397.429163 | AK89: 433.5024896 | AL89: 729.897215 | AM89: 987.9824181 | AN89: =AN$66*( U89-S89)/F$65 -> 2337.625945 | AO89: =AO$66*(U89-S89)/F$65 -> 2337.625945 | AP89: =AP$66*(U89-S89)/F$65 -> 2337.625945 | AQ89: 433.5024896 | AR89: 729.897215 | AS89: 987.9824181
B90: 11 | C90: =Padroes!W12 -> 300 | D90: 300 | E90: =0.6+0.1*B90 -> 1.7 | F90: =B90-0.2-E90 -> 9.1 | G90: =Padroes!Y12 -> 0.24 | H90: =Padroes!S$8 -> 1 | I90: =Padroes!S$9 -> 0.2 | J90: =Padroes!S$10 -> 0.5 | O90: =($B$63*G90*E90^3) / ((2*$F$65+3*T90)/(2*$F$65+6*T90)*T90) -> 632.4445806 | P90: =(($B$63*G90*E90^3)+ (3*$B$63*(2*J90*I90 - I90^2)*(H90-G90))*( E90/2 - J90+I90/2)) / ((2*$F$65+3*T90)/(2*$F$65+6*T90)*T90) -> 720.4950778 | Q90: =(($B$63*G90*E90^3)+ (6*$B$63*I90*J90*(H90-G90)) * (E90+I90-J90-(I90^2/H90))) / ((2*$F$65+3*T90)/(2*$F$65+6*T90)*T90) -> 965.0797925 | S90: =F90-0.25 -> 8.85 | T90: =S90-$F$65 -> 6.85 | U90: =T90*(2*$F$65+3*T90)/(2*$F$65+6*T90) -> 3.728769401 | V90: =$O90/$F$65 * (($F90-0.25) - ((2*$F$65+3*($F90-0.25-$F$65))/(2*$F$65+6*($F90-0.25-$F$65))*($F90-0.25-$F$65))) -> 1619.447269 | W90: =1.414*$O90*($S90-$U90)/$F$65 -> 2289.898438 | X90: =$P90/$F$65 * (($F90-0.25) - ((2*$F$65+3*($F90-0.25-$F$65))/(2*$F$65+6*($F90-0.25-$F$65))*($F90-0.25-$F$65))) -> 1844.910719 | Y90: =($P90*1.414/$F$65) * (($F90-0.25) - ((2*$F$65+3*($F90-0.25-$F$65))/(2*$F$65+6*($F90-0.25-$F$65))*($F90-0.25-$F$65))) -> 2608.703757 | Z90: =$Q90/$F$65 * (($F90-0.25) - ((2*$F$65+3*($F90-0.25-$F$65))/(2*$F$65+6*($F90-0.25-$F$65))*($F90-0.25-$F$65))) -> 2471.198082 | AA90: =($Q90*1.414/$F$65) * (($F90-0.25) - ((2*$F$65+3*($F90-0.25-$F$65))/(2*$F$65+6*($F90-0.25-$F$65))*($F90-0.25-$F$65))) -> 3494.274087 | AD90: =(U90-S90)*O90/F$65 -> -1619.447269 | AE90: =(U90-S90)*P90/F$65 -> -1844.910719 | AF90: =(U90-S90)*Q90/F$65 -> -2471.198082 | AH90: =AH$66*F$65/(S90-U90) -> 559.761294 | AI90: =AI$66*F$65/(S90-U90) -> 942.4818066 | AJ90: =AJ$66*F$65/ (S90-U90) -> 1275.735042 | AK90: 395.7512348 | AL90: 666.3346373 | AM90: 901.9446748 | AN90: =AN$66*( U90-S90)/F$65 -> 2560.615299 | AO90: =AO$66*(U90-S90)/F$65 -> 2560.615299 | AP90: =AP$66*(U90-S90)/F$65 -> 2560.615299 | AQ90: 395.7512348 | AR90: 666.3346373 | AS90: 901.9446748
B91: 12 | C91: =Padroes!W13 -> 265 | D91: 327 | E91: =0.6+0.1*B91 -> 1.8 | F91: =B91-0.2-E91 -> 10 | G91: =Padroes!Y13 -> 0.24 | H91: =Padroes!S$8 -> 1 | I91: =Padroes!S$9 -> 0.2 | J91: =Padroes!S$10 -> 0.5 | O91: =($B$63*G91*E91^3) / ((2*$F$65+3*T91)/(2*$F$65+6*T91)*T91) -> 669.394164 | P91: =(($B$63*G91*E91^3)+ (3*$B$63*(2*J91*I91 - I91^2)*(H91-G91))*( E91/2 - J91+I91/2)) / ((2*$F$65+3*T91)/(2*$F$65+6*T91)*T91) -> 756.6265996 | Q91: =(($B$63*G91*E91^3)+ (6*$B$63*I91*J91*(H91-G91)) * (E91+I91-J91-(I91^2/H91))) / ((2*$F$65+3*T91)/(2*$F$65+6*T91)*T91) -> 987.792554 | S91: =F91-0.25 -> 9.75 | T91: =S91-$F$65 -> 7.75 | U91: =T91*(2*$F$65+3*T91)/(2*$F$65+6*T91) -> 4.181930693 | V91: =$O91/$F$65 * (($F91-0.25) - ((2*$F$65+3*($F91-0.25-$F$65))/(2*$F$65+6*($F91-0.25-$F$65))*($F91-0.25-$F$65))) -> 1863.616549 | W91: =1.414*$O91*($S91-$U91)/$F$65 -> 2635.153801 | X91: =$P91/$F$65 * (($F91-0.25) - ((2*$F$65+3*($F91-0.25-$F$65))/(2*$F$65+6*($F91-0.25-$F$65))*($F91-0.25-$F$65))) -> 2106.474673 | Y91: =($P91*1.414/$F$65) * (($F91-0.25) - ((2*$F$65+3*($F91-0.25-$F$65))/(2*$F$65+6*($F91-0.25-$F$65))*($F91-0.25-$F$65))) -> 2978.555188 | Z91: =$Q91/$F$65 * (($F91-0.25) - ((2*$F$65+3*($F91-0.25-$F$65))/(2*$F$65+6*($F91-0.25-$F$65))*($F91-0.25-$F$65))) -> 2750.048701 | AA91: =($Q91*1.414/$F$65) * (($F91-0.25) - ((2*$F$65+3*($F91-0.25-$F$65))/(2*$F$65+6*($F91-0.25-$F$65))*($F91-0.25-$F$65))) -> 3888.568863 | AD91: =(U91-S91)*O91/F$65 -> -1863.616549 | AE91: =(U91-S91)*P91/F$65 -> -2106.474673 | AF91: =(U91-S91)*Q91/F$65 -> -2750.048701 | AH91: =AH$66*F$65/(S91-U91) -> 514.8403349 | AI91: =AI$66*F$65/(S91-U91) -> 866.8474476 | AJ91: =AJ$66*F$65/ (S91-U91) -> 1173.357042 | AK91: 363.9921168 | AL91: 612.8611454 | AM91: 829.5634289 | AN91: =AN$66*( U91-S91)/F$65 -> 2784.034653 | AO91: =AO$66*(U91-S91)/F$65 -> 2784.034653 | AP91: =AP$66*(U91-S91)/F$65 -> 2784.034653 | AQ91: 363.9921168 | AR91: 612.8611454 | AS91: 829.5634289
B92: 13 | C92: =Padroes!W14 -> 230 | D92: 355 | E92: =0.6+0.1*B92 -> 1.9 | F92: =B92-0.2-E92 -> 10.9 | G92: =Padroes!Y14 -> 0.25 | H92: =Padroes!S$8 -> 1 | I92: =Padroes!S$9 -> 0.2 | J92: =Padroes!S$10 -> 0.5 | O92: =($B$63*G92*E92^3) / ((2*$F$65+3*T92)/(2*$F$65+6*T92)*T92) -> 739.996526 | P92: =(($B$63*G92*E92^3)+ (3*$B$63*(2*J92*I92 - I92^2)*(H92-G92))*( E92/2 - J92+I92/2)) / ((2*$F$65+3*T92)/(2*$F$65+6*T92)*T92) -> 825.442983 | Q92: =(($B$63*G92*E92^3)+ (6*$B$63*I92*J92*(H92-G92)) * (E92+I92-J92-(I92^2/H92))) / ((2*$F$65+3*T92)/(2*$F$65+6*T92)*T92) -> 1042.943055 | S92: =F92-0.25 -> 10.65 | T92: =S92-$F$65 -> 8.65 | U92: =T92*(2*$F$65+3*T92)/(2*$F$65+6*T92) -> 4.634481216 | V92: =$O92/$F$65 * (($F92-0.25) - ((2*$F$65+3*($F92-0.25-$F$65))/(2*$F$65+6*($F92-0.25-$F$65))*($F92-0.25-$F$65))) -> 2225.731501 | W92: =1.414*$O92*($S92-$U92)/$F$65 -> 3147.184342 | X92: =$P92/$F$65 * (($F92-0.25) - ((2*$F$65+3*($F92-0.25-$F$65))/(2*$F$65+6*($F92-0.25-$F$65))*($F92-0.25-$F$65))) -> 2482.733885 | Y92: =($P92*1.414/$F$65) * (($F92-0.25) - ((2*$F$65+3*($F92-0.25-$F$65))/(2*$F$65+6*($F92-0.25-$F$65))*($F92-0.25-$F$65))) -> 3510.585713 | Z92: =$Q92/$F$65 * (($F92-0.25) - ((2*$F$65+3*($F92-0.25-$F$65))/(2*$F$65+6*($F92-0.25-$F$65))*($F92-0.25-$F$65))) -> 3136.92177 | AA92: =($Q92*1.414/$F$65) * (($F92-0.25) - ((2*$F$65+3*($F92-0.25-$F$65))/(2*$F$65+6*($F92-0.25-$F$65))*($F92-0.25-$F$65))) -> 4435.607383 | AD92: =(U92-S92)*O92/F$65 -> -2225.731501 | AE92: =(U92-S92)*P92/F$65 -> -2482.733885 | AF92: =(U92-S92)*Q92/F$65 -> -3136.92177 | AH92: =AH$66*F$65/(S92-U92) -> 476.5452108 | AI92: =AI$66*F$65/(S92-U92) -> 802.3691456 | AJ92: =AJ$66*F$65/ (S92-U92) -> 1086.079783 | AK92: 336.917464 | AL92: 567.2749859 | AM92: 767.8584064 | AN92: =AN$66*( U92-S92)/F$65 -> 3007.759392 | AO92: =AO$66*(U92-S92)/F$65 -> 3007.759392 | AP92: =AP$66*(U92-S92)/F$65 -> 3007.759392 | AQ92: =MIN(AH92,AK92,AN92) -> 336.917464 | AR92: =MIN(AI92,AL92,AO92) -> 567.2749859 | AS92: =MIN(AJ92,AM92,AP92) -> 767.8584064
W96: Valores para Critários de Projetos
A97: Poste de concreto Duplo T | E97: DADOS DO POSTE | G97: Face A | H97: dados escora | K97: dados da base concretada | O97: VALOR DA TRAÇÃO NO TOPO (daN)
A98: comprimento | C98: carga | D98: peso | E98: t | F98: h* | G98: b | H98: m | I98: n | J98: c | K98: d | L98: P | M98: q | N98: K | O98: SIMPLES | P98: ESCORA SIMPLES | Q98: ESCORA DUPLA | R98: CONCRETADO | S98: 9 | W98: SIMPLES | X98: ESCORA SIMPLES | Y98: ESCORA DUPLA | Z98: CONCRETADO
A99: 9 | B99: 9 | C99: =IF(Padroes!H10="","",Padroes!H10) -> 150 | D99: =IF(Padroes!I10<>"",Padroes!I10,"") -> 470 | E99: =IF(D99="","",(0.6+0.1*B99)) -> 1.5 | F99: =IF(E99="","",(B99-E99-0.5)) -> 7 | G99: =IF(Padroes!J10="","",Padroes!J10) -> 0.264 | H99: =IF(E99="","",Padroes!S$8) -> 1 | I99: =IF(E99="","",Padroes!S$9) -> 0.2 | J99: =IF(E99="","",Padroes!S$10) -> 0.5 | K99: =IF(Padroes!L10="","",Padroes!L10) -> 0.625 | L99: =IF(D99="","",(D99+(3.1416*K99^2*M99/4*2400))) -> 911.7875 | M99: =IF(E99="","",Padroes!$AI$8) -> 0.6 | N99: =IF(E99="","",Padroes!$AL$23) -> 1 | O99: =IF(E99="","",($B$63*G99*E99^3)/(F99+E99)) -> 209.6470588 | P99: =IF(E99="","",(3*$B$63*(2*J99*I99 - I99^2)*(H99-G99))*(E99-J99+I99/2)/(F99+E99/2) + O99) -> 309.9329943 | Q99: =IF(E99="","",(3*$B$63 * (2*E99*I99-I99^2)*(H99-G99) ) * (I99/2) / (F99+E99) + P99) -> 339.0266414 | R99: =IF(E99="","",(N99*$B$63*K99*E99^3)/(F99+E99) + (K99*L99/(F99+E99)) * (0.5 - (2*L99/(3*$C$63*K99^2)))) -> 525.6720453 | T99: =IF(Padroes!N10="","",Padroes!N10) -> D | W99: =IF(O99="","",O99*Parametros!$I$26) -> 167.7176471 | X99: =IF(P99="","",P99*Parametros!$I$27) -> 247.9463954 | Y99: =IF(Q99="","",Q99*Parametros!$I$28) -> 271.2213131 | Z99: =IF(R99="","",R99*Parametros!$I$29) -> 525.6720453
B100: 9 | C100: =IF(Padroes!H11="","",Padroes!H11) -> 200 | D100: =IF(Padroes!I11<>"",Padroes!I11,"") -> 470 | E100: =IF(D100="","",(0.6+0.1*B100)) -> 1.5 | F100: =IF(E100="","",(B100-E100-0.5)) -> 7 | G100: =IF(Padroes!J11="","",Padroes!J11) -> 0.264 | H100: =IF(E100="","",Padroes!S$8) -> 1 | I100: =IF(E100="","",Padroes!S$9) -> 0.2 | J100: =IF(E100="","",Padroes!S$10) -> 0.5 | K100: =IF(Padroes!L11="","",Padroes!L11) -> 0.625 | L100: =IF(D100="","",(D100+(3.1416*K100^2*M100/4*2400))) -> 911.7875 | M100: =IF(E100="","",Padroes!$AI$8) -> 0.6 | N100: =IF(E100="","",Padroes!$AL$23) -> 1 | O100: 209.6470588 | P100: =IF(E100="","",(3*$B$63*(2*J100*I100 - I100^2)*(H100-G100))*(E100-J100+I100/2)/(F100+E100/2) + O100) -> 309.9329943 | Q100: =IF(E100="","",(3*$B$63 * (2*E100*I100-I100^2)*(H100-G100) ) * (I100/2) / (F100+E100) + P100) -> 339.0266414 | R100: =IF(E100="","",(N100*$B$63*K100*E100^3)/(F100+E100) + (K100*L100/(F100+E100)) * (0.5 - (2*L100/(3*$C$63*K100^2)))) -> 525.6720453 | T100: =IF(Padroes!N11="","",Padroes!N11) -> D | W100: =IF(O100="","",O100*Parametros!$I$26) -> 167.7176471 | X100: =IF(P100="","",P100*Parametros!$I$27) -> 247.9463954 | Y100: =IF(Q100="","",Q100*Parametros!$I$28) -> 271.2213131 | Z100: =IF(R100="","",R100*Parametros!$I$29) -> 525.6720453
B101: 9 | C101: =IF(Padroes!H12="","",Padroes!H12) -> 300 | D101: =IF(Padroes!I12<>"",Padroes!I12,"") -> 750 | E101: 1.5 | F101: 7 | G101: =IF(Padroes!J12="","",Padroes!J12) -> 0.392 | H101: =IF(E101="","",Padroes!S$8) -> 1 | I101: =IF(E101="","",Padroes!S$9) -> 0.2 | J101: =IF(E101="","",Padroes!S$10) -> 0.5 | K101: =IF(Padroes!L12="","",Padroes!L12) -> 0.787 | L101: =IF(D101="","",(D101+(3.1416*K101^2*M101/4*2400))) -> 1450.491474 | M101: =IF(E101="","",Padroes!$AI$8) -> 0.6 | N101: =IF(E101="","",Padroes!$AL$23) -> 1 | O101: 311.2941176 | P101: =IF(E101="","",(3*$B$63*(2*J101*I101 - I101^2)*(H101-G101))*(E101-J101+I101/2)/(F101+E101/2) + O101) -> 394.1390209 | Q101: =IF(E101="","",(3*$B$63 * (2*E101*I101-I101^2)*(H101-G101) ) * (I101/2) / (F101+E101) + P101) -> 418.1729032 | R101: =IF(E101="","",(N101*$B$63*K101*E101^3)/(F101+E101) + (K101*L101/(F101+E101)) * (0.5 - (2*L101/(3*$C$63*K101^2)))) -> 683.7328345 | T101: =IF(Padroes!N12="","",Padroes!N12) -> B | W101: =IF(O101="","",O101*Parametros!$I$26) -> 249.0352941 | X101: =IF(P101="","",P101*Parametros!$I$27) -> 315.3112167 | Y101: =IF(Q101="","",Q101*Parametros!$I$28) -> 334.5383226 | Z101: =IF(R101="","",R101*Parametros!$I$29) -> 683.7328345
B102: 9 | C102: =IF(Padroes!H13="","",Padroes!H13) -> 400 | D102: =IF(Padroes!I13<>"",Padroes!I13,"") -> 750 | E102: 1.5 | F102: 7 | G102: =IF(Padroes!J13="","",Padroes!J13) -> 0.392 | H102: =IF(E102="","",Padroes!S$8) -> 1 | I102: =IF(E102="","",Padroes!S$9) -> 0.2 | J102: =IF(E102="","",Padroes!S$10) -> 0.5 | K102: =IF(Padroes!L13="","",Padroes!L13) -> 0.787 | L102: =IF(D102="","",(D102+(3.1416*K102^2*M102/4*2400))) -> 1450.491474 | M102: =IF(E102="","",Padroes!$AI$8) -> 0.6 | N102: =IF(E102="","",Padroes!$AL$23) -> 1 | O102: 311.2941176 | P102: 394.1390209 | Q102: 418.1729032 | R102: 683.7328345 | T102: =IF(Padroes!N13="","",Padroes!N13) -> B | W102: =IF(O102="","",O102*Parametros!$I$26) -> 249.0352941 | X102: =IF(P102="","",P102*Parametros!$I$27) -> 315.3112167 | Y102: =IF(Q102="","",Q102*Parametros!$I$28) -> 334.5383226 | Z102: =IF(R102="","",R102*Parametros!$I$29) -> 683.7328345
B103: 9 | C103: =IF(Padroes!H14="","",Padroes!H14) -> 600 | D103: =IF(Padroes!I14<>"",Padroes!I14,"") -> 750 | E103: 1.5 | F103: 7 | G103: =IF(Padroes!J14="","",Padroes!J14) -> 0.392 | H103: =IF(E103="","",Padroes!S$8) -> 1 | I103: =IF(E103="","",Padroes!S$9) -> 0.2 | J103: =IF(E103="","",Padroes!S$10) -> 0.5 | K103: =IF(Padroes!L14="","",Padroes!L14) -> 0.787 | L103: =IF(D103="","",(D103+(3.1416*K103^2*M103/4*2400))) -> 1450.491474 | M103: =IF(E103="","",Padroes!$AI$8) -> 0.6 | N103: =IF(E103="","",Padroes!$AL$23) -> 1 | O103: 311.2941176 | P103: 394.1390209 | Q103: 418.1729032 | R103: 683.7328345 | T103: =IF(Padroes!N14="","",Padroes!N14) -> B | W103: =IF(O103="","",O103*Parametros!$I$26) -> 249.0352941 | X103: =IF(P103="","",P103*Parametros!$I$27) -> 315.3112167 | Y103: =IF(Q103="","",Q103*Parametros!$I$28) -> 334.5383226 | Z103: =IF(R103="","",R103*Parametros!$I$29) -> 683.7328345
B104: 9 | C104: =IF(Padroes!H15="","",Padroes!H15) -> 1000 | D104: =IF(Padroes!I15<>"",Padroes!I15,"") -> 1026 | E104: 1.5 | F104: 7 | G104: =IF(Padroes!J15="","",Padroes!J15) -> 0.434 | H104: =IF(E104="","",Padroes!S$8) -> 1 | I104: =IF(E104="","",Padroes!S$9) -> 0.2 | J104: =IF(E104="","",Padroes!S$10) -> 0.5 | K104: =IF(Padroes!L15="","",Padroes!L15) -> 0.868 | L104: 1878.104462 | M104: =IF(E104="","",Padroes!$AI$8) -> 0.6 | N104: =IF(E104="","",Padroes!$AL$23) -> 1 | O104: 344.6470588 | P104: 421.7691233 | Q104: 444.1427704 | R104: 772.4391142 | T104: =IF(Padroes!N15="","",Padroes!N15) -> B-1,5 | W104: =IF(O104="","",O104*Parametros!$I$26) -> 275.7176471 | X104: =IF(P104="","",P104*Parametros!$I$27) -> 337.4152987 | Y104: =IF(Q104="","",Q104*Parametros!$I$28) -> 355.3142163 | Z104: =IF(R104="","",R104*Parametros!$I$29) -> 772.4391142
B105: 9 | C105: =IF(Padroes!H16="","",Padroes!H16) ->  | D105: =IF(Padroes!I16<>"",Padroes!I16,"") ->  | G105: =IF(Padroes!J16="","",Padroes!J16) ->  | H105: =IF(E105="","",Padroes!S$8) ->  | I105: =IF(E105="","",Padroes!S$9) ->  | J105: =IF(E105="","",Padroes!S$10) ->  | K105: =IF(Padroes!L16="","",Padroes!L16) ->  | M105: =IF(E105="","",Padroes!$AI$8) ->  | N105: =IF(E105="","",Padroes!$AL$23) ->  | O105: =IF(E105="","",($B$63*G105*E105^3)/(F105+E105)) ->  | T105: =IF(Padroes!N16="","",Padroes!N16) ->  | W105: =IF(O105="","",O105*Parametros!$I$26) ->  | X105: =IF(P105="","",P105*Parametros!$I$27) ->  | Y105: =IF(Q105="","",Q105*Parametros!$I$28) ->  | Z105: =IF(R105="","",R105*Parametros!$I$29) -> 
B106: 9 | C106: =IF(Padroes!H17="","",Padroes!H17) ->  | D106: =IF(Padroes!I17<>"",Padroes!I17,"") ->  | G106: =IF(Padroes!J17="","",Padroes!J17) ->  | H106: =IF(E106="","",Padroes!S$8) ->  | I106: =IF(E106="","",Padroes!S$9) ->  | J106: =IF(E106="","",Padroes!S$10) ->  | K106: =IF(Padroes!L17="","",Padroes!L17) ->  | M106: =IF(E106="","",Padroes!$AI$8) ->  | N106: =IF(E106="","",Padroes!$AL$23) ->  | T106: =IF(Padroes!N17="","",Padroes!N17) ->  | W106: =IF(O106="","",O106*Parametros!$I$26) ->  | X106: =IF(P106="","",P106*Parametros!$I$27) ->  | Y106: =IF(Q106="","",Q106*Parametros!$I$28) ->  | Z106: =IF(R106="","",R106*Parametros!$I$29) -> 
B107: 9 | C107: =IF(Padroes!H18="","",Padroes!H18) ->  | D107: =IF(Padroes!I18<>"",Padroes!I18,"") ->  | G107: =IF(Padroes!J18="","",Padroes!J18) ->  | H107: =IF(E107="","",Padroes!S$8) ->  | I107: =IF(E107="","",Padroes!S$9) ->  | J107: =IF(E107="","",Padroes!S$10) ->  | K107: =IF(Padroes!L18="","",Padroes!L18) ->  | M107: =IF(E107="","",Padroes!$AI$8) ->  | N107: =IF(E107="","",Padroes!$AL$23) ->  | T107: =IF(Padroes!N18="","",Padroes!N18) ->  | W107: =IF(O107="","",O107*Parametros!$I$26) ->  | X107: =IF(P107="","",P107*Parametros!$I$27) ->  | Y107: =IF(Q107="","",Q107*Parametros!$I$28) ->  | Z107: =IF(R107="","",R107*Parametros!$I$29) -> 
A108: 10 | B108: 10 | C108: =IF(Padroes!H19="","",Padroes!H19) -> 150 | D108: =IF(Padroes!I19<>"",Padroes!I19,"") -> 550 | E108: 1.6 | F108: =IF(E108="","",(B108-E108-0.2)) -> 8.2 | G108: =IF(Padroes!J19="","",Padroes!J19) -> 0.28 | H108: =IF(E108="","",Padroes!S$8) -> 1 | I108: =IF(E108="","",Padroes!S$9) -> 0.2 | J108: =IF(E108="","",Padroes!S$10) -> 0.5 | K108: =IF(Padroes!L19="","",Padroes!L19) -> 0.663 | L108: 1088.570488 | M108: =IF(E108="","",Padroes!$AI$9) -> 0.65 | N108: =IF(E108="","",Padroes!$AL$23) -> 1 | O108: 234.0571429 | P108: 326.2171429 | Q108: 352.6661224 | R108: 586.1730153 | S108: 10 | T108: =IF(Padroes!N19="","",Padroes!N19) -> D | W108: =IF(O108="","",O108*Parametros!$I$26) -> 187.2457143 | X108: =IF(P108="","",P108*Parametros!$I$27) -> 260.9737143 | Y108: =IF(Q108="","",Q108*Parametros!$I$28) -> 282.132898 | Z108: =IF(R108="","",R108*Parametros!$I$29) -> 586.1730153
B109: 10 | C109: =IF(Padroes!H20="","",Padroes!H20) -> 200 | D109: =IF(Padroes!I20<>"",Padroes!I20,"") -> 550 | E109: 1.6 | F109: =IF(E109="","",(B109-E109-0.2)) -> 8.2 | G109: =IF(Padroes!J20="","",Padroes!J20) -> 0.28 | H109: =IF(E109="","",Padroes!S$8) -> 1 | I109: =IF(E109="","",Padroes!S$9) -> 0.2 | J109: =IF(E109="","",Padroes!S$10) -> 0.5 | K109: =IF(Padroes!L20="","",Padroes!L20) -> 0.663 | L109: 1088.570488 | M109: =IF(E109="","",Padroes!$AI$9) -> 0.65 | N109: =IF(E109="","",Padroes!$AL$23) -> 1 | O109: 234.0571429 | P109: 326.2171429 | Q109: 352.6661224 | R109: 586.1730153 | T109: =IF(Padroes!N20="","",Padroes!N20) -> B | W109: =IF(O109="","",O109*Parametros!$I$26) -> 187.2457143 | X109: =IF(P109="","",P109*Parametros!$I$27) -> 260.9737143 | Y109: =IF(Q109="","",Q109*Parametros!$I$28) -> 282.132898 | Z109: =IF(R109="","",R109*Parametros!$I$29) -> 586.1730153
B110: 10 | C110: =IF(Padroes!H21="","",Padroes!H21) -> 300 | D110: =IF(Padroes!I21<>"",Padroes!I21,"") -> 900 | E110: 1.6 | F110: 8.2 | G110: =IF(Padroes!J21="","",Padroes!J21) -> 0.42 | H110: =IF(E110="","",Padroes!S$8) -> 1 | I110: =IF(E110="","",Padroes!S$9) -> 0.2 | J110: =IF(E110="","",Padroes!S$10) -> 0.5 | K110: =IF(Padroes!L21="","",Padroes!L21) -> 0.856 | L110: 1797.765733 | M110: =IF(E110="","",Padroes!$AI$9) -> 0.65 | N110: =IF(E110="","",Padroes!$AL$23) -> 1 | O110: 351.0857143 | P110: 425.3257143 | Q110: 446.6318367 | R110: 783.786895 | T110: =IF(Padroes!N21="","",Padroes!N21) -> B | W110: =IF(O110="","",O110*Parametros!$I$26) -> 280.8685714 | X110: =IF(P110="","",P110*Parametros!$I$27) -> 340.2605714 | Y110: =IF(Q110="","",Q110*Parametros!$I$28) -> 357.3054694 | Z110: =IF(R110="","",R110*Parametros!$I$29) -> 783.786895
B111: 10 | C111: =IF(Padroes!H22="","",Padroes!H22) -> 400 | D111: =IF(Padroes!I22<>"",Padroes!I22,"") -> 900 | E111: 1.6 | F111: 8.2 | G111: =IF(Padroes!J22="","",Padroes!J22) -> 0.42 | H111: =IF(E111="","",Padroes!S$8) -> 1 | I111: =IF(E111="","",Padroes!S$9) -> 0.2 | J111: =IF(E111="","",Padroes!S$10) -> 0.5 | K111: =IF(Padroes!L22="","",Padroes!L22) -> 0.856 | L111: 1797.765733 | M111: =IF(E111="","",Padroes!$AI$9) -> 0.65 | N111: =IF(E111="","",Padroes!$AL$23) -> 1 | O111: 351.0857143 | P111: 425.3257143 | Q111: 446.6318367 | R111: 783.786895 | T111: =IF(Padroes!N22="","",Padroes!N22) -> B | W111: =IF(O111="","",O111*Parametros!$I$26) -> 280.8685714 | X111: =IF(P111="","",P111*Parametros!$I$27) -> 340.2605714 | Y111: =IF(Q111="","",Q111*Parametros!$I$28) -> 357.3054694 | Z111: =IF(R111="","",R111*Parametros!$I$29) -> 783.786895
B112: 10 | C112: =IF(Padroes!H23="","",Padroes!H23) -> 600 | D112: =IF(Padroes!I23<>"",Padroes!I23,"") -> 900 | E112: 1.6 | F112: 8.2 | G112: =IF(Padroes!J23="","",Padroes!J23) -> 0.42 | H112: =IF(E112="","",Padroes!S$8) -> 1 | I112: =IF(E112="","",Padroes!S$9) -> 0.2 | J112: =IF(E112="","",Padroes!S$10) -> 0.5 | K112: =IF(Padroes!L23="","",Padroes!L23) -> 0.856 | L112: 1797.765733 | M112: =IF(E112="","",Padroes!$AI$9) -> 0.65 | N112: =IF(E112="","",Padroes!$AL$23) -> 1 | O112: 351.0857143 | P112: 425.3257143 | Q112: 446.6318367 | R112: 783.786895 | T112: =IF(Padroes!N23="","",Padroes!N23) -> B | W112: =IF(O112="","",O112*Parametros!$I$26) -> 280.8685714 | X112: =IF(P112="","",P112*Parametros!$I$27) -> 340.2605714 | Y112: =IF(Q112="","",Q112*Parametros!$I$28) -> 357.3054694 | Z112: =IF(R112="","",R112*Parametros!$I$29) -> 783.786895
B113: 10 | C113: =IF(Padroes!H24="","",Padroes!H24) -> 1000 | D113: =IF(Padroes!I24<>"",Padroes!I24,"") -> 1150 | E113: 1.6 | F113: 8.2 | G113: =IF(Padroes!J24="","",Padroes!J24) -> 0.462 | H113: =IF(E113="","",Padroes!S$8) -> 1 | I113: =IF(E113="","",Padroes!S$9) -> 0.2 | J113: =IF(E113="","",Padroes!S$10) -> 0.5 | K113: =IF(Padroes!L24="","",Padroes!L24) -> 0.856 | L113: 2047.765733 | M113: =IF(E113="","",Padroes!$AI$9) -> 0.65 | N113: =IF(E113="","",Padroes!$AL$23) -> 1 | O113: 386.1942857 | P113: 455.0582857 | Q113: 474.821551 | R113: 791.6491784 | T113: =IF(Padroes!N24="","",Padroes!N24) -> B-1,5 | W113: =IF(O113="","",O113*Parametros!$I$26) -> 308.9554286 | X113: =IF(P113="","",P113*Parametros!$I$27) -> 364.0466286 | Y113: =IF(Q113="","",Q113*Parametros!$I$28) -> 379.8572408 | Z113: =IF(R113="","",R113*Parametros!$I$29) -> 791.6491784
B114: 10 | C114: =IF(Padroes!H25="","",Padroes!H25) ->  | D114: =IF(Padroes!I25<>"",Padroes!I25,"") ->  | G114: =IF(Padroes!J25="","",Padroes!J25) ->  | H114: =IF(E114="","",Padroes!S$8) ->  | I114: =IF(E114="","",Padroes!S$9) ->  | J114: =IF(E114="","",Padroes!S$10) ->  | K114: =IF(Padroes!L25="","",Padroes!L25) ->  | M114: =IF(E114="","",Padroes!$AI$9) ->  | N114: =IF(E114="","",Padroes!$AL$23) ->  | T114: =IF(Padroes!N25="","",Padroes!N25) ->  | W114: =IF(O114="","",O114*Parametros!$I$26) ->  | X114: =IF(P114="","",P114*Parametros!$I$27) ->  | Y114: =IF(Q114="","",Q114*Parametros!$I$28) ->  | Z114: =IF(R114="","",R114*Parametros!$I$29) -> 
B115: 10 | C115: =IF(Padroes!H26="","",Padroes!H26) ->  | D115: =IF(Padroes!I26<>"",Padroes!I26,"") ->  | G115: =IF(Padroes!J26="","",Padroes!J26) ->  | H115: =IF(E115="","",Padroes!S$8) ->  | I115: =IF(E115="","",Padroes!S$9) ->  | J115: =IF(E115="","",Padroes!S$10) ->  | K115: =IF(Padroes!L26="","",Padroes!L26) ->  | M115: =IF(E115="","",Padroes!$AI$9) ->  | N115: =IF(E115="","",Padroes!$AL$23) ->  | T115: =IF(Padroes!N26="","",Padroes!N26) ->  | W115: =IF(O115="","",O115*Parametros!$I$26) ->  | X115: =IF(P115="","",P115*Parametros!$I$27) ->  | Y115: =IF(Q115="","",Q115*Parametros!$I$28) ->  | Z115: =IF(R115="","",R115*Parametros!$I$29) -> 
B116: 10 | C116: =IF(Padroes!H27="","",Padroes!H27) ->  | D116: =IF(Padroes!I27<>"",Padroes!I27,"") ->  | G116: =IF(Padroes!J27="","",Padroes!J27) ->  | H116: =IF(E116="","",Padroes!S$8) ->  | I116: =IF(E116="","",Padroes!S$9) ->  | J116: =IF(E116="","",Padroes!S$10) ->  | K116: =IF(Padroes!L27="","",Padroes!L27) ->  | M116: =IF(E116="","",Padroes!$AI$9) ->  | N116: =IF(E116="","",Padroes!$AL$23) ->  | T116: =IF(Padroes!N27="","",Padroes!N27) ->  | W116: =IF(O116="","",O116*Parametros!$I$26) ->  | X116: =IF(P116="","",P116*Parametros!$I$27) ->  | Y116: =IF(Q116="","",Q116*Parametros!$I$28) ->  | Z116: =IF(R116="","",R116*Parametros!$I$29) -> 
A117: 11 | B117: 11 | C117: =IF(Padroes!H28="","",Padroes!H28) -> 200 | D117: =IF(Padroes!I28<>"",Padroes!I28,"") -> 680 | E117: 1.7 | F117: 9.1 | G117: =IF(Padroes!J28="","",Padroes!J28) -> 0.296 | H117: =IF(E117="","",Padroes!S$8) -> 1 | I117: =IF(E117="","",Padroes!S$9) -> 0.2 | J117: =IF(E117="","",Padroes!S$10) -> 0.5 | K117: =IF(Padroes!L28="","",Padroes!L28) -> 0.663 | L117: 1259.998988 | M117: =IF(E117="","",Padroes!$AI$10) -> 0.7 | N117: =IF(E117="","",Padroes!$AL$23) -> 1 | O117: 269.3051852 | P117: 357.6058887 | Q117: 382.6369998 | R117: 635.9696818 | S117: 11 | T117: =IF(Padroes!N28="","",Padroes!N28) -> D | W117: =IF(O117="","",O117*Parametros!$I$26) -> 215.4441481 | X117: =IF(P117="","",P117*Parametros!$I$27) -> 286.084711 | Y117: =IF(Q117="","",Q117*Parametros!$I$28) -> 306.1095999 | Z117: =IF(R117="","",R117*Parametros!$I$29) -> 635.9696818
B118: 11 | C118: =IF(Padroes!H29="","",Padroes!H29) -> 300 | D118: =IF(Padroes!I29<>"",Padroes!I29,"") -> 1050 | E118: 1.7 | F118: 9.1 | G118: =IF(Padroes!J29="","",Padroes!J29) -> 0.448 | H118: =IF(E118="","",Padroes!S$8) -> 1 | I118: =IF(E118="","",Padroes!S$9) -> 0.2 | J118: =IF(E118="","",Padroes!S$10) -> 0.5 | K118: =IF(Padroes!L29="","",Padroes!L29) -> 0.856 | L118: 2016.824635 | M118: =IF(E118="","",Padroes!$AI$10) -> 0.7 | N118: =IF(E118="","",Padroes!$AL$23) -> 1 | O118: 407.597037 | P118: 476.8328159 | Q118: 496.4594826 | R118: 846.9945376 | T118: =IF(Padroes!N29="","",Padroes!N29) -> B | W118: =IF(O118="","",O118*Parametros!$I$26) -> 326.0776296 | X118: =IF(P118="","",P118*Parametros!$I$27) -> 381.4662527 | Y118: =IF(Q118="","",Q118*Parametros!$I$28) -> 397.1675861 | Z118: =IF(R118="","",R118*Parametros!$I$29) -> 846.9945376
B119: 11 | C119: =IF(Padroes!H30="","",Padroes!H30) -> 400 | D119: =IF(Padroes!I30<>"",Padroes!I30,"") -> 1050 | E119: 1.7 | F119: =IF(E119="","",(B119-E119-0.2)) -> 9.1 | G119: =IF(Padroes!J30="","",Padroes!J30) -> 0.448 | H119: =IF(E119="","",Padroes!S$8) -> 1 | I119: =IF(E119="","",Padroes!S$9) -> 0.2 | J119: =IF(E119="","",Padroes!S$10) -> 0.5 | K119: =IF(Padroes!L30="","",Padroes!L30) -> 0.856 | L119: 2016.824635 | M119: =IF(E119="","",Padroes!$AI$10) -> 0.7 | N119: =IF(E119="","",Padroes!$AL$23) -> 1 | O119: 407.597037 | P119: 476.8328159 | Q119: 496.4594826 | R119: 846.9945376 | T119: =IF(Padroes!N30="","",Padroes!N30) -> B | W119: =IF(O119="","",O119*Parametros!$I$26) -> 326.0776296 | X119: =IF(P119="","",P119*Parametros!$I$27) -> 381.4662527 | Y119: =IF(Q119="","",Q119*Parametros!$I$28) -> 397.1675861 | Z119: =IF(R119="","",R119*Parametros!$I$29) -> 846.9945376
B120: 11 | C120: =IF(Padroes!H31="","",Padroes!H31) -> 600 | D120: =IF(Padroes!I31<>"",Padroes!I31,"") -> 1050 | E120: 1.7 | F120: 9.1 | G120: =IF(Padroes!J31="","",Padroes!J31) -> 0.448 | H120: =IF(E120="","",Padroes!S$8) -> 1 | I120: =IF(E120="","",Padroes!S$9) -> 0.2 | J120: =IF(E120="","",Padroes!S$10) -> 0.5 | K120: =IF(Padroes!L31="","",Padroes!L31) -> 0.856 | L120: 2016.824635 | M120: =IF(E120="","",Padroes!$AI$10) -> 0.7 | N120: =IF(E120="","",Padroes!$AL$23) -> 1 | O120: 407.597037 | P120: 476.8328159 | Q120: 496.4594826 | R120: 846.9945376 | T120: =IF(Padroes!N31="","",Padroes!N31) -> B | W120: =IF(O120="","",O120*Parametros!$I$26) -> 326.0776296 | X120: =IF(P120="","",P120*Parametros!$I$27) -> 381.4662527 | Y120: =IF(Q120="","",Q120*Parametros!$I$28) -> 397.1675861 | Z120: =IF(R120="","",R120*Parametros!$I$29) -> 846.9945376
B121: 11 | C121: =IF(Padroes!H32="","",Padroes!H32) -> 1000 | D121: =IF(Padroes!I32<>"",Padroes!I32,"") -> 1330 | E121: 1.7 | F121: 9.1 | G121: =IF(Padroes!J32="","",Padroes!J32) -> 0.49 | H121: =IF(E121="","",Padroes!S$8) -> 1 | I121: =IF(E121="","",Padroes!S$9) -> 0.2 | J121: =IF(E121="","",Padroes!S$10) -> 0.5 | K121: =IF(Padroes!L32="","",Padroes!L32) -> 0.908 | L121: 2417.857163 | M121: =IF(E121="","",Padroes!$AI$10) -> 0.7 | N121: =IF(E121="","",Padroes!$AL$23) -> 1 | O121: 445.8092593 | P121: 509.7770985 | Q121: 527.9104318 | R121: 911.8542113 | T121: =IF(Padroes!N32="","",Padroes!N32) -> B-1,5 | W121: =IF(O121="","",O121*Parametros!$I$26) -> 356.6474074 | X121: =IF(P121="","",P121*Parametros!$I$27) -> 407.8216788 | Y121: =IF(Q121="","",Q121*Parametros!$I$28) -> 422.3283454 | Z121: =IF(R121="","",R121*Parametros!$I$29) -> 911.8542113
B122: 11 | C122: =IF(Padroes!H33="","",Padroes!H33) ->  | D122: =IF(Padroes!I33<>"",Padroes!I33,"") ->  | G122: =IF(Padroes!J33="","",Padroes!J33) ->  | H122: =IF(E122="","",Padroes!S$8) ->  | I122: =IF(E122="","",Padroes!S$9) ->  | J122: =IF(E122="","",Padroes!S$10) ->  | K122: =IF(Padroes!L33="","",Padroes!L33) ->  | M122: =IF(E122="","",Padroes!$AI$10) ->  | N122: =IF(E122="","",Padroes!$AL$23) ->  | T122: =IF(Padroes!N33="","",Padroes!N33) ->  | W122: =IF(O122="","",O122*Parametros!$I$26) ->  | X122: =IF(P122="","",P122*Parametros!$I$27) ->  | Y122: =IF(Q122="","",Q122*Parametros!$I$28) ->  | Z122: =IF(R122="","",R122*Parametros!$I$29) -> 
B123: 11 | C123: =IF(Padroes!H34="","",Padroes!H34) ->  | D123: =IF(Padroes!I34<>"",Padroes!I34,"") ->  | G123: =IF(Padroes!J34="","",Padroes!J34) ->  | H123: =IF(E123="","",Padroes!S$8) ->  | I123: =IF(E123="","",Padroes!S$9) ->  | J123: =IF(E123="","",Padroes!S$10) ->  | K123: =IF(Padroes!L34="","",Padroes!L34) ->  | M123: =IF(E123="","",Padroes!$AI$10) ->  | N123: =IF(E123="","",Padroes!$AL$23) ->  | T123: =IF(Padroes!N34="","",Padroes!N34) ->  | W123: =IF(O123="","",O123*Parametros!$I$26) ->  | X123: =IF(P123="","",P123*Parametros!$I$27) ->  | Y123: =IF(Q123="","",Q123*Parametros!$I$28) ->  | Z123: =IF(R123="","",R123*Parametros!$I$29) -> 
B124: 11 | C124: =IF(Padroes!H35="","",Padroes!H35) ->  | D124: =IF(Padroes!I35<>"",Padroes!I35,"") ->  | G124: =IF(Padroes!J35="","",Padroes!J35) ->  | H124: =IF(E124="","",Padroes!S$8) ->  | I124: =IF(E124="","",Padroes!S$9) ->  | J124: =IF(E124="","",Padroes!S$10) ->  | K124: =IF(Padroes!L35="","",Padroes!L35) ->  | M124: =IF(E124="","",Padroes!$AI$10) ->  | N124: =IF(E124="","",Padroes!$AL$23) ->  | T124: =IF(Padroes!N35="","",Padroes!N35) ->  | W124: =IF(O124="","",O124*Parametros!$I$26) ->  | X124: =IF(P124="","",P124*Parametros!$I$27) ->  | Y124: =IF(Q124="","",Q124*Parametros!$I$28) ->  | Z124: =IF(R124="","",R124*Parametros!$I$29) -> 
B125: 11 | C125: =IF(Padroes!H36="","",Padroes!H36) ->  | D125: =IF(Padroes!I36<>"",Padroes!I36,"") ->  | G125: =IF(Padroes!J36="","",Padroes!J36) ->  | H125: =IF(E125="","",Padroes!S$8) ->  | I125: =IF(E125="","",Padroes!S$9) ->  | J125: =IF(E125="","",Padroes!S$10) ->  | K125: =IF(Padroes!L36="","",Padroes!L36) ->  | M125: =IF(E125="","",Padroes!$AI$10) ->  | N125: =IF(E125="","",Padroes!$AL$23) ->  | T125: =IF(Padroes!N36="","",Padroes!N36) ->  | W125: =IF(O125="","",O125*Parametros!$I$26) ->  | X125: =IF(P125="","",P125*Parametros!$I$27) ->  | Y125: =IF(Q125="","",Q125*Parametros!$I$28) ->  | Z125: =IF(R125="","",R125*Parametros!$I$29) -> 
A126: 12 | B126: 12 | C126: =IF(Padroes!H37="","",Padroes!H37) -> 200 | D126: =IF(Padroes!I37<>"",Padroes!I37,"") -> 780 | E126: 1.8 | F126: =IF(E126="","",(B126-E126-0.2)) -> 10 | G126: =IF(Padroes!J37="","",Padroes!J37) -> 0.31 | H126: =IF(E126="","",Padroes!S$8) -> 1 | I126: =IF(E126="","",Padroes!S$9) -> 0.2 | J126: =IF(E126="","",Padroes!S$10) -> 0.5 | K126: =IF(Padroes!L37="","",Padroes!L37) -> 0.663 | L126: 1401.427487 | M126: =IF(E126="","",Padroes!$AI$11) -> 0.75 | N126: =IF(E126="","",Padroes!$AL$23) -> 1 | O126: 306.4271186 | P126: 391.5060177 | Q126: 415.3636448 | R126: 688.0348121 | S126: 12 | T126: =IF(Padroes!N37="","",Padroes!N37) -> D | W126: =IF(O126="","",O126*Parametros!$I$26) -> 245.1416949 | X126: =IF(P126="","",P126*Parametros!$I$27) -> 313.2048142 | Y126: =IF(Q126="","",Q126*Parametros!$I$28) -> 332.2909159 | Z126: =IF(R126="","",R126*Parametros!$I$29) -> 688.0348121
B127: 12 | C127: =IF(Padroes!H38="","",Padroes!H38) -> 300 | D127: =IF(Padroes!I38<>"",Padroes!I38,"") -> 1210 | E127: 1.8 | F127: 10 | G127: =IF(Padroes!J38="","",Padroes!J38) -> 0.476 | H127: =IF(E127="","",Padroes!S$8) -> 1 | I127: =IF(E127="","",Padroes!S$9) -> 0.2 | J127: =IF(E127="","",Padroes!S$10) -> 0.5 | K127: =IF(Padroes!L38="","",Padroes!L38) -> 0.89 | L127: 2329.807612 | M127: =IF(E127="","",Padroes!$AI$11) -> 0.75 | N127: =IF(E127="","",Padroes!$AL$23) -> 1 | O127: 470.5138983 | P127: 535.1245405 | Q127: 553.2425066 | R127: 953.8209812 | T127: =IF(Padroes!N38="","",Padroes!N38) -> B | W127: =IF(O127="","",O127*Parametros!$I$26) -> 376.4111186 | X127: =IF(P127="","",P127*Parametros!$I$27) -> 428.0996324 | Y127: =IF(Q127="","",Q127*Parametros!$I$28) -> 442.5940053 | Z127: =IF(R127="","",R127*Parametros!$I$29) -> 953.8209812
B128: 12 | C128: =IF(Padroes!H39="","",Padroes!H39) -> 400 | D128: =IF(Padroes!I39<>"",Padroes!I39,"") -> 1210 | E128: 1.8 | F128: 10 | G128: =IF(Padroes!J39="","",Padroes!J39) -> 0.476 | H128: =IF(E128="","",Padroes!S$8) -> 1 | I128: =IF(E128="","",Padroes!S$9) -> 0.2 | J128: =IF(E128="","",Padroes!S$10) -> 0.5 | K128: =IF(Padroes!L39="","",Padroes!L39) -> 0.89 | L128: 2329.807612 | M128: =IF(E128="","",Padroes!$AI$11) -> 0.75 | N128: =IF(E128="","",Padroes!$AL$23) -> 1 | O128: 470.5138983 | P128: 535.1245405 | Q128: 553.2425066 | R128: 953.8209812 | T128: =IF(Padroes!N39="","",Padroes!N39) -> B | W128: =IF(O128="","",O128*Parametros!$I$26) -> 376.4111186 | X128: =IF(P128="","",P128*Parametros!$I$27) -> 428.0996324 | Y128: =IF(Q128="","",Q128*Parametros!$I$28) -> 442.5940053 | Z128: =IF(R128="","",R128*Parametros!$I$29) -> 953.8209812
B129: 12 | C129: =IF(Padroes!H40="","",Padroes!H40) -> 600 | D129: =IF(Padroes!I40<>"",Padroes!I40,"") -> 1210 | E129: 1.8 | F129: 10 | G129: =IF(Padroes!J40="","",Padroes!J40) -> 0.476 | H129: =IF(E129="","",Padroes!S$8) -> 1 | I129: =IF(E129="","",Padroes!S$9) -> 0.2 | J129: =IF(E129="","",Padroes!S$10) -> 0.5 | K129: =IF(Padroes!L40="","",Padroes!L40) -> 0.89 | L129: 2329.807612 | M129: =IF(E129="","",Padroes!$AI$11) -> 0.75 | N129: =IF(E129="","",Padroes!$AL$23) -> 1 | O129: 470.5138983 | P129: 535.1245405 | Q129: 553.2425066 | R129: 953.8209812 | T129: =IF(Padroes!N40="","",Padroes!N40) -> B | W129: =IF(O129="","",O129*Parametros!$I$26) -> 376.4111186 | X129: =IF(P129="","",P129*Parametros!$I$27) -> 428.0996324 | Y129: =IF(Q129="","",Q129*Parametros!$I$28) -> 442.5940053 | Z129: =IF(R129="","",R129*Parametros!$I$29) -> 953.8209812
B130: 12 | C130: =IF(Padroes!H41="","",Padroes!H41) -> 1000 | D130: =IF(Padroes!I41<>"",Padroes!I41,"") -> 1520 | E130: 1.8 | F130: 10 | G130: =IF(Padroes!J41="","",Padroes!J41) -> 0.518 | H130: =IF(E130="","",Padroes!S$8) -> 1 | I130: =IF(E130="","",Padroes!S$9) -> 0.2 | J130: =IF(E130="","",Padroes!S$10) -> 0.5 | K130: =IF(Padroes!L41="","",Padroes!L41) -> 0.942 | L130: 2774.484234 | M130: =IF(E130="","",Padroes!$AI$11) -> 0.75 | N130: =IF(E130="","",Padroes!$AL$23) -> 1 | O130: 512.0298305 | P130: 571.4617571 | Q130: 588.1275198 | R130: 1023.420125 | T130: =IF(Padroes!N41="","",Padroes!N41) -> B-1,5 | W130: =IF(O130="","",O130*Parametros!$I$26) -> 409.6238644 | X130: =IF(P130="","",P130*Parametros!$I$27) -> 457.1694057 | Y130: =IF(Q130="","",Q130*Parametros!$I$28) -> 470.5020159 | Z130: =IF(R130="","",R130*Parametros!$I$29) -> 1023.420125
B131: 12 | C131: =IF(Padroes!H42="","",Padroes!H42) -> 2000 | D131: =IF(Padroes!I42<>"",Padroes!I42,"") -> 2000 | E131: 1.8 | F131: 10 | G131: =IF(Padroes!J42="","",Padroes!J42) -> 0.602 | H131: =IF(E131="","",Padroes!S$8) -> 1 | I131: =IF(E131="","",Padroes!S$9) -> 0.2 | J131: =IF(E131="","",Padroes!S$10) -> 0.5 | K131: =IF(Padroes!L42="","",Padroes!L42) -> 1.045 | L131: 3543.817583 | M131: =IF(E131="","",Padroes!$AI$11) -> 0.75 | N131: =IF(E131="","",Padroes!$AL$23) -> 1 | O131: 595.0616949 | P131: 644.1361903 | Q131: 657.8975463 | R131: 1162.716012 | T131: =IF(Padroes!N42="","",Padroes!N42) -> B-4,5 | W131: =IF(O131="","",O131*Parametros!$I$26) -> 476.0493559 | X131: =IF(P131="","",P131*Parametros!$I$27) -> 515.3089523 | Y131: =IF(Q131="","",Q131*Parametros!$I$28) -> 526.318037 | Z131: =IF(R131="","",R131*Parametros!$I$29) -> 1162.716012
B132: 12 | C132: =IF(Padroes!H43="","",Padroes!H43) -> 3000 | D132: =IF(Padroes!I43<>"",Padroes!I43,"") -> 2500 | E132: 1.8 | F132: =IF(E132="","",(B132-E132-0.2)) -> 10 | G132: =IF(Padroes!J43="","",Padroes!J43) -> 0.644 | H132: =IF(E132="","",Padroes!S$8) -> 1 | I132: =IF(E132="","",Padroes!S$9) -> 0.2 | J132: =IF(E132="","",Padroes!S$10) -> 0.5 | K132: =IF(Padroes!L43="","",Padroes!L43) -> 1.117906977 | L132: 4266.748516 | M132: =IF(E132="","",Padroes!$AI$11) -> 0.75 | N132: =IF(E132="","",Padroes!$AL$23) -> 1 | O132: 636.5776271 | P132: 680.4734069 | Q132: 692.7825595 | R132: 1270.331662 | T132: =IF(Padroes!N43="","",Padroes!N43) -> B-6 | W132: =IF(O132="","",O132*Parametros!$I$26) -> 509.2621017 | X132: =IF(P132="","",P132*Parametros!$I$27) -> 544.3787255 | Y132: =IF(Q132="","",Q132*Parametros!$I$28) -> 554.2260476 | Z132: =IF(R132="","",R132*Parametros!$I$29) -> 1270.331662
B133: 12 | C133: =IF(Padroes!H44="","",Padroes!H44) ->  | D133: =IF(Padroes!I44<>"",Padroes!I44,"") ->  | G133: =IF(Padroes!J44="","",Padroes!J44) ->  | H133: =IF(E133="","",Padroes!S$8) ->  | I133: =IF(E133="","",Padroes!S$9) ->  | J133: =IF(E133="","",Padroes!S$10) ->  | K133: =IF(Padroes!L44="","",Padroes!L44) ->  | M133: =IF(E133="","",Padroes!$AI$11) ->  | N133: =IF(E133="","",Padroes!$AL$23) ->  | T133: =IF(Padroes!N44="","",Padroes!N44) ->  | W133: =IF(O133="","",O133*Parametros!$I$26) ->  | X133: =IF(P133="","",P133*Parametros!$I$27) ->  | Y133: =IF(Q133="","",Q133*Parametros!$I$28) ->  | Z133: =IF(R133="","",R133*Parametros!$I$29) -> 
B134: 12 | C134: =IF(Padroes!H45="","",Padroes!H45) ->  | D134: =IF(Padroes!I45<>"",Padroes!I45,"") ->  | G134: =IF(Padroes!J45="","",Padroes!J45) ->  | H134: =IF(E134="","",Padroes!S$8) ->  | I134: =IF(E134="","",Padroes!S$9) ->  | J134: =IF(E134="","",Padroes!S$10) ->  | K134: =IF(Padroes!L45="","",Padroes!L45) ->  | M134: =IF(E134="","",Padroes!$AI$11) ->  | N134: =IF(E134="","",Padroes!$AL$23) ->  | T134: =IF(Padroes!N45="","",Padroes!N45) ->  | W134: =IF(O134="","",O134*Parametros!$I$26) ->  | X134: =IF(P134="","",P134*Parametros!$I$27) ->  | Y134: =IF(Q134="","",Q134*Parametros!$I$28) ->  | Z134: =IF(R134="","",R134*Parametros!$I$29) -> 
A135: 13 | B135: 13 | C135: =IF(Padroes!H46="","",Padroes!H46) -> 300 | D135: =IF(Padroes!I46<>"",Padroes!I46,"") -> 1400 | E135: 1.9 | F135: 10.9 | G135: =IF(Padroes!J46="","",Padroes!J46) -> 0.504 | H135: =IF(E135="","",Padroes!S$8) -> 1 | I135: =IF(E135="","",Padroes!S$9) -> 0.2 | J135: =IF(E135="","",Padroes!S$10) -> 0.5 | K135: =IF(Padroes!L46="","",Padroes!L46) -> 0.925 | L135: 2690.25512 | M135: =IF(E135="","",Padroes!$AI$12) -> 0.8 | N135: =IF(E135="","",Padroes!$AL$23) -> 1 | O135: 540.14625 | P135: 600.4196677 | Q135: 617.1596677 | R135: 1072.245714 | S135: 13 | T135: =IF(Padroes!N46="","",Padroes!N46) -> B | W135: =IF(O135="","",O135*Parametros!$I$26) -> 432.117 | X135: =IF(P135="","",P135*Parametros!$I$27) -> 480.3357342 | Y135: =IF(Q135="","",Q135*Parametros!$I$28) -> 493.7277342 | Z135: =IF(R135="","",R135*Parametros!$I$29) -> 1072.245714
B136: 13 | C136: =IF(Padroes!H47="","",Padroes!H47) -> 400 | D136: =IF(Padroes!I47<>"",Padroes!I47,"") -> 1400 | E136: 1.9 | F136: 10.9 | G136: =IF(Padroes!J47="","",Padroes!J47) -> 0.504 | H136: =IF(E136="","",Padroes!S$8) -> 1 | I136: =IF(E136="","",Padroes!S$9) -> 0.2 | J136: =IF(E136="","",Padroes!S$10) -> 0.5 | K136: =IF(Padroes!L47="","",Padroes!L47) -> 0.925 | L136: 2690.25512 | M136: =IF(E136="","",Padroes!$AI$12) -> 0.8 | N136: =IF(E136="","",Padroes!$AL$23) -> 1 | O136: 540.14625 | P136: 600.4196677 | Q136: 617.1596677 | R136: 1072.245714 | T136: =IF(Padroes!N47="","",Padroes!N47) -> B | W136: =IF(O136="","",O136*Parametros!$I$26) -> 432.117 | X136: =IF(P136="","",P136*Parametros!$I$27) -> 480.3357342 | Y136: =IF(Q136="","",Q136*Parametros!$I$28) -> 493.7277342 | Z136: =IF(R136="","",R136*Parametros!$I$29) -> 1072.245714
B137: 13 | C137: =IF(Padroes!H48="","",Padroes!H48) -> 600 | D137: =IF(Padroes!I48<>"",Padroes!I48,"") -> 1400 | E137: 1.9 | F137: 10.9 | G137: =IF(Padroes!J48="","",Padroes!J48) -> 0.504 | H137: =IF(E137="","",Padroes!S$8) -> 1 | I137: =IF(E137="","",Padroes!S$9) -> 0.2 | J137: =IF(E137="","",Padroes!S$10) -> 0.5 | K137: =IF(Padroes!L48="","",Padroes!L48) -> 0.925 | L137: 2690.25512 | M137: =IF(E137="","",Padroes!$AI$12) -> 0.8 | N137: =IF(E137="","",Padroes!$AL$23) -> 1 | O137: 540.14625 | P137: 600.4196677 | Q137: 617.1596677 | R137: 1072.245714 | T137: =IF(Padroes!N48="","",Padroes!N48) -> B | W137: =IF(O137="","",O137*Parametros!$I$26) -> 432.117 | X137: =IF(P137="","",P137*Parametros!$I$27) -> 480.3357342 | Y137: =IF(Q137="","",Q137*Parametros!$I$28) -> 493.7277342 | Z137: =IF(R137="","",R137*Parametros!$I$29) -> 1072.245714
B138: 13 | C138: =IF(Padroes!H49="","",Padroes!H49) ->  | D138: =IF(Padroes!I49<>"",Padroes!I49,"") ->  | G138: =IF(Padroes!J49="","",Padroes!J49) ->  | H138: =IF(E138="","",Padroes!S$8) ->  | I138: =IF(E138="","",Padroes!S$9) ->  | J138: =IF(E138="","",Padroes!S$10) ->  | K138: =IF(Padroes!L49="","",Padroes!L49) ->  | M138: =IF(E138="","",Padroes!$AI$12) ->  | N138: =IF(E138="","",Padroes!$AL$23) ->  | T138: =IF(Padroes!N49="","",Padroes!N49) ->  | W138: =IF(O138="","",O138*Parametros!$I$26) ->  | X138: =IF(P138="","",P138*Parametros!$I$27) ->  | Y138: =IF(Q138="","",Q138*Parametros!$I$28) ->  | Z138: =IF(R138="","",R138*Parametros!$I$29) -> 
B139: 13 | C139: =IF(Padroes!H50="","",Padroes!H50) ->  | D139: =IF(Padroes!I50<>"",Padroes!I50,"") ->  | G139: =IF(Padroes!J50="","",Padroes!J50) ->  | H139: =IF(E139="","",Padroes!S$8) ->  | I139: =IF(E139="","",Padroes!S$9) ->  | J139: =IF(E139="","",Padroes!S$10) ->  | K139: =IF(Padroes!L50="","",Padroes!L50) ->  | M139: =IF(E139="","",Padroes!$AI$12) ->  | N139: =IF(E139="","",Padroes!$AL$23) ->  | T139: =IF(Padroes!N50="","",Padroes!N50) ->  | W139: =IF(O139="","",O139*Parametros!$I$26) ->  | X139: =IF(P139="","",P139*Parametros!$I$27) ->  | Y139: =IF(Q139="","",Q139*Parametros!$I$28) ->  | Z139: =IF(R139="","",R139*Parametros!$I$29) -> 
B140: 13 | C140: =IF(Padroes!H51="","",Padroes!H51) ->  | D140: =IF(Padroes!I51<>"",Padroes!I51,"") ->  | G140: =IF(Padroes!J51="","",Padroes!J51) ->  | H140: =IF(E140="","",Padroes!S$8) ->  | I140: =IF(E140="","",Padroes!S$9) ->  | J140: =IF(E140="","",Padroes!S$10) ->  | K140: =IF(Padroes!L51="","",Padroes!L51) ->  | M140: =IF(E140="","",Padroes!$AI$12) ->  | N140: =IF(E140="","",Padroes!$AL$23) ->  | T140: =IF(Padroes!N51="","",Padroes!N51) ->  | W140: =IF(O140="","",O140*Parametros!$I$26) ->  | X140: =IF(P140="","",P140*Parametros!$I$27) ->  | Y140: =IF(Q140="","",Q140*Parametros!$I$28) ->  | Z140: =IF(R140="","",R140*Parametros!$I$29) -> 
B141: 13 | C141: =IF(Padroes!H52="","",Padroes!H52) ->  | D141: =IF(Padroes!I52<>"",Padroes!I52,"") ->  | G141: =IF(Padroes!J52="","",Padroes!J52) ->  | H141: =IF(E141="","",Padroes!S$8) ->  | I141: =IF(E141="","",Padroes!S$9) ->  | J141: =IF(E141="","",Padroes!S$10) ->  | K141: =IF(Padroes!L52="","",Padroes!L52) ->  | M141: =IF(E141="","",Padroes!$AI$12) ->  | N141: =IF(E141="","",Padroes!$AL$23) ->  | T141: =IF(Padroes!N52="","",Padroes!N52) ->  | W141: =IF(O141="","",O141*Parametros!$I$26) ->  | X141: =IF(P141="","",P141*Parametros!$I$27) ->  | Y141: =IF(Q141="","",Q141*Parametros!$I$28) ->  | Z141: =IF(R141="","",R141*Parametros!$I$29) -> 
B142: 13 | C142: =IF(Padroes!H53="","",Padroes!H53) ->  | D142: =IF(Padroes!I53<>"",Padroes!I53,"") ->  | G142: =IF(Padroes!J53="","",Padroes!J53) ->  | H142: =IF(E142="","",Padroes!S$8) ->  | I142: =IF(E142="","",Padroes!S$9) ->  | J142: =IF(E142="","",Padroes!S$10) ->  | K142: =IF(Padroes!L53="","",Padroes!L53) ->  | L142: =IF(D142="","",(D142+(3.1416*K142^2*M142/4*2400))) ->  | M142: =IF(E142="","",Padroes!$AI$12) ->  | N142: =IF(E142="","",Padroes!$AL$23) ->  | T142: =IF(Padroes!N53="","",Padroes!N53) ->  | W142: =IF(O142="","",O142*Parametros!$I$26) ->  | X142: =IF(P142="","",P142*Parametros!$I$27) ->  | Y142: =IF(Q142="","",Q142*Parametros!$I$28) ->  | Z142: =IF(R142="","",R142*Parametros!$I$29) -> 
A146: Poste de concreto Duplo T | E146: DADOS DO POSTE | G146: Face B | H146: dados escora | K146: dados da base concretada | O146: VALOR DA TRAÇÃO NO TOPO (daN) | W146: Valores para Critários de Projetos
A147: comprimento | C147: carga | D147: peso | E147: t | F147: h* | G147: b | H147: m | I147: n | J147: c | K147: d | L147: P | M147: q | N147: K | O147: SIMPLES | P147: ESCORA SIMPLES | Q147: ESCORA DUPLA | R147: CONCRETADO | S147: 9 | T147: Tipo Base | W147: SIMPLES | X147: ESCORA SIMPLES | Y147: ESCORA DUPLA | Z147: CONCRETADO
A148: 9 | B148: 9 | C148: =IF(Padroes!H10="","",Padroes!H10) -> 150 | D148: =IF(Padroes!I10="","",Padroes!I10) -> 470 | E148: =IF(D148="","",(0.6+0.1*B148)) -> 1.5 | F148: =IF(E148="","",B148-E148-0.5) -> 7 | G148: =IF(Padroes!K10="","",Padroes!K10) -> 0.19 | H148: =IF(E148="","",Padroes!S$8) -> 1 | I148: =IF(E148="","",Padroes!S$9) -> 0.2 | J148: =IF(E148="","",Padroes!S$10) -> 0.5 | K148: =IF(Padroes!M10="","",Padroes!M10) -> 0.3252629705 | L148: =IF(D148="","",(D148+(3.1416*((K148+0.3)/2)^2-(3.1416*((Padroes!M10)/2)^2))*M148*2400)) -> 792.506608 | M148: =IF(E148="","",Padroes!$AI$8) -> 0.6 | N148: =IF(E148="","",Padroes!$AL$23) -> 1 | O148: =IF(E148="","",($B$63*G148*E148^3)/(F148+E148)) -> 150.8823529 | P148: =IF(E148="","",(3*$B$63*(2*J148*I148 - I148^2)*(H148-G148))*(E148-J148+I148/2)/(F148+E148/2) + O148) -> 261.2513852 | Q148: =IF(E148="","",(3*$B$63 * (2*E148*I148-I148^2)*(H148-G148) ) * (I148/2) / (F148+E148) + P148) -> 293.2702087 | R148: =IF(E148="","",(N148*$B$63*(K148+0.3)*E148^3)/(F148+E148)+((K148+0.3)*L148/(F148+E148))*(0.5-((2*L148*10^-4)/(3*(K148+0.3)^2)))) -> 517.8025837 | T148: =IF(Padroes!N10="","",Padroes!N10) -> D | W148: =IF(O148="","",O148*Parametros!$I$26) -> 120.7058824 | X148: =IF(P148="","",P148*Parametros!$I$27) -> 209.0011082 | Y148: =IF(Q148="","",Q148*Parametros!$I$28) -> 234.616167 | Z148: =IF(R148="","",R148*Parametros!$I$29) -> 517.8025837
B149: 9 | C149: =IF(Padroes!H11="","",Padroes!H11) -> 200 | D149: =IF(Padroes!I11="","",Padroes!I11) -> 470 | E149: =IF(D149="","",(0.6+0.1*B149)) -> 1.5 | F149: =IF(E149="","",B149-E149-0.5) -> 7 | G149: =IF(Padroes!K11="","",Padroes!K11) -> 0.19 | H149: =IF(E149="","",Padroes!S$8) -> 1 | I149: =IF(E149="","",Padroes!S$9) -> 0.2 | J149: =IF(E149="","",Padroes!S$10) -> 0.5 | K149: =IF(Padroes!M11="","",Padroes!M11) -> 0.3252629705 | L149: =IF(D149="","",(D149+(3.1416*((K149+0.3)/2)^2-(3.1416*((Padroes!M11)/2)^2))*M149*2400)) -> 792.506608 | M149: =IF(E149="","",Padroes!$AI$8) -> 0.6 | N149: =IF(E149="","",Padroes!$AL$23) -> 1 | O149: =IF(E149="","",($B$63*G149*E149^3)/(F149+E149)) -> 150.8823529 | P149: =IF(E149="","",(3*$B$63*(2*J149*I149 - I149^2)*(H149-G149))*(E149-J149+I149/2)/(F149+E149/2) + O149) -> 261.2513852 | Q149: 293.2702087 | R149: 517.8025837 | T149: =IF(Padroes!N11="","",Padroes!N11) -> D | W149: =IF(O149="","",O149*Parametros!$I$26) -> 120.7058824 | X149: =IF(P149="","",P149*Parametros!$I$27) -> 209.0011082 | Y149: =IF(Q149="","",Q149*Parametros!$I$28) -> 234.616167 | Z149: =IF(R149="","",R149*Parametros!$I$29) -> 517.8025837
B150: 9 | C150: =IF(Padroes!H12="","",Padroes!H12) -> 300 | D150: =IF(Padroes!I12="","",Padroes!I12) -> 750 | E150: 1.5 | F150: 7 | G150: =IF(Padroes!K12="","",Padroes!K12) -> 0.29 | H150: =IF(E150="","",Padroes!S$8) -> 1 | I150: =IF(E150="","",Padroes!S$9) -> 0.2 | J150: =IF(E150="","",Padroes!S$10) -> 0.5 | K150: =IF(Padroes!M12="","",Padroes!M12) -> 0.4876105003 | L150: =IF(D150="","",(D150+(3.1416*((K150+0.3)/2)^2-(3.1416*((Padroes!M12)/2)^2))*M150*2400)) -> 1182.673304 | M150: =IF(E150="","",Padroes!$AI$8) -> 0.6 | N150: =IF(E150="","",Padroes!$AL$23) -> 1 | O150: 230.2941176 | P150: 327.0373435 | Q150: 355.1032258 | R150: 666.3200722 | T150: =IF(Padroes!N12="","",Padroes!N12) -> B | W150: =IF(O150="","",O150*Parametros!$I$26) -> 184.2352941 | X150: =IF(P150="","",P150*Parametros!$I$27) -> 261.6298748 | Y150: =IF(Q150="","",Q150*Parametros!$I$28) -> 284.0825806 | Z150: =IF(R150="","",R150*Parametros!$I$29) -> 666.3200722
B151: 9 | C151: =IF(Padroes!H13="","",Padroes!H13) -> 400 | D151: =IF(Padroes!I13="","",Padroes!I13) -> 750 | E151: 1.5 | F151: 7 | G151: =IF(Padroes!K13="","",Padroes!K13) -> 0.29 | H151: =IF(E151="","",Padroes!S$8) -> 1 | I151: =IF(E151="","",Padroes!S$9) -> 0.2 | J151: =IF(E151="","",Padroes!S$10) -> 0.5 | K151: =IF(Padroes!M13="","",Padroes!M13) -> 0.4876105003 | L151: =IF(D151="","",(D151+(3.1416*((K151+0.3)/2)^2-(3.1416*((Padroes!M13)/2)^2))*M151*2400)) -> 1182.673304 | M151: =IF(E151="","",Padroes!$AI$8) -> 0.6 | N151: =IF(E151="","",Padroes!$AL$23) -> 1 | O151: 230.2941176 | P151: 327.0373435 | Q151: 355.1032258 | R151: 666.3200722 | T151: =IF(Padroes!N13="","",Padroes!N13) -> B | W151: =IF(O151="","",O151*Parametros!$I$26) -> 184.2352941 | X151: =IF(P151="","",P151*Parametros!$I$27) -> 261.6298748 | Y151: =IF(Q151="","",Q151*Parametros!$I$28) -> 284.0825806 | Z151: =IF(R151="","",R151*Parametros!$I$29) -> 666.3200722
B152: 9 | C152: =IF(Padroes!H14="","",Padroes!H14) -> 600 | D152: =IF(Padroes!I14="","",Padroes!I14) -> 750 | E152: 1.5 | F152: 7 | G152: =IF(Padroes!K14="","",Padroes!K14) -> 0.29 | H152: =IF(E152="","",Padroes!S$8) -> 1 | I152: =IF(E152="","",Padroes!S$9) -> 0.2 | J152: =IF(E152="","",Padroes!S$10) -> 0.5 | K152: =IF(Padroes!M14="","",Padroes!M14) -> 0.4876105003 | L152: =IF(D152="","",(D152+(3.1416*((K152+0.3)/2)^2-(3.1416*((Padroes!M14)/2)^2))*M152*2400)) -> 1182.673304 | M152: =IF(E152="","",Padroes!$AI$8) -> 0.6 | N152: =IF(E152="","",Padroes!$AL$23) -> 1 | O152: 230.2941176 | P152: 327.0373435 | Q152: 355.1032258 | R152: 666.3200722 | T152: =IF(Padroes!N14="","",Padroes!N14) -> B | W152: =IF(O152="","",O152*Parametros!$I$26) -> 184.2352941 | X152: =IF(P152="","",P152*Parametros!$I$27) -> 261.6298748 | Y152: =IF(Q152="","",Q152*Parametros!$I$28) -> 284.0825806 | Z152: =IF(R152="","",R152*Parametros!$I$29) -> 666.3200722
B153: 9 | C153: =IF(Padroes!H15="","",Padroes!H15) -> 1000 | D153: =IF(Padroes!I15="","",Padroes!I15) -> 1026 | E153: 1.5 | F153: 7 | G153: =IF(Padroes!K15="","",Padroes!K15) -> 0.32 | H153: =IF(E153="","",Padroes!S$8) -> 1 | I153: =IF(E153="","",Padroes!S$9) -> 0.2 | J153: =IF(E153="","",Padroes!S$10) -> 0.5 | K153: =IF(Padroes!M15="","",Padroes!M15) -> 0.5392179522 | L153: =IF(D153="","",(D153+(3.1416*((K153+0.3)/2)^2-(3.1416*((Padroes!M15)/2)^2))*M153*2400)) -> 1493.693378 | M153: =IF(E153="","",Padroes!$AI$8) -> 0.6 | N153: =IF(E153="","",Padroes!$AL$23) -> 1 | O153: 254.1176471 | P153: 346.7731309 | Q153: 373.6531309 | R153: 719.3235656 | T153: =IF(Padroes!N15="","",Padroes!N15) -> B-1,5 | W153: =IF(O153="","",O153*Parametros!$I$26) -> 203.2941176 | X153: =IF(P153="","",P153*Parametros!$I$27) -> 277.4185047 | Y153: =IF(Q153="","",Q153*Parametros!$I$28) -> 298.9225047 | Z153: =IF(R153="","",R153*Parametros!$I$29) -> 719.3235656
B154: 9 | C154: =IF(Padroes!H16="","",Padroes!H16) ->  | D154: =IF(Padroes!I16="","",Padroes!I16) ->  | G154: =IF(Padroes!K16="","",Padroes!K16) ->  | H154: =IF(E154="","",Padroes!S$8) ->  | I154: =IF(E154="","",Padroes!S$9) ->  | J154: =IF(E154="","",Padroes!S$10) ->  | K154: =IF(Padroes!M16="","",Padroes!M16) ->  | L154: =IF(D154="","",(D154+(3.1416*((K154+0.3)/2)^2-(3.1416*((Padroes!M16)/2)^2))*M154*2400)) ->  | M154: =IF(E154="","",Padroes!$AI$8) ->  | N154: =IF(E154="","",Padroes!$AL$23) ->  | T154: =IF(Padroes!N16="","",Padroes!N16) ->  | W154: =IF(O154="","",O154*Parametros!$I$26) ->  | X154: =IF(P154="","",P154*Parametros!$I$27) ->  | Y154: =IF(Q154="","",Q154*Parametros!$I$28) ->  | Z154: =IF(R154="","",R154*Parametros!$I$29) -> 
B155: 9 | C155: =IF(Padroes!H17="","",Padroes!H17) ->  | D155: =IF(Padroes!I17="","",Padroes!I17) ->  | G155: =IF(Padroes!K17="","",Padroes!K17) ->  | H155: =IF(E155="","",Padroes!S$8) ->  | I155: =IF(E155="","",Padroes!S$9) ->  | J155: =IF(E155="","",Padroes!S$10) ->  | K155: =IF(Padroes!M17="","",Padroes!M17) ->  | L155: =IF(D155="","",(D155+(3.1416*((K155+0.3)/2)^2-(3.1416*((Padroes!M17)/2)^2))*M155*2400)) ->  | M155: =IF(E155="","",Padroes!$AI$8) ->  | N155: =IF(E155="","",Padroes!$AL$23) ->  | Q155: =IF(E155="","",(3*$B$63 * (2*E155*I155-I155^2)*(H155-G155) ) * (I155/2) / (F155+E155) + P155) ->  | R155: =IF(E155="","",(N155*$B$63*(K155+0.3)*E155^3)/(F155+E155)+((K155+0.3)*L155/(F155+E155))*(0.5-((2*L155*10^-4)/(3*(K155+0.3)^2)))) ->  | T155: =IF(Padroes!N17="","",Padroes!N17) ->  | W155: =IF(O155="","",O155*Parametros!$I$26) ->  | X155: =IF(P155="","",P155*Parametros!$I$27) ->  | Y155: =IF(Q155="","",Q155*Parametros!$I$28) ->  | Z155: =IF(R155="","",R155*Parametros!$I$29) -> 
B156: 9 | C156: =IF(Padroes!H18="","",Padroes!H18) ->  | D156: =IF(Padroes!I18="","",Padroes!I18) ->  | G156: =IF(Padroes!K18="","",Padroes!K18) ->  | H156: =IF(E156="","",Padroes!S$8) ->  | I156: =IF(E156="","",Padroes!S$9) ->  | J156: =IF(E156="","",Padroes!S$10) ->  | K156: =IF(Padroes!M18="","",Padroes!M18) ->  | L156: =IF(D156="","",(D156+(3.1416*((K156+0.3)/2)^2-(3.1416*((Padroes!M18)/2)^2))*M156*2400)) ->  | M156: =IF(E156="","",Padroes!$AI$8) ->  | N156: =IF(E156="","",Padroes!$AL$23) ->  | T156: =IF(Padroes!N18="","",Padroes!N18) ->  | W156: =IF(O156="","",O156*Parametros!$I$26) ->  | X156: =IF(P156="","",P156*Parametros!$I$27) ->  | Y156: =IF(Q156="","",Q156*Parametros!$I$28) ->  | Z156: =IF(R156="","",R156*Parametros!$I$29) -> 
A157: 9 | B157: 9 | C157: =IF(Engastamento_Profundo!F$43=9,Engastamento_Profundo!F$44, 0) -> 0 | D157: =IF(Engastamento_Profundo!F$45="",VLOOKUP(C157,Padroes!$H$10:$M$18,2,FALSE),Engastamento_Profundo!$F$45 ) ->  | E157: =IF(Engastamento_Profundo!$F$47="",1.5,Engastamento_Profundo!$F47) -> -335544.32 | F157: =IF(Engastamento_Profundo!F$56="",7,Engastamento_Profundo!F$56) -> 7 | G157: =IF(Engastamento_Profundo!F$46="",VLOOKUP(C157,Padroes!H10:M18,4,FALSE),Engastamento_Profundo!F$46) ->  | H157: =IF(Engastamento_Profundo!F$49="",Padroes!$S$8,Engastamento_Profundo!F$49) -> 1 | I157: =IF(Engastamento_Profundo!F$50="",Padroes!$S$9,Engastamento_Profundo!F50) -> 0.2 | J157: =IF(Engastamento_Profundo!F$51="",Padroes!$S$10,Engastamento_Profundo!F$51) -> 0.5 | K157: =IF(Engastamento_Profundo!F$53="",VLOOKUP(C157,C148:K156,9,FALSE),Engastamento_Profundo!F$53) ->  | L157: =D157+(3.1416*K157^2*M157/4*2400) ->  | M157: =Padroes!$AL$8 -> 0.6 | N157: 1 | O157: =IF(E157="","",($B$63*G157*E157^3)/(F157+E157)) ->  | P157: =IF(E157="","",(3*$B$63*(2*J157*I157 - I157^2)*(H157-G157))*(E157-J157+I157/2)/(F157+E157/2) + O157) ->  | Q157: =IF(E157="","",(3*$B$63 * (2*E157*I157-I157^2)*(H157-G157) ) * (I157/2) / (F157+E157) + P157) ->  | R157: =IF(E157="","",(N157*$B$63*K157*E157^3)/(F157+E157) + (K157*L157/(F157+E157)) * (0.5 - (2*L157/(3*$C$63*K157^2)))) ->  | W157: =IF(O157="","",O157*Parametros!$I$26) ->  | X157: =IF(P157="","",P157*Parametros!$I$27) ->  | Y157: =IF(Q157="","",Q157*Parametros!$I$28) ->  | Z157: =IF(R157="","",R157*Parametros!$I$29) -> 
A158: 10 | B158: 10 | C158: =IF(Padroes!H19="","",Padroes!H19) -> 150 | D158: =IF(Padroes!I19="","",Padroes!I19) -> 550 | E158: 1.6 | F158: =IF(E158="","",B158-E158-0.2) -> 8.2 | G158: =IF(Padroes!K19="","",Padroes!K19) -> 0.2 | H158: =IF(E158="","",Padroes!S$8) -> 1 | I158: =IF(E158="","",Padroes!S$9) -> 0.2 | J158: =IF(E158="","",Padroes!S$10) -> 0.5 | K158: =IF(Padroes!M19="","",Padroes!M19) -> 0.3440930107 | L158: =IF(D158="","",(D158+(3.1416*((K158+0.3)/2)^2-(3.1416*((Padroes!M19)/2)^2))*M158*2400)) -> 913.224769 | M158: =IF(E158="","",Padroes!$AI$9) -> 0.65 | N158: =IF(E158="","",Padroes!$AL$23) -> 1 | O158: 167.1836735 | P158: 269.5836735 | Q158: 298.9714286 | R158: 559.6112221 | S158: 10 | T158: =IF(Padroes!N19="","",Padroes!N19) -> D | W158: =IF(O158="","",O158*Parametros!$I$26) -> 133.7469388 | X158: =IF(P158="","",P158*Parametros!$I$27) -> 215.6669388 | Y158: =IF(Q158="","",Q158*Parametros!$I$28) -> 239.1771429 | Z158: =IF(R158="","",R158*Parametros!$I$29) -> 559.6112221
B159: 10 | C159: =IF(Padroes!H20="","",Padroes!H20) -> 200 | D159: =IF(Padroes!I20="","",Padroes!I20) -> 550 | E159: 1.6 | F159: 8.2 | G159: =IF(Padroes!K20="","",Padroes!K20) -> 0.2 | H159: =IF(E159="","",Padroes!S$8) -> 1 | I159: =IF(E159="","",Padroes!S$9) -> 0.2 | J159: =IF(E159="","",Padroes!S$10) -> 0.5 | K159: =IF(Padroes!M20="","",Padroes!M20) -> 0.3440930107 | L159: =IF(D159="","",(D159+(3.1416*((K159+0.3)/2)^2-(3.1416*((Padroes!M20)/2)^2))*M159*2400)) -> 913.224769 | M159: =IF(E159="","",Padroes!$AI$9) -> 0.65 | N159: =IF(E159="","",Padroes!$AL$23) -> 1 | O159: 167.1836735 | P159: 269.5836735 | Q159: 298.9714286 | R159: 559.6112221 | T159: =IF(Padroes!N20="","",Padroes!N20) -> B | W159: =IF(O159="","",O159*Parametros!$I$26) -> 133.7469388 | X159: =IF(P159="","",P159*Parametros!$I$27) -> 215.6669388 | Y159: =IF(Q159="","",Q159*Parametros!$I$28) -> 239.1771429 | Z159: =IF(R159="","",R159*Parametros!$I$29) -> 559.6112221
B160: 10 | C160: =IF(Padroes!H21="","",Padroes!H21) -> 300 | D160: =IF(Padroes!I21="","",Padroes!I21) -> 900 | E160: 1.6 | F160: 8.2 | G160: =IF(Padroes!K21="","",Padroes!K21) -> 0.31 | H160: =IF(E160="","",Padroes!S$8) -> 1 | I160: =IF(E160="","",Padroes!S$9) -> 0.2 | J160: =IF(E160="","",Padroes!S$10) -> 0.5 | K160: =IF(Padroes!M21="","",Padroes!M21) -> 0.5220153254 | L160: =IF(D160="","",(D160+(3.1416*((K160+0.3)/2)^2-(3.1416*((Padroes!M21)/2)^2))*M160*2400)) -> 1394.021583 | M160: =IF(E160="","",Padroes!$AI$9) -> 0.65 | N160: =IF(E160="","",Padroes!$AL$23) -> 1 | O160: 259.1346939 | P160: 347.4546939 | Q160: 372.8016327 | R160: 729.5202945 | T160: =IF(Padroes!N21="","",Padroes!N21) -> B | W160: =IF(O160="","",O160*Parametros!$I$26) -> 207.3077551 | X160: =IF(P160="","",P160*Parametros!$I$27) -> 277.9637551 | Y160: =IF(Q160="","",Q160*Parametros!$I$28) -> 298.2413061 | Z160: =IF(R160="","",R160*Parametros!$I$29) -> 729.5202945
B161: 10 | C161: =IF(Padroes!H22="","",Padroes!H22) -> 400 | D161: =IF(Padroes!I22="","",Padroes!I22) -> 900 | E161: 1.6 | F161: 8.2 | G161: =IF(Padroes!K22="","",Padroes!K22) -> 0.31 | H161: =IF(E161="","",Padroes!S$8) -> 1 | I161: =IF(E161="","",Padroes!S$9) -> 0.2 | J161: =IF(E161="","",Padroes!S$10) -> 0.5 | K161: =IF(Padroes!M22="","",Padroes!M22) -> 0.5220153254 | L161: =IF(D161="","",(D161+(3.1416*((K161+0.3)/2)^2-(3.1416*((Padroes!M22)/2)^2))*M161*2400)) -> 1394.021583 | M161: =IF(E161="","",Padroes!$AI$9) -> 0.65 | N161: =IF(E161="","",Padroes!$AL$23) -> 1 | O161: 259.1346939 | P161: 347.4546939 | Q161: 372.8016327 | R161: 729.5202945 | T161: =IF(Padroes!N22="","",Padroes!N22) -> B | W161: =IF(O161="","",O161*Parametros!$I$26) -> 207.3077551 | X161: =IF(P161="","",P161*Parametros!$I$27) -> 277.9637551 | Y161: =IF(Q161="","",Q161*Parametros!$I$28) -> 298.2413061 | Z161: =IF(R161="","",R161*Parametros!$I$29) -> 729.5202945
B162: 10 | C162: =IF(Padroes!H23="","",Padroes!H23) -> 600 | D162: =IF(Padroes!I23="","",Padroes!I23) -> 900 | E162: 1.6 | F162: 8.2 | G162: =IF(Padroes!K23="","",Padroes!K23) -> 0.31 | H162: =IF(E162="","",Padroes!S$8) -> 1 | I162: =IF(E162="","",Padroes!S$9) -> 0.2 | J162: =IF(E162="","",Padroes!S$10) -> 0.5 | K162: =IF(Padroes!M23="","",Padroes!M23) -> 0.5220153254 | L162: =IF(D162="","",(D162+(3.1416*((K162+0.3)/2)^2-(3.1416*((Padroes!M23)/2)^2))*M162*2400)) -> 1394.021583 | M162: =IF(E162="","",Padroes!$AI$9) -> 0.65 | N162: =IF(E162="","",Padroes!$AL$23) -> 1 | O162: =IF(E162="","",($B$63*G162*E162^3)/(F162+E162)) -> 259.1346939 | P162: 347.4546939 | Q162: 372.8016327 | R162: 729.5202945 | T162: =IF(Padroes!N23="","",Padroes!N23) -> B | W162: =IF(O162="","",O162*Parametros!$I$26) -> 207.3077551 | X162: =IF(P162="","",P162*Parametros!$I$27) -> 277.9637551 | Y162: =IF(Q162="","",Q162*Parametros!$I$28) -> 298.2413061 | Z162: =IF(R162="","",R162*Parametros!$I$29) -> 729.5202945
B163: 10 | C163: =IF(Padroes!H24="","",Padroes!H24) -> 1000 | D163: =IF(Padroes!I24="","",Padroes!I24) -> 1150 | E163: 1.6 | F163: 8.2 | G163: =IF(Padroes!K24="","",Padroes!K24) -> 0.34 | H163: =IF(E163="","",Padroes!S$8) -> 1 | I163: =IF(E163="","",Padroes!S$9) -> 0.2 | J163: =IF(E163="","",Padroes!S$10) -> 0.5 | K163: =IF(Padroes!M24="","",Padroes!M24) -> 0.5736235699 | L163: =IF(D163="","",(D163+(3.1416*((K163+0.3)/2)^2-(3.1416*((Padroes!M24)/2)^2))*M163*2400)) -> 1681.960579 | M163: =IF(E163="","",Padroes!$AI$9) -> 0.65 | N163: =IF(E163="","",Padroes!$AL$23) -> 1 | O163: 284.2122449 | P163: 368.6922449 | Q163: 392.9371429 | R163: 783.2186419 | T163: =IF(Padroes!N24="","",Padroes!N24) -> B-1,5 | W163: =IF(O163="","",O163*Parametros!$I$26) -> 227.3697959 | X163: =IF(P163="","",P163*Parametros!$I$27) -> 294.9537959 | Y163: =IF(Q163="","",Q163*Parametros!$I$28) -> 314.3497143 | Z163: =IF(R163="","",R163*Parametros!$I$29) -> 783.2186419
B164: 10 | C164: =IF(Padroes!H25="","",Padroes!H25) ->  | D164: =IF(Padroes!I25="","",Padroes!I25) ->  | G164: =IF(Padroes!K25="","",Padroes!K25) ->  | H164: =IF(E164="","",Padroes!S$8) ->  | I164: =IF(E164="","",Padroes!S$9) ->  | J164: =IF(E164="","",Padroes!S$10) ->  | K164: =IF(Padroes!M25="","",Padroes!M25) ->  | L164: =IF(D164="","",(D164+(3.1416*((K164+0.3)/2)^2-(3.1416*((Padroes!M25)/2)^2))*M164*2400)) ->  | M164: =IF(E164="","",Padroes!$AI$9) ->  | N164: =IF(E164="","",Padroes!$AL$23) ->  | T164: =IF(Padroes!N25="","",Padroes!N25) ->  | W164: =IF(O164="","",O164*Parametros!$I$26) ->  | X164: =IF(P164="","",P164*Parametros!$I$27) ->  | Y164: =IF(Q164="","",Q164*Parametros!$I$28) ->  | Z164: =IF(R164="","",R164*Parametros!$I$29) -> 
B165: 10 | C165: =IF(Padroes!H26="","",Padroes!H26) ->  | D165: =IF(Padroes!I26="","",Padroes!I26) ->  | G165: =IF(Padroes!K26="","",Padroes!K26) ->  | H165: =IF(E165="","",Padroes!S$8) ->  | I165: =IF(E165="","",Padroes!S$9) ->  | J165: =IF(E165="","",Padroes!S$10) ->  | K165: =IF(Padroes!M26="","",Padroes!M26) ->  | L165: =IF(D165="","",(D165+(3.1416*((K165+0.3)/2)^2-(3.1416*((Padroes!M26)/2)^2))*M165*2400)) ->  | M165: =IF(E165="","",Padroes!$AI$9) ->  | N165: =IF(E165="","",Padroes!$AL$23) ->  | T165: =IF(Padroes!N26="","",Padroes!N26) ->  | W165: =IF(O165="","",O165*Parametros!$I$26) ->  | X165: =IF(P165="","",P165*Parametros!$I$27) ->  | Y165: =IF(Q165="","",Q165*Parametros!$I$28) ->  | Z165: =IF(R165="","",R165*Parametros!$I$29) -> 
B166: 10 | C166: =IF(Padroes!H27="","",Padroes!H27) ->  | D166: =IF(Padroes!I27="","",Padroes!I27) ->  | G166: =IF(Padroes!K27="","",Padroes!K27) ->  | H166: =IF(E166="","",Padroes!S$8) ->  | I166: =IF(E166="","",Padroes!S$9) ->  | J166: =IF(E166="","",Padroes!S$10) ->  | K166: =IF(Padroes!M27="","",Padroes!M27) ->  | L166: =IF(D166="","",(D166+(3.1416*((K166+0.3)/2)^2-(3.1416*((Padroes!M27)/2)^2))*M166*2400)) ->  | M166: =IF(E166="","",Padroes!$AI$9) ->  | N166: =IF(E166="","",Padroes!$AL$23) ->  | T166: =IF(Padroes!N27="","",Padroes!N27) ->  | W166: =IF(O166="","",O166*Parametros!$I$26) ->  | X166: =IF(P166="","",P166*Parametros!$I$27) ->  | Y166: =IF(Q166="","",Q166*Parametros!$I$28) ->  | Z166: =IF(R166="","",R166*Parametros!$I$29) -> 
A167: 10 | B167: 10 | C167: =IF(Engastamento_Profundo!F$43=10,Engastamento_Profundo!F$44, 0) -> 0 | D167: =IF(Engastamento_Profundo!F$45="",VLOOKUP(C167,Padroes!H19:M27,2,FALSE),Engastamento_Profundo!$F$45 ) ->  | E167: =IF(Engastamento_Profundo!$F$47="",1.6,Engastamento_Profundo!$F47) -> -335544.32 | F167: =IF(Engastamento_Profundo!F$56="",8.2,Engastamento_Profundo!F$56) -> 8.2 | G167: =IF(Engastamento_Profundo!F$46="",VLOOKUP(C167,Padroes!H19:M27,4,FALSE),Engastamento_Profundo!F$46) ->  | H167: =IF(Engastamento_Profundo!F$49="",Padroes!$S$8,Engastamento_Profundo!F$49) -> 1 | I167: =IF(Engastamento_Profundo!F$50="",Padroes!$S$9,Engastamento_Profundo!F60) -> 0.2 | J167: =IF(Engastamento_Profundo!F$51="",Padroes!$S$10,Engastamento_Profundo!F$51) -> 0.5 | K167: =IF(Engastamento_Profundo!F$53="",VLOOKUP(C167,C158:K166,9,FALSE),Engastamento_Profundo!F$53) ->  | L167: =D167+(3.1416*K167^2*M167/4*2400) ->  | M167: =Padroes!$AL$8 -> 0.6 | N167: 1 | O167: =IF(E167="","",($B$63*G167*E167^3)/(F167+E167)) ->  | P167: =IF(E167="","",(3*$B$63*(2*J167*I167 - I167^2)*(H167-G167))*(E167-J167+I167/2)/(F167+E167/2) + O167) ->  | Q167: =IF(E167="","",(3*$B$63 * (2*E167*I167-I167^2)*(H167-G167) ) * (I167/2) / (F167+E167) + P167) ->  | R167: =IF(E167="","",(N167*$B$63*K167*E167^3)/(F167+E167) + (K167*L167/(F167+E167)) * (0.5 - (2*L167/(3*$C$63*K167^2)))) ->  | W167: =IF(O167="","",O167*Parametros!$I$26) ->  | X167: =IF(P167="","",P167*Parametros!$I$27) ->  | Y167: =IF(Q167="","",Q167*Parametros!$I$28) ->  | Z167: =IF(R167="","",R167*Parametros!$I$29) -> 
A168: 11 | B168: 11 | C168: =IF(Padroes!H28="","",Padroes!H28) -> 200 | D168: =IF(Padroes!I28="","",Padroes!I28) -> 680 | E168: 1.7 | F168: =IF(E168="","",B168-E168-0.2) -> 9.1 | G168: =IF(Padroes!K28="","",Padroes!K28) -> 0.21 | H168: =IF(E168="","",Padroes!S$8) -> 1 | I168: =IF(E168="","",Padroes!S$9) -> 0.2 | J168: =IF(E168="","",Padroes!S$10) -> 0.5 | K168: =IF(Padroes!M28="","",Padroes!M28) -> 0.363 | L168: =IF(D168="","",(D168+(3.1416*((K168+0.3)/2)^2-(3.1416*((Padroes!M28)/2)^2))*M168*2400)) -> 1086.133482 | M168: =IF(E168="","",Padroes!$AI$10) -> 0.7 | N168: =IF(E168="","",Padroes!$AL$23) -> 1 | O168: 191.0611111 | P168: 290.1485483 | Q168: 318.2374372 | R168: 625.5620592 | S168: 11 | T168: =IF(Padroes!N28="","",Padroes!N28) -> D | W168: =IF(O168="","",O168*Parametros!$I$26) -> 152.8488889 | X168: =IF(P168="","",P168*Parametros!$I$27) -> 232.1188386 | Y168: =IF(Q168="","",Q168*Parametros!$I$28) -> 254.5899497 | Z168: =IF(R168="","",R168*Parametros!$I$29) -> 625.5620592
B169: 11 | C169: =IF(Padroes!H29="","",Padroes!H29) -> 300 | D169: =IF(Padroes!I29="","",Padroes!I29) -> 1050 | E169: 1.7 | F169: =IF(E169="","",B169-E169-0.2) -> 9.1 | G169: =IF(Padroes!K29="","",Padroes!K29) -> 0.33 | H169: =IF(E169="","",Padroes!S$8) -> 1 | I169: =IF(E169="","",Padroes!S$9) -> 0.2 | J169: =IF(E169="","",Padroes!S$10) -> 0.5 | K169: =IF(Padroes!M29="","",Padroes!M29) -> 0.556 | L169: =IF(D169="","",(D169+(3.1416*((K169+0.3)/2)^2-(3.1416*((Padroes!M29)/2)^2))*M169*2400)) -> 1608.928339 | M169: =IF(E169="","",Padroes!$AI$10) -> 0.7 | N169: =IF(E169="","",Padroes!$AL$23) -> 1 | O169: 300.2388889 | P169: 384.2750698 | Q169: =IF(E169="","",(3*$B$63 * (2*E169*I169-I169^2)*(H169-G169) ) * (I169/2) / (F169+E169) + P169) -> 408.097292 | R169: =IF(E169="","",(N169*$B$63*(K169+0.3)*E169^3)/(F169+E169)+((K169+0.3)*L169/(F169+E169))*(0.5-((2*L169*10^-4)/(3*(K169+0.3)^2)))) -> 823.8952817 | T169: =IF(Padroes!N29="","",Padroes!N29) -> B | W169: =IF(O169="","",O169*Parametros!$I$26) -> 240.1911111 | X169: =IF(P169="","",P169*Parametros!$I$27) -> 307.4200558 | Y169: =IF(Q169="","",Q169*Parametros!$I$28) -> 326.4778336 | Z169: =IF(R169="","",R169*Parametros!$I$29) -> 823.8952817
B170: 11 | C170: =IF(Padroes!H30="","",Padroes!H30) -> 400 | D170: =IF(Padroes!I30="","",Padroes!I30) -> 1050 | E170: 1.7 | F170: 9.1 | G170: =IF(Padroes!K30="","",Padroes!K30) -> 0.33 | H170: =IF(E170="","",Padroes!S$8) -> 1 | I170: =IF(E170="","",Padroes!S$9) -> 0.2 | J170: =IF(E170="","",Padroes!S$10) -> 0.5 | K170: =IF(Padroes!M30="","",Padroes!M30) -> 0.556 | L170: =IF(D170="","",(D170+(3.1416*((K170+0.3)/2)^2-(3.1416*((Padroes!M30)/2)^2))*M170*2400)) -> 1608.928339 | M170: =IF(E170="","",Padroes!$AI$10) -> 0.7 | N170: =IF(E170="","",Padroes!$AL$23) -> 1 | O170: 300.2388889 | P170: 384.2750698 | Q170: =IF(E170="","",(3*$B$63 * (2*E170*I170-I170^2)*(H170-G170) ) * (I170/2) / (F170+E170) + P170) -> 408.097292 | R170: =IF(E170="","",(N170*$B$63*(K170+0.3)*E170^3)/(F170+E170)+((K170+0.3)*L170/(F170+E170))*(0.5-((2*L170*10^-4)/(3*(K170+0.3)^2)))) -> 823.8952817 | T170: =IF(Padroes!N30="","",Padroes!N30) -> B | W170: =IF(O170="","",O170*Parametros!$I$26) -> 240.1911111 | X170: =IF(P170="","",P170*Parametros!$I$27) -> 307.4200558 | Y170: =IF(Q170="","",Q170*Parametros!$I$28) -> 326.4778336 | Z170: =IF(R170="","",R170*Parametros!$I$29) -> 823.8952817
B171: 11 | C171: =IF(Padroes!H31="","",Padroes!H31) -> 600 | D171: =IF(Padroes!I31="","",Padroes!I31) -> 1050 | E171: 1.7 | F171: 9.1 | G171: =IF(Padroes!K31="","",Padroes!K31) -> 0.33 | H171: =IF(E171="","",Padroes!S$8) -> 1 | I171: =IF(E171="","",Padroes!S$9) -> 0.2 | J171: =IF(E171="","",Padroes!S$10) -> 0.5 | K171: =IF(Padroes!M31="","",Padroes!M31) -> 0.556 | L171: =IF(D171="","",(D171+(3.1416*((K171+0.3)/2)^2-(3.1416*((Padroes!M31)/2)^2))*M171*2400)) -> 1608.928339 | M171: =IF(E171="","",Padroes!$AI$10) -> 0.7 | N171: =IF(E171="","",Padroes!$AL$23) -> 1 | O171: 300.2388889 | P171: 384.2750698 | Q171: =IF(E171="","",(3*$B$63 * (2*E171*I171-I171^2)*(H171-G171) ) * (I171/2) / (F171+E171) + P171) -> 408.097292 | R171: =IF(E171="","",(N171*$B$63*(K171+0.3)*E171^3)/(F171+E171)+((K171+0.3)*L171/(F171+E171))*(0.5-((2*L171*10^-4)/(3*(K171+0.3)^2)))) -> 823.8952817 | T171: =IF(Padroes!N31="","",Padroes!N31) -> B | W171: =IF(O171="","",O171*Parametros!$I$26) -> 240.1911111 | X171: =IF(P171="","",P171*Parametros!$I$27) -> 307.4200558 | Y171: =IF(Q171="","",Q171*Parametros!$I$28) -> 326.4778336 | Z171: =IF(R171="","",R171*Parametros!$I$29) -> 823.8952817
B172: 11 | C172: =IF(Padroes!H32="","",Padroes!H32) -> 1000 | D172: =IF(Padroes!I32="","",Padroes!I32) -> 1330 | E172: 1.7 | F172: 9.1 | G172: =IF(Padroes!K32="","",Padroes!K32) -> 0.36 | H172: =IF(E172="","",Padroes!S$8) -> 1 | I172: =IF(E172="","",Padroes!S$9) -> 0.2 | J172: =IF(E172="","",Padroes!S$10) -> 0.5 | K172: =IF(Padroes!M32="","",Padroes!M32) -> 0.608 | L172: =IF(D172="","",(D172+(3.1416*((K172+0.3)/2)^2-(3.1416*((Padroes!M32)/2)^2))*M172*2400)) -> 1930.095866 | M172: =IF(E172="","",Padroes!$AI$10) -> 0.7 | N172: =IF(E172="","",Padroes!$AL$23) -> 1 | O172: 327.5333333 | P172: 407.8067002 | Q172: =IF(E172="","",(3*$B$63 * (2*E172*I172-I172^2)*(H172-G172) ) * (I172/2) / (F172+E172) + P172) -> 430.5622557 | R172: =IF(E172="","",(N172*$B$63*(K172+0.3)*E172^3)/(F172+E172)+((K172+0.3)*L172/(F172+E172))*(0.5-((2*L172*10^-4)/(3*(K172+0.3)^2)))) -> 881.9219292 | T172: =IF(Padroes!N32="","",Padroes!N32) -> B-1,5 | W172: =IF(O172="","",O172*Parametros!$I$26) -> 262.0266667 | X172: =IF(P172="","",P172*Parametros!$I$27) -> 326.2453601 | Y172: =IF(Q172="","",Q172*Parametros!$I$28) -> 344.4498046 | Z172: =IF(R172="","",R172*Parametros!$I$29) -> 881.9219292
B173: 11 | C173: =IF(Padroes!H33="","",Padroes!H33) ->  | D173: =IF(Padroes!I33="","",Padroes!I33) ->  | G173: =IF(Padroes!K33="","",Padroes!K33) ->  | H173: =IF(E173="","",Padroes!S$8) ->  | I173: =IF(E173="","",Padroes!S$9) ->  | J173: =IF(E173="","",Padroes!S$10) ->  | K173: =IF(Padroes!M33="","",Padroes!M33) ->  | L173: =IF(D173="","",(D173+(3.1416*((K173+0.3)/2)^2-(3.1416*((Padroes!M33)/2)^2))*M173*2400)) ->  | M173: =IF(E173="","",Padroes!$AI$10) ->  | N173: =IF(E173="","",Padroes!$AL$23) ->  | Q173: =IF(E173="","",(3*$B$63 * (2*E173*I173-I173^2)*(H173-G173) ) * (I173/2) / (F173+E173) + P173) ->  | R173: =IF(E173="","",(N173*$B$63*(K173+0.3)*E173^3)/(F173+E173)+((K173+0.3)*L173/(F173+E173))*(0.5-((2*L173*10^-4)/(3*(K173+0.3)^2)))) ->  | T173: =IF(Padroes!N33="","",Padroes!N33) ->  | W173: =IF(O173="","",O173*Parametros!$I$26) ->  | X173: =IF(P173="","",P173*Parametros!$I$27) ->  | Y173: =IF(Q173="","",Q173*Parametros!$I$28) ->  | Z173: =IF(R173="","",R173*Parametros!$I$29) -> 
B174: 11 | C174: =IF(Padroes!H34="","",Padroes!H34) ->  | D174: =IF(Padroes!I34="","",Padroes!I34) ->  | G174: =IF(Padroes!K34="","",Padroes!K34) ->  | H174: =IF(E174="","",Padroes!S$8) ->  | I174: =IF(E174="","",Padroes!S$9) ->  | J174: =IF(E174="","",Padroes!S$10) ->  | K174: =IF(Padroes!M34="","",Padroes!M34) ->  | L174: =IF(D174="","",(D174+(3.1416*((K174+0.3)/2)^2-(3.1416*((Padroes!M34)/2)^2))*M174*2400)) ->  | M174: =IF(E174="","",Padroes!$AI$10) ->  | N174: =IF(E174="","",Padroes!$AL$23) ->  | O174: =IF(E174="","",($B$63*G174*E174^3)/(F174+E174)) ->  | Q174: =IF(E174="","",(3*$B$63 * (2*E174*I174-I174^2)*(H174-G174) ) * (I174/2) / (F174+E174) + P174) ->  | R174: =IF(E174="","",(N174*$B$63*(K174+0.3)*E174^3)/(F174+E174)+((K174+0.3)*L174/(F174+E174))*(0.5-((2*L174*10^-4)/(3*(K174+0.3)^2)))) ->  | T174: =IF(Padroes!N34="","",Padroes!N34) ->  | W174: =IF(O174="","",O174*Parametros!$I$26) ->  | X174: =IF(P174="","",P174*Parametros!$I$27) ->  | Y174: =IF(Q174="","",Q174*Parametros!$I$28) ->  | Z174: =IF(R174="","",R174*Parametros!$I$29) -> 
B175: 11 | C175: =IF(Padroes!H35="","",Padroes!H35) ->  | D175: =IF(Padroes!I35="","",Padroes!I35) ->  | G175: =IF(Padroes!K35="","",Padroes!K35) ->  | H175: =IF(E175="","",Padroes!S$8) ->  | I175: =IF(E175="","",Padroes!S$9) ->  | J175: =IF(E175="","",Padroes!S$10) ->  | K175: =IF(Padroes!M35="","",Padroes!M35) ->  | L175: =IF(D175="","",(D175+(3.1416*((K175+0.3)/2)^2-(3.1416*((Padroes!M35)/2)^2))*M175*2400)) ->  | M175: =IF(E175="","",Padroes!$AI$10) ->  | N175: =IF(E175="","",Padroes!$AL$23) ->  | T175: =IF(Padroes!N35="","",Padroes!N35) ->  | W175: =IF(O175="","",O175*Parametros!$I$26) ->  | X175: =IF(P175="","",P175*Parametros!$I$27) ->  | Y175: =IF(Q175="","",Q175*Parametros!$I$28) ->  | Z175: =IF(R175="","",R175*Parametros!$I$29) -> 
B176: 11 | C176: =IF(Padroes!H36="","",Padroes!H36) ->  | D176: =IF(Padroes!I36="","",Padroes!I36) ->  | G176: =IF(Padroes!K36="","",Padroes!K36) ->  | H176: =IF(E176="","",Padroes!S$8) ->  | I176: =IF(E176="","",Padroes!S$9) ->  | J176: =IF(E176="","",Padroes!S$10) ->  | K176: =IF(Padroes!M36="","",Padroes!M36) ->  | L176: =IF(D176="","",(D176+(3.1416*((K176+0.3)/2)^2-(3.1416*((Padroes!M36)/2)^2))*M176*2400)) ->  | M176: =IF(E176="","",Padroes!$AI$10) ->  | N176: =IF(E176="","",Padroes!$AL$23) ->  | T176: =IF(Padroes!N36="","",Padroes!N36) ->  | W176: =IF(O176="","",O176*Parametros!$I$26) ->  | X176: =IF(P176="","",P176*Parametros!$I$27) ->  | Y176: =IF(Q176="","",Q176*Parametros!$I$28) ->  | Z176: =IF(R176="","",R176*Parametros!$I$29) -> 
A177: 11 | B177: 11 | C177: =IF(Engastamento_Profundo!F$43=11,Engastamento_Profundo!F$44, 0) -> 0 | D177: =IF(Engastamento_Profundo!F$45="",VLOOKUP(C177,Padroes!H28:M36,2,FALSE),Engastamento_Profundo!$F$45 ) ->  | E177: =IF(Engastamento_Profundo!$F$47="",1.7,Engastamento_Profundo!$F47) -> -335544.32 | F177: =IF(Engastamento_Profundo!F$56="",9.1,Engastamento_Profundo!F$56) -> 9.1 | G177: =IF(Engastamento_Profundo!F$46="",VLOOKUP(C177,Padroes!H28:M36,4,FALSE),Engastamento_Profundo!F$46) ->  | H177: =IF(Engastamento_Profundo!F$49="",Padroes!$S$8,Engastamento_Profundo!F$49) -> 1 | I177: =IF(Engastamento_Profundo!F$50="",Padroes!$S$9,Engastamento_Profundo!F70) -> 0.2 | J177: =IF(Engastamento_Profundo!F$51="",Padroes!$S$10,Engastamento_Profundo!F$51) -> 0.5 | K177: =IF(Engastamento_Profundo!F$53="",VLOOKUP(C177,C168:K176,9,FALSE),Engastamento_Profundo!F$53) ->  | L177: =D177+(3.1416*K177^2*M177/4*2400) ->  | M177: =Padroes!$AL$9 -> 0.65 | N177: 1 | O177: =IF(E177="","",($B$63*G177*E177^3)/(F177+E177)) ->  | P177: =IF(E177="","",(3*$B$63*(2*J177*I177 - I177^2)*(H177-G177))*(E177-J177+I177/2)/(F177+E177/2) + O177) ->  | Q177: =IF(E177="","",(3*$B$63 * (2*E177*I177-I177^2)*(H177-G177) ) * (I177/2) / (F177+E177) + P177) ->  | R177: =IF(E177="","",(N177*$B$63*K177*E177^3)/(F177+E177) + (K177*L177/(F177+E177)) * (0.5 - (2*L177/(3*$C$63*K177^2)))) ->  | W177: =IF(O177="","",O177*Parametros!$I$26) ->  | X177: =IF(P177="","",P177*Parametros!$I$27) ->  | Y177: =IF(Q177="","",Q177*Parametros!$I$28) ->  | Z177: =IF(R177="","",R177*Parametros!$I$29) -> 
A178: 12 | B178: 12 | C178: =IF(Padroes!H37="","",Padroes!H37) -> 200 | D178: =IF(Padroes!I37="","",Padroes!I37) -> 780 | E178: 1.8 | F178: 10 | G178: =IF(Padroes!K37="","",Padroes!K37) -> 0.23 | H178: =IF(E178="","",Padroes!S$8) -> 1 | I178: =IF(E178="","",Padroes!S$9) -> 0.2 | J178: =IF(E178="","",Padroes!S$10) -> 0.5 | K178: =IF(Padroes!M37="","",Padroes!M37) -> 0.386 | L178: =IF(D178="","",(D178+(3.1416*((K178+0.3)/2)^2-(3.1416*((Padroes!M37)/2)^2))*M178*2400)) -> 1234.652352 | M178: =IF(E178="","",Padroes!$AI$11) -> 0.75 | N178: =IF(E178="","",Padroes!$AL$23) -> 1 | O178: 227.3491525 | P178: 322.2922718 | Q178: 348.9160006 | R178: 701.4278975 | S178: 12 | T178: =IF(Padroes!N37="","",Padroes!N37) -> D | W178: =IF(O178="","",O178*Parametros!$I$26) -> 181.879322 | X178: =IF(P178="","",P178*Parametros!$I$27) -> 257.8338174 | Y178: =IF(Q178="","",Q178*Parametros!$I$28) -> 279.1328005 | Z178: =IF(R178="","",R178*Parametros!$I$29) -> 701.4278975
B179: 12 | C179: =IF(Padroes!H38="","",Padroes!H38) -> 300 | D179: =IF(Padroes!I38="","",Padroes!I38) -> 1210 | E179: 1.8 | F179: 10 | G179: =IF(Padroes!K38="","",Padroes!K38) -> 0.35 | H179: =IF(E179="","",Padroes!S$8) -> 1 | I179: =IF(E179="","",Padroes!S$9) -> 0.2 | J179: =IF(E179="","",Padroes!S$10) -> 0.5 | K179: =IF(Padroes!M38="","",Padroes!M38) -> 0.591 | L179: =IF(D179="","",(D179+(3.1416*((K179+0.3)/2)^2-(3.1416*((Padroes!M38)/2)^2))*M179*2400)) -> 1838.539912 | M179: =IF(E179="","",Padroes!$AI$11) -> 0.75 | N179: =IF(E179="","",Padroes!$AL$23) -> 1 | O179: 345.9661017 | P179: 426.1128907 | Q179: 448.587467 | R179: 928.709918 | T179: =IF(Padroes!N38="","",Padroes!N38) -> B | W179: =IF(O179="","",O179*Parametros!$I$26) -> 276.7728814 | X179: =IF(P179="","",P179*Parametros!$I$27) -> 340.8903125 | Y179: =IF(Q179="","",Q179*Parametros!$I$28) -> 358.8699736 | Z179: =IF(R179="","",R179*Parametros!$I$29) -> 928.709918
B180: 12 | C180: =IF(Padroes!H39="","",Padroes!H39) -> 400 | D180: =IF(Padroes!I39="","",Padroes!I39) -> 1210 | E180: 1.8 | F180: 10 | G180: =IF(Padroes!K39="","",Padroes!K39) -> 0.35 | H180: =IF(E180="","",Padroes!S$8) -> 1 | I180: =IF(E180="","",Padroes!S$9) -> 0.2 | J180: =IF(E180="","",Padroes!S$10) -> 0.5 | K180: =IF(Padroes!M39="","",Padroes!M39) -> 0.591 | L180: =IF(D180="","",(D180+(3.1416*((K180+0.3)/2)^2-(3.1416*((Padroes!M39)/2)^2))*M180*2400)) -> 1838.539912 | M180: =IF(E180="","",Padroes!$AI$11) -> 0.75 | N180: =IF(E180="","",Padroes!$AL$23) -> 1 | O180: 345.9661017 | P180: 426.1128907 | Q180: 448.587467 | R180: 928.709918 | T180: =IF(Padroes!N39="","",Padroes!N39) -> B | W180: =IF(O180="","",O180*Parametros!$I$26) -> 276.7728814 | X180: =IF(P180="","",P180*Parametros!$I$27) -> 340.8903125 | Y180: =IF(Q180="","",Q180*Parametros!$I$28) -> 358.8699736 | Z180: =IF(R180="","",R180*Parametros!$I$29) -> 928.709918
B181: 12 | C181: =IF(Padroes!H40="","",Padroes!H40) -> 600 | D181: =IF(Padroes!I40="","",Padroes!I40) -> 1210 | E181: 1.8 | F181: 10 | G181: =IF(Padroes!K40="","",Padroes!K40) -> 0.35 | H181: =IF(E181="","",Padroes!S$8) -> 1 | I181: =IF(E181="","",Padroes!S$9) -> 0.2 | J181: =IF(E181="","",Padroes!S$10) -> 0.5 | K181: =IF(Padroes!M40="","",Padroes!M40) -> 0.591 | L181: =IF(D181="","",(D181+(3.1416*((K181+0.3)/2)^2-(3.1416*((Padroes!M40)/2)^2))*M181*2400)) -> 1838.539912 | M181: =IF(E181="","",Padroes!$AI$11) -> 0.75 | N181: =IF(E181="","",Padroes!$AL$23) -> 1 | O181: 345.9661017 | P181: 426.1128907 | Q181: 448.587467 | R181: 928.709918 | T181: =IF(Padroes!N40="","",Padroes!N40) -> B | W181: =IF(O181="","",O181*Parametros!$I$26) -> 276.7728814 | X181: =IF(P181="","",P181*Parametros!$I$27) -> 340.8903125 | Y181: =IF(Q181="","",Q181*Parametros!$I$28) -> 358.8699736 | Z181: =IF(R181="","",R181*Parametros!$I$29) -> 928.709918
B182: 12 | C182: =IF(Padroes!H41="","",Padroes!H41) -> 1000 | D182: =IF(Padroes!I41="","",Padroes!I41) -> 1520 | E182: 1.8 | F182: 10 | G182: =IF(Padroes!K41="","",Padroes!K41) -> 0.38 | H182: =IF(E182="","",Padroes!S$8) -> 1 | I182: =IF(E182="","",Padroes!S$9) -> 0.2 | J182: =IF(E182="","",Padroes!S$10) -> 0.5 | K182: =IF(Padroes!M41="","",Padroes!M41) -> 0.642 | L182: =IF(D182="","",(D182+(3.1416*((K182+0.3)/2)^2-(3.1416*((Padroes!M41)/2)^2))*M182*2400)) -> 2191.799744 | M182: =IF(E182="","",Padroes!$AI$11) -> 0.75 | N182: =IF(E182="","",Padroes!$AL$23) -> 1 | O182: 375.620339 | P182: 452.0680454 | Q182: 473.5053335 | R182: 989.8170183 | T182: =IF(Padroes!N41="","",Padroes!N41) -> B-1,5 | W182: =IF(O182="","",O182*Parametros!$I$26) -> 300.4962712 | X182: =IF(P182="","",P182*Parametros!$I$27) -> 361.6544363 | Y182: =IF(Q182="","",Q182*Parametros!$I$28) -> 378.8042668 | Z182: =IF(R182="","",R182*Parametros!$I$29) -> 989.8170183
B183: 12 | C183: =IF(Padroes!H42="","",Padroes!H42) -> 2000 | D183: =IF(Padroes!I42="","",Padroes!I42) -> 2000 | E183: 1.8 | F183: 10 | G183: =IF(Padroes!K42="","",Padroes!K42) -> 0.44 | H183: =IF(E183="","",Padroes!S$8) -> 1 | I183: =IF(E183="","",Padroes!S$9) -> 0.2 | J183: =IF(E183="","",Padroes!S$10) -> 0.5 | K183: =IF(Padroes!M42="","",Padroes!M42) -> 0.746 | L183: =IF(D183="","",(D183+(3.1416*((K183+0.3)/2)^2-(3.1416*((Padroes!M42)/2)^2))*M183*2400)) -> 2760.015872 | M183: =IF(E183="","",Padroes!$AI$11) -> 0.75 | N183: =IF(E183="","",Padroes!$AL$23) -> 1 | O183: 434.9288136 | P183: 503.9783548 | Q183: 523.3410667 | R183: 1115.128816 | T183: =IF(Padroes!N42="","",Padroes!N42) -> B-4,5 | W183: =IF(O183="","",O183*Parametros!$I$26) -> 347.9430508 | X183: =IF(P183="","",P183*Parametros!$I$27) -> 403.1826839 | Y183: =IF(Q183="","",Q183*Parametros!$I$28) -> 418.6728534 | Z183: =IF(R183="","",R183*Parametros!$I$29) -> 1115.128816
B184: 12 | C184: =IF(Padroes!H43="","",Padroes!H43) -> 3000 | D184: =IF(Padroes!I43="","",Padroes!I43) -> 2500 | E184: 1.8 | F184: 10 | G184: =IF(Padroes!K43="","",Padroes!K43) -> 0.47 | H184: =IF(E184="","",Padroes!S$8) -> 1 | I184: =IF(E184="","",Padroes!S$9) -> 0.2 | J184: =IF(E184="","",Padroes!S$10) -> 0.5 | K184: =IF(Padroes!M43="","",Padroes!M43) -> 0.7968636364 | L184: =IF(D184="","",(D184+(3.1416*((K184+0.3)/2)^2-(3.1416*((Padroes!M43)/2)^2))*M184*2400)) -> 3303.160036 | M184: =IF(E184="","",Padroes!$AI$11) -> 0.75 | N184: =IF(E184="","",Padroes!$AL$23) -> 1 | O184: 464.5830508 | P184: 529.9335096 | Q184: 548.2589333 | R184: 1181.544075 | T184: =IF(Padroes!N43="","",Padroes!N43) -> B-6 | W184: =IF(O184="","",O184*Parametros!$I$26) -> 371.6664407 | X184: =IF(P184="","",P184*Parametros!$I$27) -> 423.9468077 | Y184: =IF(Q184="","",Q184*Parametros!$I$28) -> 438.6071466 | Z184: =IF(R184="","",R184*Parametros!$I$29) -> 1181.544075
B185: 12 | C185: =IF(Padroes!H44="","",Padroes!H44) ->  | D185: =IF(Padroes!I44="","",Padroes!I44) ->  | G185: =IF(Padroes!K44="","",Padroes!K44) ->  | H185: =IF(E185="","",Padroes!S$8) ->  | I185: =IF(E185="","",Padroes!S$9) ->  | J185: =IF(E185="","",Padroes!S$10) ->  | K185: =IF(Padroes!M44="","",Padroes!M44) ->  | L185: =IF(D185="","",(D185+(3.1416*((K185+0.3)/2)^2-(3.1416*((Padroes!M44)/2)^2))*M185*2400)) ->  | M185: =IF(E185="","",Padroes!$AI$11) ->  | N185: =IF(E185="","",Padroes!$AL$23) ->  | T185: =IF(Padroes!N44="","",Padroes!N44) ->  | W185: =IF(O185="","",O185*Parametros!$I$26) ->  | X185: =IF(P185="","",P185*Parametros!$I$27) ->  | Y185: =IF(Q185="","",Q185*Parametros!$I$28) ->  | Z185: =IF(R185="","",R185*Parametros!$I$29) -> 
B186: 12 | C186: =IF(Padroes!H45="","",Padroes!H45) ->  | D186: =IF(Padroes!I45="","",Padroes!I45) ->  | G186: =IF(Padroes!K45="","",Padroes!K45) ->  | H186: =IF(E186="","",Padroes!S$8) ->  | I186: =IF(E186="","",Padroes!S$9) ->  | J186: =IF(E186="","",Padroes!S$10) ->  | K186: =IF(Padroes!M45="","",Padroes!M45) ->  | L186: =IF(D186="","",(D186+(3.1416*((K186+0.3)/2)^2-(3.1416*((Padroes!M45)/2)^2))*M186*2400)) ->  | M186: =IF(E186="","",Padroes!$AI$11) ->  | N186: =IF(E186="","",Padroes!$AL$23) ->  | O186: =IF(E186="","",($B$63*G186*E186^3)/(F186+E186)) ->  | T186: =IF(Padroes!N45="","",Padroes!N45) ->  | W186: =IF(O186="","",O186*Parametros!$I$26) ->  | X186: =IF(P186="","",P186*Parametros!$I$27) ->  | Y186: =IF(Q186="","",Q186*Parametros!$I$28) ->  | Z186: =IF(R186="","",R186*Parametros!$I$29) -> 
